Workbook

Sheet Region Wise SO-Details
AJ2: =CONCATENATE("Distribution Sellout Trend As on ",Pivot!$L$2," ") -> Distribution Sellout Trend As on 30-Nov
AH3: Nov'25
A4: Overall CA Details | B4: # of ASO on 0 CA | C4: =TEXT(C5,"DDD") -> Sat | D4: =TEXT(D5,"DDD") -> Sun | E4: Mon | F4: Tue | G4: Wed | H4: Thu | I4: Fri | J4: Sat | K4: Sun | L4: Mon | M4: Tue | N4: Wed | O4: Thu | P4: Fri | Q4: Sat | R4: Sun | S4: Mon | T4: Tue | U4: Wed | V4: Thu | W4: Fri | X4: Sat | Y4: Sun | Z4: Mon | AA4: Tue | AB4: Wed | AC4: Thu | AD4: Fri | AE4: Sat | AF4: Sun | AG4: Mon | AJ4: Nov'25 CA | AN4: Oct'25 | AP4: Nov'25 Cov
C5: 2025-11-01 | D5: =C5+1 -> 2025-11-02 | E5: =D5+1 -> 2025-11-03 | F5: 2025-11-04 | G5: 2025-11-05 | H5: 2025-11-06 | I5: 2025-11-07 | J5: 2025-11-08 | K5: 2025-11-09 | L5: 2025-11-10 | M5: 2025-11-11 | N5: 2025-11-12 | O5: 2025-11-13 | P5: 2025-11-14 | Q5: 2025-11-15 | R5: 2025-11-16 | S5: 2025-11-17 | T5: 2025-11-18 | U5: 2025-11-19 | V5: 2025-11-20 | W5: 2025-11-21 | X5: 2025-11-22 | Y5: 2025-11-23 | Z5: 2025-11-24 | AA5: 2025-11-25 | AB5: 2025-11-26 | AC5: 2025-11-27 | AD5: 2025-11-28 | AE5: 2025-11-29 | AF5: =AE5+1 -> 2025-11-30 | AG5: =AF5+1 -> 2025-12-01 | AH5: Total | AJ5: CA TGT | AK5: CA Ach | AL5: Ach% | AM5: MoM % | AN5: LMTD oct CA | AP5: Cov TGT | AQ5: Cov Ach | AR5: Cov Ach% | AS5: MoM % | AT5: LMTD Nov T3
A6: CA | B6: =SUM(B7:B13) -> 2 | C6: 23 | D6: 0 | E6: 44 | F6: 38 | G6: 78 | H6: 100 | I6: 103 | J6: 139 | K6: 16 | L6: 471 | M6: 441 | N6: 200 | O6: 135 | P6: 138 | Q6: 422 | R6: 137 | S6: 501 | T6: 425 | U6: 273 | V6: 444 | W6: 232 | X6: 176 | Y6: 219 | Z6: 807 | AA6: 489 | AB6: 342 | AC6: 855 | AD6: 1106 | AE6: 4479 | AF6: =SUM(AF7:AF13) -> 3970 | AG6: 0 | AH6: =SUM(C6:AF6) -> 16803 | AJ6: =SUM(AJ7:AJ13) -> 21265 | AK6: =SUM(AK7:AK13) -> 17817 | AL6: =IFERROR(AK6/AJ6,0) -> 84% | AM6: =AK6/AN6-1 -> -27% | AN6: =SUM(AN7:AN13) -> 24242 | AP6: =SUM(AP7:AP13) -> 6300 | AQ6: =SUM(AQ7:AQ13) -> 5701 | AR6: =IFERROR(AQ6/AP6,0) -> 90% | AS6: =IFERROR(AQ6/AT6-1,0) -> -17% | AT6: =SUM(AT7:AT13) -> 6843
A7: East1 | B7: =COUNTIFS(PVM!$Q:$Q,0,PVM!$K:$K,'Region Wise SO-Details'!$A7) -> 0 | C7: =SUMIFS('Statewise SO Details'!C$5:C$30,'Statewise SO Details'!$A$5:$A$30,'Region Wise SO-Details'!$A7) -> 0 | D7: =SUMIFS('Statewise SO Details'!D$5:D$30,'Statewise SO Details'!$A$5:$A$30,'Region Wise SO-Details'!$A7) -> 0 | E7: =SUMIFS('Statewise SO Details'!E$5:E$30,'Statewise SO Details'!$A$5:$A$30,'Region Wise SO-Details'!$A7) -> 0 | F7: =SUMIFS('Statewise SO Details'!F$5:F$30,'Statewise SO Details'!$A$5:$A$30,'Region Wise SO-Details'!$A7) -> 0 | G7: =SUMIFS('Statewise SO Details'!G$5:G$30,'Statewise SO Details'!$A$5:$A$30,'Region Wise SO-Details'!$A7) -> 0 | H7: =SUMIFS('Statewise SO Details'!H$5:H$30,'Statewise SO Details'!$A$5:$A$30,'Region Wise SO-Details'!$A7) -> 26 | I7: =SUMIFS('Statewise SO Details'!I$5:I$30,'Statewise SO Details'!$A$5:$A$30,'Region Wise SO-Details'!$A7) -> 3 | J7: =SUMIFS('Statewise SO Details'!J$5:J$30,'Statewise SO Details'!$A$5:$A$30,'Region Wise SO-Details'!$A7) -> 0 | K7: =SUMIFS('Statewise SO Details'!K$5:K$30,'Statewise SO Details'!$A$5:$A$30,'Region Wise SO-Details'!$A7) -> 11 | L7: =SUMIFS('Statewise SO Details'!L$5:L$30,'Statewise SO Details'!$A$5:$A$30,'Region Wise SO-Details'!$A7) -> 16 | M7: =SUMIFS('Statewise SO Details'!M$5:M$30,'Statewise SO Details'!$A$5:$A$30,'Region Wise SO-Details'!$A7) -> 4 | N7: =SUMIFS('Statewise SO Details'!N$5:N$30,'Statewise SO Details'!$A$5:$A$30,'Region Wise SO-Details'!$A7) -> 4 | O7: =SUMIFS('Statewise SO Details'!O$5:O$30,'Statewise SO Details'!$A$5:$A$30,'Region Wise SO-Details'!$A7) -> 5 | P7: =SUMIFS('Statewise SO Details'!P$5:P$30,'Statewise SO Details'!$A$5:$A$30,'Region Wise SO-Details'!$A7) -> 7 | Q7: =SUMIFS('Statewise SO Details'!Q$5:Q$30,'Statewise SO Details'!$A$5:$A$30,'Region Wise SO-Details'!$A7) -> 25 | R7: =SUMIFS('Statewise SO Details'!R$5:R$30,'Statewise SO Details'!$A$5:$A$30,'Region Wise SO-Details'!$A7) -> 29 | S7: =SUMIFS('Statewise SO Details'!S$5:S$30,'Statewise SO Details'!$A$5:$A$30,'Region Wise SO-Details'!$A7) -> 23 | T7: =SUMIFS('Statewise SO Details'!T$5:T$30,'Statewise SO Details'!$A$5:$A$30,'Region Wise SO-Details'!$A7) -> 4 | U7: =SUMIFS('Statewise SO Details'!U$5:U$30,'Statewise SO Details'!$A$5:$A$30,'Region Wise SO-Details'!$A7) -> 6 | V7: =SUMIFS('Statewise SO Details'!V$5:V$30,'Statewise SO Details'!$A$5:$A$30,'Region Wise SO-Details'!$A7) -> 28 | W7: =SUMIFS('Statewise SO Details'!W$5:W$30,'Statewise SO Details'!$A$5:$A$30,'Region Wise SO-Details'!$A7) -> 73 | X7: =SUMIFS('Statewise SO Details'!X$5:X$30,'Statewise SO Details'!$A$5:$A$30,'Region Wise SO-Details'!$A7) -> 3 | Y7: =SUMIFS('Statewise SO Details'!Y$5:Y$30,'Statewise SO Details'!$A$5:$A$30,'Region Wise SO-Details'!$A7) -> 35 | Z7: =SUMIFS('Statewise SO Details'!Z$5:Z$30,'Statewise SO Details'!$A$5:$A$30,'Region Wise SO-Details'!$A7) -> 13 | AA7: =SUMIFS('Statewise SO Details'!AA$5:AA$30,'Statewise SO Details'!$A$5:$A$30,'Region Wise SO-Details'!$A7) -> 19 | AB7: =SUMIFS('Statewise SO Details'!AB$5:AB$30,'Statewise SO Details'!$A$5:$A$30,'Region Wise SO-Details'!$A7) -> 7 | AC7: =SUMIFS('Statewise SO Details'!AC$5:AC$30,'Statewise SO Details'!$A$5:$A$30,'Region Wise SO-Details'!$A7) -> 32 | AD7: =SUMIFS('Statewise SO Details'!AD$5:AD$30,'Statewise SO Details'!$A$5:$A$30,'Region Wise SO-Details'!$A7) -> 46 | AE7: =SUMIFS('Statewise SO Details'!AE$5:AE$30,'Statewise SO Details'!$A$5:$A$30,'Region Wise SO-Details'!$A7) -> 386 | AF7: =SUMIFS('Statewise SO Details'!AF$5:AF$30,'Statewise SO Details'!$A$5:$A$30,'Region Wise SO-Details'!$A7) -> 168 | AG7: =SUMIFS('Statewise SO Details'!AG$5:AG$30,'Statewise SO Details'!$A$5:$A$30,'Region Wise SO-Details'!$A7) -> 0 | AH7: =SUMIFS('Aug''24 & Sep''25'!$BL:$BL,'Aug''24 & Sep''25'!$CF:$CF,'Region Wise SO-Details'!$AH$3,'Aug''24 & Sep''25'!$BZ:$BZ,'Region Wise SO-Details'!$A7) -> 1527 | AJ7: 1880 | AK7: =AH7 -> 1527 | AL7: =IFERROR(AK7/AJ7,0) -> 81% | AM7: =IFERROR(AK7/AN7-1,0) -> -36% | AN7: =SUMIFS('Aug''24 & Sep''25'!$BL:$BL,'Aug''24 & Sep''25'!$BZ:$BZ,'Region Wise SO-Details'!$A7,'Aug''24 & Sep''25'!$BU:$BU,"Consumer",'Aug''24 & Sep''25'!$CF:$CF,'Region Wise SO-Details'!AN$4,'Aug''24 & Sep''25'!$CG:$CG,"MTD") -> 2368 | AP7: 660 | AQ7: =IFERROR(VLOOKUP($A7,Pivot!$B$6:$D$12,3,0),0) -> 623 | AR7: =IFERROR(AQ7/AP7,0) -> 94% | AS7: =IFERROR(AQ7/AT7-1,0) -> -6% | AT7: =VLOOKUP($A7,Pivot!$B$6:$D$12,2,0) -> 666
A8: East2 | B8: =COUNTIFS(PVM!$Q:$Q,0,PVM!$K:$K,'Region Wise SO-Details'!$A8) -> 0 | C8: =SUMIFS('Statewise SO Details'!C$5:C$30,'Statewise SO Details'!$A$5:$A$30,'Region Wise SO-Details'!$A8) -> 0 | D8: =SUMIFS('Statewise SO Details'!D$5:D$30,'Statewise SO Details'!$A$5:$A$30,'Region Wise SO-Details'!$A8) -> 0 | E8: =SUMIFS('Statewise SO Details'!E$5:E$30,'Statewise SO Details'!$A$5:$A$30,'Region Wise SO-Details'!$A8) -> 7 | F8: =SUMIFS('Statewise SO Details'!F$5:F$30,'Statewise SO Details'!$A$5:$A$30,'Region Wise SO-Details'!$A8) -> 4 | G8: =SUMIFS('Statewise SO Details'!G$5:G$30,'Statewise SO Details'!$A$5:$A$30,'Region Wise SO-Details'!$A8) -> 15 | H8: =SUMIFS('Statewise SO Details'!H$5:H$30,'Statewise SO Details'!$A$5:$A$30,'Region Wise SO-Details'!$A8) -> 2 | I8: =SUMIFS('Statewise SO Details'!I$5:I$30,'Statewise SO Details'!$A$5:$A$30,'Region Wise SO-Details'!$A8) -> 11 | J8: =SUMIFS('Statewise SO Details'!J$5:J$30,'Statewise SO Details'!$A$5:$A$30,'Region Wise SO-Details'!$A8) -> 6 | K8: =SUMIFS('Statewise SO Details'!K$5:K$30,'Statewise SO Details'!$A$5:$A$30,'Region Wise SO-Details'!$A8) -> 5 | L8: =SUMIFS('Statewise SO Details'!L$5:L$30,'Statewise SO Details'!$A$5:$A$30,'Region Wise SO-Details'!$A8) -> 42 | M8: =SUMIFS('Statewise SO Details'!M$5:M$30,'Statewise SO Details'!$A$5:$A$30,'Region Wise SO-Details'!$A8) -> 4 | N8: =SUMIFS('Statewise SO Details'!N$5:N$30,'Statewise SO Details'!$A$5:$A$30,'Region Wise SO-Details'!$A8) -> 5 | O8: =SUMIFS('Statewise SO Details'!O$5:O$30,'Statewise SO Details'!$A$5:$A$30,'Region Wise SO-Details'!$A8) -> 2 | P8: =SUMIFS('Statewise SO Details'!P$5:P$30,'Statewise SO Details'!$A$5:$A$30,'Region Wise SO-Details'!$A8) -> 52 | Q8: =SUMIFS('Statewise SO Details'!Q$5:Q$30,'Statewise SO Details'!$A$5:$A$30,'Region Wise SO-Details'!$A8) -> 22 | R8: =SUMIFS('Statewise SO Details'!R$5:R$30,'Statewise SO Details'!$A$5:$A$30,'Region Wise SO-Details'!$A8) -> 8 | S8: =SUMIFS('Statewise SO Details'!S$5:S$30,'Statewise SO Details'!$A$5:$A$30,'Region Wise SO-Details'!$A8) -> 21 | T8: =SUMIFS('Statewise SO Details'!T$5:T$30,'Statewise SO Details'!$A$5:$A$30,'Region Wise SO-Details'!$A8) -> 85 | U8: =SUMIFS('Statewise SO Details'!U$5:U$30,'Statewise SO Details'!$A$5:$A$30,'Region Wise SO-Details'!$A8) -> 22 | V8: =SUMIFS('Statewise SO Details'!V$5:V$30,'Statewise SO Details'!$A$5:$A$30,'Region Wise SO-Details'!$A8) -> 30 | W8: =SUMIFS('Statewise SO Details'!W$5:W$30,'Statewise SO Details'!$A$5:$A$30,'Region Wise SO-Details'!$A8) -> 9 | X8: =SUMIFS('Statewise SO Details'!X$5:X$30,'Statewise SO Details'!$A$5:$A$30,'Region Wise SO-Details'!$A8) -> 32 | Y8: =SUMIFS('Statewise SO Details'!Y$5:Y$30,'Statewise SO Details'!$A$5:$A$30,'Region Wise SO-Details'!$A8) -> 7 | Z8: =SUMIFS('Statewise SO Details'!Z$5:Z$30,'Statewise SO Details'!$A$5:$A$30,'Region Wise SO-Details'!$A8) -> 11 | AA8: =SUMIFS('Statewise SO Details'!AA$5:AA$30,'Statewise SO Details'!$A$5:$A$30,'Region Wise SO-Details'!$A8) -> 25 | AB8: =SUMIFS('Statewise SO Details'!AB$5:AB$30,'Statewise SO Details'!$A$5:$A$30,'Region Wise SO-Details'!$A8) -> 25 | AC8: =SUMIFS('Statewise SO Details'!AC$5:AC$30,'Statewise SO Details'!$A$5:$A$30,'Region Wise SO-Details'!$A8) -> 67 | AD8: =SUMIFS('Statewise SO Details'!AD$5:AD$30,'Statewise SO Details'!$A$5:$A$30,'Region Wise SO-Details'!$A8) -> 55 | AE8: =SUMIFS('Statewise SO Details'!AE$5:AE$30,'Statewise SO Details'!$A$5:$A$30,'Region Wise SO-Details'!$A8) -> 154 | AF8: =SUMIFS('Statewise SO Details'!AF$5:AF$30,'Statewise SO Details'!$A$5:$A$30,'Region Wise SO-Details'!$A8) -> 539 | AG8: =SUMIFS('Statewise SO Details'!AG$5:AG$30,'Statewise SO Details'!$A$5:$A$30,'Region Wise SO-Details'!$A8) -> 0 | AH8: =SUMIFS('Aug''24 & Sep''25'!$BL:$BL,'Aug''24 & Sep''25'!$CF:$CF,'Region Wise SO-Details'!$AH$3,'Aug''24 & Sep''25'!$BZ:$BZ,'Region Wise SO-Details'!$A8) -> 1267 | AJ8: 1635 | AK8: =AH8 -> 1267 | AL8: =IFERROR(AK8/AJ8,0) -> 77% | AM8: =IFERROR(AK8/AN8-1,0) -> -40% | AN8: =SUMIFS('Aug''24 & Sep''25'!$BL:$BL,'Aug''24 & Sep''25'!$BZ:$BZ,'Region Wise SO-Details'!$A8,'Aug''24 & Sep''25'!$BU:$BU,"Consumer",'Aug''24 & Sep''25'!$CF:$CF,'Region Wise SO-Details'!AN$4,'Aug''24 & Sep''25'!$CG:$CG,"MTD") -> 2119 | AP8: 460 | AQ8: =IFERROR(VLOOKUP($A8,Pivot!$B$6:$D$12,3,0),0) -> 423 | AR8: =IFERROR(AQ8/AP8,0) -> 92% | AS8: =IFERROR(AQ8/AT8-1,0) -> -26% | AT8: =IFERROR(VLOOKUP($A8,Pivot!$B$6:$D$12,2,0),0) -> 574
A9: North1 | B9: =COUNTIFS(PVM!$Q:$Q,0,PVM!$K:$K,'Region Wise SO-Details'!$A9) -> 1 | C9: =SUMIFS('Statewise SO Details'!C$5:C$30,'Statewise SO Details'!$A$5:$A$30,'Region Wise SO-Details'!$A9) -> 15 | D9: =SUMIFS('Statewise SO Details'!D$5:D$30,'Statewise SO Details'!$A$5:$A$30,'Region Wise SO-Details'!$A9) -> 0 | E9: =SUMIFS('Statewise SO Details'!E$5:E$30,'Statewise SO Details'!$A$5:$A$30,'Region Wise SO-Details'!$A9) -> 9 | F9: =SUMIFS('Statewise SO Details'!F$5:F$30,'Statewise SO Details'!$A$5:$A$30,'Region Wise SO-Details'!$A9) -> 8 | G9: =SUMIFS('Statewise SO Details'!G$5:G$30,'Statewise SO Details'!$A$5:$A$30,'Region Wise SO-Details'!$A9) -> 10 | H9: =SUMIFS('Statewise SO Details'!H$5:H$30,'Statewise SO Details'!$A$5:$A$30,'Region Wise SO-Details'!$A9) -> 3 | I9: =SUMIFS('Statewise SO Details'!I$5:I$30,'Statewise SO Details'!$A$5:$A$30,'Region Wise SO-Details'!$A9) -> 29 | J9: =SUMIFS('Statewise SO Details'!J$5:J$30,'Statewise SO Details'!$A$5:$A$30,'Region Wise SO-Details'!$A9) -> 38 | K9: =SUMIFS('Statewise SO Details'!K$5:K$30,'Statewise SO Details'!$A$5:$A$30,'Region Wise SO-Details'!$A9) -> 0 | L9: =SUMIFS('Statewise SO Details'!L$5:L$30,'Statewise SO Details'!$A$5:$A$30,'Region Wise SO-Details'!$A9) -> 51 | M9: =SUMIFS('Statewise SO Details'!M$5:M$30,'Statewise SO Details'!$A$5:$A$30,'Region Wise SO-Details'!$A9) -> 54 | N9: =SUMIFS('Statewise SO Details'!N$5:N$30,'Statewise SO Details'!$A$5:$A$30,'Region Wise SO-Details'!$A9) -> 14 | O9: =SUMIFS('Statewise SO Details'!O$5:O$30,'Statewise SO Details'!$A$5:$A$30,'Region Wise SO-Details'!$A9) -> 31 | P9: =SUMIFS('Statewise SO Details'!P$5:P$30,'Statewise SO Details'!$A$5:$A$30,'Region Wise SO-Details'!$A9) -> 20 | Q9: =SUMIFS('Statewise SO Details'!Q$5:Q$30,'Statewise SO Details'!$A$5:$A$30,'Region Wise SO-Details'!$A9) -> 24 | R9: =SUMIFS('Statewise SO Details'!R$5:R$30,'Statewise SO Details'!$A$5:$A$30,'Region Wise SO-Details'!$A9) -> 50 | S9: =SUMIFS('Statewise SO Details'!S$5:S$30,'Statewise SO Details'!$A$5:$A$30,'Region Wise SO-Details'!$A9) -> 31 | T9: =SUMIFS('Statewise SO Details'!T$5:T$30,'Statewise SO Details'!$A$5:$A$30,'Region Wise SO-Details'!$A9) -> 51 | U9: =SUMIFS('Statewise SO Details'!U$5:U$30,'Statewise SO Details'!$A$5:$A$30,'Region Wise SO-Details'!$A9) -> 11 | V9: =SUMIFS('Statewise SO Details'!V$5:V$30,'Statewise SO Details'!$A$5:$A$30,'Region Wise SO-Details'!$A9) -> 74 | W9: =SUMIFS('Statewise SO Details'!W$5:W$30,'Statewise SO Details'!$A$5:$A$30,'Region Wise SO-Details'!$A9) -> 60 | X9: =SUMIFS('Statewise SO Details'!X$5:X$30,'Statewise SO Details'!$A$5:$A$30,'Region Wise SO-Details'!$A9) -> 22 | Y9: =SUMIFS('Statewise SO Details'!Y$5:Y$30,'Statewise SO Details'!$A$5:$A$30,'Region Wise SO-Details'!$A9) -> 8 | Z9: =SUMIFS('Statewise SO Details'!Z$5:Z$30,'Statewise SO Details'!$A$5:$A$30,'Region Wise SO-Details'!$A9) -> 71 | AA9: =SUMIFS('Statewise SO Details'!AA$5:AA$30,'Statewise SO Details'!$A$5:$A$30,'Region Wise SO-Details'!$A9) -> 65 | AB9: =SUMIFS('Statewise SO Details'!AB$5:AB$30,'Statewise SO Details'!$A$5:$A$30,'Region Wise SO-Details'!$A9) -> 74 | AC9: =SUMIFS('Statewise SO Details'!AC$5:AC$30,'Statewise SO Details'!$A$5:$A$30,'Region Wise SO-Details'!$A9) -> 61 | AD9: =SUMIFS('Statewise SO Details'!AD$5:AD$30,'Statewise SO Details'!$A$5:$A$30,'Region Wise SO-Details'!$A9) -> 145 | AE9: =SUMIFS('Statewise SO Details'!AE$5:AE$30,'Statewise SO Details'!$A$5:$A$30,'Region Wise SO-Details'!$A9) -> 1022 | AF9: =SUMIFS('Statewise SO Details'!AF$5:AF$30,'Statewise SO Details'!$A$5:$A$30,'Region Wise SO-Details'!$A9) -> 165 | AG9: =SUMIFS('Statewise SO Details'!AG$5:AG$30,'Statewise SO Details'!$A$5:$A$30,'Region Wise SO-Details'!$A9) -> 0 | AH9: =SUMIFS('Aug''24 & Sep''25'!$BL:$BL,'Aug''24 & Sep''25'!$CF:$CF,'Region Wise SO-Details'!$AH$3,'Aug''24 & Sep''25'!$BZ:$BZ,'Region Wise SO-Details'!$A9) -> 2602 | AJ9: 3545 | AK9: 2602 | AL9: 73% | AM9: -29% | AN9: =SUMIFS('Aug''24 & Sep''25'!$BL:$BL,'Aug''24 & Sep''25'!$BZ:$BZ,'Region Wise SO-Details'!$A9,'Aug''24 & Sep''25'!$BU:$BU,"Consumer",'Aug''24 & Sep''25'!$CF:$CF,'Region Wise SO-Details'!AN$4,'Aug''24 & Sep''25'!$CG:$CG,"MTD") -> 3676 | AP9: 1025 | AQ9: =VLOOKUP($A9,Pivot!$B$6:$D$12,3,0) -> 864 | AR9: 84% | AS9: =AQ9/AT9-1 -> -8% | AT9: =VLOOKUP($A9,Pivot!$B$6:$D$12,2,0) -> 940
A10: North2 | B10: =COUNTIFS(PVM!$Q:$Q,0,PVM!$K:$K,'Region Wise SO-Details'!$A10) -> 0 | C10: =SUMIFS('Statewise SO Details'!C$5:C$30,'Statewise SO Details'!$A$5:$A$30,'Region Wise SO-Details'!$A10) -> 1 | D10: =SUMIFS('Statewise SO Details'!D$5:D$30,'Statewise SO Details'!$A$5:$A$30,'Region Wise SO-Details'!$A10) -> 0 | E10: =SUMIFS('Statewise SO Details'!E$5:E$30,'Statewise SO Details'!$A$5:$A$30,'Region Wise SO-Details'!$A10) -> 0 | F10: =SUMIFS('Statewise SO Details'!F$5:F$30,'Statewise SO Details'!$A$5:$A$30,'Region Wise SO-Details'!$A10) -> 0 | G10: =SUMIFS('Statewise SO Details'!G$5:G$30,'Statewise SO Details'!$A$5:$A$30,'Region Wise SO-Details'!$A10) -> 1 | H10: =SUMIFS('Statewise SO Details'!H$5:H$30,'Statewise SO Details'!$A$5:$A$30,'Region Wise SO-Details'!$A10) -> 0 | I10: =SUMIFS('Statewise SO Details'!I$5:I$30,'Statewise SO Details'!$A$5:$A$30,'Region Wise SO-Details'!$A10) -> 34 | J10: =SUMIFS('Statewise SO Details'!J$5:J$30,'Statewise SO Details'!$A$5:$A$30,'Region Wise SO-Details'!$A10) -> 14 | K10: =SUMIFS('Statewise SO Details'!K$5:K$30,'Statewise SO Details'!$A$5:$A$30,'Region Wise SO-Details'!$A10) -> 0 | L10: =SUMIFS('Statewise SO Details'!L$5:L$30,'Statewise SO Details'!$A$5:$A$30,'Region Wise SO-Details'!$A10) -> 70 | M10: =SUMIFS('Statewise SO Details'!M$5:M$30,'Statewise SO Details'!$A$5:$A$30,'Region Wise SO-Details'!$A10) -> 0 | N10: =SUMIFS('Statewise SO Details'!N$5:N$30,'Statewise SO Details'!$A$5:$A$30,'Region Wise SO-Details'!$A10) -> 8 | O10: =SUMIFS('Statewise SO Details'!O$5:O$30,'Statewise SO Details'!$A$5:$A$30,'Region Wise SO-Details'!$A10) -> 7 | P10: =SUMIFS('Statewise SO Details'!P$5:P$30,'Statewise SO Details'!$A$5:$A$30,'Region Wise SO-Details'!$A10) -> 13 | Q10: =SUMIFS('Statewise SO Details'!Q$5:Q$30,'Statewise SO Details'!$A$5:$A$30,'Region Wise SO-Details'!$A10) -> 53 | R10: =SUMIFS('Statewise SO Details'!R$5:R$30,'Statewise SO Details'!$A$5:$A$30,'Region Wise SO-Details'!$A10) -> 31 | S10: =SUMIFS('Statewise SO Details'!S$5:S$30,'Statewise SO Details'!$A$5:$A$30,'Region Wise SO-Details'!$A10) -> 13 | T10: =SUMIFS('Statewise SO Details'!T$5:T$30,'Statewise SO Details'!$A$5:$A$30,'Region Wise SO-Details'!$A10) -> 39 | U10: =SUMIFS('Statewise SO Details'!U$5:U$30,'Statewise SO Details'!$A$5:$A$30,'Region Wise SO-Details'!$A10) -> 25 | V10: =SUMIFS('Statewise SO Details'!V$5:V$30,'Statewise SO Details'!$A$5:$A$30,'Region Wise SO-Details'!$A10) -> 52 | W10: =SUMIFS('Statewise SO Details'!W$5:W$30,'Statewise SO Details'!$A$5:$A$30,'Region Wise SO-Details'!$A10) -> 41 | X10: =SUMIFS('Statewise SO Details'!X$5:X$30,'Statewise SO Details'!$A$5:$A$30,'Region Wise SO-Details'!$A10) -> 21 | Y10: =SUMIFS('Statewise SO Details'!Y$5:Y$30,'Statewise SO Details'!$A$5:$A$30,'Region Wise SO-Details'!$A10) -> 8 | Z10: =SUMIFS('Statewise SO Details'!Z$5:Z$30,'Statewise SO Details'!$A$5:$A$30,'Region Wise SO-Details'!$A10) -> 55 | AA10: =SUMIFS('Statewise SO Details'!AA$5:AA$30,'Statewise SO Details'!$A$5:$A$30,'Region Wise SO-Details'!$A10) -> 99 | AB10: =SUMIFS('Statewise SO Details'!AB$5:AB$30,'Statewise SO Details'!$A$5:$A$30,'Region Wise SO-Details'!$A10) -> 58 | AC10: =SUMIFS('Statewise SO Details'!AC$5:AC$30,'Statewise SO Details'!$A$5:$A$30,'Region Wise SO-Details'!$A10) -> 33 | AD10: =SUMIFS('Statewise SO Details'!AD$5:AD$30,'Statewise SO Details'!$A$5:$A$30,'Region Wise SO-Details'!$A10) -> 139 | AE10: =SUMIFS('Statewise SO Details'!AE$5:AE$30,'Statewise SO Details'!$A$5:$A$30,'Region Wise SO-Details'!$A10) -> 772 | AF10: =SUMIFS('Statewise SO Details'!AF$5:AF$30,'Statewise SO Details'!$A$5:$A$30,'Region Wise SO-Details'!$A10) -> 539 | AG10: =SUMIFS('Statewise SO Details'!AG$5:AG$30,'Statewise SO Details'!$A$5:$A$30,'Region Wise SO-Details'!$A10) -> 0 | AH10: =SUMIFS('Aug''24 & Sep''25'!$BL:$BL,'Aug''24 & Sep''25'!$CF:$CF,'Region Wise SO-Details'!$AH$3,'Aug''24 & Sep''25'!$BZ:$BZ,'Region Wise SO-Details'!$A10) -> 2126 | AJ10: 2655 | AK10: 2126 | AL10: 80% | AM10: -2% | AN10: =SUMIFS('Aug''24 & Sep''25'!$BL:$BL,'Aug''24 & Sep''25'!$BZ:$BZ,'Region Wise SO-Details'!$A10,'Aug''24 & Sep''25'!$BU:$BU,"Consumer",'Aug''24 & Sep''25'!$CF:$CF,'Region Wise SO-Details'!AN$4,'Aug''24 & Sep''25'!$CG:$CG,"MTD") -> 2162 | AP10: 900 | AQ10: =VLOOKUP($A10,Pivot!$B$6:$D$12,3,0) -> 909 | AR10: 101% | AS10: =IFERROR(AQ10/AT10-1,0) -> -16% | AT10: =VLOOKUP($A10,Pivot!$B$6:$D$12,2,0) -> 1088
A11: South1 | B11: =COUNTIFS(PVM!$Q:$Q,0,PVM!$K:$K,'Region Wise SO-Details'!$A11) -> 1 | C11: =SUMIFS('Statewise SO Details'!C$5:C$30,'Statewise SO Details'!$A$5:$A$30,'Region Wise SO-Details'!$A11) -> 0 | D11: =SUMIFS('Statewise SO Details'!D$5:D$30,'Statewise SO Details'!$A$5:$A$30,'Region Wise SO-Details'!$A11) -> 0 | E11: =SUMIFS('Statewise SO Details'!E$5:E$30,'Statewise SO Details'!$A$5:$A$30,'Region Wise SO-Details'!$A11) -> 0 | F11: =SUMIFS('Statewise SO Details'!F$5:F$30,'Statewise SO Details'!$A$5:$A$30,'Region Wise SO-Details'!$A11) -> 5 | G11: =SUMIFS('Statewise SO Details'!G$5:G$30,'Statewise SO Details'!$A$5:$A$30,'Region Wise SO-Details'!$A11) -> 0 | H11: =SUMIFS('Statewise SO Details'!H$5:H$30,'Statewise SO Details'!$A$5:$A$30,'Region Wise SO-Details'!$A11) -> 0 | I11: =SUMIFS('Statewise SO Details'!I$5:I$30,'Statewise SO Details'!$A$5:$A$30,'Region Wise SO-Details'!$A11) -> 0 | J11: =SUMIFS('Statewise SO Details'!J$5:J$30,'Statewise SO Details'!$A$5:$A$30,'Region Wise SO-Details'!$A11) -> 10 | K11: =SUMIFS('Statewise SO Details'!K$5:K$30,'Statewise SO Details'!$A$5:$A$30,'Region Wise SO-Details'!$A11) -> 0 | L11: =SUMIFS('Statewise SO Details'!L$5:L$30,'Statewise SO Details'!$A$5:$A$30,'Region Wise SO-Details'!$A11) -> 80 | M11: =SUMIFS('Statewise SO Details'!M$5:M$30,'Statewise SO Details'!$A$5:$A$30,'Region Wise SO-Details'!$A11) -> 10 | N11: =SUMIFS('Statewise SO Details'!N$5:N$30,'Statewise SO Details'!$A$5:$A$30,'Region Wise SO-Details'!$A11) -> 64 | O11: =SUMIFS('Statewise SO Details'!O$5:O$30,'Statewise SO Details'!$A$5:$A$30,'Region Wise SO-Details'!$A11) -> 6 | P11: =SUMIFS('Statewise SO Details'!P$5:P$30,'Statewise SO Details'!$A$5:$A$30,'Region Wise SO-Details'!$A11) -> 5 | Q11: =SUMIFS('Statewise SO Details'!Q$5:Q$30,'Statewise SO Details'!$A$5:$A$30,'Region Wise SO-Details'!$A11) -> 105 | R11: =SUMIFS('Statewise SO Details'!R$5:R$30,'Statewise SO Details'!$A$5:$A$30,'Region Wise SO-Details'!$A11) -> 0 | S11: =SUMIFS('Statewise SO Details'!S$5:S$30,'Statewise SO Details'!$A$5:$A$30,'Region Wise SO-Details'!$A11) -> 59 | T11: =SUMIFS('Statewise SO Details'!T$5:T$30,'Statewise SO Details'!$A$5:$A$30,'Region Wise SO-Details'!$A11) -> 27 | U11: =SUMIFS('Statewise SO Details'!U$5:U$30,'Statewise SO Details'!$A$5:$A$30,'Region Wise SO-Details'!$A11) -> 13 | V11: =SUMIFS('Statewise SO Details'!V$5:V$30,'Statewise SO Details'!$A$5:$A$30,'Region Wise SO-Details'!$A11) -> 40 | W11: =SUMIFS('Statewise SO Details'!W$5:W$30,'Statewise SO Details'!$A$5:$A$30,'Region Wise SO-Details'!$A11) -> 7 | X11: =SUMIFS('Statewise SO Details'!X$5:X$30,'Statewise SO Details'!$A$5:$A$30,'Region Wise SO-Details'!$A11) -> 0 | Y11: =SUMIFS('Statewise SO Details'!Y$5:Y$30,'Statewise SO Details'!$A$5:$A$30,'Region Wise SO-Details'!$A11) -> 72 | Z11: =SUMIFS('Statewise SO Details'!Z$5:Z$30,'Statewise SO Details'!$A$5:$A$30,'Region Wise SO-Details'!$A11) -> 49 | AA11: =SUMIFS('Statewise SO Details'!AA$5:AA$30,'Statewise SO Details'!$A$5:$A$30,'Region Wise SO-Details'!$A11) -> 18 | AB11: =SUMIFS('Statewise SO Details'!AB$5:AB$30,'Statewise SO Details'!$A$5:$A$30,'Region Wise SO-Details'!$A11) -> 43 | AC11: =SUMIFS('Statewise SO Details'!AC$5:AC$30,'Statewise SO Details'!$A$5:$A$30,'Region Wise SO-Details'!$A11) -> 77 | AD11: =SUMIFS('Statewise SO Details'!AD$5:AD$30,'Statewise SO Details'!$A$5:$A$30,'Region Wise SO-Details'!$A11) -> 75 | AE11: =SUMIFS('Statewise SO Details'!AE$5:AE$30,'Statewise SO Details'!$A$5:$A$30,'Region Wise SO-Details'!$A11) -> 132 | AF11: =SUMIFS('Statewise SO Details'!AF$5:AF$30,'Statewise SO Details'!$A$5:$A$30,'Region Wise SO-Details'!$A11) -> 1893 | AG11: =SUMIFS('Statewise SO Details'!AG$5:AG$30,'Statewise SO Details'!$A$5:$A$30,'Region Wise SO-Details'!$A11) -> 0 | AH11: =SUMIFS('Aug''24 & Sep''25'!$BL:$BL,'Aug''24 & Sep''25'!$CF:$CF,'Region Wise SO-Details'!$AH$3,'Aug''24 & Sep''25'!$BZ:$BZ,'Region Wise SO-Details'!$A11) -> 2864 | AJ11: 3185 | AK11: 2864 | AL11: =IFERROR(AK11/AJ11,0) -> 90% | AM11: =IFERROR(AK11/AN11-1,0) -> 12% | AN11: =SUMIFS('Aug''24 & Sep''25'!$BL:$BL,'Aug''24 & Sep''25'!$BZ:$BZ,'Region Wise SO-Details'!$A11,'Aug''24 & Sep''25'!$BU:$BU,"Consumer",'Aug''24 & Sep''25'!$CF:$CF,'Region Wise SO-Details'!AN$4,'Aug''24 & Sep''25'!$CG:$CG,"MTD") -> 2565 | AP11: 730 | AQ11: =VLOOKUP($A11,Pivot!$B$6:$D$12,3,0) -> 569 | AR11: 78% | AS11: =AQ11/AT11-1 -> -7% | AT11: =VLOOKUP($A11,Pivot!$B$6:$D$12,2,0) -> 611
A12: South2 | B12: =COUNTIFS(PVM!$Q:$Q,0,PVM!$K:$K,'Region Wise SO-Details'!$A12) -> 0 | C12: =SUMIFS('Statewise SO Details'!C$5:C$30,'Statewise SO Details'!$A$5:$A$30,'Region Wise SO-Details'!$A12) -> 0 | D12: =SUMIFS('Statewise SO Details'!D$5:D$30,'Statewise SO Details'!$A$5:$A$30,'Region Wise SO-Details'!$A12) -> 0 | E12: =SUMIFS('Statewise SO Details'!E$5:E$30,'Statewise SO Details'!$A$5:$A$30,'Region Wise SO-Details'!$A12) -> 18 | F12: =SUMIFS('Statewise SO Details'!F$5:F$30,'Statewise SO Details'!$A$5:$A$30,'Region Wise SO-Details'!$A12) -> 14 | G12: =SUMIFS('Statewise SO Details'!G$5:G$30,'Statewise SO Details'!$A$5:$A$30,'Region Wise SO-Details'!$A12) -> 42 | H12: =SUMIFS('Statewise SO Details'!H$5:H$30,'Statewise SO Details'!$A$5:$A$30,'Region Wise SO-Details'!$A12) -> 1 | I12: =SUMIFS('Statewise SO Details'!I$5:I$30,'Statewise SO Details'!$A$5:$A$30,'Region Wise SO-Details'!$A12) -> 0 | J12: =SUMIFS('Statewise SO Details'!J$5:J$30,'Statewise SO Details'!$A$5:$A$30,'Region Wise SO-Details'!$A12) -> 7 | K12: =SUMIFS('Statewise SO Details'!K$5:K$30,'Statewise SO Details'!$A$5:$A$30,'Region Wise SO-Details'!$A12) -> 0 | L12: =SUMIFS('Statewise SO Details'!L$5:L$30,'Statewise SO Details'!$A$5:$A$30,'Region Wise SO-Details'!$A12) -> 14 | M12: =SUMIFS('Statewise SO Details'!M$5:M$30,'Statewise SO Details'!$A$5:$A$30,'Region Wise SO-Details'!$A12) -> 173 | N12: =SUMIFS('Statewise SO Details'!N$5:N$30,'Statewise SO Details'!$A$5:$A$30,'Region Wise SO-Details'!$A12) -> 52 | O12: =SUMIFS('Statewise SO Details'!O$5:O$30,'Statewise SO Details'!$A$5:$A$30,'Region Wise SO-Details'!$A12) -> 31 | P12: =SUMIFS('Statewise SO Details'!P$5:P$30,'Statewise SO Details'!$A$5:$A$30,'Region Wise SO-Details'!$A12) -> 10 | Q12: =SUMIFS('Statewise SO Details'!Q$5:Q$30,'Statewise SO Details'!$A$5:$A$30,'Region Wise SO-Details'!$A12) -> 118 | R12: =SUMIFS('Statewise SO Details'!R$5:R$30,'Statewise SO Details'!$A$5:$A$30,'Region Wise SO-Details'!$A12) -> 0 | S12: =SUMIFS('Statewise SO Details'!S$5:S$30,'Statewise SO Details'!$A$5:$A$30,'Region Wise SO-Details'!$A12) -> 117 | T12: =SUMIFS('Statewise SO Details'!T$5:T$30,'Statewise SO Details'!$A$5:$A$30,'Region Wise SO-Details'!$A12) -> 75 | U12: =SUMIFS('Statewise SO Details'!U$5:U$30,'Statewise SO Details'!$A$5:$A$30,'Region Wise SO-Details'!$A12) -> 32 | V12: =SUMIFS('Statewise SO Details'!V$5:V$30,'Statewise SO Details'!$A$5:$A$30,'Region Wise SO-Details'!$A12) -> 24 | W12: =SUMIFS('Statewise SO Details'!W$5:W$30,'Statewise SO Details'!$A$5:$A$30,'Region Wise SO-Details'!$A12) -> 8 | X12: =SUMIFS('Statewise SO Details'!X$5:X$30,'Statewise SO Details'!$A$5:$A$30,'Region Wise SO-Details'!$A12) -> 4 | Y12: =SUMIFS('Statewise SO Details'!Y$5:Y$30,'Statewise SO Details'!$A$5:$A$30,'Region Wise SO-Details'!$A12) -> 0 | Z12: =SUMIFS('Statewise SO Details'!Z$5:Z$30,'Statewise SO Details'!$A$5:$A$30,'Region Wise SO-Details'!$A12) -> 212 | AA12: =SUMIFS('Statewise SO Details'!AA$5:AA$30,'Statewise SO Details'!$A$5:$A$30,'Region Wise SO-Details'!$A12) -> 124 | AB12: =SUMIFS('Statewise SO Details'!AB$5:AB$30,'Statewise SO Details'!$A$5:$A$30,'Region Wise SO-Details'!$A12) -> 67 | AC12: =SUMIFS('Statewise SO Details'!AC$5:AC$30,'Statewise SO Details'!$A$5:$A$30,'Region Wise SO-Details'!$A12) -> 209 | AD12: =SUMIFS('Statewise SO Details'!AD$5:AD$30,'Statewise SO Details'!$A$5:$A$30,'Region Wise SO-Details'!$A12) -> 383 | AE12: =SUMIFS('Statewise SO Details'!AE$5:AE$30,'Statewise SO Details'!$A$5:$A$30,'Region Wise SO-Details'!$A12) -> 371 | AF12: =SUMIFS('Statewise SO Details'!AF$5:AF$30,'Statewise SO Details'!$A$5:$A$30,'Region Wise SO-Details'!$A12) -> 258 | AG12: =SUMIFS('Statewise SO Details'!AG$5:AG$30,'Statewise SO Details'!$A$5:$A$30,'Region Wise SO-Details'!$A12) -> 0 | AH12: =SUMIFS('Aug''24 & Sep''25'!$BL:$BL,'Aug''24 & Sep''25'!$CF:$CF,'Region Wise SO-Details'!$AH$3,'Aug''24 & Sep''25'!$BZ:$BZ,'Region Wise SO-Details'!$A12) -> 2364 | AJ12: 2240 | AK12: 2364 | AL12: 106% | AM12: =IFERROR(AK12/AN12-1,0) -> -13% | AN12: =SUMIFS('Aug''24 & Sep''25'!$BL:$BL,'Aug''24 & Sep''25'!$BZ:$BZ,'Region Wise SO-Details'!$A12,'Aug''24 & Sep''25'!$BU:$BU,"Consumer",'Aug''24 & Sep''25'!$CF:$CF,'Region Wise SO-Details'!AN$4,'Aug''24 & Sep''25'!$CG:$CG,"MTD") -> 2716 | AP12: 680 | AQ12: =VLOOKUP($A12,Pivot!$B$6:$D$12,3,0) -> 662 | AR12: 97% | AS12: =IFERROR(AQ12/AT12-1,0) -> -13% | AT12: =VLOOKUP($A12,Pivot!$B$6:$D$12,2,0) -> 759
A13: West1 | B13: =COUNTIFS(PVM!$Q:$Q,0,PVM!$K:$K,'Region Wise SO-Details'!$A13) -> 0 | C13: =SUMIFS('Statewise SO Details'!C$5:C$30,'Statewise SO Details'!$A$5:$A$30,'Region Wise SO-Details'!$A13) -> 7 | D13: =SUMIFS('Statewise SO Details'!D$5:D$30,'Statewise SO Details'!$A$5:$A$30,'Region Wise SO-Details'!$A13) -> 0 | E13: =SUMIFS('Statewise SO Details'!E$5:E$30,'Statewise SO Details'!$A$5:$A$30,'Region Wise SO-Details'!$A13) -> 10 | F13: =SUMIFS('Statewise SO Details'!F$5:F$30,'Statewise SO Details'!$A$5:$A$30,'Region Wise SO-Details'!$A13) -> 7 | G13: =SUMIFS('Statewise SO Details'!G$5:G$30,'Statewise SO Details'!$A$5:$A$30,'Region Wise SO-Details'!$A13) -> 10 | H13: =SUMIFS('Statewise SO Details'!H$5:H$30,'Statewise SO Details'!$A$5:$A$30,'Region Wise SO-Details'!$A13) -> 68 | I13: =SUMIFS('Statewise SO Details'!I$5:I$30,'Statewise SO Details'!$A$5:$A$30,'Region Wise SO-Details'!$A13) -> 26 | J13: =SUMIFS('Statewise SO Details'!J$5:J$30,'Statewise SO Details'!$A$5:$A$30,'Region Wise SO-Details'!$A13) -> 64 | K13: =SUMIFS('Statewise SO Details'!K$5:K$30,'Statewise SO Details'!$A$5:$A$30,'Region Wise SO-Details'!$A13) -> 0 | L13: =SUMIFS('Statewise SO Details'!L$5:L$30,'Statewise SO Details'!$A$5:$A$30,'Region Wise SO-Details'!$A13) -> 198 | M13: =SUMIFS('Statewise SO Details'!M$5:M$30,'Statewise SO Details'!$A$5:$A$30,'Region Wise SO-Details'!$A13) -> 196 | N13: =SUMIFS('Statewise SO Details'!N$5:N$30,'Statewise SO Details'!$A$5:$A$30,'Region Wise SO-Details'!$A13) -> 53 | O13: =SUMIFS('Statewise SO Details'!O$5:O$30,'Statewise SO Details'!$A$5:$A$30,'Region Wise SO-Details'!$A13) -> 53 | P13: =SUMIFS('Statewise SO Details'!P$5:P$30,'Statewise SO Details'!$A$5:$A$30,'Region Wise SO-Details'!$A13) -> 31 | Q13: =SUMIFS('Statewise SO Details'!Q$5:Q$30,'Statewise SO Details'!$A$5:$A$30,'Region Wise SO-Details'!$A13) -> 75 | R13: =SUMIFS('Statewise SO Details'!R$5:R$30,'Statewise SO Details'!$A$5:$A$30,'Region Wise SO-Details'!$A13) -> 19 | S13: =SUMIFS('Statewise SO Details'!S$5:S$30,'Statewise SO Details'!$A$5:$A$30,'Region Wise SO-Details'!$A13) -> 237 | T13: =SUMIFS('Statewise SO Details'!T$5:T$30,'Statewise SO Details'!$A$5:$A$30,'Region Wise SO-Details'!$A13) -> 144 | U13: =SUMIFS('Statewise SO Details'!U$5:U$30,'Statewise SO Details'!$A$5:$A$30,'Region Wise SO-Details'!$A13) -> 164 | V13: =SUMIFS('Statewise SO Details'!V$5:V$30,'Statewise SO Details'!$A$5:$A$30,'Region Wise SO-Details'!$A13) -> 196 | W13: =SUMIFS('Statewise SO Details'!W$5:W$30,'Statewise SO Details'!$A$5:$A$30,'Region Wise SO-Details'!$A13) -> 34 | X13: =SUMIFS('Statewise SO Details'!X$5:X$30,'Statewise SO Details'!$A$5:$A$30,'Region Wise SO-Details'!$A13) -> 94 | Y13: =SUMIFS('Statewise SO Details'!Y$5:Y$30,'Statewise SO Details'!$A$5:$A$30,'Region Wise SO-Details'!$A13) -> 89 | Z13: =SUMIFS('Statewise SO Details'!Z$5:Z$30,'Statewise SO Details'!$A$5:$A$30,'Region Wise SO-Details'!$A13) -> 396 | AA13: =SUMIFS('Statewise SO Details'!AA$5:AA$30,'Statewise SO Details'!$A$5:$A$30,'Region Wise SO-Details'!$A13) -> 139 | AB13: =SUMIFS('Statewise SO Details'!AB$5:AB$30,'Statewise SO Details'!$A$5:$A$30,'Region Wise SO-Details'!$A13) -> 68 | AC13: =SUMIFS('Statewise SO Details'!AC$5:AC$30,'Statewise SO Details'!$A$5:$A$30,'Region Wise SO-Details'!$A13) -> 376 | AD13: =SUMIFS('Statewise SO Details'!AD$5:AD$30,'Statewise SO Details'!$A$5:$A$30,'Region Wise SO-Details'!$A13) -> 263 | AE13: =SUMIFS('Statewise SO Details'!AE$5:AE$30,'Statewise SO Details'!$A$5:$A$30,'Region Wise SO-Details'!$A13) -> 1642 | AF13: =SUMIFS('Statewise SO Details'!AF$5:AF$30,'Statewise SO Details'!$A$5:$A$30,'Region Wise SO-Details'!$A13) -> 408 | AG13: =SUMIFS('Statewise SO Details'!AG$5:AG$30,'Statewise SO Details'!$A$5:$A$30,'Region Wise SO-Details'!$A13) -> 0 | AH13: =SUMIFS('Aug''24 & Sep''25'!$BL:$BL,'Aug''24 & Sep''25'!$CF:$CF,'Region Wise SO-Details'!$AH$3,'Aug''24 & Sep''25'!$BZ:$BZ,'Region Wise SO-Details'!$A13) -> 5067 | AJ13: 6125 | AK13: 5067 | AL13: 83% | AM13: -41% | AN13: =SUMIFS('Aug''24 & Sep''25'!$BL:$BL,'Aug''24 & Sep''25'!$BZ:$BZ,'Region Wise SO-Details'!$A13,'Aug''24 & Sep''25'!$BU:$BU,"Consumer",'Aug''24 & Sep''25'!$CF:$CF,'Region Wise SO-Details'!AN$4,'Aug''24 & Sep''25'!$CG:$CG,"MTD") -> 8636 | AP13: 1845 | AQ13: =IFERROR(VLOOKUP($A13,Pivot!$B$6:$D$12,3,0),0) -> 1651 | AR13: 89% | AS13: =IFERROR(AQ13/AT13-1,0) -> -25% | AT13: =IFERROR(VLOOKUP($A13,Pivot!$B$6:$D$12,2,0),0) -> 2205
A14: E+N | B14: =SUM(B7:B10) -> 1 | C14: =SUM(C7:C10) -> 16 | D14: 0 | E14: 16 | F14: 12 | G14: 26 | H14: 31 | I14: 77 | J14: 58 | K14: 16 | L14: 179 | M14: 62 | N14: 31 | O14: 45 | P14: 92 | Q14: 124 | R14: 118 | S14: 88 | T14: 179 | U14: 64 | V14: 184 | W14: 183 | X14: 78 | Y14: 58 | Z14: 150 | AA14: 208 | AB14: 164 | AC14: 193 | AD14: 385 | AE14: 2334 | AF14: =SUM(AF7:AF10) -> 1411 | AG14: 0 | AH14: =SUM(AH7:AH10) -> 7522 | AJ14: =SUM(AJ7:AJ10) -> 9715 | AK14: =SUM(AK7:AK10) -> 7522 | AL14: 77% | AM14: =AK14/AN14-1 -> -27% | AN14: =SUM(AN7:AN10) -> 10325 | AP14: =SUM(AP7:AP10) -> 3045 | AQ14: =SUM(AQ7:AQ10) -> 2819 | AR14: =IFERROR(AQ14/AP14,0) -> 93% | AS14: =IFERROR(AQ14/AT14-1,0) -> -14% | AT14: =SUM(AT7:AT10) -> 3268
A15: S+W | B15: =SUM(B11:B13) -> 1 | C15: =SUM(C11:C13) -> 7 | D15: 0 | E15: 28 | F15: 26 | G15: 52 | H15: 69 | I15: 26 | J15: 81 | K15: 0 | L15: 292 | M15: 379 | N15: 169 | O15: 90 | P15: 46 | Q15: 298 | R15: 19 | S15: 413 | T15: 246 | U15: 209 | V15: 260 | W15: 49 | X15: 98 | Y15: 161 | Z15: 657 | AA15: 281 | AB15: 178 | AC15: 662 | AD15: 721 | AE15: 2145 | AF15: =SUM(AF11:AF13) -> 2559 | AG15: 0 | AH15: =SUM(AH11:AH13) -> 10295 | AJ15: =SUM(AJ11:AJ13) -> 11550 | AK15: =SUM(AK11:AK13) -> 10295 | AL15: =IFERROR(AK15/AJ15,0) -> 89% | AM15: -26% | AN15: =SUM(AN11:AN13) -> 13917 | AP15: =SUM(AP11:AP13) -> 3255 | AQ15: =SUM(AQ11:AQ13) -> 2882 | AR15: 89% | AS15: =IFERROR(AQ15/AT15-1,0) -> -19% | AT15: =SUM(AT11:AT13) -> 3575
A16: INDIA | B16: =B15+B14 -> 2 | C16: =C15+C14 -> 23 | D16: =D15+D14 -> 0 | E16: 44 | F16: 38 | G16: 78 | H16: 100 | I16: 103 | J16: 139 | K16: 16 | L16: 471 | M16: 441 | N16: 200 | O16: 135 | P16: 138 | Q16: 422 | R16: 137 | S16: 501 | T16: 425 | U16: 273 | V16: 444 | W16: 232 | X16: 176 | Y16: 219 | Z16: 807 | AA16: 489 | AB16: 342 | AC16: 855 | AD16: 1106 | AE16: 4479 | AF16: =AF15+AF14 -> 3970 | AG16: 0 | AH16: =SUM(AH14:AH15) -> 17817 | AJ16: 21265 | AK16: 17817 | AL16: 84% | AM16: -27% | AN16: =AN15+AN14 -> 24242 | AP16: =AP15+AP14 -> 6300 | AQ16: =SUM(AQ14:AQ15) -> 5701 | AR16: 90% | AS16: =IFERROR(AQ16/AT16-1,0) -> -17% | AT16: =AT15+AT14 -> 6843
A19: Premium CA Details | C19: Wed | D19: Thu | E19: Fri | F19: Sat | G19: Sun | H19: Mon | I19: Tue | J19: Wed | K19: Thu | L19: Fri | M19: Sat | N19: Sun | O19: Mon | P19: Tue | Q19: Wed | R19: Thu | S19: Fri | T19: Sat | U19: Sun | V19: Mon | W19: Tue | X19: Wed | Y19: Thu | Z19: Fri | AA19: Sat | AB19: Sun | AC19: Mon | AD19: Tue | AJ19: Feb PM SO | AP19: Feb PM Cov
B20: # of ASO on 0 PM | C20: =C5 -> 2025-11-01 | D20: 2025-11-02 | E20: 2025-11-03 | F20: 2025-11-04 | G20: 2025-11-05 | H20: 2025-11-06 | I20: 2025-11-07 | J20: 2025-11-08 | K20: 2025-11-09 | L20: 2025-11-10 | M20: 2025-11-11 | N20: 2025-11-12 | O20: 2025-11-13 | P20: 2025-11-14 | Q20: 2025-11-15 | R20: 2025-11-16 | S20: 2025-11-17 | T20: 2025-11-18 | U20: 2025-11-19 | V20: 2025-11-20 | W20: 2025-11-21 | X20: 2025-11-22 | Y20: 2025-11-23 | Z20: 2025-11-24 | AA20: 2025-11-25 | AB20: 2025-11-26 | AC20: 2025-11-27 | AD20: 2025-11-28 | AE20: 2025-11-29 | AF20: =AF5 -> 2025-11-30 | AG20: 2025-12-01 | AH20: Total | AJ20: PM CA TGT | AK20: Ach | AL20: Ach% | AM20: PM MoM % | AN20: LMTD Oct PM CA | AP20: PM Cov Tgt | AQ20: PM Cov Ach | AR20: PM Cov Ach% | AS20: PM Cov MoM % | AT20: LMTD Nov PM T3
A21: PM CA | B21: =SUM(B22:B28) -> 3 | C21: 15 | D21: 0 | E21: 10 | F21: 11 | G21: 19 | H21: 10 | I21: 13 | J21: 43 | K21: 1 | L21: 142 | M21: 115 | N21: 56 | O21: 29 | P21: 26 | Q21: 92 | R21: 25 | S21: 146 | T21: 127 | U21: 77 | V21: 96 | W21: 31 | X21: 22 | Y21: 58 | Z21: 118 | AA21: 86 | AB21: 65 | AC21: 154 | AD21: 169 | AE21: 771 | AF21: =SUM(AF22:AF28) -> 716 | AG21: 0 | AH21: =SUM(C21:AF21) -> 3243 | AJ21: =SUM(AJ22:AJ28) -> 4091 | AK21: =SUM(AK22:AK28) -> 3386 | AL21: =IFERROR(AK21/AJ21,0) -> 83% | AM21: =AK21/AN21-1 -> -38% | AN21: =SUM(AN22:AN28) -> 5466 | AP21: =SUM(AP22:AP28)-1 -> 3093 | AQ21: =SUM(AQ22:AQ28) -> 1555 | AR21: =IFERROR(AQ21/AP21,0) -> 50% | AS21: =AQ21/AT21-1 -> -32% | AT21: =SUM(AT22:AT28) -> 2298
A22: East1 | B22: =COUNTIFS(PVM!$R:$R,0,PVM!$K:$K,'Region Wise SO-Details'!$A22) -> 0 | C22: =SUMIFS('Statewise SO Details'!C$35:C$60,'Statewise SO Details'!$A$35:$A$60,'Region Wise SO-Details'!$A22) -> 0 | D22: =SUMIFS('Statewise SO Details'!D$35:D$60,'Statewise SO Details'!$A$35:$A$60,'Region Wise SO-Details'!$A22) -> 0 | E22: =SUMIFS('Statewise SO Details'!E$35:E$60,'Statewise SO Details'!$A$35:$A$60,'Region Wise SO-Details'!$A22) -> 0 | F22: =SUMIFS('Statewise SO Details'!F$35:F$60,'Statewise SO Details'!$A$35:$A$60,'Region Wise SO-Details'!$A22) -> 0 | G22: =SUMIFS('Statewise SO Details'!G$35:G$60,'Statewise SO Details'!$A$35:$A$60,'Region Wise SO-Details'!$A22) -> 0 | H22: =SUMIFS('Statewise SO Details'!H$35:H$60,'Statewise SO Details'!$A$35:$A$60,'Region Wise SO-Details'!$A22) -> 7 | I22: =SUMIFS('Statewise SO Details'!I$35:I$60,'Statewise SO Details'!$A$35:$A$60,'Region Wise SO-Details'!$A22) -> 2 | J22: =SUMIFS('Statewise SO Details'!J$35:J$60,'Statewise SO Details'!$A$35:$A$60,'Region Wise SO-Details'!$A22) -> 0 | K22: =SUMIFS('Statewise SO Details'!K$35:K$60,'Statewise SO Details'!$A$35:$A$60,'Region Wise SO-Details'!$A22) -> 0 | L22: =SUMIFS('Statewise SO Details'!L$35:L$60,'Statewise SO Details'!$A$35:$A$60,'Region Wise SO-Details'!$A22) -> 5 | M22: =SUMIFS('Statewise SO Details'!M$35:M$60,'Statewise SO Details'!$A$35:$A$60,'Region Wise SO-Details'!$A22) -> 1 | N22: =SUMIFS('Statewise SO Details'!N$35:N$60,'Statewise SO Details'!$A$35:$A$60,'Region Wise SO-Details'!$A22) -> 0 | O22: =SUMIFS('Statewise SO Details'!O$35:O$60,'Statewise SO Details'!$A$35:$A$60,'Region Wise SO-Details'!$A22) -> 0 | P22: =SUMIFS('Statewise SO Details'!P$35:P$60,'Statewise SO Details'!$A$35:$A$60,'Region Wise SO-Details'!$A22) -> 0 | Q22: =SUMIFS('Statewise SO Details'!Q$35:Q$60,'Statewise SO Details'!$A$35:$A$60,'Region Wise SO-Details'!$A22) -> 4 | R22: =SUMIFS('Statewise SO Details'!R$35:R$60,'Statewise SO Details'!$A$35:$A$60,'Region Wise SO-Details'!$A22) -> 3 | S22: =SUMIFS('Statewise SO Details'!S$35:S$60,'Statewise SO Details'!$A$35:$A$60,'Region Wise SO-Details'!$A22) -> 4 | T22: =SUMIFS('Statewise SO Details'!T$35:T$60,'Statewise SO Details'!$A$35:$A$60,'Region Wise SO-Details'!$A22) -> 0 | U22: =SUMIFS('Statewise SO Details'!U$35:U$60,'Statewise SO Details'!$A$35:$A$60,'Region Wise SO-Details'!$A22) -> 0 | V22: =SUMIFS('Statewise SO Details'!V$35:V$60,'Statewise SO Details'!$A$35:$A$60,'Region Wise SO-Details'!$A22) -> 1 | W22: =SUMIFS('Statewise SO Details'!W$35:W$60,'Statewise SO Details'!$A$35:$A$60,'Region Wise SO-Details'!$A22) -> 12 | X22: =SUMIFS('Statewise SO Details'!X$35:X$60,'Statewise SO Details'!$A$35:$A$60,'Region Wise SO-Details'!$A22) -> 0 | Y22: =SUMIFS('Statewise SO Details'!Y$35:Y$60,'Statewise SO Details'!$A$35:$A$60,'Region Wise SO-Details'!$A22) -> 7 | Z22: =SUMIFS('Statewise SO Details'!Z$35:Z$60,'Statewise SO Details'!$A$35:$A$60,'Region Wise SO-Details'!$A22) -> 2 | AA22: =SUMIFS('Statewise SO Details'!AA$35:AA$60,'Statewise SO Details'!$A$35:$A$60,'Region Wise SO-Details'!$A22) -> 2 | AB22: =SUMIFS('Statewise SO Details'!AB$35:AB$60,'Statewise SO Details'!$A$35:$A$60,'Region Wise SO-Details'!$A22) -> 0 | AC22: =SUMIFS('Statewise SO Details'!AC$35:AC$60,'Statewise SO Details'!$A$35:$A$60,'Region Wise SO-Details'!$A22) -> 2 | AD22: =SUMIFS('Statewise SO Details'!AD$35:AD$60,'Statewise SO Details'!$A$35:$A$60,'Region Wise SO-Details'!$A22) -> 6 | AE22: =SUMIFS('Statewise SO Details'!AE$35:AE$60,'Statewise SO Details'!$A$35:$A$60,'Region Wise SO-Details'!$A22) -> 39 | AF22: =SUMIFS('Statewise SO Details'!AF$35:AF$60,'Statewise SO Details'!$A$35:$A$60,'Region Wise SO-Details'!$A22) -> 5 | AG22: =SUMIFS('Statewise SO Details'!AG$35:AG$60,'Statewise SO Details'!$A$35:$A$60,'Region Wise SO-Details'!$A22) -> 0 | AH22: =SUMIFS('Aug''24 & Sep''25'!$BL:$BL,'Aug''24 & Sep''25'!$CF:$CF,'Region Wise SO-Details'!$AH$3,'Aug''24 & Sep''25'!$BZ:$BZ,'Region Wise SO-Details'!$A22,'Aug''24 & Sep''25'!$BS:$BS,"Premium") -> 147 | AJ22: 376 | AK22: =AH22 -> 147 | AL22: =IFERROR(AK22/AJ22,0) -> 39% | AM22: =IFERROR(AK22/AN22-1,0) -> -70% | AN22: =SUMIFS('Aug''24 & Sep''25'!$BL:$BL,'Aug''24 & Sep''25'!$BZ:$BZ,'Region Wise SO-Details'!$A22,'Aug''24 & Sep''25'!$BU:$BU,"Consumer",'Aug''24 & Sep''25'!$BS:$BS,"premium",'Aug''24 & Sep''25'!$CF:$CF,'Region Wise SO-Details'!AN$4,'Aug''24 & Sep''25'!$CG:$CG,"MTD") -> 485 | AP22: 355 | AQ22: =IFERROR(VLOOKUP($A22,Pivot!$H$7:$J$14,3,0),0) -> 103 | AR22: 29% | AS22: =IFERROR(AQ22/AT22-1,0) -> -54% | AT22: =IFERROR(VLOOKUP($A22,Pivot!$H$7:$J$15,2,0),0) -> 225
A23: East2 | B23: =COUNTIFS(PVM!$R:$R,0,PVM!$K:$K,'Region Wise SO-Details'!$A23) -> 0 | C23: =SUMIFS('Statewise SO Details'!C$35:C$60,'Statewise SO Details'!$A$35:$A$60,'Region Wise SO-Details'!$A23) -> 0 | D23: =SUMIFS('Statewise SO Details'!D$35:D$60,'Statewise SO Details'!$A$35:$A$60,'Region Wise SO-Details'!$A23) -> 0 | E23: =SUMIFS('Statewise SO Details'!E$35:E$60,'Statewise SO Details'!$A$35:$A$60,'Region Wise SO-Details'!$A23) -> 1 | F23: =SUMIFS('Statewise SO Details'!F$35:F$60,'Statewise SO Details'!$A$35:$A$60,'Region Wise SO-Details'!$A23) -> 3 | G23: =SUMIFS('Statewise SO Details'!G$35:G$60,'Statewise SO Details'!$A$35:$A$60,'Region Wise SO-Details'!$A23) -> 4 | H23: =SUMIFS('Statewise SO Details'!H$35:H$60,'Statewise SO Details'!$A$35:$A$60,'Region Wise SO-Details'!$A23) -> 0 | I23: =SUMIFS('Statewise SO Details'!I$35:I$60,'Statewise SO Details'!$A$35:$A$60,'Region Wise SO-Details'!$A23) -> 1 | J23: =SUMIFS('Statewise SO Details'!J$35:J$60,'Statewise SO Details'!$A$35:$A$60,'Region Wise SO-Details'!$A23) -> 4 | K23: =SUMIFS('Statewise SO Details'!K$35:K$60,'Statewise SO Details'!$A$35:$A$60,'Region Wise SO-Details'!$A23) -> 1 | L23: =SUMIFS('Statewise SO Details'!L$35:L$60,'Statewise SO Details'!$A$35:$A$60,'Region Wise SO-Details'!$A23) -> 13 | M23: =SUMIFS('Statewise SO Details'!M$35:M$60,'Statewise SO Details'!$A$35:$A$60,'Region Wise SO-Details'!$A23) -> 4 | N23: =SUMIFS('Statewise SO Details'!N$35:N$60,'Statewise SO Details'!$A$35:$A$60,'Region Wise SO-Details'!$A23) -> 0 | O23: =SUMIFS('Statewise SO Details'!O$35:O$60,'Statewise SO Details'!$A$35:$A$60,'Region Wise SO-Details'!$A23) -> 0 | P23: =SUMIFS('Statewise SO Details'!P$35:P$60,'Statewise SO Details'!$A$35:$A$60,'Region Wise SO-Details'!$A23) -> 6 | Q23: =SUMIFS('Statewise SO Details'!Q$35:Q$60,'Statewise SO Details'!$A$35:$A$60,'Region Wise SO-Details'!$A23) -> 11 | R23: =SUMIFS('Statewise SO Details'!R$35:R$60,'Statewise SO Details'!$A$35:$A$60,'Region Wise SO-Details'!$A23) -> 1 | S23: =SUMIFS('Statewise SO Details'!S$35:S$60,'Statewise SO Details'!$A$35:$A$60,'Region Wise SO-Details'!$A23) -> 3 | T23: =SUMIFS('Statewise SO Details'!T$35:T$60,'Statewise SO Details'!$A$35:$A$60,'Region Wise SO-Details'!$A23) -> 11 | U23: =SUMIFS('Statewise SO Details'!U$35:U$60,'Statewise SO Details'!$A$35:$A$60,'Region Wise SO-Details'!$A23) -> 10 | V23: =SUMIFS('Statewise SO Details'!V$35:V$60,'Statewise SO Details'!$A$35:$A$60,'Region Wise SO-Details'!$A23) -> 2 | W23: =SUMIFS('Statewise SO Details'!W$35:W$60,'Statewise SO Details'!$A$35:$A$60,'Region Wise SO-Details'!$A23) -> 1 | X23: =SUMIFS('Statewise SO Details'!X$35:X$60,'Statewise SO Details'!$A$35:$A$60,'Region Wise SO-Details'!$A23) -> 7 | Y23: =SUMIFS('Statewise SO Details'!Y$35:Y$60,'Statewise SO Details'!$A$35:$A$60,'Region Wise SO-Details'!$A23) -> 0 | Z23: =SUMIFS('Statewise SO Details'!Z$35:Z$60,'Statewise SO Details'!$A$35:$A$60,'Region Wise SO-Details'!$A23) -> 2 | AA23: =SUMIFS('Statewise SO Details'!AA$35:AA$60,'Statewise SO Details'!$A$35:$A$60,'Region Wise SO-Details'!$A23) -> 3 | AB23: =SUMIFS('Statewise SO Details'!AB$35:AB$60,'Statewise SO Details'!$A$35:$A$60,'Region Wise SO-Details'!$A23) -> 3 | AC23: =SUMIFS('Statewise SO Details'!AC$35:AC$60,'Statewise SO Details'!$A$35:$A$60,'Region Wise SO-Details'!$A23) -> 15 | AD23: =SUMIFS('Statewise SO Details'!AD$35:AD$60,'Statewise SO Details'!$A$35:$A$60,'Region Wise SO-Details'!$A23) -> 2 | AE23: =SUMIFS('Statewise SO Details'!AE$35:AE$60,'Statewise SO Details'!$A$35:$A$60,'Region Wise SO-Details'!$A23) -> 4 | AF23: =SUMIFS('Statewise SO Details'!AF$35:AF$60,'Statewise SO Details'!$A$35:$A$60,'Region Wise SO-Details'!$A23) -> 42 | AG23: =SUMIFS('Statewise SO Details'!AG$35:AG$60,'Statewise SO Details'!$A$35:$A$60,'Region Wise SO-Details'!$A23) -> 0 | AH23: =SUMIFS('Aug''24 & Sep''25'!$BL:$BL,'Aug''24 & Sep''25'!$CF:$CF,'Region Wise SO-Details'!$AH$3,'Aug''24 & Sep''25'!$BZ:$BZ,'Region Wise SO-Details'!$A23,'Aug''24 & Sep''25'!$BS:$BS,"Premium") -> 154 | AJ23: 327 | AK23: =AH23 -> 154 | AL23: 47% | AM23: -67% | AN23: =SUMIFS('Aug''24 & Sep''25'!$BL:$BL,'Aug''24 & Sep''25'!$BZ:$BZ,'Region Wise SO-Details'!$A23,'Aug''24 & Sep''25'!$BU:$BU,"Consumer",'Aug''24 & Sep''25'!$BS:$BS,"premium",'Aug''24 & Sep''25'!$CF:$CF,'Region Wise SO-Details'!AN$4,'Aug''24 & Sep''25'!$CG:$CG,"MTD") -> 463 | AP23: 205 | AQ23: =IFERROR(VLOOKUP($A23,Pivot!$H$7:$J$14,3,0),0) -> 90 | AR23: 44% | AS23: =IFERROR(AQ23/AT23-1,0) -> -57% | AT23: =IFERROR(VLOOKUP($A23,Pivot!$H$7:$J$15,2,0),0) -> 210
A24: North1 | B24: =COUNTIFS(PVM!$R:$R,0,PVM!$K:$K,'Region Wise SO-Details'!$A24) -> 1 | C24: =SUMIFS('Statewise SO Details'!C$35:C$60,'Statewise SO Details'!$A$35:$A$60,'Region Wise SO-Details'!$A24) -> 14 | D24: =SUMIFS('Statewise SO Details'!D$35:D$60,'Statewise SO Details'!$A$35:$A$60,'Region Wise SO-Details'!$A24) -> 0 | E24: =SUMIFS('Statewise SO Details'!E$35:E$60,'Statewise SO Details'!$A$35:$A$60,'Region Wise SO-Details'!$A24) -> 4 | F24: =SUMIFS('Statewise SO Details'!F$35:F$60,'Statewise SO Details'!$A$35:$A$60,'Region Wise SO-Details'!$A24) -> 0 | G24: =SUMIFS('Statewise SO Details'!G$35:G$60,'Statewise SO Details'!$A$35:$A$60,'Region Wise SO-Details'!$A24) -> 3 | H24: =SUMIFS('Statewise SO Details'!H$35:H$60,'Statewise SO Details'!$A$35:$A$60,'Region Wise SO-Details'!$A24) -> 0 | I24: =SUMIFS('Statewise SO Details'!I$35:I$60,'Statewise SO Details'!$A$35:$A$60,'Region Wise SO-Details'!$A24) -> 4 | J24: =SUMIFS('Statewise SO Details'!J$35:J$60,'Statewise SO Details'!$A$35:$A$60,'Region Wise SO-Details'!$A24) -> 3 | K24: =SUMIFS('Statewise SO Details'!K$35:K$60,'Statewise SO Details'!$A$35:$A$60,'Region Wise SO-Details'!$A24) -> 0 | L24: =SUMIFS('Statewise SO Details'!L$35:L$60,'Statewise SO Details'!$A$35:$A$60,'Region Wise SO-Details'!$A24) -> 12 | M24: =SUMIFS('Statewise SO Details'!M$35:M$60,'Statewise SO Details'!$A$35:$A$60,'Region Wise SO-Details'!$A24) -> 15 | N24: =SUMIFS('Statewise SO Details'!N$35:N$60,'Statewise SO Details'!$A$35:$A$60,'Region Wise SO-Details'!$A24) -> 5 | O24: =SUMIFS('Statewise SO Details'!O$35:O$60,'Statewise SO Details'!$A$35:$A$60,'Region Wise SO-Details'!$A24) -> 1 | P24: =SUMIFS('Statewise SO Details'!P$35:P$60,'Statewise SO Details'!$A$35:$A$60,'Region Wise SO-Details'!$A24) -> 4 | Q24: =SUMIFS('Statewise SO Details'!Q$35:Q$60,'Statewise SO Details'!$A$35:$A$60,'Region Wise SO-Details'!$A24) -> 4 | R24: =SUMIFS('Statewise SO Details'!R$35:R$60,'Statewise SO Details'!$A$35:$A$60,'Region Wise SO-Details'!$A24) -> 4 | S24: =SUMIFS('Statewise SO Details'!S$35:S$60,'Statewise SO Details'!$A$35:$A$60,'Region Wise SO-Details'!$A24) -> 6 | T24: =SUMIFS('Statewise SO Details'!T$35:T$60,'Statewise SO Details'!$A$35:$A$60,'Region Wise SO-Details'!$A24) -> 4 | U24: =SUMIFS('Statewise SO Details'!U$35:U$60,'Statewise SO Details'!$A$35:$A$60,'Region Wise SO-Details'!$A24) -> 3 | V24: =SUMIFS('Statewise SO Details'!V$35:V$60,'Statewise SO Details'!$A$35:$A$60,'Region Wise SO-Details'!$A24) -> 11 | W24: =SUMIFS('Statewise SO Details'!W$35:W$60,'Statewise SO Details'!$A$35:$A$60,'Region Wise SO-Details'!$A24) -> 3 | X24: =SUMIFS('Statewise SO Details'!X$35:X$60,'Statewise SO Details'!$A$35:$A$60,'Region Wise SO-Details'!$A24) -> 1 | Y24: =SUMIFS('Statewise SO Details'!Y$35:Y$60,'Statewise SO Details'!$A$35:$A$60,'Region Wise SO-Details'!$A24) -> 2 | Z24: =SUMIFS('Statewise SO Details'!Z$35:Z$60,'Statewise SO Details'!$A$35:$A$60,'Region Wise SO-Details'!$A24) -> 10 | AA24: =SUMIFS('Statewise SO Details'!AA$35:AA$60,'Statewise SO Details'!$A$35:$A$60,'Region Wise SO-Details'!$A24) -> 17 | AB24: =SUMIFS('Statewise SO Details'!AB$35:AB$60,'Statewise SO Details'!$A$35:$A$60,'Region Wise SO-Details'!$A24) -> 6 | AC24: =SUMIFS('Statewise SO Details'!AC$35:AC$60,'Statewise SO Details'!$A$35:$A$60,'Region Wise SO-Details'!$A24) -> 3 | AD24: =SUMIFS('Statewise SO Details'!AD$35:AD$60,'Statewise SO Details'!$A$35:$A$60,'Region Wise SO-Details'!$A24) -> 16 | AE24: =SUMIFS('Statewise SO Details'!AE$35:AE$60,'Statewise SO Details'!$A$35:$A$60,'Region Wise SO-Details'!$A24) -> 149 | AF24: =SUMIFS('Statewise SO Details'!AF$35:AF$60,'Statewise SO Details'!$A$35:$A$60,'Region Wise SO-Details'!$A24) -> 36 | AG24: =SUMIFS('Statewise SO Details'!AG$35:AG$60,'Statewise SO Details'!$A$35:$A$60,'Region Wise SO-Details'!$A24) -> 0 | AH24: =SUMIFS('Aug''24 & Sep''25'!$BL:$BL,'Aug''24 & Sep''25'!$CF:$CF,'Region Wise SO-Details'!$AH$3,'Aug''24 & Sep''25'!$BZ:$BZ,'Region Wise SO-Details'!$A24,'Aug''24 & Sep''25'!$BS:$BS,"Premium") -> 398 | AJ24: 709 | AK24: 398 | AL24: 56% | AM24: -52% | AN24: =SUMIFS('Aug''24 & Sep''25'!$BL:$BL,'Aug''24 & Sep''25'!$BZ:$BZ,'Region Wise SO-Details'!$A24,'Aug''24 & Sep''25'!$BU:$BU,"Consumer",'Aug''24 & Sep''25'!$BS:$BS,"premium",'Aug''24 & Sep''25'!$CF:$CF,'Region Wise SO-Details'!AN$4,'Aug''24 & Sep''25'!$CG:$CG,"MTD") -> 821 | AP24: 468 | AQ24: =IFERROR(VLOOKUP($A24,Pivot!$H$7:$J$14,3,0),0) -> 179 | AR24: 38% | AS24: -38% | AT24: =IFERROR(VLOOKUP($A24,Pivot!$H$7:$J$15,2,0),0) -> 289
A25: North2 | B25: =COUNTIFS(PVM!$R:$R,0,PVM!$K:$K,'Region Wise SO-Details'!$A25) -> 0 | C25: =SUMIFS('Statewise SO Details'!C$35:C$60,'Statewise SO Details'!$A$35:$A$60,'Region Wise SO-Details'!$A25) -> 0 | D25: =SUMIFS('Statewise SO Details'!D$35:D$60,'Statewise SO Details'!$A$35:$A$60,'Region Wise SO-Details'!$A25) -> 0 | E25: =SUMIFS('Statewise SO Details'!E$35:E$60,'Statewise SO Details'!$A$35:$A$60,'Region Wise SO-Details'!$A25) -> 0 | F25: =SUMIFS('Statewise SO Details'!F$35:F$60,'Statewise SO Details'!$A$35:$A$60,'Region Wise SO-Details'!$A25) -> 0 | G25: =SUMIFS('Statewise SO Details'!G$35:G$60,'Statewise SO Details'!$A$35:$A$60,'Region Wise SO-Details'!$A25) -> 1 | H25: =SUMIFS('Statewise SO Details'!H$35:H$60,'Statewise SO Details'!$A$35:$A$60,'Region Wise SO-Details'!$A25) -> 0 | I25: =SUMIFS('Statewise SO Details'!I$35:I$60,'Statewise SO Details'!$A$35:$A$60,'Region Wise SO-Details'!$A25) -> 5 | J25: =SUMIFS('Statewise SO Details'!J$35:J$60,'Statewise SO Details'!$A$35:$A$60,'Region Wise SO-Details'!$A25) -> 4 | K25: =SUMIFS('Statewise SO Details'!K$35:K$60,'Statewise SO Details'!$A$35:$A$60,'Region Wise SO-Details'!$A25) -> 0 | L25: =SUMIFS('Statewise SO Details'!L$35:L$60,'Statewise SO Details'!$A$35:$A$60,'Region Wise SO-Details'!$A25) -> 22 | M25: =SUMIFS('Statewise SO Details'!M$35:M$60,'Statewise SO Details'!$A$35:$A$60,'Region Wise SO-Details'!$A25) -> 0 | N25: =SUMIFS('Statewise SO Details'!N$35:N$60,'Statewise SO Details'!$A$35:$A$60,'Region Wise SO-Details'!$A25) -> 2 | O25: =SUMIFS('Statewise SO Details'!O$35:O$60,'Statewise SO Details'!$A$35:$A$60,'Region Wise SO-Details'!$A25) -> 1 | P25: =SUMIFS('Statewise SO Details'!P$35:P$60,'Statewise SO Details'!$A$35:$A$60,'Region Wise SO-Details'!$A25) -> 7 | Q25: =SUMIFS('Statewise SO Details'!Q$35:Q$60,'Statewise SO Details'!$A$35:$A$60,'Region Wise SO-Details'!$A25) -> 16 | R25: =SUMIFS('Statewise SO Details'!R$35:R$60,'Statewise SO Details'!$A$35:$A$60,'Region Wise SO-Details'!$A25) -> 7 | S25: =SUMIFS('Statewise SO Details'!S$35:S$60,'Statewise SO Details'!$A$35:$A$60,'Region Wise SO-Details'!$A25) -> 6 | T25: =SUMIFS('Statewise SO Details'!T$35:T$60,'Statewise SO Details'!$A$35:$A$60,'Region Wise SO-Details'!$A25) -> 13 | U25: =SUMIFS('Statewise SO Details'!U$35:U$60,'Statewise SO Details'!$A$35:$A$60,'Region Wise SO-Details'!$A25) -> 5 | V25: =SUMIFS('Statewise SO Details'!V$35:V$60,'Statewise SO Details'!$A$35:$A$60,'Region Wise SO-Details'!$A25) -> 11 | W25: =SUMIFS('Statewise SO Details'!W$35:W$60,'Statewise SO Details'!$A$35:$A$60,'Region Wise SO-Details'!$A25) -> 6 | X25: =SUMIFS('Statewise SO Details'!X$35:X$60,'Statewise SO Details'!$A$35:$A$60,'Region Wise SO-Details'!$A25) -> 4 | Y25: =SUMIFS('Statewise SO Details'!Y$35:Y$60,'Statewise SO Details'!$A$35:$A$60,'Region Wise SO-Details'!$A25) -> 2 | Z25: =SUMIFS('Statewise SO Details'!Z$35:Z$60,'Statewise SO Details'!$A$35:$A$60,'Region Wise SO-Details'!$A25) -> 6 | AA25: =SUMIFS('Statewise SO Details'!AA$35:AA$60,'Statewise SO Details'!$A$35:$A$60,'Region Wise SO-Details'!$A25) -> 11 | AB25: =SUMIFS('Statewise SO Details'!AB$35:AB$60,'Statewise SO Details'!$A$35:$A$60,'Region Wise SO-Details'!$A25) -> 12 | AC25: =SUMIFS('Statewise SO Details'!AC$35:AC$60,'Statewise SO Details'!$A$35:$A$60,'Region Wise SO-Details'!$A25) -> 5 | AD25: =SUMIFS('Statewise SO Details'!AD$35:AD$60,'Statewise SO Details'!$A$35:$A$60,'Region Wise SO-Details'!$A25) -> 10 | AE25: =SUMIFS('Statewise SO Details'!AE$35:AE$60,'Statewise SO Details'!$A$35:$A$60,'Region Wise SO-Details'!$A25) -> 95 | AF25: =SUMIFS('Statewise SO Details'!AF$35:AF$60,'Statewise SO Details'!$A$35:$A$60,'Region Wise SO-Details'!$A25) -> 52 | AG25: =SUMIFS('Statewise SO Details'!AG$35:AG$60,'Statewise SO Details'!$A$35:$A$60,'Region Wise SO-Details'!$A25) -> 0 | AH25: =SUMIFS('Aug''24 & Sep''25'!$BL:$BL,'Aug''24 & Sep''25'!$CF:$CF,'Region Wise SO-Details'!$AH$3,'Aug''24 & Sep''25'!$BZ:$BZ,'Region Wise SO-Details'!$A25,'Aug''24 & Sep''25'!$BS:$BS,"Premium") -> 303 | AJ25: 367 | AK25: 303 | AL25: 83% | AM25: -43% | AN25: =SUMIFS('Aug''24 & Sep''25'!$BL:$BL,'Aug''24 & Sep''25'!$BZ:$BZ,'Region Wise SO-Details'!$A25,'Aug''24 & Sep''25'!$BU:$BU,"Consumer",'Aug''24 & Sep''25'!$BS:$BS,"premium",'Aug''24 & Sep''25'!$CF:$CF,'Region Wise SO-Details'!AN$4,'Aug''24 & Sep''25'!$CG:$CG,"MTD") -> 535 | AP25: 385 | AQ25: =IFERROR(VLOOKUP($A25,Pivot!$H$7:$J$14,3,0),0) -> 185 | AR25: =IFERROR(AQ25/AP25,0) -> 48% | AS25: =IFERROR(AQ25/AT25-1,0) -> -40% | AT25: =IFERROR(VLOOKUP($A25,Pivot!$H$7:$J$15,2,0),0) -> 306
A26: South1 | B26: =COUNTIFS(PVM!$R:$R,0,PVM!$K:$K,'Region Wise SO-Details'!$A26) -> 1 | C26: =SUMIFS('Statewise SO Details'!C$35:C$60,'Statewise SO Details'!$A$35:$A$60,'Region Wise SO-Details'!$A26) -> 0 | D26: =SUMIFS('Statewise SO Details'!D$35:D$60,'Statewise SO Details'!$A$35:$A$60,'Region Wise SO-Details'!$A26) -> 0 | E26: =SUMIFS('Statewise SO Details'!E$35:E$60,'Statewise SO Details'!$A$35:$A$60,'Region Wise SO-Details'!$A26) -> 0 | F26: =SUMIFS('Statewise SO Details'!F$35:F$60,'Statewise SO Details'!$A$35:$A$60,'Region Wise SO-Details'!$A26) -> 1 | G26: =SUMIFS('Statewise SO Details'!G$35:G$60,'Statewise SO Details'!$A$35:$A$60,'Region Wise SO-Details'!$A26) -> 0 | H26: =SUMIFS('Statewise SO Details'!H$35:H$60,'Statewise SO Details'!$A$35:$A$60,'Region Wise SO-Details'!$A26) -> 0 | I26: =SUMIFS('Statewise SO Details'!I$35:I$60,'Statewise SO Details'!$A$35:$A$60,'Region Wise SO-Details'!$A26) -> 0 | J26: =SUMIFS('Statewise SO Details'!J$35:J$60,'Statewise SO Details'!$A$35:$A$60,'Region Wise SO-Details'!$A26) -> 5 | K26: =SUMIFS('Statewise SO Details'!K$35:K$60,'Statewise SO Details'!$A$35:$A$60,'Region Wise SO-Details'!$A26) -> 0 | L26: =SUMIFS('Statewise SO Details'!L$35:L$60,'Statewise SO Details'!$A$35:$A$60,'Region Wise SO-Details'!$A26) -> 18 | M26: =SUMIFS('Statewise SO Details'!M$35:M$60,'Statewise SO Details'!$A$35:$A$60,'Region Wise SO-Details'!$A26) -> 4 | N26: =SUMIFS('Statewise SO Details'!N$35:N$60,'Statewise SO Details'!$A$35:$A$60,'Region Wise SO-Details'!$A26) -> 29 | O26: =SUMIFS('Statewise SO Details'!O$35:O$60,'Statewise SO Details'!$A$35:$A$60,'Region Wise SO-Details'!$A26) -> 2 | P26: =SUMIFS('Statewise SO Details'!P$35:P$60,'Statewise SO Details'!$A$35:$A$60,'Region Wise SO-Details'!$A26) -> 4 | Q26: =SUMIFS('Statewise SO Details'!Q$35:Q$60,'Statewise SO Details'!$A$35:$A$60,'Region Wise SO-Details'!$A26) -> 23 | R26: =SUMIFS('Statewise SO Details'!R$35:R$60,'Statewise SO Details'!$A$35:$A$60,'Region Wise SO-Details'!$A26) -> 0 | S26: =SUMIFS('Statewise SO Details'!S$35:S$60,'Statewise SO Details'!$A$35:$A$60,'Region Wise SO-Details'!$A26) -> 11 | T26: =SUMIFS('Statewise SO Details'!T$35:T$60,'Statewise SO Details'!$A$35:$A$60,'Region Wise SO-Details'!$A26) -> 21 | U26: =SUMIFS('Statewise SO Details'!U$35:U$60,'Statewise SO Details'!$A$35:$A$60,'Region Wise SO-Details'!$A26) -> 8 | V26: =SUMIFS('Statewise SO Details'!V$35:V$60,'Statewise SO Details'!$A$35:$A$60,'Region Wise SO-Details'!$A26) -> 15 | W26: =SUMIFS('Statewise SO Details'!W$35:W$60,'Statewise SO Details'!$A$35:$A$60,'Region Wise SO-Details'!$A26) -> 4 | X26: =SUMIFS('Statewise SO Details'!X$35:X$60,'Statewise SO Details'!$A$35:$A$60,'Region Wise SO-Details'!$A26) -> 0 | Y26: =SUMIFS('Statewise SO Details'!Y$35:Y$60,'Statewise SO Details'!$A$35:$A$60,'Region Wise SO-Details'!$A26) -> 16 | Z26: =SUMIFS('Statewise SO Details'!Z$35:Z$60,'Statewise SO Details'!$A$35:$A$60,'Region Wise SO-Details'!$A26) -> 19 | AA26: =SUMIFS('Statewise SO Details'!AA$35:AA$60,'Statewise SO Details'!$A$35:$A$60,'Region Wise SO-Details'!$A26) -> 13 | AB26: =SUMIFS('Statewise SO Details'!AB$35:AB$60,'Statewise SO Details'!$A$35:$A$60,'Region Wise SO-Details'!$A26) -> 13 | AC26: =SUMIFS('Statewise SO Details'!AC$35:AC$60,'Statewise SO Details'!$A$35:$A$60,'Region Wise SO-Details'!$A26) -> 30 | AD26: =SUMIFS('Statewise SO Details'!AD$35:AD$60,'Statewise SO Details'!$A$35:$A$60,'Region Wise SO-Details'!$A26) -> 5 | AE26: =SUMIFS('Statewise SO Details'!AE$35:AE$60,'Statewise SO Details'!$A$35:$A$60,'Region Wise SO-Details'!$A26) -> 38 | AF26: =SUMIFS('Statewise SO Details'!AF$35:AF$60,'Statewise SO Details'!$A$35:$A$60,'Region Wise SO-Details'!$A26) -> 491 | AG26: =SUMIFS('Statewise SO Details'!AG$35:AG$60,'Statewise SO Details'!$A$35:$A$60,'Region Wise SO-Details'!$A26) -> 0 | AH26: =SUMIFS('Aug''24 & Sep''25'!$BL:$BL,'Aug''24 & Sep''25'!$CF:$CF,'Region Wise SO-Details'!$AH$3,'Aug''24 & Sep''25'!$BZ:$BZ,'Region Wise SO-Details'!$A26,'Aug''24 & Sep''25'!$BS:$BS,"Premium") -> 810 | AJ26: 639 | AK26: 810 | AL26: 127% | AM26: 66% | AN26: =SUMIFS('Aug''24 & Sep''25'!$BL:$BL,'Aug''24 & Sep''25'!$BZ:$BZ,'Region Wise SO-Details'!$A26,'Aug''24 & Sep''25'!$BU:$BU,"Consumer",'Aug''24 & Sep''25'!$BS:$BS,"premium",'Aug''24 & Sep''25'!$CF:$CF,'Region Wise SO-Details'!AN$4,'Aug''24 & Sep''25'!$CG:$CG,"MTD") -> 488 | AP26: 388 | AQ26: =IFERROR(VLOOKUP($A26,Pivot!$H$7:$J$14,3,0),0) -> 199 | AR26: 51% | AS26: =IFERROR(AQ26/AT26-1,0) -> -4% | AT26: =IFERROR(VLOOKUP($A26,Pivot!$H$7:$J$15,2,0),0) -> 207
A27: South2 | B27: =COUNTIFS(PVM!$R:$R,0,PVM!$K:$K,'Region Wise SO-Details'!$A27) -> 0 | C27: =SUMIFS('Statewise SO Details'!C$35:C$60,'Statewise SO Details'!$A$35:$A$60,'Region Wise SO-Details'!$A27) -> 0 | D27: =SUMIFS('Statewise SO Details'!D$35:D$60,'Statewise SO Details'!$A$35:$A$60,'Region Wise SO-Details'!$A27) -> 0 | E27: =SUMIFS('Statewise SO Details'!E$35:E$60,'Statewise SO Details'!$A$35:$A$60,'Region Wise SO-Details'!$A27) -> 3 | F27: =SUMIFS('Statewise SO Details'!F$35:F$60,'Statewise SO Details'!$A$35:$A$60,'Region Wise SO-Details'!$A27) -> 2 | G27: =SUMIFS('Statewise SO Details'!G$35:G$60,'Statewise SO Details'!$A$35:$A$60,'Region Wise SO-Details'!$A27) -> 10 | H27: =SUMIFS('Statewise SO Details'!H$35:H$60,'Statewise SO Details'!$A$35:$A$60,'Region Wise SO-Details'!$A27) -> 0 | I27: =SUMIFS('Statewise SO Details'!I$35:I$60,'Statewise SO Details'!$A$35:$A$60,'Region Wise SO-Details'!$A27) -> 0 | J27: =SUMIFS('Statewise SO Details'!J$35:J$60,'Statewise SO Details'!$A$35:$A$60,'Region Wise SO-Details'!$A27) -> 1 | K27: =SUMIFS('Statewise SO Details'!K$35:K$60,'Statewise SO Details'!$A$35:$A$60,'Region Wise SO-Details'!$A27) -> 0 | L27: =SUMIFS('Statewise SO Details'!L$35:L$60,'Statewise SO Details'!$A$35:$A$60,'Region Wise SO-Details'!$A27) -> 4 | M27: =SUMIFS('Statewise SO Details'!M$35:M$60,'Statewise SO Details'!$A$35:$A$60,'Region Wise SO-Details'!$A27) -> 46 | N27: =SUMIFS('Statewise SO Details'!N$35:N$60,'Statewise SO Details'!$A$35:$A$60,'Region Wise SO-Details'!$A27) -> 16 | O27: =SUMIFS('Statewise SO Details'!O$35:O$60,'Statewise SO Details'!$A$35:$A$60,'Region Wise SO-Details'!$A27) -> 11 | P27: =SUMIFS('Statewise SO Details'!P$35:P$60,'Statewise SO Details'!$A$35:$A$60,'Region Wise SO-Details'!$A27) -> 1 | Q27: =SUMIFS('Statewise SO Details'!Q$35:Q$60,'Statewise SO Details'!$A$35:$A$60,'Region Wise SO-Details'!$A27) -> 25 | R27: =SUMIFS('Statewise SO Details'!R$35:R$60,'Statewise SO Details'!$A$35:$A$60,'Region Wise SO-Details'!$A27) -> 0 | S27: =SUMIFS('Statewise SO Details'!S$35:S$60,'Statewise SO Details'!$A$35:$A$60,'Region Wise SO-Details'!$A27) -> 33 | T27: =SUMIFS('Statewise SO Details'!T$35:T$60,'Statewise SO Details'!$A$35:$A$60,'Region Wise SO-Details'!$A27) -> 24 | U27: =SUMIFS('Statewise SO Details'!U$35:U$60,'Statewise SO Details'!$A$35:$A$60,'Region Wise SO-Details'!$A27) -> 8 | V27: =SUMIFS('Statewise SO Details'!V$35:V$60,'Statewise SO Details'!$A$35:$A$60,'Region Wise SO-Details'!$A27) -> 8 | W27: =SUMIFS('Statewise SO Details'!W$35:W$60,'Statewise SO Details'!$A$35:$A$60,'Region Wise SO-Details'!$A27) -> 1 | X27: =SUMIFS('Statewise SO Details'!X$35:X$60,'Statewise SO Details'!$A$35:$A$60,'Region Wise SO-Details'!$A27) -> 2 | Y27: =SUMIFS('Statewise SO Details'!Y$35:Y$60,'Statewise SO Details'!$A$35:$A$60,'Region Wise SO-Details'!$A27) -> 0 | Z27: =SUMIFS('Statewise SO Details'!Z$35:Z$60,'Statewise SO Details'!$A$35:$A$60,'Region Wise SO-Details'!$A27) -> 39 | AA27: =SUMIFS('Statewise SO Details'!AA$35:AA$60,'Statewise SO Details'!$A$35:$A$60,'Region Wise SO-Details'!$A27) -> 26 | AB27: =SUMIFS('Statewise SO Details'!AB$35:AB$60,'Statewise SO Details'!$A$35:$A$60,'Region Wise SO-Details'!$A27) -> 22 | AC27: =SUMIFS('Statewise SO Details'!AC$35:AC$60,'Statewise SO Details'!$A$35:$A$60,'Region Wise SO-Details'!$A27) -> 27 | AD27: =SUMIFS('Statewise SO Details'!AD$35:AD$60,'Statewise SO Details'!$A$35:$A$60,'Region Wise SO-Details'!$A27) -> 44 | AE27: =SUMIFS('Statewise SO Details'!AE$35:AE$60,'Statewise SO Details'!$A$35:$A$60,'Region Wise SO-Details'!$A27) -> 54 | AF27: =SUMIFS('Statewise SO Details'!AF$35:AF$60,'Statewise SO Details'!$A$35:$A$60,'Region Wise SO-Details'!$A27) -> 32 | AG27: =SUMIFS('Statewise SO Details'!AG$35:AG$60,'Statewise SO Details'!$A$35:$A$60,'Region Wise SO-Details'!$A27) -> 0 | AH27: =SUMIFS('Aug''24 & Sep''25'!$BL:$BL,'Aug''24 & Sep''25'!$CF:$CF,'Region Wise SO-Details'!$AH$3,'Aug''24 & Sep''25'!$BZ:$BZ,'Region Wise SO-Details'!$A27,'Aug''24 & Sep''25'!$BS:$BS,"Premium") -> 439 | AJ27: 448 | AK27: 439 | AL27: 98% | AM27: -32% | AN27: =SUMIFS('Aug''24 & Sep''25'!$BL:$BL,'Aug''24 & Sep''25'!$BZ:$BZ,'Region Wise SO-Details'!$A27,'Aug''24 & Sep''25'!$BU:$BU,"Consumer",'Aug''24 & Sep''25'!$BS:$BS,"premium",'Aug''24 & Sep''25'!$CF:$CF,'Region Wise SO-Details'!AN$4,'Aug''24 & Sep''25'!$CG:$CG,"MTD") -> 646 | AP27: 410 | AQ27: =IFERROR(VLOOKUP($A27,Pivot!$H$7:$J$14,3,0),0) -> 231 | AR27: 56% | AS27: =IFERROR(AQ27/AT27-1,0) -> -18% | AT27: =IFERROR(VLOOKUP($A27,Pivot!$H$7:$J$15,2,0),0) -> 280
A28: West1 | B28: =COUNTIFS(PVM!$R:$R,0,PVM!$K:$K,'Region Wise SO-Details'!$A28) -> 1 | C28: =SUMIFS('Statewise SO Details'!C$35:C$60,'Statewise SO Details'!$A$35:$A$60,'Region Wise SO-Details'!$A28) -> 1 | D28: =SUMIFS('Statewise SO Details'!D$35:D$60,'Statewise SO Details'!$A$35:$A$60,'Region Wise SO-Details'!$A28) -> 0 | E28: =SUMIFS('Statewise SO Details'!E$35:E$60,'Statewise SO Details'!$A$35:$A$60,'Region Wise SO-Details'!$A28) -> 2 | F28: =SUMIFS('Statewise SO Details'!F$35:F$60,'Statewise SO Details'!$A$35:$A$60,'Region Wise SO-Details'!$A28) -> 5 | G28: =SUMIFS('Statewise SO Details'!G$35:G$60,'Statewise SO Details'!$A$35:$A$60,'Region Wise SO-Details'!$A28) -> 1 | H28: =SUMIFS('Statewise SO Details'!H$35:H$60,'Statewise SO Details'!$A$35:$A$60,'Region Wise SO-Details'!$A28) -> 3 | I28: =SUMIFS('Statewise SO Details'!I$35:I$60,'Statewise SO Details'!$A$35:$A$60,'Region Wise SO-Details'!$A28) -> 1 | J28: =SUMIFS('Statewise SO Details'!J$35:J$60,'Statewise SO Details'!$A$35:$A$60,'Region Wise SO-Details'!$A28) -> 26 | K28: =SUMIFS('Statewise SO Details'!K$35:K$60,'Statewise SO Details'!$A$35:$A$60,'Region Wise SO-Details'!$A28) -> 0 | L28: =SUMIFS('Statewise SO Details'!L$35:L$60,'Statewise SO Details'!$A$35:$A$60,'Region Wise SO-Details'!$A28) -> 68 | M28: =SUMIFS('Statewise SO Details'!M$35:M$60,'Statewise SO Details'!$A$35:$A$60,'Region Wise SO-Details'!$A28) -> 45 | N28: =SUMIFS('Statewise SO Details'!N$35:N$60,'Statewise SO Details'!$A$35:$A$60,'Region Wise SO-Details'!$A28) -> 4 | O28: =SUMIFS('Statewise SO Details'!O$35:O$60,'Statewise SO Details'!$A$35:$A$60,'Region Wise SO-Details'!$A28) -> 14 | P28: =SUMIFS('Statewise SO Details'!P$35:P$60,'Statewise SO Details'!$A$35:$A$60,'Region Wise SO-Details'!$A28) -> 4 | Q28: =SUMIFS('Statewise SO Details'!Q$35:Q$60,'Statewise SO Details'!$A$35:$A$60,'Region Wise SO-Details'!$A28) -> 9 | R28: =SUMIFS('Statewise SO Details'!R$35:R$60,'Statewise SO Details'!$A$35:$A$60,'Region Wise SO-Details'!$A28) -> 10 | S28: =SUMIFS('Statewise SO Details'!S$35:S$60,'Statewise SO Details'!$A$35:$A$60,'Region Wise SO-Details'!$A28) -> 83 | T28: =SUMIFS('Statewise SO Details'!T$35:T$60,'Statewise SO Details'!$A$35:$A$60,'Region Wise SO-Details'!$A28) -> 54 | U28: =SUMIFS('Statewise SO Details'!U$35:U$60,'Statewise SO Details'!$A$35:$A$60,'Region Wise SO-Details'!$A28) -> 43 | V28: =SUMIFS('Statewise SO Details'!V$35:V$60,'Statewise SO Details'!$A$35:$A$60,'Region Wise SO-Details'!$A28) -> 48 | W28: =SUMIFS('Statewise SO Details'!W$35:W$60,'Statewise SO Details'!$A$35:$A$60,'Region Wise SO-Details'!$A28) -> 4 | X28: =SUMIFS('Statewise SO Details'!X$35:X$60,'Statewise SO Details'!$A$35:$A$60,'Region Wise SO-Details'!$A28) -> 8 | Y28: =SUMIFS('Statewise SO Details'!Y$35:Y$60,'Statewise SO Details'!$A$35:$A$60,'Region Wise SO-Details'!$A28) -> 31 | Z28: =SUMIFS('Statewise SO Details'!Z$35:Z$60,'Statewise SO Details'!$A$35:$A$60,'Region Wise SO-Details'!$A28) -> 40 | AA28: =SUMIFS('Statewise SO Details'!AA$35:AA$60,'Statewise SO Details'!$A$35:$A$60,'Region Wise SO-Details'!$A28) -> 14 | AB28: =SUMIFS('Statewise SO Details'!AB$35:AB$60,'Statewise SO Details'!$A$35:$A$60,'Region Wise SO-Details'!$A28) -> 9 | AC28: =SUMIFS('Statewise SO Details'!AC$35:AC$60,'Statewise SO Details'!$A$35:$A$60,'Region Wise SO-Details'!$A28) -> 72 | AD28: =SUMIFS('Statewise SO Details'!AD$35:AD$60,'Statewise SO Details'!$A$35:$A$60,'Region Wise SO-Details'!$A28) -> 86 | AE28: =SUMIFS('Statewise SO Details'!AE$35:AE$60,'Statewise SO Details'!$A$35:$A$60,'Region Wise SO-Details'!$A28) -> 392 | AF28: =SUMIFS('Statewise SO Details'!AF$35:AF$60,'Statewise SO Details'!$A$35:$A$60,'Region Wise SO-Details'!$A28) -> 58 | AG28: =SUMIFS('Statewise SO Details'!AG$35:AG$60,'Statewise SO Details'!$A$35:$A$60,'Region Wise SO-Details'!$A28) -> 0 | AH28: =SUMIFS('Aug''24 & Sep''25'!$BL:$BL,'Aug''24 & Sep''25'!$CF:$CF,'Region Wise SO-Details'!$AH$3,'Aug''24 & Sep''25'!$BZ:$BZ,'Region Wise SO-Details'!$A28,'Aug''24 & Sep''25'!$BS:$BS,"Premium") -> 1135 | AJ28: 1225 | AK28: 1135 | AL28: 93% | AM28: -44% | AN28: =SUMIFS('Aug''24 & Sep''25'!$BL:$BL,'Aug''24 & Sep''25'!$BZ:$BZ,'Region Wise SO-Details'!$A28,'Aug''24 & Sep''25'!$BU:$BU,"Consumer",'Aug''24 & Sep''25'!$BS:$BS,"premium",'Aug''24 & Sep''25'!$CF:$CF,'Region Wise SO-Details'!AN$4,'Aug''24 & Sep''25'!$CG:$CG,"MTD") -> 2028 | AP28: 883 | AQ28: =IFERROR(VLOOKUP($A28,Pivot!$H$7:$J$14,3,0),0) -> 568 | AR28: 64% | AS28: -27% | AT28: =IFERROR(VLOOKUP($A28,Pivot!$H$7:$J$15,2,0),0) -> 781
A29: E+N | B29: =SUM(B22:B25) -> 1 | C29: =SUM(C22:C25) -> 14 | D29: 0 | E29: 5 | F29: 3 | G29: 8 | H29: 7 | I29: 12 | J29: 11 | K29: 1 | L29: 52 | M29: 20 | N29: 7 | O29: 2 | P29: 17 | Q29: 35 | R29: 15 | S29: 19 | T29: 28 | U29: 18 | V29: 25 | W29: 22 | X29: 12 | Y29: 11 | Z29: 20 | AA29: 33 | AB29: 21 | AC29: 25 | AD29: 34 | AE29: 287 | AF29: =SUM(AF22:AF25) -> 135 | AG29: 0 | AH29: 899 | AJ29: =SUM(AJ22:AJ25) -> 1779 | AK29: =SUM(AK22:AK25) -> 1002 | AL29: =IFERROR(AK29/AJ29,0) -> 56% | AM29: =AK29/AN29-1 -> -57% | AN29: =SUM(AN22:AN25) -> 2304 | AP29: =SUM(AP22:AP25) -> 1413 | AQ29: =SUM(AQ22:AQ25) -> 557 | AR29: =IFERROR(AQ29/AP29,0) -> 39% | AS29: =AQ29/AT29-1 -> -46% | AT29: =SUM(AT22:AT25) -> 1030
A30: S+W | B30: =SUM(B26:B28) -> 2 | C30: =SUM(C26:C28) -> 1 | D30: 0 | E30: 5 | F30: 8 | G30: 11 | H30: 3 | I30: 1 | J30: 32 | K30: 0 | L30: 90 | M30: 95 | N30: 49 | O30: 27 | P30: 9 | Q30: 57 | R30: 10 | S30: 127 | T30: 99 | U30: 59 | V30: 71 | W30: 9 | X30: 10 | Y30: 47 | Z30: 98 | AA30: 53 | AB30: 44 | AC30: 129 | AD30: 135 | AE30: 484 | AF30: =SUM(AF26:AF28) -> 581 | AG30: 0 | AH30: 2344 | AJ30: =SUM(AJ26:AJ28) -> 2312 | AK30: =SUM(AK26:AK28) -> 2384 | AL30: =IFERROR(AK30/AJ30,0) -> 103% | AM30: =AK30/AN30-1 -> -25% | AN30: =SUM(AN26:AN28) -> 3162 | AP30: =SUM(AP26:AP28) -> 1681 | AQ30: =SUM(AQ26:AQ28) -> 998 | AR30: =IFERROR(AQ30/AP30,0) -> 59% | AS30: -21% | AT30: =SUM(AT26:AT28) -> 1268
A31: INDIA | B31: =B30+B29 -> 3 | C31: =C30+C29 -> 15 | D31: =D30+D29 -> 0 | E31: 10 | F31: 11 | G31: 19 | H31: 10 | I31: 13 | J31: 43 | K31: 1 | L31: 142 | M31: 115 | N31: 56 | O31: 29 | P31: 26 | Q31: 92 | R31: 25 | S31: 146 | T31: 127 | U31: 77 | V31: 96 | W31: 31 | X31: 22 | Y31: 58 | Z31: 118 | AA31: 86 | AB31: 65 | AC31: 154 | AD31: 169 | AE31: 771 | AF31: =AF30+AF29 -> 716 | AG31: 0 | AH31: 3243 | AJ31: =AJ30+AJ29 -> 4091 | AK31: 3386 | AL31: 83% | AM31: =AK31/AN31-1 -> -38% | AN31: =AN30+AN29 -> 5466 | AP31: =AP30+AP29 -> 3094 | AQ31: 1555 | AR31: 50% | AS31: -32% | AT31: =AT30+AT29 -> 2298
A34: T3 Coverage | B34: # of ASO on 0 T3 COV | C34: =C4 -> Sat | D34: =D4 -> Sun | E34: Mon | F34: Tue | G34: Wed | H34: Thu | I34: Fri | J34: Sat | K34: Sun | L34: Mon | M34: Tue | N34: Wed | O34: Thu | P34: Fri | Q34: Sat | R34: Sun | S34: Mon | T34: Tue | U34: Wed | V34: Thu | W34: Fri | X34: Sat | Y34: Sun | Z34: Mon | AA34: Tue | AB34: Wed | AC34: Thu | AD34: Fri | AE34: Sat | AF34: =AF4 -> Sun | AG34: Mon
C35: =C20 -> 2025-11-01 | D35: =D20 -> 2025-11-02 | E35: 2025-11-03 | F35: 2025-11-04 | G35: 2025-11-05 | H35: 2025-11-06 | I35: 2025-11-07 | J35: 2025-11-08 | K35: 2025-11-09 | L35: 2025-11-10 | M35: 2025-11-11 | N35: 2025-11-12 | O35: 2025-11-13 | P35: 2025-11-14 | Q35: 2025-11-15 | R35: 2025-11-16 | S35: 2025-11-17 | T35: 2025-11-18 | U35: 2025-11-19 | V35: 2025-11-20 | W35: 2025-11-21 | X35: 2025-11-22 | Y35: 2025-11-23 | Z35: 2025-11-24 | AA35: 2025-11-25 | AB35: 2025-11-26 | AC35: 2025-11-27 | AD35: 2025-11-28 | AE35: 2025-11-29 | AF35: =AF20 -> 2025-11-30 | AG35: 2025-12-01 | AH35: Total
A36: East1 | B36: =COUNTIFS(PVM!$S:$S,0,PVM!$K:$K,'Region Wise SO-Details'!$A36) -> 0 | C36: =SUMIFS('Statewise Coverage'!C$6:C$31,'Statewise Coverage'!$A$6:$A$31,'Region Wise SO-Details'!$A36) -> 0 | D36: =SUMIFS('Statewise Coverage'!D$6:D$31,'Statewise Coverage'!$A$6:$A$31,'Region Wise SO-Details'!$A36) -> 0 | E36: =SUMIFS('Statewise Coverage'!E$6:E$31,'Statewise Coverage'!$A$6:$A$31,'Region Wise SO-Details'!$A36) -> 0 | F36: =SUMIFS('Statewise Coverage'!F$6:F$31,'Statewise Coverage'!$A$6:$A$31,'Region Wise SO-Details'!$A36) -> 0 | G36: =SUMIFS('Statewise Coverage'!G$6:G$31,'Statewise Coverage'!$A$6:$A$31,'Region Wise SO-Details'!$A36) -> 0 | H36: =SUMIFS('Statewise Coverage'!H$6:H$31,'Statewise Coverage'!$A$6:$A$31,'Region Wise SO-Details'!$A36) -> 19 | I36: =SUMIFS('Statewise Coverage'!I$6:I$31,'Statewise Coverage'!$A$6:$A$31,'Region Wise SO-Details'!$A36) -> 3 | J36: =SUMIFS('Statewise Coverage'!J$6:J$31,'Statewise Coverage'!$A$6:$A$31,'Region Wise SO-Details'!$A36) -> 0 | K36: =SUMIFS('Statewise Coverage'!K$6:K$31,'Statewise Coverage'!$A$6:$A$31,'Region Wise SO-Details'!$A36) -> 9 | L36: =SUMIFS('Statewise Coverage'!L$6:L$31,'Statewise Coverage'!$A$6:$A$31,'Region Wise SO-Details'!$A36) -> 9 | M36: =SUMIFS('Statewise Coverage'!M$6:M$31,'Statewise Coverage'!$A$6:$A$31,'Region Wise SO-Details'!$A36) -> 4 | N36: =SUMIFS('Statewise Coverage'!N$6:N$31,'Statewise Coverage'!$A$6:$A$31,'Region Wise SO-Details'!$A36) -> 4 | O36: =SUMIFS('Statewise Coverage'!O$6:O$31,'Statewise Coverage'!$A$6:$A$31,'Region Wise SO-Details'!$A36) -> 5 | P36: =SUMIFS('Statewise Coverage'!P$6:P$31,'Statewise Coverage'!$A$6:$A$31,'Region Wise SO-Details'!$A36) -> 7 | Q36: =SUMIFS('Statewise Coverage'!Q$6:Q$31,'Statewise Coverage'!$A$6:$A$31,'Region Wise SO-Details'!$A36) -> 17 | R36: =SUMIFS('Statewise Coverage'!R$6:R$31,'Statewise Coverage'!$A$6:$A$31,'Region Wise SO-Details'!$A36) -> 15 | S36: =SUMIFS('Statewise Coverage'!S$6:S$31,'Statewise Coverage'!$A$6:$A$31,'Region Wise SO-Details'!$A36) -> 14 | T36: =SUMIFS('Statewise Coverage'!T$6:T$31,'Statewise Coverage'!$A$6:$A$31,'Region Wise SO-Details'!$A36) -> 4 | U36: =SUMIFS('Statewise Coverage'!U$6:U$31,'Statewise Coverage'!$A$6:$A$31,'Region Wise SO-Details'!$A36) -> 5 | V36: =SUMIFS('Statewise Coverage'!V$6:V$31,'Statewise Coverage'!$A$6:$A$31,'Region Wise SO-Details'!$A36) -> 21 | W36: =SUMIFS('Statewise Coverage'!W$6:W$31,'Statewise Coverage'!$A$6:$A$31,'Region Wise SO-Details'!$A36) -> 43 | X36: =SUMIFS('Statewise Coverage'!X$6:X$31,'Statewise Coverage'!$A$6:$A$31,'Region Wise SO-Details'!$A36) -> 2 | Y36: =SUMIFS('Statewise Coverage'!Y$6:Y$31,'Statewise Coverage'!$A$6:$A$31,'Region Wise SO-Details'!$A36) -> 20 | Z36: =SUMIFS('Statewise Coverage'!Z$6:Z$31,'Statewise Coverage'!$A$6:$A$31,'Region Wise SO-Details'!$A36) -> 7 | AA36: =SUMIFS('Statewise Coverage'!AA$6:AA$31,'Statewise Coverage'!$A$6:$A$31,'Region Wise SO-Details'!$A36) -> 11 | AB36: =SUMIFS('Statewise Coverage'!AB$6:AB$31,'Statewise Coverage'!$A$6:$A$31,'Region Wise SO-Details'!$A36) -> 5 | AC36: =SUMIFS('Statewise Coverage'!AC$6:AC$31,'Statewise Coverage'!$A$6:$A$31,'Region Wise SO-Details'!$A36) -> 14 | AD36: =SUMIFS('Statewise Coverage'!AD$6:AD$31,'Statewise Coverage'!$A$6:$A$31,'Region Wise SO-Details'!$A36) -> 27 | AE36: =SUMIFS('Statewise Coverage'!AE$6:AE$31,'Statewise Coverage'!$A$6:$A$31,'Region Wise SO-Details'!$A36) -> 174 | AF36: =SUMIFS('Statewise Coverage'!AF$6:AF$31,'Statewise Coverage'!$A$6:$A$31,'Region Wise SO-Details'!$A36) -> 88 | AG36: =SUMIFS('Statewise Coverage'!AG$6:AG$31,'Statewise Coverage'!$A$6:$A$31,'Region Wise SO-Details'!$A36) -> 0 | AH36: =VLOOKUP($A36,Pivot!$B$6:$D$13,3,0) -> 623
A37: East2 | B37: =COUNTIFS(PVM!$S:$S,0,PVM!$K:$K,'Region Wise SO-Details'!$A37) -> 3 | C37: =SUMIFS('Statewise Coverage'!C$6:C$31,'Statewise Coverage'!$A$6:$A$31,'Region Wise SO-Details'!$A37) -> 0 | D37: =SUMIFS('Statewise Coverage'!D$6:D$31,'Statewise Coverage'!$A$6:$A$31,'Region Wise SO-Details'!$A37) -> 0 | E37: =SUMIFS('Statewise Coverage'!E$6:E$31,'Statewise Coverage'!$A$6:$A$31,'Region Wise SO-Details'!$A37) -> 5 | F37: =SUMIFS('Statewise Coverage'!F$6:F$31,'Statewise Coverage'!$A$6:$A$31,'Region Wise SO-Details'!$A37) -> 3 | G37: =SUMIFS('Statewise Coverage'!G$6:G$31,'Statewise Coverage'!$A$6:$A$31,'Region Wise SO-Details'!$A37) -> 15 | H37: =SUMIFS('Statewise Coverage'!H$6:H$31,'Statewise Coverage'!$A$6:$A$31,'Region Wise SO-Details'!$A37) -> 2 | I37: =SUMIFS('Statewise Coverage'!I$6:I$31,'Statewise Coverage'!$A$6:$A$31,'Region Wise SO-Details'!$A37) -> 8 | J37: =SUMIFS('Statewise Coverage'!J$6:J$31,'Statewise Coverage'!$A$6:$A$31,'Region Wise SO-Details'!$A37) -> 5 | K37: =SUMIFS('Statewise Coverage'!K$6:K$31,'Statewise Coverage'!$A$6:$A$31,'Region Wise SO-Details'!$A37) -> 4 | L37: =SUMIFS('Statewise Coverage'!L$6:L$31,'Statewise Coverage'!$A$6:$A$31,'Region Wise SO-Details'!$A37) -> 35 | M37: =SUMIFS('Statewise Coverage'!M$6:M$31,'Statewise Coverage'!$A$6:$A$31,'Region Wise SO-Details'!$A37) -> 1 | N37: =SUMIFS('Statewise Coverage'!N$6:N$31,'Statewise Coverage'!$A$6:$A$31,'Region Wise SO-Details'!$A37) -> 5 | O37: =SUMIFS('Statewise Coverage'!O$6:O$31,'Statewise Coverage'!$A$6:$A$31,'Region Wise SO-Details'!$A37) -> 2 | P37: =SUMIFS('Statewise Coverage'!P$6:P$31,'Statewise Coverage'!$A$6:$A$31,'Region Wise SO-Details'!$A37) -> 46 | Q37: =SUMIFS('Statewise Coverage'!Q$6:Q$31,'Statewise Coverage'!$A$6:$A$31,'Region Wise SO-Details'!$A37) -> 4 | R37: =SUMIFS('Statewise Coverage'!R$6:R$31,'Statewise Coverage'!$A$6:$A$31,'Region Wise SO-Details'!$A37) -> 7 | S37: =SUMIFS('Statewise Coverage'!S$6:S$31,'Statewise Coverage'!$A$6:$A$31,'Region Wise SO-Details'!$A37) -> 17 | T37: =SUMIFS('Statewise Coverage'!T$6:T$31,'Statewise Coverage'!$A$6:$A$31,'Region Wise SO-Details'!$A37) -> 52 | U37: =SUMIFS('Statewise Coverage'!U$6:U$31,'Statewise Coverage'!$A$6:$A$31,'Region Wise SO-Details'!$A37) -> 10 | V37: =SUMIFS('Statewise Coverage'!V$6:V$31,'Statewise Coverage'!$A$6:$A$31,'Region Wise SO-Details'!$A37) -> 12 | W37: =SUMIFS('Statewise Coverage'!W$6:W$31,'Statewise Coverage'!$A$6:$A$31,'Region Wise SO-Details'!$A37) -> 7 | X37: =SUMIFS('Statewise Coverage'!X$6:X$31,'Statewise Coverage'!$A$6:$A$31,'Region Wise SO-Details'!$A37) -> 27 | Y37: =SUMIFS('Statewise Coverage'!Y$6:Y$31,'Statewise Coverage'!$A$6:$A$31,'Region Wise SO-Details'!$A37) -> 2 | Z37: =SUMIFS('Statewise Coverage'!Z$6:Z$31,'Statewise Coverage'!$A$6:$A$31,'Region Wise SO-Details'!$A37) -> 7 | AA37: =SUMIFS('Statewise Coverage'!AA$6:AA$31,'Statewise Coverage'!$A$6:$A$31,'Region Wise SO-Details'!$A37) -> 8 | AB37: =SUMIFS('Statewise Coverage'!AB$6:AB$31,'Statewise Coverage'!$A$6:$A$31,'Region Wise SO-Details'!$A37) -> 9 | AC37: =SUMIFS('Statewise Coverage'!AC$6:AC$31,'Statewise Coverage'!$A$6:$A$31,'Region Wise SO-Details'!$A37) -> 34 | AD37: =SUMIFS('Statewise Coverage'!AD$6:AD$31,'Statewise Coverage'!$A$6:$A$31,'Region Wise SO-Details'!$A37) -> 26 | AE37: =SUMIFS('Statewise Coverage'!AE$6:AE$31,'Statewise Coverage'!$A$6:$A$31,'Region Wise SO-Details'!$A37) -> 57 | AF37: =SUMIFS('Statewise Coverage'!AF$6:AF$31,'Statewise Coverage'!$A$6:$A$31,'Region Wise SO-Details'!$A37) -> 137 | AG37: =SUMIFS('Statewise Coverage'!AG$6:AG$31,'Statewise Coverage'!$A$6:$A$31,'Region Wise SO-Details'!$A37) -> 0 | AH37: =VLOOKUP($A37,Pivot!$B$6:$D$13,3,0) -> 423
A38: North1 | B38: =COUNTIFS(PVM!$S:$S,0,PVM!$K:$K,'Region Wise SO-Details'!$A38) -> 1 | C38: =SUMIFS('Statewise Coverage'!C$6:C$31,'Statewise Coverage'!$A$6:$A$31,'Region Wise SO-Details'!$A38) -> 3 | D38: =SUMIFS('Statewise Coverage'!D$6:D$31,'Statewise Coverage'!$A$6:$A$31,'Region Wise SO-Details'!$A38) -> 0 | E38: =SUMIFS('Statewise Coverage'!E$6:E$31,'Statewise Coverage'!$A$6:$A$31,'Region Wise SO-Details'!$A38) -> 9 | F38: =SUMIFS('Statewise Coverage'!F$6:F$31,'Statewise Coverage'!$A$6:$A$31,'Region Wise SO-Details'!$A38) -> 8 | G38: =SUMIFS('Statewise Coverage'!G$6:G$31,'Statewise Coverage'!$A$6:$A$31,'Region Wise SO-Details'!$A38) -> 10 | H38: =SUMIFS('Statewise Coverage'!H$6:H$31,'Statewise Coverage'!$A$6:$A$31,'Region Wise SO-Details'!$A38) -> 3 | I38: =SUMIFS('Statewise Coverage'!I$6:I$31,'Statewise Coverage'!$A$6:$A$31,'Region Wise SO-Details'!$A38) -> 28 | J38: =SUMIFS('Statewise Coverage'!J$6:J$31,'Statewise Coverage'!$A$6:$A$31,'Region Wise SO-Details'!$A38) -> 36 | K38: =SUMIFS('Statewise Coverage'!K$6:K$31,'Statewise Coverage'!$A$6:$A$31,'Region Wise SO-Details'!$A38) -> 0 | L38: =SUMIFS('Statewise Coverage'!L$6:L$31,'Statewise Coverage'!$A$6:$A$31,'Region Wise SO-Details'!$A38) -> 44 | M38: =SUMIFS('Statewise Coverage'!M$6:M$31,'Statewise Coverage'!$A$6:$A$31,'Region Wise SO-Details'!$A38) -> 48 | N38: =SUMIFS('Statewise Coverage'!N$6:N$31,'Statewise Coverage'!$A$6:$A$31,'Region Wise SO-Details'!$A38) -> 14 | O38: =SUMIFS('Statewise Coverage'!O$6:O$31,'Statewise Coverage'!$A$6:$A$31,'Region Wise SO-Details'!$A38) -> 28 | P38: =SUMIFS('Statewise Coverage'!P$6:P$31,'Statewise Coverage'!$A$6:$A$31,'Region Wise SO-Details'!$A38) -> 19 | Q38: =SUMIFS('Statewise Coverage'!Q$6:Q$31,'Statewise Coverage'!$A$6:$A$31,'Region Wise SO-Details'!$A38) -> 21 | R38: =SUMIFS('Statewise Coverage'!R$6:R$31,'Statewise Coverage'!$A$6:$A$31,'Region Wise SO-Details'!$A38) -> 43 | S38: =SUMIFS('Statewise Coverage'!S$6:S$31,'Statewise Coverage'!$A$6:$A$31,'Region Wise SO-Details'!$A38) -> 29 | T38: =SUMIFS('Statewise Coverage'!T$6:T$31,'Statewise Coverage'!$A$6:$A$31,'Region Wise SO-Details'!$A38) -> 44 | U38: =SUMIFS('Statewise Coverage'!U$6:U$31,'Statewise Coverage'!$A$6:$A$31,'Region Wise SO-Details'!$A38) -> 10 | V38: =SUMIFS('Statewise Coverage'!V$6:V$31,'Statewise Coverage'!$A$6:$A$31,'Region Wise SO-Details'!$A38) -> 44 | W38: =SUMIFS('Statewise Coverage'!W$6:W$31,'Statewise Coverage'!$A$6:$A$31,'Region Wise SO-Details'!$A38) -> 45 | X38: =SUMIFS('Statewise Coverage'!X$6:X$31,'Statewise Coverage'!$A$6:$A$31,'Region Wise SO-Details'!$A38) -> 20 | Y38: =SUMIFS('Statewise Coverage'!Y$6:Y$31,'Statewise Coverage'!$A$6:$A$31,'Region Wise SO-Details'!$A38) -> 3 | Z38: =SUMIFS('Statewise Coverage'!Z$6:Z$31,'Statewise Coverage'!$A$6:$A$31,'Region Wise SO-Details'!$A38) -> 38 | AA38: =SUMIFS('Statewise Coverage'!AA$6:AA$31,'Statewise Coverage'!$A$6:$A$31,'Region Wise SO-Details'!$A38) -> 33 | AB38: =SUMIFS('Statewise Coverage'!AB$6:AB$31,'Statewise Coverage'!$A$6:$A$31,'Region Wise SO-Details'!$A38) -> 35 | AC38: =SUMIFS('Statewise Coverage'!AC$6:AC$31,'Statewise Coverage'!$A$6:$A$31,'Region Wise SO-Details'!$A38) -> 30 | AD38: =SUMIFS('Statewise Coverage'!AD$6:AD$31,'Statewise Coverage'!$A$6:$A$31,'Region Wise SO-Details'!$A38) -> 67 | AE38: =SUMIFS('Statewise Coverage'!AE$6:AE$31,'Statewise Coverage'!$A$6:$A$31,'Region Wise SO-Details'!$A38) -> 149 | AF38: =SUMIFS('Statewise Coverage'!AF$6:AF$31,'Statewise Coverage'!$A$6:$A$31,'Region Wise SO-Details'!$A38) -> 66 | AG38: =SUMIFS('Statewise Coverage'!AG$6:AG$31,'Statewise Coverage'!$A$6:$A$31,'Region Wise SO-Details'!$A38) -> 0 | AH38: =VLOOKUP($A38,Pivot!$B$6:$D$13,3,0) -> 864
A39: North2 | B39: =COUNTIFS(PVM!$S:$S,0,PVM!$K:$K,'Region Wise SO-Details'!$A39) -> 4 | C39: =SUMIFS('Statewise Coverage'!C$6:C$31,'Statewise Coverage'!$A$6:$A$31,'Region Wise SO-Details'!$A39) -> 1 | D39: =SUMIFS('Statewise Coverage'!D$6:D$31,'Statewise Coverage'!$A$6:$A$31,'Region Wise SO-Details'!$A39) -> 0 | E39: =SUMIFS('Statewise Coverage'!E$6:E$31,'Statewise Coverage'!$A$6:$A$31,'Region Wise SO-Details'!$A39) -> 0 | F39: =SUMIFS('Statewise Coverage'!F$6:F$31,'Statewise Coverage'!$A$6:$A$31,'Region Wise SO-Details'!$A39) -> 0 | G39: =SUMIFS('Statewise Coverage'!G$6:G$31,'Statewise Coverage'!$A$6:$A$31,'Region Wise SO-Details'!$A39) -> 1 | H39: =SUMIFS('Statewise Coverage'!H$6:H$31,'Statewise Coverage'!$A$6:$A$31,'Region Wise SO-Details'!$A39) -> 0 | I39: =SUMIFS('Statewise Coverage'!I$6:I$31,'Statewise Coverage'!$A$6:$A$31,'Region Wise SO-Details'!$A39) -> 20 | J39: =SUMIFS('Statewise Coverage'!J$6:J$31,'Statewise Coverage'!$A$6:$A$31,'Region Wise SO-Details'!$A39) -> 10 | K39: =SUMIFS('Statewise Coverage'!K$6:K$31,'Statewise Coverage'!$A$6:$A$31,'Region Wise SO-Details'!$A39) -> 0 | L39: =SUMIFS('Statewise Coverage'!L$6:L$31,'Statewise Coverage'!$A$6:$A$31,'Region Wise SO-Details'!$A39) -> 50 | M39: =SUMIFS('Statewise Coverage'!M$6:M$31,'Statewise Coverage'!$A$6:$A$31,'Region Wise SO-Details'!$A39) -> 0 | N39: =SUMIFS('Statewise Coverage'!N$6:N$31,'Statewise Coverage'!$A$6:$A$31,'Region Wise SO-Details'!$A39) -> 7 | O39: =SUMIFS('Statewise Coverage'!O$6:O$31,'Statewise Coverage'!$A$6:$A$31,'Region Wise SO-Details'!$A39) -> 5 | P39: =SUMIFS('Statewise Coverage'!P$6:P$31,'Statewise Coverage'!$A$6:$A$31,'Region Wise SO-Details'!$A39) -> 9 | Q39: =SUMIFS('Statewise Coverage'!Q$6:Q$31,'Statewise Coverage'!$A$6:$A$31,'Region Wise SO-Details'!$A39) -> 33 | R39: =SUMIFS('Statewise Coverage'!R$6:R$31,'Statewise Coverage'!$A$6:$A$31,'Region Wise SO-Details'!$A39) -> 23 | S39: =SUMIFS('Statewise Coverage'!S$6:S$31,'Statewise Coverage'!$A$6:$A$31,'Region Wise SO-Details'!$A39) -> 9 | T39: =SUMIFS('Statewise Coverage'!T$6:T$31,'Statewise Coverage'!$A$6:$A$31,'Region Wise SO-Details'!$A39) -> 33 | U39: =SUMIFS('Statewise Coverage'!U$6:U$31,'Statewise Coverage'!$A$6:$A$31,'Region Wise SO-Details'!$A39) -> 24 | V39: =SUMIFS('Statewise Coverage'!V$6:V$31,'Statewise Coverage'!$A$6:$A$31,'Region Wise SO-Details'!$A39) -> 27 | W39: =SUMIFS('Statewise Coverage'!W$6:W$31,'Statewise Coverage'!$A$6:$A$31,'Region Wise SO-Details'!$A39) -> 26 | X39: =SUMIFS('Statewise Coverage'!X$6:X$31,'Statewise Coverage'!$A$6:$A$31,'Region Wise SO-Details'!$A39) -> 13 | Y39: =SUMIFS('Statewise Coverage'!Y$6:Y$31,'Statewise Coverage'!$A$6:$A$31,'Region Wise SO-Details'!$A39) -> 4 | Z39: =SUMIFS('Statewise Coverage'!Z$6:Z$31,'Statewise Coverage'!$A$6:$A$31,'Region Wise SO-Details'!$A39) -> 45 | AA39: =SUMIFS('Statewise Coverage'!AA$6:AA$31,'Statewise Coverage'!$A$6:$A$31,'Region Wise SO-Details'!$A39) -> 60 | AB39: =SUMIFS('Statewise Coverage'!AB$6:AB$31,'Statewise Coverage'!$A$6:$A$31,'Region Wise SO-Details'!$A39) -> 43 | AC39: =SUMIFS('Statewise Coverage'!AC$6:AC$31,'Statewise Coverage'!$A$6:$A$31,'Region Wise SO-Details'!$A39) -> 18 | AD39: =SUMIFS('Statewise Coverage'!AD$6:AD$31,'Statewise Coverage'!$A$6:$A$31,'Region Wise SO-Details'!$A39) -> 57 | AE39: =SUMIFS('Statewise Coverage'!AE$6:AE$31,'Statewise Coverage'!$A$6:$A$31,'Region Wise SO-Details'!$A39) -> 357 | AF39: =SUMIFS('Statewise Coverage'!AF$6:AF$31,'Statewise Coverage'!$A$6:$A$31,'Region Wise SO-Details'!$A39) -> 153 | AG39: =SUMIFS('Statewise Coverage'!AG$6:AG$31,'Statewise Coverage'!$A$6:$A$31,'Region Wise SO-Details'!$A39) -> 0 | AH39: =VLOOKUP($A39,Pivot!$B$6:$D$13,3,0) -> 909
A40: South1 | B40: =COUNTIFS(PVM!$S:$S,0,PVM!$K:$K,'Region Wise SO-Details'!$A40) -> 1 | C40: =SUMIFS('Statewise Coverage'!C$6:C$31,'Statewise Coverage'!$A$6:$A$31,'Region Wise SO-Details'!$A40) -> 0 | D40: =SUMIFS('Statewise Coverage'!D$6:D$31,'Statewise Coverage'!$A$6:$A$31,'Region Wise SO-Details'!$A40) -> 0 | E40: =SUMIFS('Statewise Coverage'!E$6:E$31,'Statewise Coverage'!$A$6:$A$31,'Region Wise SO-Details'!$A40) -> 0 | F40: =SUMIFS('Statewise Coverage'!F$6:F$31,'Statewise Coverage'!$A$6:$A$31,'Region Wise SO-Details'!$A40) -> 5 | G40: =SUMIFS('Statewise Coverage'!G$6:G$31,'Statewise Coverage'!$A$6:$A$31,'Region Wise SO-Details'!$A40) -> 0 | H40: =SUMIFS('Statewise Coverage'!H$6:H$31,'Statewise Coverage'!$A$6:$A$31,'Region Wise SO-Details'!$A40) -> 0 | I40: =SUMIFS('Statewise Coverage'!I$6:I$31,'Statewise Coverage'!$A$6:$A$31,'Region Wise SO-Details'!$A40) -> 0 | J40: =SUMIFS('Statewise Coverage'!J$6:J$31,'Statewise Coverage'!$A$6:$A$31,'Region Wise SO-Details'!$A40) -> 8 | K40: =SUMIFS('Statewise Coverage'!K$6:K$31,'Statewise Coverage'!$A$6:$A$31,'Region Wise SO-Details'!$A40) -> 0 | L40: =SUMIFS('Statewise Coverage'!L$6:L$31,'Statewise Coverage'!$A$6:$A$31,'Region Wise SO-Details'!$A40) -> 64 | M40: =SUMIFS('Statewise Coverage'!M$6:M$31,'Statewise Coverage'!$A$6:$A$31,'Region Wise SO-Details'!$A40) -> 7 | N40: =SUMIFS('Statewise Coverage'!N$6:N$31,'Statewise Coverage'!$A$6:$A$31,'Region Wise SO-Details'!$A40) -> 29 | O40: =SUMIFS('Statewise Coverage'!O$6:O$31,'Statewise Coverage'!$A$6:$A$31,'Region Wise SO-Details'!$A40) -> 5 | P40: =SUMIFS('Statewise Coverage'!P$6:P$31,'Statewise Coverage'!$A$6:$A$31,'Region Wise SO-Details'!$A40) -> 5 | Q40: =SUMIFS('Statewise Coverage'!Q$6:Q$31,'Statewise Coverage'!$A$6:$A$31,'Region Wise SO-Details'!$A40) -> 38 | R40: =SUMIFS('Statewise Coverage'!R$6:R$31,'Statewise Coverage'!$A$6:$A$31,'Region Wise SO-Details'!$A40) -> 0 | S40: =SUMIFS('Statewise Coverage'!S$6:S$31,'Statewise Coverage'!$A$6:$A$31,'Region Wise SO-Details'!$A40) -> 12 | T40: =SUMIFS('Statewise Coverage'!T$6:T$31,'Statewise Coverage'!$A$6:$A$31,'Region Wise SO-Details'!$A40) -> 11 | U40: =SUMIFS('Statewise Coverage'!U$6:U$31,'Statewise Coverage'!$A$6:$A$31,'Region Wise SO-Details'!$A40) -> 7 | V40: =SUMIFS('Statewise Coverage'!V$6:V$31,'Statewise Coverage'!$A$6:$A$31,'Region Wise SO-Details'!$A40) -> 25 | W40: =SUMIFS('Statewise Coverage'!W$6:W$31,'Statewise Coverage'!$A$6:$A$31,'Region Wise SO-Details'!$A40) -> 7 | X40: =SUMIFS('Statewise Coverage'!X$6:X$31,'Statewise Coverage'!$A$6:$A$31,'Region Wise SO-Details'!$A40) -> 0 | Y40: =SUMIFS('Statewise Coverage'!Y$6:Y$31,'Statewise Coverage'!$A$6:$A$31,'Region Wise SO-Details'!$A40) -> 22 | Z40: =SUMIFS('Statewise Coverage'!Z$6:Z$31,'Statewise Coverage'!$A$6:$A$31,'Region Wise SO-Details'!$A40) -> 37 | AA40: =SUMIFS('Statewise Coverage'!AA$6:AA$31,'Statewise Coverage'!$A$6:$A$31,'Region Wise SO-Details'!$A40) -> 17 | AB40: =SUMIFS('Statewise Coverage'!AB$6:AB$31,'Statewise Coverage'!$A$6:$A$31,'Region Wise SO-Details'!$A40) -> 14 | AC40: =SUMIFS('Statewise Coverage'!AC$6:AC$31,'Statewise Coverage'!$A$6:$A$31,'Region Wise SO-Details'!$A40) -> 33 | AD40: =SUMIFS('Statewise Coverage'!AD$6:AD$31,'Statewise Coverage'!$A$6:$A$31,'Region Wise SO-Details'!$A40) -> 18 | AE40: =SUMIFS('Statewise Coverage'!AE$6:AE$31,'Statewise Coverage'!$A$6:$A$31,'Region Wise SO-Details'!$A40) -> 47 | AF40: =SUMIFS('Statewise Coverage'!AF$6:AF$31,'Statewise Coverage'!$A$6:$A$31,'Region Wise SO-Details'!$A40) -> 280 | AG40: =SUMIFS('Statewise Coverage'!AG$6:AG$31,'Statewise Coverage'!$A$6:$A$31,'Region Wise SO-Details'!$A40) -> 0 | AH40: =VLOOKUP($A40,Pivot!$B$6:$D$13,3,0) -> 569
A41: South2 | B41: =COUNTIFS(PVM!$S:$S,0,PVM!$K:$K,'Region Wise SO-Details'!$A41) -> 4 | C41: =SUMIFS('Statewise Coverage'!C$6:C$31,'Statewise Coverage'!$A$6:$A$31,'Region Wise SO-Details'!$A41) -> 0 | D41: =SUMIFS('Statewise Coverage'!D$6:D$31,'Statewise Coverage'!$A$6:$A$31,'Region Wise SO-Details'!$A41) -> 0 | E41: =SUMIFS('Statewise Coverage'!E$6:E$31,'Statewise Coverage'!$A$6:$A$31,'Region Wise SO-Details'!$A41) -> 1 | F41: =SUMIFS('Statewise Coverage'!F$6:F$31,'Statewise Coverage'!$A$6:$A$31,'Region Wise SO-Details'!$A41) -> 5 | G41: =SUMIFS('Statewise Coverage'!G$6:G$31,'Statewise Coverage'!$A$6:$A$31,'Region Wise SO-Details'!$A41) -> 36 | H41: =SUMIFS('Statewise Coverage'!H$6:H$31,'Statewise Coverage'!$A$6:$A$31,'Region Wise SO-Details'!$A41) -> 1 | I41: =SUMIFS('Statewise Coverage'!I$6:I$31,'Statewise Coverage'!$A$6:$A$31,'Region Wise SO-Details'!$A41) -> 0 | J41: =SUMIFS('Statewise Coverage'!J$6:J$31,'Statewise Coverage'!$A$6:$A$31,'Region Wise SO-Details'!$A41) -> 2 | K41: =SUMIFS('Statewise Coverage'!K$6:K$31,'Statewise Coverage'!$A$6:$A$31,'Region Wise SO-Details'!$A41) -> 0 | L41: =SUMIFS('Statewise Coverage'!L$6:L$31,'Statewise Coverage'!$A$6:$A$31,'Region Wise SO-Details'!$A41) -> 11 | M41: =SUMIFS('Statewise Coverage'!M$6:M$31,'Statewise Coverage'!$A$6:$A$31,'Region Wise SO-Details'!$A41) -> 97 | N41: =SUMIFS('Statewise Coverage'!N$6:N$31,'Statewise Coverage'!$A$6:$A$31,'Region Wise SO-Details'!$A41) -> 44 | O41: =SUMIFS('Statewise Coverage'!O$6:O$31,'Statewise Coverage'!$A$6:$A$31,'Region Wise SO-Details'!$A41) -> 25 | P41: =SUMIFS('Statewise Coverage'!P$6:P$31,'Statewise Coverage'!$A$6:$A$31,'Region Wise SO-Details'!$A41) -> 7 | Q41: =SUMIFS('Statewise Coverage'!Q$6:Q$31,'Statewise Coverage'!$A$6:$A$31,'Region Wise SO-Details'!$A41) -> 51 | R41: =SUMIFS('Statewise Coverage'!R$6:R$31,'Statewise Coverage'!$A$6:$A$31,'Region Wise SO-Details'!$A41) -> 0 | S41: =SUMIFS('Statewise Coverage'!S$6:S$31,'Statewise Coverage'!$A$6:$A$31,'Region Wise SO-Details'!$A41) -> 70 | T41: =SUMIFS('Statewise Coverage'!T$6:T$31,'Statewise Coverage'!$A$6:$A$31,'Region Wise SO-Details'!$A41) -> 62 | U41: =SUMIFS('Statewise Coverage'!U$6:U$31,'Statewise Coverage'!$A$6:$A$31,'Region Wise SO-Details'!$A41) -> 19 | V41: =SUMIFS('Statewise Coverage'!V$6:V$31,'Statewise Coverage'!$A$6:$A$31,'Region Wise SO-Details'!$A41) -> 14 | W41: =SUMIFS('Statewise Coverage'!W$6:W$31,'Statewise Coverage'!$A$6:$A$31,'Region Wise SO-Details'!$A41) -> 7 | X41: =SUMIFS('Statewise Coverage'!X$6:X$31,'Statewise Coverage'!$A$6:$A$31,'Region Wise SO-Details'!$A41) -> 3 | Y41: =SUMIFS('Statewise Coverage'!Y$6:Y$31,'Statewise Coverage'!$A$6:$A$31,'Region Wise SO-Details'!$A41) -> 0 | Z41: =SUMIFS('Statewise Coverage'!Z$6:Z$31,'Statewise Coverage'!$A$6:$A$31,'Region Wise SO-Details'!$A41) -> 98 | AA41: =SUMIFS('Statewise Coverage'!AA$6:AA$31,'Statewise Coverage'!$A$6:$A$31,'Region Wise SO-Details'!$A41) -> 33 | AB41: =SUMIFS('Statewise Coverage'!AB$6:AB$31,'Statewise Coverage'!$A$6:$A$31,'Region Wise SO-Details'!$A41) -> 23 | AC41: =SUMIFS('Statewise Coverage'!AC$6:AC$31,'Statewise Coverage'!$A$6:$A$31,'Region Wise SO-Details'!$A41) -> 56 | AD41: =SUMIFS('Statewise Coverage'!AD$6:AD$31,'Statewise Coverage'!$A$6:$A$31,'Region Wise SO-Details'!$A41) -> 80 | AE41: =SUMIFS('Statewise Coverage'!AE$6:AE$31,'Statewise Coverage'!$A$6:$A$31,'Region Wise SO-Details'!$A41) -> 122 | AF41: =SUMIFS('Statewise Coverage'!AF$6:AF$31,'Statewise Coverage'!$A$6:$A$31,'Region Wise SO-Details'!$A41) -> 46 | AG41: =SUMIFS('Statewise Coverage'!AG$6:AG$31,'Statewise Coverage'!$A$6:$A$31,'Region Wise SO-Details'!$A41) -> 0 | AH41: =VLOOKUP($A41,Pivot!$B$6:$D$13,3,0) -> 662
A42: West1 | B42: =COUNTIFS(PVM!$S:$S,0,PVM!$K:$K,'Region Wise SO-Details'!$A42) -> 4 | C42: =SUMIFS('Statewise Coverage'!C$6:C$31,'Statewise Coverage'!$A$6:$A$31,'Region Wise SO-Details'!$A42) -> 4 | D42: =SUMIFS('Statewise Coverage'!D$6:D$31,'Statewise Coverage'!$A$6:$A$31,'Region Wise SO-Details'!$A42) -> 0 | E42: =SUMIFS('Statewise Coverage'!E$6:E$31,'Statewise Coverage'!$A$6:$A$31,'Region Wise SO-Details'!$A42) -> 9 | F42: =SUMIFS('Statewise Coverage'!F$6:F$31,'Statewise Coverage'!$A$6:$A$31,'Region Wise SO-Details'!$A42) -> 6 | G42: =SUMIFS('Statewise Coverage'!G$6:G$31,'Statewise Coverage'!$A$6:$A$31,'Region Wise SO-Details'!$A42) -> 6 | H42: =SUMIFS('Statewise Coverage'!H$6:H$31,'Statewise Coverage'!$A$6:$A$31,'Region Wise SO-Details'!$A42) -> 26 | I42: =SUMIFS('Statewise Coverage'!I$6:I$31,'Statewise Coverage'!$A$6:$A$31,'Region Wise SO-Details'!$A42) -> 20 | J42: =SUMIFS('Statewise Coverage'!J$6:J$31,'Statewise Coverage'!$A$6:$A$31,'Region Wise SO-Details'!$A42) -> 47 | K42: =SUMIFS('Statewise Coverage'!K$6:K$31,'Statewise Coverage'!$A$6:$A$31,'Region Wise SO-Details'!$A42) -> 0 | L42: =SUMIFS('Statewise Coverage'!L$6:L$31,'Statewise Coverage'!$A$6:$A$31,'Region Wise SO-Details'!$A42) -> 113 | M42: =SUMIFS('Statewise Coverage'!M$6:M$31,'Statewise Coverage'!$A$6:$A$31,'Region Wise SO-Details'!$A42) -> 105 | N42: =SUMIFS('Statewise Coverage'!N$6:N$31,'Statewise Coverage'!$A$6:$A$31,'Region Wise SO-Details'!$A42) -> 37 | O42: =SUMIFS('Statewise Coverage'!O$6:O$31,'Statewise Coverage'!$A$6:$A$31,'Region Wise SO-Details'!$A42) -> 32 | P42: =SUMIFS('Statewise Coverage'!P$6:P$31,'Statewise Coverage'!$A$6:$A$31,'Region Wise SO-Details'!$A42) -> 19 | Q42: =SUMIFS('Statewise Coverage'!Q$6:Q$31,'Statewise Coverage'!$A$6:$A$31,'Region Wise SO-Details'!$A42) -> 39 | R42: =SUMIFS('Statewise Coverage'!R$6:R$31,'Statewise Coverage'!$A$6:$A$31,'Region Wise SO-Details'!$A42) -> 8 | S42: =SUMIFS('Statewise Coverage'!S$6:S$31,'Statewise Coverage'!$A$6:$A$31,'Region Wise SO-Details'!$A42) -> 117 | T42: =SUMIFS('Statewise Coverage'!T$6:T$31,'Statewise Coverage'!$A$6:$A$31,'Region Wise SO-Details'!$A42) -> 81 | U42: =SUMIFS('Statewise Coverage'!U$6:U$31,'Statewise Coverage'!$A$6:$A$31,'Region Wise SO-Details'!$A42) -> 66 | V42: =SUMIFS('Statewise Coverage'!V$6:V$31,'Statewise Coverage'!$A$6:$A$31,'Region Wise SO-Details'!$A42) -> 81 | W42: =SUMIFS('Statewise Coverage'!W$6:W$31,'Statewise Coverage'!$A$6:$A$31,'Region Wise SO-Details'!$A42) -> 29 | X42: =SUMIFS('Statewise Coverage'!X$6:X$31,'Statewise Coverage'!$A$6:$A$31,'Region Wise SO-Details'!$A42) -> 37 | Y42: =SUMIFS('Statewise Coverage'!Y$6:Y$31,'Statewise Coverage'!$A$6:$A$31,'Region Wise SO-Details'!$A42) -> 22 | Z42: =SUMIFS('Statewise Coverage'!Z$6:Z$31,'Statewise Coverage'!$A$6:$A$31,'Region Wise SO-Details'!$A42) -> 140 | AA42: =SUMIFS('Statewise Coverage'!AA$6:AA$31,'Statewise Coverage'!$A$6:$A$31,'Region Wise SO-Details'!$A42) -> 69 | AB42: =SUMIFS('Statewise Coverage'!AB$6:AB$31,'Statewise Coverage'!$A$6:$A$31,'Region Wise SO-Details'!$A42) -> 38 | AC42: =SUMIFS('Statewise Coverage'!AC$6:AC$31,'Statewise Coverage'!$A$6:$A$31,'Region Wise SO-Details'!$A42) -> 181 | AD42: =SUMIFS('Statewise Coverage'!AD$6:AD$31,'Statewise Coverage'!$A$6:$A$31,'Region Wise SO-Details'!$A42) -> 73 | AE42: =SUMIFS('Statewise Coverage'!AE$6:AE$31,'Statewise Coverage'!$A$6:$A$31,'Region Wise SO-Details'!$A42) -> 601 | AF42: =SUMIFS('Statewise Coverage'!AF$6:AF$31,'Statewise Coverage'!$A$6:$A$31,'Region Wise SO-Details'!$A42) -> 160 | AG42: =SUMIFS('Statewise Coverage'!AG$6:AG$31,'Statewise Coverage'!$A$6:$A$31,'Region Wise SO-Details'!$A42) -> 0 | AH42: =VLOOKUP($A42,Pivot!$B$6:$D$13,3,0) -> 1651
A43: E+N | B43: =SUM(B36:B39) -> 8 | C43: =SUM(C36:C39) -> 4 | D43: 0 | E43: 14 | F43: 11 | G43: 26 | H43: 24 | I43: 59 | J43: 51 | K43: 13 | L43: 138 | M43: 53 | N43: 30 | O43: 40 | P43: 81 | Q43: 75 | R43: 88 | S43: 69 | T43: 133 | U43: 49 | V43: 104 | W43: 121 | X43: 62 | Y43: 29 | Z43: 97 | AA43: 112 | AB43: 92 | AC43: 96 | AD43: 177 | AE43: 737 | AF43: =SUM(AF36:AF39) -> 444 | AG43: 0 | AH43: =SUM(AH36:AH39) -> 2819
A44: S+W | B44: =SUM(B40:B42) -> 9 | C44: =SUM(C40:C42) -> 4 | D44: 0 | E44: 10 | F44: 16 | G44: 42 | H44: 27 | I44: 20 | J44: 57 | K44: 0 | L44: 188 | M44: 209 | N44: 110 | O44: 62 | P44: 31 | Q44: 128 | R44: 8 | S44: 199 | T44: 154 | U44: 92 | V44: 120 | W44: 43 | X44: 40 | Y44: 44 | Z44: 275 | AA44: 119 | AB44: 75 | AC44: 270 | AD44: 171 | AE44: 770 | AF44: =SUM(AF40:AF42) -> 486 | AG44: 0 | AH44: =SUM(AH40:AH42) -> 2882
A45: INDIA | B45: =B44+B43 -> 17 | C45: =C44+C43 -> 8 | D45: =D44+D43 -> 0 | E45: 24 | F45: 27 | G45: 68 | H45: 51 | I45: 79 | J45: 108 | K45: 13 | L45: 326 | M45: 262 | N45: 140 | O45: 102 | P45: 112 | Q45: 203 | R45: 96 | S45: 268 | T45: 287 | U45: 141 | V45: 224 | W45: 164 | X45: 102 | Y45: 73 | Z45: 372 | AA45: 231 | AB45: 167 | AC45: 366 | AD45: 348 | AE45: 1507 | AF45: =AF44+AF43 -> 930 | AG45: 0 | AH45: =SUM(AH43:AH44) -> 5701
A47: PM T3 Coverage | B47: # of ASO on 0 T3 PM T3 COV | C47: =C34 -> Sat | D47: =D34 -> Sun | E47: Mon | F47: Tue | G47: Wed | H47: Thu | I47: Fri | J47: Sat | K47: Sun | L47: Mon | M47: Tue | N47: Wed | O47: Thu | P47: Fri | Q47: Sat | R47: Sun | S47: Mon | T47: Tue | U47: Wed | V47: Thu | W47: Fri | X47: Sat | Y47: Sun | Z47: Mon | AA47: Tue | AB47: Wed | AC47: Thu | AD47: Fri | AE47: Sat | AF47: =AF34 -> Sun | AG47: Mon
C48: =C35 -> 2025-11-01 | D48: =D35 -> 2025-11-02 | E48: 2025-11-03 | F48: 2025-11-04 | G48: 2025-11-05 | H48: 2025-11-06 | I48: 2025-11-07 | J48: 2025-11-08 | K48: 2025-11-09 | L48: 2025-11-10 | M48: 2025-11-11 | N48: 2025-11-12 | O48: 2025-11-13 | P48: 2025-11-14 | Q48: 2025-11-15 | R48: 2025-11-16 | S48: 2025-11-17 | T48: 2025-11-18 | U48: 2025-11-19 | V48: 2025-11-20 | W48: 2025-11-21 | X48: 2025-11-22 | Y48: 2025-11-23 | Z48: 2025-11-24 | AA48: 2025-11-25 | AB48: 2025-11-26 | AC48: 2025-11-27 | AD48: 2025-11-28 | AE48: 2025-11-29 | AF48: =AF35 -> 2025-11-30 | AG48: 2025-12-01 | AH48: Total
A49: East1 | B49: =COUNTIFS(PVM!$T:$T,0,PVM!$K:$K,'Region Wise SO-Details'!$A49) -> 0 | C49: =SUMIFS('Statewise Coverage'!C$36:C$60,'Statewise Coverage'!$A$36:$A$60,'Region Wise SO-Details'!$A49) -> 0 | D49: =SUMIFS('Statewise Coverage'!D$36:D$60,'Statewise Coverage'!$A$36:$A$60,'Region Wise SO-Details'!$A49) -> 0 | E49: =SUMIFS('Statewise Coverage'!E$36:E$60,'Statewise Coverage'!$A$36:$A$60,'Region Wise SO-Details'!$A49) -> 0 | F49: =SUMIFS('Statewise Coverage'!F$36:F$60,'Statewise Coverage'!$A$36:$A$60,'Region Wise SO-Details'!$A49) -> 0 | G49: =SUMIFS('Statewise Coverage'!G$36:G$60,'Statewise Coverage'!$A$36:$A$60,'Region Wise SO-Details'!$A49) -> 0 | H49: =SUMIFS('Statewise Coverage'!H$36:H$60,'Statewise Coverage'!$A$36:$A$60,'Region Wise SO-Details'!$A49) -> 6 | I49: =SUMIFS('Statewise Coverage'!I$36:I$60,'Statewise Coverage'!$A$36:$A$60,'Region Wise SO-Details'!$A49) -> 2 | J49: =SUMIFS('Statewise Coverage'!J$36:J$60,'Statewise Coverage'!$A$36:$A$60,'Region Wise SO-Details'!$A49) -> 0 | K49: =SUMIFS('Statewise Coverage'!K$36:K$60,'Statewise Coverage'!$A$36:$A$60,'Region Wise SO-Details'!$A49) -> 0 | L49: =SUMIFS('Statewise Coverage'!L$36:L$60,'Statewise Coverage'!$A$36:$A$60,'Region Wise SO-Details'!$A49) -> 4 | M49: =SUMIFS('Statewise Coverage'!M$36:M$60,'Statewise Coverage'!$A$36:$A$60,'Region Wise SO-Details'!$A49) -> 1 | N49: =SUMIFS('Statewise Coverage'!N$36:N$60,'Statewise Coverage'!$A$36:$A$60,'Region Wise SO-Details'!$A49) -> 0 | O49: =SUMIFS('Statewise Coverage'!O$36:O$60,'Statewise Coverage'!$A$36:$A$60,'Region Wise SO-Details'!$A49) -> 0 | P49: =SUMIFS('Statewise Coverage'!P$36:P$60,'Statewise Coverage'!$A$36:$A$60,'Region Wise SO-Details'!$A49) -> 0 | Q49: =SUMIFS('Statewise Coverage'!Q$36:Q$60,'Statewise Coverage'!$A$36:$A$60,'Region Wise SO-Details'!$A49) -> 4 | R49: =SUMIFS('Statewise Coverage'!R$36:R$60,'Statewise Coverage'!$A$36:$A$60,'Region Wise SO-Details'!$A49) -> 3 | S49: =SUMIFS('Statewise Coverage'!S$36:S$60,'Statewise Coverage'!$A$36:$A$60,'Region Wise SO-Details'!$A49) -> 4 | T49: =SUMIFS('Statewise Coverage'!T$36:T$60,'Statewise Coverage'!$A$36:$A$60,'Region Wise SO-Details'!$A49) -> 0 | U49: =SUMIFS('Statewise Coverage'!U$36:U$60,'Statewise Coverage'!$A$36:$A$60,'Region Wise SO-Details'!$A49) -> 0 | V49: =SUMIFS('Statewise Coverage'!V$36:V$60,'Statewise Coverage'!$A$36:$A$60,'Region Wise SO-Details'!$A49) -> 1 | W49: =SUMIFS('Statewise Coverage'!W$36:W$60,'Statewise Coverage'!$A$36:$A$60,'Region Wise SO-Details'!$A49) -> 5 | X49: =SUMIFS('Statewise Coverage'!X$36:X$60,'Statewise Coverage'!$A$36:$A$60,'Region Wise SO-Details'!$A49) -> 0 | Y49: =SUMIFS('Statewise Coverage'!Y$36:Y$60,'Statewise Coverage'!$A$36:$A$60,'Region Wise SO-Details'!$A49) -> 6 | Z49: =SUMIFS('Statewise Coverage'!Z$36:Z$60,'Statewise Coverage'!$A$36:$A$60,'Region Wise SO-Details'!$A49) -> 2 | AA49: =SUMIFS('Statewise Coverage'!AA$36:AA$60,'Statewise Coverage'!$A$36:$A$60,'Region Wise SO-Details'!$A49) -> 2 | AB49: =SUMIFS('Statewise Coverage'!AB$36:AB$60,'Statewise Coverage'!$A$36:$A$60,'Region Wise SO-Details'!$A49) -> 0 | AC49: =SUMIFS('Statewise Coverage'!AC$36:AC$60,'Statewise Coverage'!$A$36:$A$60,'Region Wise SO-Details'!$A49) -> 2 | AD49: =SUMIFS('Statewise Coverage'!AD$36:AD$60,'Statewise Coverage'!$A$36:$A$60,'Region Wise SO-Details'!$A49) -> 5 | AE49: =SUMIFS('Statewise Coverage'!AE$36:AE$60,'Statewise Coverage'!$A$36:$A$60,'Region Wise SO-Details'!$A49) -> 27 | AF49: =SUMIFS('Statewise Coverage'!AF$36:AF$60,'Statewise Coverage'!$A$36:$A$60,'Region Wise SO-Details'!$A49) -> 5 | AG49: =SUMIFS('Statewise Coverage'!AG$36:AG$60,'Statewise Coverage'!$A$36:$A$60,'Region Wise SO-Details'!$A49) -> 0 | AH49: =AQ22 -> 103
A50: East2 | B50: =COUNTIFS(PVM!$T:$T,0,PVM!$K:$K,'Region Wise SO-Details'!$A50) -> 3 | C50: =SUMIFS('Statewise Coverage'!C$36:C$60,'Statewise Coverage'!$A$36:$A$60,'Region Wise SO-Details'!$A50) -> 0 | D50: =SUMIFS('Statewise Coverage'!D$36:D$60,'Statewise Coverage'!$A$36:$A$60,'Region Wise SO-Details'!$A50) -> 0 | E50: =SUMIFS('Statewise Coverage'!E$36:E$60,'Statewise Coverage'!$A$36:$A$60,'Region Wise SO-Details'!$A50) -> 1 | F50: =SUMIFS('Statewise Coverage'!F$36:F$60,'Statewise Coverage'!$A$36:$A$60,'Region Wise SO-Details'!$A50) -> 3 | G50: =SUMIFS('Statewise Coverage'!G$36:G$60,'Statewise Coverage'!$A$36:$A$60,'Region Wise SO-Details'!$A50) -> 4 | H50: =SUMIFS('Statewise Coverage'!H$36:H$60,'Statewise Coverage'!$A$36:$A$60,'Region Wise SO-Details'!$A50) -> 0 | I50: =SUMIFS('Statewise Coverage'!I$36:I$60,'Statewise Coverage'!$A$36:$A$60,'Region Wise SO-Details'!$A50) -> 1 | J50: =SUMIFS('Statewise Coverage'!J$36:J$60,'Statewise Coverage'!$A$36:$A$60,'Region Wise SO-Details'!$A50) -> 3 | K50: =SUMIFS('Statewise Coverage'!K$36:K$60,'Statewise Coverage'!$A$36:$A$60,'Region Wise SO-Details'!$A50) -> 1 | L50: =SUMIFS('Statewise Coverage'!L$36:L$60,'Statewise Coverage'!$A$36:$A$60,'Region Wise SO-Details'!$A50) -> 12 | M50: =SUMIFS('Statewise Coverage'!M$36:M$60,'Statewise Coverage'!$A$36:$A$60,'Region Wise SO-Details'!$A50) -> 1 | N50: =SUMIFS('Statewise Coverage'!N$36:N$60,'Statewise Coverage'!$A$36:$A$60,'Region Wise SO-Details'!$A50) -> 0 | O50: =SUMIFS('Statewise Coverage'!O$36:O$60,'Statewise Coverage'!$A$36:$A$60,'Region Wise SO-Details'!$A50) -> 0 | P50: =SUMIFS('Statewise Coverage'!P$36:P$60,'Statewise Coverage'!$A$36:$A$60,'Region Wise SO-Details'!$A50) -> 4 | Q50: =SUMIFS('Statewise Coverage'!Q$36:Q$60,'Statewise Coverage'!$A$36:$A$60,'Region Wise SO-Details'!$A50) -> 3 | R50: =SUMIFS('Statewise Coverage'!R$36:R$60,'Statewise Coverage'!$A$36:$A$60,'Region Wise SO-Details'!$A50) -> 1 | S50: =SUMIFS('Statewise Coverage'!S$36:S$60,'Statewise Coverage'!$A$36:$A$60,'Region Wise SO-Details'!$A50) -> 3 | T50: =SUMIFS('Statewise Coverage'!T$36:T$60,'Statewise Coverage'!$A$36:$A$60,'Region Wise SO-Details'!$A50) -> 11 | U50: =SUMIFS('Statewise Coverage'!U$36:U$60,'Statewise Coverage'!$A$36:$A$60,'Region Wise SO-Details'!$A50) -> 4 | V50: =SUMIFS('Statewise Coverage'!V$36:V$60,'Statewise Coverage'!$A$36:$A$60,'Region Wise SO-Details'!$A50) -> 1 | W50: =SUMIFS('Statewise Coverage'!W$36:W$60,'Statewise Coverage'!$A$36:$A$60,'Region Wise SO-Details'!$A50) -> 1 | X50: =SUMIFS('Statewise Coverage'!X$36:X$60,'Statewise Coverage'!$A$36:$A$60,'Region Wise SO-Details'!$A50) -> 7 | Y50: =SUMIFS('Statewise Coverage'!Y$36:Y$60,'Statewise Coverage'!$A$36:$A$60,'Region Wise SO-Details'!$A50) -> 0 | Z50: =SUMIFS('Statewise Coverage'!Z$36:Z$60,'Statewise Coverage'!$A$36:$A$60,'Region Wise SO-Details'!$A50) -> 2 | AA50: =SUMIFS('Statewise Coverage'!AA$36:AA$60,'Statewise Coverage'!$A$36:$A$60,'Region Wise SO-Details'!$A50) -> 1 | AB50: =SUMIFS('Statewise Coverage'!AB$36:AB$60,'Statewise Coverage'!$A$36:$A$60,'Region Wise SO-Details'!$A50) -> 2 | AC50: =SUMIFS('Statewise Coverage'!AC$36:AC$60,'Statewise Coverage'!$A$36:$A$60,'Region Wise SO-Details'!$A50) -> 7 | AD50: =SUMIFS('Statewise Coverage'!AD$36:AD$60,'Statewise Coverage'!$A$36:$A$60,'Region Wise SO-Details'!$A50) -> 2 | AE50: =SUMIFS('Statewise Coverage'!AE$36:AE$60,'Statewise Coverage'!$A$36:$A$60,'Region Wise SO-Details'!$A50) -> 4 | AF50: =SUMIFS('Statewise Coverage'!AF$36:AF$60,'Statewise Coverage'!$A$36:$A$60,'Region Wise SO-Details'!$A50) -> 22 | AG50: =SUMIFS('Statewise Coverage'!AG$36:AG$60,'Statewise Coverage'!$A$36:$A$60,'Region Wise SO-Details'!$A50) -> 0 | AH50: =AQ23 -> 90
A51: North1 | B51: =COUNTIFS(PVM!$T:$T,0,PVM!$K:$K,'Region Wise SO-Details'!$A51) -> 1 | C51: =SUMIFS('Statewise Coverage'!C$36:C$60,'Statewise Coverage'!$A$36:$A$60,'Region Wise SO-Details'!$A51) -> 2 | D51: =SUMIFS('Statewise Coverage'!D$36:D$60,'Statewise Coverage'!$A$36:$A$60,'Region Wise SO-Details'!$A51) -> 0 | E51: =SUMIFS('Statewise Coverage'!E$36:E$60,'Statewise Coverage'!$A$36:$A$60,'Region Wise SO-Details'!$A51) -> 4 | F51: =SUMIFS('Statewise Coverage'!F$36:F$60,'Statewise Coverage'!$A$36:$A$60,'Region Wise SO-Details'!$A51) -> 0 | G51: =SUMIFS('Statewise Coverage'!G$36:G$60,'Statewise Coverage'!$A$36:$A$60,'Region Wise SO-Details'!$A51) -> 3 | H51: =SUMIFS('Statewise Coverage'!H$36:H$60,'Statewise Coverage'!$A$36:$A$60,'Region Wise SO-Details'!$A51) -> 0 | I51: =SUMIFS('Statewise Coverage'!I$36:I$60,'Statewise Coverage'!$A$36:$A$60,'Region Wise SO-Details'!$A51) -> 3 | J51: =SUMIFS('Statewise Coverage'!J$36:J$60,'Statewise Coverage'!$A$36:$A$60,'Region Wise SO-Details'!$A51) -> 3 | K51: =SUMIFS('Statewise Coverage'!K$36:K$60,'Statewise Coverage'!$A$36:$A$60,'Region Wise SO-Details'!$A51) -> 0 | L51: =SUMIFS('Statewise Coverage'!L$36:L$60,'Statewise Coverage'!$A$36:$A$60,'Region Wise SO-Details'!$A51) -> 9 | M51: =SUMIFS('Statewise Coverage'!M$36:M$60,'Statewise Coverage'!$A$36:$A$60,'Region Wise SO-Details'!$A51) -> 13 | N51: =SUMIFS('Statewise Coverage'!N$36:N$60,'Statewise Coverage'!$A$36:$A$60,'Region Wise SO-Details'!$A51) -> 5 | O51: =SUMIFS('Statewise Coverage'!O$36:O$60,'Statewise Coverage'!$A$36:$A$60,'Region Wise SO-Details'!$A51) -> 1 | P51: =SUMIFS('Statewise Coverage'!P$36:P$60,'Statewise Coverage'!$A$36:$A$60,'Region Wise SO-Details'!$A51) -> 4 | Q51: =SUMIFS('Statewise Coverage'!Q$36:Q$60,'Statewise Coverage'!$A$36:$A$60,'Region Wise SO-Details'!$A51) -> 4 | R51: =SUMIFS('Statewise Coverage'!R$36:R$60,'Statewise Coverage'!$A$36:$A$60,'Region Wise SO-Details'!$A51) -> 3 | S51: =SUMIFS('Statewise Coverage'!S$36:S$60,'Statewise Coverage'!$A$36:$A$60,'Region Wise SO-Details'!$A51) -> 6 | T51: =SUMIFS('Statewise Coverage'!T$36:T$60,'Statewise Coverage'!$A$36:$A$60,'Region Wise SO-Details'!$A51) -> 4 | U51: =SUMIFS('Statewise Coverage'!U$36:U$60,'Statewise Coverage'!$A$36:$A$60,'Region Wise SO-Details'!$A51) -> 3 | V51: =SUMIFS('Statewise Coverage'!V$36:V$60,'Statewise Coverage'!$A$36:$A$60,'Region Wise SO-Details'!$A51) -> 10 | W51: =SUMIFS('Statewise Coverage'!W$36:W$60,'Statewise Coverage'!$A$36:$A$60,'Region Wise SO-Details'!$A51) -> 3 | X51: =SUMIFS('Statewise Coverage'!X$36:X$60,'Statewise Coverage'!$A$36:$A$60,'Region Wise SO-Details'!$A51) -> 1 | Y51: =SUMIFS('Statewise Coverage'!Y$36:Y$60,'Statewise Coverage'!$A$36:$A$60,'Region Wise SO-Details'!$A51) -> 2 | Z51: =SUMIFS('Statewise Coverage'!Z$36:Z$60,'Statewise Coverage'!$A$36:$A$60,'Region Wise SO-Details'!$A51) -> 10 | AA51: =SUMIFS('Statewise Coverage'!AA$36:AA$60,'Statewise Coverage'!$A$36:$A$60,'Region Wise SO-Details'!$A51) -> 8 | AB51: =SUMIFS('Statewise Coverage'!AB$36:AB$60,'Statewise Coverage'!$A$36:$A$60,'Region Wise SO-Details'!$A51) -> 6 | AC51: =SUMIFS('Statewise Coverage'!AC$36:AC$60,'Statewise Coverage'!$A$36:$A$60,'Region Wise SO-Details'!$A51) -> 3 | AD51: =SUMIFS('Statewise Coverage'!AD$36:AD$60,'Statewise Coverage'!$A$36:$A$60,'Region Wise SO-Details'!$A51) -> 10 | AE51: =SUMIFS('Statewise Coverage'!AE$36:AE$60,'Statewise Coverage'!$A$36:$A$60,'Region Wise SO-Details'!$A51) -> 22 | AF51: =SUMIFS('Statewise Coverage'!AF$36:AF$60,'Statewise Coverage'!$A$36:$A$60,'Region Wise SO-Details'!$A51) -> 26 | AG51: =SUMIFS('Statewise Coverage'!AG$36:AG$60,'Statewise Coverage'!$A$36:$A$60,'Region Wise SO-Details'!$A51) -> 0 | AH51: 179
A52: North2 | B52: =COUNTIFS(PVM!$T:$T,0,PVM!$K:$K,'Region Wise SO-Details'!$A52) -> 4 | C52: =SUMIFS('Statewise Coverage'!C$36:C$60,'Statewise Coverage'!$A$36:$A$60,'Region Wise SO-Details'!$A52) -> 0 | D52: =SUMIFS('Statewise Coverage'!D$36:D$60,'Statewise Coverage'!$A$36:$A$60,'Region Wise SO-Details'!$A52) -> 0 | E52: =SUMIFS('Statewise Coverage'!E$36:E$60,'Statewise Coverage'!$A$36:$A$60,'Region Wise SO-Details'!$A52) -> 0 | F52: =SUMIFS('Statewise Coverage'!F$36:F$60,'Statewise Coverage'!$A$36:$A$60,'Region Wise SO-Details'!$A52) -> 0 | G52: =SUMIFS('Statewise Coverage'!G$36:G$60,'Statewise Coverage'!$A$36:$A$60,'Region Wise SO-Details'!$A52) -> 1 | H52: =SUMIFS('Statewise Coverage'!H$36:H$60,'Statewise Coverage'!$A$36:$A$60,'Region Wise SO-Details'!$A52) -> 0 | I52: =SUMIFS('Statewise Coverage'!I$36:I$60,'Statewise Coverage'!$A$36:$A$60,'Region Wise SO-Details'!$A52) -> 5 | J52: =SUMIFS('Statewise Coverage'!J$36:J$60,'Statewise Coverage'!$A$36:$A$60,'Region Wise SO-Details'!$A52) -> 4 | K52: =SUMIFS('Statewise Coverage'!K$36:K$60,'Statewise Coverage'!$A$36:$A$60,'Region Wise SO-Details'!$A52) -> 0 | L52: =SUMIFS('Statewise Coverage'!L$36:L$60,'Statewise Coverage'!$A$36:$A$60,'Region Wise SO-Details'!$A52) -> 19 | M52: =SUMIFS('Statewise Coverage'!M$36:M$60,'Statewise Coverage'!$A$36:$A$60,'Region Wise SO-Details'!$A52) -> 0 | N52: =SUMIFS('Statewise Coverage'!N$36:N$60,'Statewise Coverage'!$A$36:$A$60,'Region Wise SO-Details'!$A52) -> 2 | O52: =SUMIFS('Statewise Coverage'!O$36:O$60,'Statewise Coverage'!$A$36:$A$60,'Region Wise SO-Details'!$A52) -> 1 | P52: =SUMIFS('Statewise Coverage'!P$36:P$60,'Statewise Coverage'!$A$36:$A$60,'Region Wise SO-Details'!$A52) -> 4 | Q52: =SUMIFS('Statewise Coverage'!Q$36:Q$60,'Statewise Coverage'!$A$36:$A$60,'Region Wise SO-Details'!$A52) -> 13 | R52: =SUMIFS('Statewise Coverage'!R$36:R$60,'Statewise Coverage'!$A$36:$A$60,'Region Wise SO-Details'!$A52) -> 7 | S52: =SUMIFS('Statewise Coverage'!S$36:S$60,'Statewise Coverage'!$A$36:$A$60,'Region Wise SO-Details'!$A52) -> 2 | T52: =SUMIFS('Statewise Coverage'!T$36:T$60,'Statewise Coverage'!$A$36:$A$60,'Region Wise SO-Details'!$A52) -> 12 | U52: =SUMIFS('Statewise Coverage'!U$36:U$60,'Statewise Coverage'!$A$36:$A$60,'Region Wise SO-Details'!$A52) -> 5 | V52: =SUMIFS('Statewise Coverage'!V$36:V$60,'Statewise Coverage'!$A$36:$A$60,'Region Wise SO-Details'!$A52) -> 9 | W52: =SUMIFS('Statewise Coverage'!W$36:W$60,'Statewise Coverage'!$A$36:$A$60,'Region Wise SO-Details'!$A52) -> 6 | X52: =SUMIFS('Statewise Coverage'!X$36:X$60,'Statewise Coverage'!$A$36:$A$60,'Region Wise SO-Details'!$A52) -> 3 | Y52: =SUMIFS('Statewise Coverage'!Y$36:Y$60,'Statewise Coverage'!$A$36:$A$60,'Region Wise SO-Details'!$A52) -> 1 | Z52: =SUMIFS('Statewise Coverage'!Z$36:Z$60,'Statewise Coverage'!$A$36:$A$60,'Region Wise SO-Details'!$A52) -> 6 | AA52: =SUMIFS('Statewise Coverage'!AA$36:AA$60,'Statewise Coverage'!$A$36:$A$60,'Region Wise SO-Details'!$A52) -> 5 | AB52: =SUMIFS('Statewise Coverage'!AB$36:AB$60,'Statewise Coverage'!$A$36:$A$60,'Region Wise SO-Details'!$A52) -> 9 | AC52: =SUMIFS('Statewise Coverage'!AC$36:AC$60,'Statewise Coverage'!$A$36:$A$60,'Region Wise SO-Details'!$A52) -> 5 | AD52: =SUMIFS('Statewise Coverage'!AD$36:AD$60,'Statewise Coverage'!$A$36:$A$60,'Region Wise SO-Details'!$A52) -> 7 | AE52: =SUMIFS('Statewise Coverage'!AE$36:AE$60,'Statewise Coverage'!$A$36:$A$60,'Region Wise SO-Details'!$A52) -> 56 | AF52: =SUMIFS('Statewise Coverage'!AF$36:AF$60,'Statewise Coverage'!$A$36:$A$60,'Region Wise SO-Details'!$A52) -> 19 | AG52: =SUMIFS('Statewise Coverage'!AG$36:AG$60,'Statewise Coverage'!$A$36:$A$60,'Region Wise SO-Details'!$A52) -> 0 | AH52: 185
A53: South1 | B53: =COUNTIFS(PVM!$T:$T,0,PVM!$K:$K,'Region Wise SO-Details'!$A53) -> 1 | C53: =SUMIFS('Statewise Coverage'!C$36:C$60,'Statewise Coverage'!$A$36:$A$60,'Region Wise SO-Details'!$A53) -> 0 | D53: =SUMIFS('Statewise Coverage'!D$36:D$60,'Statewise Coverage'!$A$36:$A$60,'Region Wise SO-Details'!$A53) -> 0 | E53: =SUMIFS('Statewise Coverage'!E$36:E$60,'Statewise Coverage'!$A$36:$A$60,'Region Wise SO-Details'!$A53) -> 0 | F53: =SUMIFS('Statewise Coverage'!F$36:F$60,'Statewise Coverage'!$A$36:$A$60,'Region Wise SO-Details'!$A53) -> 1 | G53: =SUMIFS('Statewise Coverage'!G$36:G$60,'Statewise Coverage'!$A$36:$A$60,'Region Wise SO-Details'!$A53) -> 0 | H53: =SUMIFS('Statewise Coverage'!H$36:H$60,'Statewise Coverage'!$A$36:$A$60,'Region Wise SO-Details'!$A53) -> 0 | I53: =SUMIFS('Statewise Coverage'!I$36:I$60,'Statewise Coverage'!$A$36:$A$60,'Region Wise SO-Details'!$A53) -> 0 | J53: =SUMIFS('Statewise Coverage'!J$36:J$60,'Statewise Coverage'!$A$36:$A$60,'Region Wise SO-Details'!$A53) -> 5 | K53: =SUMIFS('Statewise Coverage'!K$36:K$60,'Statewise Coverage'!$A$36:$A$60,'Region Wise SO-Details'!$A53) -> 0 | L53: =SUMIFS('Statewise Coverage'!L$36:L$60,'Statewise Coverage'!$A$36:$A$60,'Region Wise SO-Details'!$A53) -> 13 | M53: =SUMIFS('Statewise Coverage'!M$36:M$60,'Statewise Coverage'!$A$36:$A$60,'Region Wise SO-Details'!$A53) -> 3 | N53: =SUMIFS('Statewise Coverage'!N$36:N$60,'Statewise Coverage'!$A$36:$A$60,'Region Wise SO-Details'!$A53) -> 12 | O53: =SUMIFS('Statewise Coverage'!O$36:O$60,'Statewise Coverage'!$A$36:$A$60,'Region Wise SO-Details'!$A53) -> 2 | P53: =SUMIFS('Statewise Coverage'!P$36:P$60,'Statewise Coverage'!$A$36:$A$60,'Region Wise SO-Details'!$A53) -> 4 | Q53: =SUMIFS('Statewise Coverage'!Q$36:Q$60,'Statewise Coverage'!$A$36:$A$60,'Region Wise SO-Details'!$A53) -> 15 | R53: =SUMIFS('Statewise Coverage'!R$36:R$60,'Statewise Coverage'!$A$36:$A$60,'Region Wise SO-Details'!$A53) -> 0 | S53: =SUMIFS('Statewise Coverage'!S$36:S$60,'Statewise Coverage'!$A$36:$A$60,'Region Wise SO-Details'!$A53) -> 2 | T53: =SUMIFS('Statewise Coverage'!T$36:T$60,'Statewise Coverage'!$A$36:$A$60,'Region Wise SO-Details'!$A53) -> 7 | U53: =SUMIFS('Statewise Coverage'!U$36:U$60,'Statewise Coverage'!$A$36:$A$60,'Region Wise SO-Details'!$A53) -> 2 | V53: =SUMIFS('Statewise Coverage'!V$36:V$60,'Statewise Coverage'!$A$36:$A$60,'Region Wise SO-Details'!$A53) -> 14 | W53: =SUMIFS('Statewise Coverage'!W$36:W$60,'Statewise Coverage'!$A$36:$A$60,'Region Wise SO-Details'!$A53) -> 4 | X53: =SUMIFS('Statewise Coverage'!X$36:X$60,'Statewise Coverage'!$A$36:$A$60,'Region Wise SO-Details'!$A53) -> 0 | Y53: =SUMIFS('Statewise Coverage'!Y$36:Y$60,'Statewise Coverage'!$A$36:$A$60,'Region Wise SO-Details'!$A53) -> 15 | Z53: =SUMIFS('Statewise Coverage'!Z$36:Z$60,'Statewise Coverage'!$A$36:$A$60,'Region Wise SO-Details'!$A53) -> 18 | AA53: =SUMIFS('Statewise Coverage'!AA$36:AA$60,'Statewise Coverage'!$A$36:$A$60,'Region Wise SO-Details'!$A53) -> 13 | AB53: =SUMIFS('Statewise Coverage'!AB$36:AB$60,'Statewise Coverage'!$A$36:$A$60,'Region Wise SO-Details'!$A53) -> 11 | AC53: =SUMIFS('Statewise Coverage'!AC$36:AC$60,'Statewise Coverage'!$A$36:$A$60,'Region Wise SO-Details'!$A53) -> 5 | AD53: =SUMIFS('Statewise Coverage'!AD$36:AD$60,'Statewise Coverage'!$A$36:$A$60,'Region Wise SO-Details'!$A53) -> 5 | AE53: =SUMIFS('Statewise Coverage'!AE$36:AE$60,'Statewise Coverage'!$A$36:$A$60,'Region Wise SO-Details'!$A53) -> 19 | AF53: =SUMIFS('Statewise Coverage'!AF$36:AF$60,'Statewise Coverage'!$A$36:$A$60,'Region Wise SO-Details'!$A53) -> 80 | AG53: =SUMIFS('Statewise Coverage'!AG$36:AG$60,'Statewise Coverage'!$A$36:$A$60,'Region Wise SO-Details'!$A53) -> 0 | AH53: 199
A54: South2 | B54: =COUNTIFS(PVM!$T:$T,0,PVM!$K:$K,'Region Wise SO-Details'!$A54) -> 4 | C54: =SUMIFS('Statewise Coverage'!C$36:C$60,'Statewise Coverage'!$A$36:$A$60,'Region Wise SO-Details'!$A54) -> 0 | D54: =SUMIFS('Statewise Coverage'!D$36:D$60,'Statewise Coverage'!$A$36:$A$60,'Region Wise SO-Details'!$A54) -> 0 | E54: =SUMIFS('Statewise Coverage'!E$36:E$60,'Statewise Coverage'!$A$36:$A$60,'Region Wise SO-Details'!$A54) -> 1 | F54: =SUMIFS('Statewise Coverage'!F$36:F$60,'Statewise Coverage'!$A$36:$A$60,'Region Wise SO-Details'!$A54) -> 2 | G54: =SUMIFS('Statewise Coverage'!G$36:G$60,'Statewise Coverage'!$A$36:$A$60,'Region Wise SO-Details'!$A54) -> 9 | H54: =SUMIFS('Statewise Coverage'!H$36:H$60,'Statewise Coverage'!$A$36:$A$60,'Region Wise SO-Details'!$A54) -> 0 | I54: =SUMIFS('Statewise Coverage'!I$36:I$60,'Statewise Coverage'!$A$36:$A$60,'Region Wise SO-Details'!$A54) -> 0 | J54: =SUMIFS('Statewise Coverage'!J$36:J$60,'Statewise Coverage'!$A$36:$A$60,'Region Wise SO-Details'!$A54) -> 1 | K54: =SUMIFS('Statewise Coverage'!K$36:K$60,'Statewise Coverage'!$A$36:$A$60,'Region Wise SO-Details'!$A54) -> 0 | L54: =SUMIFS('Statewise Coverage'!L$36:L$60,'Statewise Coverage'!$A$36:$A$60,'Region Wise SO-Details'!$A54) -> 4 | M54: =SUMIFS('Statewise Coverage'!M$36:M$60,'Statewise Coverage'!$A$36:$A$60,'Region Wise SO-Details'!$A54) -> 38 | N54: =SUMIFS('Statewise Coverage'!N$36:N$60,'Statewise Coverage'!$A$36:$A$60,'Region Wise SO-Details'!$A54) -> 14 | O54: =SUMIFS('Statewise Coverage'!O$36:O$60,'Statewise Coverage'!$A$36:$A$60,'Region Wise SO-Details'!$A54) -> 11 | P54: =SUMIFS('Statewise Coverage'!P$36:P$60,'Statewise Coverage'!$A$36:$A$60,'Region Wise SO-Details'!$A54) -> 1 | Q54: =SUMIFS('Statewise Coverage'!Q$36:Q$60,'Statewise Coverage'!$A$36:$A$60,'Region Wise SO-Details'!$A54) -> 13 | R54: =SUMIFS('Statewise Coverage'!R$36:R$60,'Statewise Coverage'!$A$36:$A$60,'Region Wise SO-Details'!$A54) -> 0 | S54: =SUMIFS('Statewise Coverage'!S$36:S$60,'Statewise Coverage'!$A$36:$A$60,'Region Wise SO-Details'!$A54) -> 18 | T54: =SUMIFS('Statewise Coverage'!T$36:T$60,'Statewise Coverage'!$A$36:$A$60,'Region Wise SO-Details'!$A54) -> 21 | U54: =SUMIFS('Statewise Coverage'!U$36:U$60,'Statewise Coverage'!$A$36:$A$60,'Region Wise SO-Details'!$A54) -> 7 | V54: =SUMIFS('Statewise Coverage'!V$36:V$60,'Statewise Coverage'!$A$36:$A$60,'Region Wise SO-Details'!$A54) -> 4 | W54: =SUMIFS('Statewise Coverage'!W$36:W$60,'Statewise Coverage'!$A$36:$A$60,'Region Wise SO-Details'!$A54) -> 1 | X54: =SUMIFS('Statewise Coverage'!X$36:X$60,'Statewise Coverage'!$A$36:$A$60,'Region Wise SO-Details'!$A54) -> 2 | Y54: =SUMIFS('Statewise Coverage'!Y$36:Y$60,'Statewise Coverage'!$A$36:$A$60,'Region Wise SO-Details'!$A54) -> 0 | Z54: =SUMIFS('Statewise Coverage'!Z$36:Z$60,'Statewise Coverage'!$A$36:$A$60,'Region Wise SO-Details'!$A54) -> 27 | AA54: =SUMIFS('Statewise Coverage'!AA$36:AA$60,'Statewise Coverage'!$A$36:$A$60,'Region Wise SO-Details'!$A54) -> 12 | AB54: =SUMIFS('Statewise Coverage'!AB$36:AB$60,'Statewise Coverage'!$A$36:$A$60,'Region Wise SO-Details'!$A54) -> 9 | AC54: =SUMIFS('Statewise Coverage'!AC$36:AC$60,'Statewise Coverage'!$A$36:$A$60,'Region Wise SO-Details'!$A54) -> 13 | AD54: =SUMIFS('Statewise Coverage'!AD$36:AD$60,'Statewise Coverage'!$A$36:$A$60,'Region Wise SO-Details'!$A54) -> 20 | AE54: =SUMIFS('Statewise Coverage'!AE$36:AE$60,'Statewise Coverage'!$A$36:$A$60,'Region Wise SO-Details'!$A54) -> 29 | AF54: =SUMIFS('Statewise Coverage'!AF$36:AF$60,'Statewise Coverage'!$A$36:$A$60,'Region Wise SO-Details'!$A54) -> 11 | AG54: =SUMIFS('Statewise Coverage'!AG$36:AG$60,'Statewise Coverage'!$A$36:$A$60,'Region Wise SO-Details'!$A54) -> 0 | AH54: 231
A55: West1 | B55: =COUNTIFS(PVM!$T:$T,0,PVM!$K:$K,'Region Wise SO-Details'!$A55) -> 4 | C55: =SUMIFS('Statewise Coverage'!C$36:C$60,'Statewise Coverage'!$A$36:$A$60,'Region Wise SO-Details'!$A55) -> 0 | D55: =SUMIFS('Statewise Coverage'!D$36:D$60,'Statewise Coverage'!$A$36:$A$60,'Region Wise SO-Details'!$A55) -> 0 | E55: =SUMIFS('Statewise Coverage'!E$36:E$60,'Statewise Coverage'!$A$36:$A$60,'Region Wise SO-Details'!$A55) -> 0 | F55: =SUMIFS('Statewise Coverage'!F$36:F$60,'Statewise Coverage'!$A$36:$A$60,'Region Wise SO-Details'!$A55) -> 0 | G55: =SUMIFS('Statewise Coverage'!G$36:G$60,'Statewise Coverage'!$A$36:$A$60,'Region Wise SO-Details'!$A55) -> 0 | H55: =SUMIFS('Statewise Coverage'!H$36:H$60,'Statewise Coverage'!$A$36:$A$60,'Region Wise SO-Details'!$A55) -> 3 | I55: =SUMIFS('Statewise Coverage'!I$36:I$60,'Statewise Coverage'!$A$36:$A$60,'Region Wise SO-Details'!$A55) -> 1 | J55: =SUMIFS('Statewise Coverage'!J$36:J$60,'Statewise Coverage'!$A$36:$A$60,'Region Wise SO-Details'!$A55) -> 0 | K55: =SUMIFS('Statewise Coverage'!K$36:K$60,'Statewise Coverage'!$A$36:$A$60,'Region Wise SO-Details'!$A55) -> 0 | L55: =SUMIFS('Statewise Coverage'!L$36:L$60,'Statewise Coverage'!$A$36:$A$60,'Region Wise SO-Details'!$A55) -> 1 | M55: =SUMIFS('Statewise Coverage'!M$36:M$60,'Statewise Coverage'!$A$36:$A$60,'Region Wise SO-Details'!$A55) -> 13 | N55: =SUMIFS('Statewise Coverage'!N$36:N$60,'Statewise Coverage'!$A$36:$A$60,'Region Wise SO-Details'!$A55) -> 1 | O55: =SUMIFS('Statewise Coverage'!O$36:O$60,'Statewise Coverage'!$A$36:$A$60,'Region Wise SO-Details'!$A55) -> 0 | P55: =SUMIFS('Statewise Coverage'!P$36:P$60,'Statewise Coverage'!$A$36:$A$60,'Region Wise SO-Details'!$A55) -> 2 | Q55: =SUMIFS('Statewise Coverage'!Q$36:Q$60,'Statewise Coverage'!$A$36:$A$60,'Region Wise SO-Details'!$A55) -> 0 | R55: =SUMIFS('Statewise Coverage'!R$36:R$60,'Statewise Coverage'!$A$36:$A$60,'Region Wise SO-Details'!$A55) -> 0 | S55: =SUMIFS('Statewise Coverage'!S$36:S$60,'Statewise Coverage'!$A$36:$A$60,'Region Wise SO-Details'!$A55) -> 3 | T55: =SUMIFS('Statewise Coverage'!T$36:T$60,'Statewise Coverage'!$A$36:$A$60,'Region Wise SO-Details'!$A55) -> 1 | U55: =SUMIFS('Statewise Coverage'!U$36:U$60,'Statewise Coverage'!$A$36:$A$60,'Region Wise SO-Details'!$A55) -> 0 | V55: =SUMIFS('Statewise Coverage'!V$36:V$60,'Statewise Coverage'!$A$36:$A$60,'Region Wise SO-Details'!$A55) -> 17 | W55: =SUMIFS('Statewise Coverage'!W$36:W$60,'Statewise Coverage'!$A$36:$A$60,'Region Wise SO-Details'!$A55) -> 1 | X55: =SUMIFS('Statewise Coverage'!X$36:X$60,'Statewise Coverage'!$A$36:$A$60,'Region Wise SO-Details'!$A55) -> 1 | Y55: =SUMIFS('Statewise Coverage'!Y$36:Y$60,'Statewise Coverage'!$A$36:$A$60,'Region Wise SO-Details'!$A55) -> 0 | Z55: =SUMIFS('Statewise Coverage'!Z$36:Z$60,'Statewise Coverage'!$A$36:$A$60,'Region Wise SO-Details'!$A55) -> 2 | AA55: =SUMIFS('Statewise Coverage'!AA$36:AA$60,'Statewise Coverage'!$A$36:$A$60,'Region Wise SO-Details'!$A55) -> 0 | AB55: =SUMIFS('Statewise Coverage'!AB$36:AB$60,'Statewise Coverage'!$A$36:$A$60,'Region Wise SO-Details'!$A55) -> 0 | AC55: =SUMIFS('Statewise Coverage'!AC$36:AC$60,'Statewise Coverage'!$A$36:$A$60,'Region Wise SO-Details'!$A55) -> 3 | AD55: =SUMIFS('Statewise Coverage'!AD$36:AD$60,'Statewise Coverage'!$A$36:$A$60,'Region Wise SO-Details'!$A55) -> 0 | AE55: =SUMIFS('Statewise Coverage'!AE$36:AE$60,'Statewise Coverage'!$A$36:$A$60,'Region Wise SO-Details'!$A55) -> 17 | AF55: =SUMIFS('Statewise Coverage'!AF$36:AF$60,'Statewise Coverage'!$A$36:$A$60,'Region Wise SO-Details'!$A55) -> 4 | AG55: =SUMIFS('Statewise Coverage'!AG$36:AG$60,'Statewise Coverage'!$A$36:$A$60,'Region Wise SO-Details'!$A55) -> 0 | AH55: 568
A56: E+N | B56: =SUM(B49:B52) -> 8 | C56: =SUM(C49:C52) -> 2 | D56: 0 | E56: 5 | F56: 3 | G56: 8 | H56: 6 | I56: 11 | J56: 10 | K56: 1 | L56: 44 | M56: 15 | N56: 7 | O56: 2 | P56: 12 | Q56: 24 | R56: 14 | S56: 15 | T56: 27 | U56: 12 | V56: 21 | W56: 15 | X56: 11 | Y56: 9 | Z56: 20 | AA56: 16 | AB56: 17 | AC56: 17 | AD56: 24 | AE56: 109 | AF56: =SUM(AF49:AF52) -> 72 | AG56: 0 | AH56: =SUM(AH49:AH52) -> 557
A57: S+W | B57: =SUM(B53:B55) -> 9 | C57: =SUM(C53:C55) -> 0 | D57: 0 | E57: 1 | F57: 3 | G57: 9 | H57: 3 | I57: 1 | J57: 6 | K57: 0 | L57: 18 | M57: 54 | N57: 27 | O57: 13 | P57: 7 | Q57: 28 | R57: 0 | S57: 23 | T57: 29 | U57: 9 | V57: 35 | W57: 6 | X57: 3 | Y57: 15 | Z57: 47 | AA57: 25 | AB57: 20 | AC57: 21 | AD57: 25 | AE57: 65 | AF57: =SUM(AF53:AF55) -> 95 | AG57: 0 | AH57: =SUM(AH53:AH55) -> 998
A58: INDIA | B58: =B57+B56 -> 17 | C58: =C57+C56 -> 2 | D58: =D57+D56 -> 0 | E58: 6 | F58: 6 | G58: 17 | H58: 9 | I58: 12 | J58: 16 | K58: 1 | L58: 62 | M58: 69 | N58: 34 | O58: 15 | P58: 19 | Q58: 52 | R58: 14 | S58: 38 | T58: 56 | U58: 21 | V58: 56 | W58: 21 | X58: 14 | Y58: 24 | Z58: 67 | AA58: 41 | AB58: 37 | AC58: 38 | AD58: 49 | AE58: 174 | AF58: =AF57+AF56 -> 167 | AG58: 0 | AH58: =SUM(AH56:AH57) -> 1555
A61: Count of 0 CA ASO's | C61: Wed | D61: Thu | E61: Fri | F61: Sat | G61: Sun | H61: Mon | I61: Tue | J61: Wed | K61: Thu | L61: Fri | M61: Sat | N61: Sun | O61: Mon | P61: Tue | Q61: Wed | R61: Thu | S61: Fri | T61: Sat | U61: Sun | V61: Mon | W61: Tue | X61: Wed | Y61: Thu | Z61: Fri | AA61: Sat | AB61: Sun | AC61: Mon | AD61: Tue | AE61: Tue | AF61: Tue | AG61: Tue
C62: =C5 -> 2025-11-01 | D62: =C62+1 -> 2025-11-02 | E62: 2025-11-03 | F62: 2025-11-04 | G62: 2025-11-05 | H62: 2025-11-06 | I62: 2025-11-07 | J62: 2025-11-08 | K62: 2025-11-09 | L62: 2025-11-10 | M62: 2025-11-11 | N62: 2025-11-12 | O62: 2025-11-13 | P62: 2025-11-14 | Q62: 2025-11-15 | R62: 2025-11-16 | S62: 2025-11-17 | T62: 2025-11-18 | U62: 2025-11-19 | V62: 2025-11-20 | W62: 2025-11-21 | X62: 2025-11-22 | Y62: 2025-11-23 | Z62: 2025-11-24 | AA62: 2025-11-25 | AB62: 2025-11-26 | AC62: 2025-11-27 | AD62: 2025-11-28 | AE62: 2025-11-29 | AF62: =AE62+1 -> 2025-11-30 | AG62: =AF62+1 -> 2025-12-01 | AH62: Total
A63: East1 | C63: =COUNTIFS(PVM!U:U,0,PVM!$K:$K,'Region Wise SO-Details'!$A63) -> 10 | D63: =COUNTIFS(PVM!V:V,0,PVM!$K:$K,'Region Wise SO-Details'!$A63) -> 10 | E63: =COUNTIFS(PVM!W:W,0,PVM!$K:$K,'Region Wise SO-Details'!$A63) -> 10 | F63: =COUNTIFS(PVM!X:X,0,PVM!$K:$K,'Region Wise SO-Details'!$A63) -> 10 | G63: =COUNTIFS(PVM!Y:Y,0,PVM!$K:$K,'Region Wise SO-Details'!$A63) -> 9 | H63: =COUNTIFS(PVM!Z:Z,0,PVM!$K:$K,'Region Wise SO-Details'!$A63) -> 6 | I63: =COUNTIFS(PVM!AA:AA,0,PVM!$K:$K,'Region Wise SO-Details'!$A63) -> 8 | J63: =COUNTIFS(PVM!AB:AB,0,PVM!$K:$K,'Region Wise SO-Details'!$A63) -> 9 | K63: =COUNTIFS(PVM!AC:AC,0,PVM!$K:$K,'Region Wise SO-Details'!$A63) -> 8 | L63: =COUNTIFS(PVM!AD:AD,0,PVM!$K:$K,'Region Wise SO-Details'!$A63) -> 4 | M63: =COUNTIFS(PVM!AE:AE,0,PVM!$K:$K,'Region Wise SO-Details'!$A63) -> 6 | N63: =COUNTIFS(PVM!AF:AF,0,PVM!$K:$K,'Region Wise SO-Details'!$A63) -> 8 | O63: =COUNTIFS(PVM!AG:AG,0,PVM!$K:$K,'Region Wise SO-Details'!$A63) -> 8 | P63: =COUNTIFS(PVM!AH:AH,0,PVM!$K:$K,'Region Wise SO-Details'!$A63) -> 8 | Q63: =COUNTIFS(PVM!AI:AI,0,PVM!$K:$K,'Region Wise SO-Details'!$A63) -> 8 | R63: =COUNTIFS(PVM!AJ:AJ,0,PVM!$K:$K,'Region Wise SO-Details'!$A63) -> 10 | S63: =COUNTIFS(PVM!AK:AK,0,PVM!$K:$K,'Region Wise SO-Details'!$A63) -> 10 | T63: =COUNTIFS(PVM!AL:AL,0,PVM!$K:$K,'Region Wise SO-Details'!$A63) -> 10 | U63: =COUNTIFS(PVM!AM:AM,0,PVM!$K:$K,'Region Wise SO-Details'!$A63) -> 10 | V63: =COUNTIFS(PVM!AN:AN,0,PVM!$K:$K,'Region Wise SO-Details'!$A63) -> 10 | W63: =COUNTIFS(PVM!AO:AO,0,PVM!$K:$K,'Region Wise SO-Details'!$A63) -> 10 | X63: =COUNTIFS(PVM!AP:AP,0,PVM!$K:$K,'Region Wise SO-Details'!$A63) -> 10 | Y63: =COUNTIFS(PVM!AQ:AQ,0,PVM!$K:$K,'Region Wise SO-Details'!$A63) -> 10 | Z63: =COUNTIFS(PVM!AR:AR,0,PVM!$K:$K,'Region Wise SO-Details'!$A63) -> 10 | AA63: =COUNTIFS(PVM!AS:AS,0,PVM!$K:$K,'Region Wise SO-Details'!$A63) -> 10 | AB63: =COUNTIFS(PVM!AT:AT,0,PVM!$K:$K,'Region Wise SO-Details'!$A63) -> 10 | AC63: =COUNTIFS(PVM!AU:AU,0,PVM!$K:$K,'Region Wise SO-Details'!$A63) -> 10 | AD63: 0 | AE63: 0 | AF63: 0 | AG63: 0 | AH63: =COUNTIFS(PVM!Q:Q,0,PVM!$K:$K,'Region Wise SO-Details'!$A63) -> 0
A64: East2 | C64: =COUNTIFS(PVM!U:U,0,PVM!$K:$K,'Region Wise SO-Details'!$A64) -> 8 | D64: =COUNTIFS(PVM!V:V,0,PVM!$K:$K,'Region Wise SO-Details'!$A64) -> 8 | E64: =COUNTIFS(PVM!W:W,0,PVM!$K:$K,'Region Wise SO-Details'!$A64) -> 7 | F64: =COUNTIFS(PVM!X:X,0,PVM!$K:$K,'Region Wise SO-Details'!$A64) -> 6 | G64: =COUNTIFS(PVM!Y:Y,0,PVM!$K:$K,'Region Wise SO-Details'!$A64) -> 7 | H64: =COUNTIFS(PVM!Z:Z,0,PVM!$K:$K,'Region Wise SO-Details'!$A64) -> 7 | I64: =COUNTIFS(PVM!AA:AA,0,PVM!$K:$K,'Region Wise SO-Details'!$A64) -> 6 | J64: =COUNTIFS(PVM!AB:AB,0,PVM!$K:$K,'Region Wise SO-Details'!$A64) -> 7 | K64: =COUNTIFS(PVM!AC:AC,0,PVM!$K:$K,'Region Wise SO-Details'!$A64) -> 6 | L64: =COUNTIFS(PVM!AD:AD,0,PVM!$K:$K,'Region Wise SO-Details'!$A64) -> 4 | M64: =COUNTIFS(PVM!AE:AE,0,PVM!$K:$K,'Region Wise SO-Details'!$A64) -> 7 | N64: =COUNTIFS(PVM!AF:AF,0,PVM!$K:$K,'Region Wise SO-Details'!$A64) -> 6 | O64: =COUNTIFS(PVM!AG:AG,0,PVM!$K:$K,'Region Wise SO-Details'!$A64) -> 6 | P64: =COUNTIFS(PVM!AH:AH,0,PVM!$K:$K,'Region Wise SO-Details'!$A64) -> 6 | Q64: =COUNTIFS(PVM!AI:AI,0,PVM!$K:$K,'Region Wise SO-Details'!$A64) -> 8 | R64: =COUNTIFS(PVM!AJ:AJ,0,PVM!$K:$K,'Region Wise SO-Details'!$A64) -> 8 | S64: =COUNTIFS(PVM!AK:AK,0,PVM!$K:$K,'Region Wise SO-Details'!$A64) -> 8 | T64: =COUNTIFS(PVM!AL:AL,0,PVM!$K:$K,'Region Wise SO-Details'!$A64) -> 8 | U64: =COUNTIFS(PVM!AM:AM,0,PVM!$K:$K,'Region Wise SO-Details'!$A64) -> 8 | V64: =COUNTIFS(PVM!AN:AN,0,PVM!$K:$K,'Region Wise SO-Details'!$A64) -> 8 | W64: =COUNTIFS(PVM!AO:AO,0,PVM!$K:$K,'Region Wise SO-Details'!$A64) -> 8 | X64: =COUNTIFS(PVM!AP:AP,0,PVM!$K:$K,'Region Wise SO-Details'!$A64) -> 8 | Y64: =COUNTIFS(PVM!AQ:AQ,0,PVM!$K:$K,'Region Wise SO-Details'!$A64) -> 8 | Z64: =COUNTIFS(PVM!AR:AR,0,PVM!$K:$K,'Region Wise SO-Details'!$A64) -> 8 | AA64: =COUNTIFS(PVM!AS:AS,0,PVM!$K:$K,'Region Wise SO-Details'!$A64) -> 8 | AB64: =COUNTIFS(PVM!AT:AT,0,PVM!$K:$K,'Region Wise SO-Details'!$A64) -> 8 | AC64: =COUNTIFS(PVM!AU:AU,0,PVM!$K:$K,'Region Wise SO-Details'!$A64) -> 8 | AD64: 0 | AE64: 0 | AF64: 0 | AG64: 0 | AH64: =COUNTIFS(PVM!Q:Q,0,PVM!$K:$K,'Region Wise SO-Details'!$A64) -> 0
A65: North1 | C65: =COUNTIFS(PVM!U:U,0,PVM!$K:$K,'Region Wise SO-Details'!$A65) -> 11 | D65: =COUNTIFS(PVM!V:V,0,PVM!$K:$K,'Region Wise SO-Details'!$A65) -> 13 | E65: =COUNTIFS(PVM!W:W,0,PVM!$K:$K,'Region Wise SO-Details'!$A65) -> 10 | F65: =COUNTIFS(PVM!X:X,0,PVM!$K:$K,'Region Wise SO-Details'!$A65) -> 12 | G65: =COUNTIFS(PVM!Y:Y,0,PVM!$K:$K,'Region Wise SO-Details'!$A65) -> 10 | H65: =COUNTIFS(PVM!Z:Z,0,PVM!$K:$K,'Region Wise SO-Details'!$A65) -> 11 | I65: =COUNTIFS(PVM!AA:AA,0,PVM!$K:$K,'Region Wise SO-Details'!$A65) -> 9 | J65: =COUNTIFS(PVM!AB:AB,0,PVM!$K:$K,'Region Wise SO-Details'!$A65) -> 7 | K65: =COUNTIFS(PVM!AC:AC,0,PVM!$K:$K,'Region Wise SO-Details'!$A65) -> 13 | L65: =COUNTIFS(PVM!AD:AD,0,PVM!$K:$K,'Region Wise SO-Details'!$A65) -> 7 | M65: =COUNTIFS(PVM!AE:AE,0,PVM!$K:$K,'Region Wise SO-Details'!$A65) -> 5 | N65: =COUNTIFS(PVM!AF:AF,0,PVM!$K:$K,'Region Wise SO-Details'!$A65) -> 11 | O65: =COUNTIFS(PVM!AG:AG,0,PVM!$K:$K,'Region Wise SO-Details'!$A65) -> 7 | P65: =COUNTIFS(PVM!AH:AH,0,PVM!$K:$K,'Region Wise SO-Details'!$A65) -> 7 | Q65: =COUNTIFS(PVM!AI:AI,0,PVM!$K:$K,'Region Wise SO-Details'!$A65) -> 6 | R65: =COUNTIFS(PVM!AJ:AJ,0,PVM!$K:$K,'Region Wise SO-Details'!$A65) -> 13 | S65: =COUNTIFS(PVM!AK:AK,0,PVM!$K:$K,'Region Wise SO-Details'!$A65) -> 13 | T65: =COUNTIFS(PVM!AL:AL,0,PVM!$K:$K,'Region Wise SO-Details'!$A65) -> 13 | U65: =COUNTIFS(PVM!AM:AM,0,PVM!$K:$K,'Region Wise SO-Details'!$A65) -> 13 | V65: =COUNTIFS(PVM!AN:AN,0,PVM!$K:$K,'Region Wise SO-Details'!$A65) -> 13 | W65: =COUNTIFS(PVM!AO:AO,0,PVM!$K:$K,'Region Wise SO-Details'!$A65) -> 13 | X65: =COUNTIFS(PVM!AP:AP,0,PVM!$K:$K,'Region Wise SO-Details'!$A65) -> 13 | Y65: =COUNTIFS(PVM!AQ:AQ,0,PVM!$K:$K,'Region Wise SO-Details'!$A65) -> 13 | Z65: =COUNTIFS(PVM!AR:AR,0,PVM!$K:$K,'Region Wise SO-Details'!$A65) -> 13 | AA65: =COUNTIFS(PVM!AS:AS,0,PVM!$K:$K,'Region Wise SO-Details'!$A65) -> 13 | AB65: =COUNTIFS(PVM!AT:AT,0,PVM!$K:$K,'Region Wise SO-Details'!$A65) -> 13 | AC65: =COUNTIFS(PVM!AU:AU,0,PVM!$K:$K,'Region Wise SO-Details'!$A65) -> 13 | AD65: 0 | AE65: 0 | AF65: 0 | AG65: 0 | AH65: =COUNTIFS(PVM!Q:Q,0,PVM!$K:$K,'Region Wise SO-Details'!$A65) -> 1
A66: North2 | C66: =COUNTIFS(PVM!U:U,0,PVM!$K:$K,'Region Wise SO-Details'!$A66) -> 12 | D66: =COUNTIFS(PVM!V:V,0,PVM!$K:$K,'Region Wise SO-Details'!$A66) -> 12 | E66: =COUNTIFS(PVM!W:W,0,PVM!$K:$K,'Region Wise SO-Details'!$A66) -> 12 | F66: =COUNTIFS(PVM!X:X,0,PVM!$K:$K,'Region Wise SO-Details'!$A66) -> 12 | G66: =COUNTIFS(PVM!Y:Y,0,PVM!$K:$K,'Region Wise SO-Details'!$A66) -> 12 | H66: =COUNTIFS(PVM!Z:Z,0,PVM!$K:$K,'Region Wise SO-Details'!$A66) -> 12 | I66: =COUNTIFS(PVM!AA:AA,0,PVM!$K:$K,'Region Wise SO-Details'!$A66) -> 11 | J66: =COUNTIFS(PVM!AB:AB,0,PVM!$K:$K,'Region Wise SO-Details'!$A66) -> 11 | K66: =COUNTIFS(PVM!AC:AC,0,PVM!$K:$K,'Region Wise SO-Details'!$A66) -> 12 | L66: =COUNTIFS(PVM!AD:AD,0,PVM!$K:$K,'Region Wise SO-Details'!$A66) -> 5 | M66: =COUNTIFS(PVM!AE:AE,0,PVM!$K:$K,'Region Wise SO-Details'!$A66) -> 12 | N66: =COUNTIFS(PVM!AF:AF,0,PVM!$K:$K,'Region Wise SO-Details'!$A66) -> 10 | O66: =COUNTIFS(PVM!AG:AG,0,PVM!$K:$K,'Region Wise SO-Details'!$A66) -> 12 | P66: =COUNTIFS(PVM!AH:AH,0,PVM!$K:$K,'Region Wise SO-Details'!$A66) -> 11 | Q66: =COUNTIFS(PVM!AI:AI,0,PVM!$K:$K,'Region Wise SO-Details'!$A66) -> 9 | R66: =COUNTIFS(PVM!AJ:AJ,0,PVM!$K:$K,'Region Wise SO-Details'!$A66) -> 12 | S66: =COUNTIFS(PVM!AK:AK,0,PVM!$K:$K,'Region Wise SO-Details'!$A66) -> 12 | T66: =COUNTIFS(PVM!AL:AL,0,PVM!$K:$K,'Region Wise SO-Details'!$A66) -> 12 | U66: =COUNTIFS(PVM!AM:AM,0,PVM!$K:$K,'Region Wise SO-Details'!$A66) -> 12 | V66: =COUNTIFS(PVM!AN:AN,0,PVM!$K:$K,'Region Wise SO-Details'!$A66) -> 12 | W66: =COUNTIFS(PVM!AO:AO,0,PVM!$K:$K,'Region Wise SO-Details'!$A66) -> 12 | X66: =COUNTIFS(PVM!AP:AP,0,PVM!$K:$K,'Region Wise SO-Details'!$A66) -> 12 | Y66: =COUNTIFS(PVM!AQ:AQ,0,PVM!$K:$K,'Region Wise SO-Details'!$A66) -> 12 | Z66: =COUNTIFS(PVM!AR:AR,0,PVM!$K:$K,'Region Wise SO-Details'!$A66) -> 12 | AA66: =COUNTIFS(PVM!AS:AS,0,PVM!$K:$K,'Region Wise SO-Details'!$A66) -> 12 | AB66: =COUNTIFS(PVM!AT:AT,0,PVM!$K:$K,'Region Wise SO-Details'!$A66) -> 12 | AC66: =COUNTIFS(PVM!AU:AU,0,PVM!$K:$K,'Region Wise SO-Details'!$A66) -> 12 | AD66: 0 | AE66: 0 | AF66: 0 | AG66: 0 | AH66: =COUNTIFS(PVM!Q:Q,0,PVM!$K:$K,'Region Wise SO-Details'!$A66) -> 0
A67: South1 | C67: =COUNTIFS(PVM!U:U,0,PVM!$K:$K,'Region Wise SO-Details'!$A67) -> 7 | D67: =COUNTIFS(PVM!V:V,0,PVM!$K:$K,'Region Wise SO-Details'!$A67) -> 7 | E67: =COUNTIFS(PVM!W:W,0,PVM!$K:$K,'Region Wise SO-Details'!$A67) -> 7 | F67: =COUNTIFS(PVM!X:X,0,PVM!$K:$K,'Region Wise SO-Details'!$A67) -> 6 | G67: =COUNTIFS(PVM!Y:Y,0,PVM!$K:$K,'Region Wise SO-Details'!$A67) -> 7 | H67: =COUNTIFS(PVM!Z:Z,0,PVM!$K:$K,'Region Wise SO-Details'!$A67) -> 7 | I67: =COUNTIFS(PVM!AA:AA,0,PVM!$K:$K,'Region Wise SO-Details'!$A67) -> 7 | J67: =COUNTIFS(PVM!AB:AB,0,PVM!$K:$K,'Region Wise SO-Details'!$A67) -> 6 | K67: =COUNTIFS(PVM!AC:AC,0,PVM!$K:$K,'Region Wise SO-Details'!$A67) -> 7 | L67: =COUNTIFS(PVM!AD:AD,0,PVM!$K:$K,'Region Wise SO-Details'!$A67) -> 2 | M67: =COUNTIFS(PVM!AE:AE,0,PVM!$K:$K,'Region Wise SO-Details'!$A67) -> 5 | N67: =COUNTIFS(PVM!AF:AF,0,PVM!$K:$K,'Region Wise SO-Details'!$A67) -> 4 | O67: =COUNTIFS(PVM!AG:AG,0,PVM!$K:$K,'Region Wise SO-Details'!$A67) -> 6 | P67: =COUNTIFS(PVM!AH:AH,0,PVM!$K:$K,'Region Wise SO-Details'!$A67) -> 5 | Q67: =COUNTIFS(PVM!AI:AI,0,PVM!$K:$K,'Region Wise SO-Details'!$A67) -> 3 | R67: =COUNTIFS(PVM!AJ:AJ,0,PVM!$K:$K,'Region Wise SO-Details'!$A67) -> 7 | S67: =COUNTIFS(PVM!AK:AK,0,PVM!$K:$K,'Region Wise SO-Details'!$A67) -> 7 | T67: =COUNTIFS(PVM!AL:AL,0,PVM!$K:$K,'Region Wise SO-Details'!$A67) -> 7 | U67: =COUNTIFS(PVM!AM:AM,0,PVM!$K:$K,'Region Wise SO-Details'!$A67) -> 7 | V67: =COUNTIFS(PVM!AN:AN,0,PVM!$K:$K,'Region Wise SO-Details'!$A67) -> 7 | W67: =COUNTIFS(PVM!AO:AO,0,PVM!$K:$K,'Region Wise SO-Details'!$A67) -> 7 | X67: =COUNTIFS(PVM!AP:AP,0,PVM!$K:$K,'Region Wise SO-Details'!$A67) -> 7 | Y67: =COUNTIFS(PVM!AQ:AQ,0,PVM!$K:$K,'Region Wise SO-Details'!$A67) -> 7 | Z67: =COUNTIFS(PVM!AR:AR,0,PVM!$K:$K,'Region Wise SO-Details'!$A67) -> 7 | AA67: =COUNTIFS(PVM!AS:AS,0,PVM!$K:$K,'Region Wise SO-Details'!$A67) -> 7 | AB67: =COUNTIFS(PVM!AT:AT,0,PVM!$K:$K,'Region Wise SO-Details'!$A67) -> 7 | AC67: =COUNTIFS(PVM!AU:AU,0,PVM!$K:$K,'Region Wise SO-Details'!$A67) -> 7 | AD67: 0 | AE67: 0 | AF67: 0 | AG67: 0 | AH67: =COUNTIFS(PVM!Q:Q,0,PVM!$K:$K,'Region Wise SO-Details'!$A67) -> 1
A68: South2 | C68: =COUNTIFS(PVM!U:U,0,PVM!$K:$K,'Region Wise SO-Details'!$A68) -> 9 | D68: =COUNTIFS(PVM!V:V,0,PVM!$K:$K,'Region Wise SO-Details'!$A68) -> 9 | E68: =COUNTIFS(PVM!W:W,0,PVM!$K:$K,'Region Wise SO-Details'!$A68) -> 8 | F68: =COUNTIFS(PVM!X:X,0,PVM!$K:$K,'Region Wise SO-Details'!$A68) -> 8 | G68: =COUNTIFS(PVM!Y:Y,0,PVM!$K:$K,'Region Wise SO-Details'!$A68) -> 8 | H68: =COUNTIFS(PVM!Z:Z,0,PVM!$K:$K,'Region Wise SO-Details'!$A68) -> 8 | I68: =COUNTIFS(PVM!AA:AA,0,PVM!$K:$K,'Region Wise SO-Details'!$A68) -> 9 | J68: =COUNTIFS(PVM!AB:AB,0,PVM!$K:$K,'Region Wise SO-Details'!$A68) -> 9 | K68: =COUNTIFS(PVM!AC:AC,0,PVM!$K:$K,'Region Wise SO-Details'!$A68) -> 9 | L68: =COUNTIFS(PVM!AD:AD,0,PVM!$K:$K,'Region Wise SO-Details'!$A68) -> 8 | M68: =COUNTIFS(PVM!AE:AE,0,PVM!$K:$K,'Region Wise SO-Details'!$A68) -> 5 | N68: =COUNTIFS(PVM!AF:AF,0,PVM!$K:$K,'Region Wise SO-Details'!$A68) -> 5 | O68: =COUNTIFS(PVM!AG:AG,0,PVM!$K:$K,'Region Wise SO-Details'!$A68) -> 7 | P68: =COUNTIFS(PVM!AH:AH,0,PVM!$K:$K,'Region Wise SO-Details'!$A68) -> 8 | Q68: =COUNTIFS(PVM!AI:AI,0,PVM!$K:$K,'Region Wise SO-Details'!$A68) -> 7 | R68: =COUNTIFS(PVM!AJ:AJ,0,PVM!$K:$K,'Region Wise SO-Details'!$A68) -> 9 | S68: =COUNTIFS(PVM!AK:AK,0,PVM!$K:$K,'Region Wise SO-Details'!$A68) -> 9 | T68: =COUNTIFS(PVM!AL:AL,0,PVM!$K:$K,'Region Wise SO-Details'!$A68) -> 9 | U68: =COUNTIFS(PVM!AM:AM,0,PVM!$K:$K,'Region Wise SO-Details'!$A68) -> 9 | V68: =COUNTIFS(PVM!AN:AN,0,PVM!$K:$K,'Region Wise SO-Details'!$A68) -> 9 | W68: =COUNTIFS(PVM!AO:AO,0,PVM!$K:$K,'Region Wise SO-Details'!$A68) -> 9 | X68: =COUNTIFS(PVM!AP:AP,0,PVM!$K:$K,'Region Wise SO-Details'!$A68) -> 9 | Y68: =COUNTIFS(PVM!AQ:AQ,0,PVM!$K:$K,'Region Wise SO-Details'!$A68) -> 9 | Z68: =COUNTIFS(PVM!AR:AR,0,PVM!$K:$K,'Region Wise SO-Details'!$A68) -> 9 | AA68: =COUNTIFS(PVM!AS:AS,0,PVM!$K:$K,'Region Wise SO-Details'!$A68) -> 9 | AB68: =COUNTIFS(PVM!AT:AT,0,PVM!$K:$K,'Region Wise SO-Details'!$A68) -> 9 | AC68: =COUNTIFS(PVM!AU:AU,0,PVM!$K:$K,'Region Wise SO-Details'!$A68) -> 9 | AD68: 0 | AE68: 0 | AF68: 0 | AG68: 0 | AH68: =COUNTIFS(PVM!Q:Q,0,PVM!$K:$K,'Region Wise SO-Details'!$A68) -> 0
A69: West1 | C69: =COUNTIFS(PVM!U:U,0,PVM!$K:$K,'Region Wise SO-Details'!$A69) -> 20 | D69: =COUNTIFS(PVM!V:V,0,PVM!$K:$K,'Region Wise SO-Details'!$A69) -> 21 | E69: =COUNTIFS(PVM!W:W,0,PVM!$K:$K,'Region Wise SO-Details'!$A69) -> 19 | F69: =COUNTIFS(PVM!X:X,0,PVM!$K:$K,'Region Wise SO-Details'!$A69) -> 19 | G69: =COUNTIFS(PVM!Y:Y,0,PVM!$K:$K,'Region Wise SO-Details'!$A69) -> 19 | H69: =COUNTIFS(PVM!Z:Z,0,PVM!$K:$K,'Region Wise SO-Details'!$A69) -> 17 | I69: =COUNTIFS(PVM!AA:AA,0,PVM!$K:$K,'Region Wise SO-Details'!$A69) -> 19 | J69: =COUNTIFS(PVM!AB:AB,0,PVM!$K:$K,'Region Wise SO-Details'!$A69) -> 17 | K69: =COUNTIFS(PVM!AC:AC,0,PVM!$K:$K,'Region Wise SO-Details'!$A69) -> 21 | L69: =COUNTIFS(PVM!AD:AD,0,PVM!$K:$K,'Region Wise SO-Details'!$A69) -> 11 | M69: =COUNTIFS(PVM!AE:AE,0,PVM!$K:$K,'Region Wise SO-Details'!$A69) -> 16 | N69: =COUNTIFS(PVM!AF:AF,0,PVM!$K:$K,'Region Wise SO-Details'!$A69) -> 18 | O69: =COUNTIFS(PVM!AG:AG,0,PVM!$K:$K,'Region Wise SO-Details'!$A69) -> 18 | P69: =COUNTIFS(PVM!AH:AH,0,PVM!$K:$K,'Region Wise SO-Details'!$A69) -> 17 | Q69: =COUNTIFS(PVM!AI:AI,0,PVM!$K:$K,'Region Wise SO-Details'!$A69) -> 18 | R69: =COUNTIFS(PVM!AJ:AJ,0,PVM!$K:$K,'Region Wise SO-Details'!$A69) -> 21 | S69: =COUNTIFS(PVM!AK:AK,0,PVM!$K:$K,'Region Wise SO-Details'!$A69) -> 21 | T69: =COUNTIFS(PVM!AL:AL,0,PVM!$K:$K,'Region Wise SO-Details'!$A69) -> 21 | U69: =COUNTIFS(PVM!AM:AM,0,PVM!$K:$K,'Region Wise SO-Details'!$A69) -> 21 | V69: =COUNTIFS(PVM!AN:AN,0,PVM!$K:$K,'Region Wise SO-Details'!$A69) -> 21 | W69: =COUNTIFS(PVM!AO:AO,0,PVM!$K:$K,'Region Wise SO-Details'!$A69) -> 21 | X69: =COUNTIFS(PVM!AP:AP,0,PVM!$K:$K,'Region Wise SO-Details'!$A69) -> 21 | Y69: =COUNTIFS(PVM!AQ:AQ,0,PVM!$K:$K,'Region Wise SO-Details'!$A69) -> 21 | Z69: =COUNTIFS(PVM!AR:AR,0,PVM!$K:$K,'Region Wise SO-Details'!$A69) -> 21 | AA69: =COUNTIFS(PVM!AS:AS,0,PVM!$K:$K,'Region Wise SO-Details'!$A69) -> 21 | AB69: =COUNTIFS(PVM!AT:AT,0,PVM!$K:$K,'Region Wise SO-Details'!$A69) -> 21 | AC69: =COUNTIFS(PVM!AU:AU,0,PVM!$K:$K,'Region Wise SO-Details'!$A69) -> 21 | AD69: 0 | AE69: 0 | AF69: 0 | AG69: 0 | AH69: =COUNTIFS(PVM!Q:Q,0,PVM!$K:$K,'Region Wise SO-Details'!$A69) -> 0
A70: E+N | C70: =SUM(C63:C66) -> 41 | D70: =SUM(D63:D66) -> 43 | E70: 39 | F70: 40 | G70: 38 | H70: 36 | I70: 34 | J70: 34 | K70: 39 | L70: 20 | M70: 30 | N70: 35 | O70: 33 | P70: 32 | Q70: 31 | R70: 43 | S70: 43 | T70: 43 | U70: 43 | V70: 43 | W70: 43 | X70: 43 | Y70: 43 | Z70: 43 | AA70: 43 | AB70: 43 | AC70: 43 | AD70: 0 | AE70: 0 | AF70: =SUM(AF63:AF66) -> 0 | AG70: 0 | AH70: =SUM(AH63:AH66) -> 1
A71: S+W | C71: =SUM(C67:C69) -> 36 | D71: =SUM(D67:D69) -> 37 | E71: 34 | F71: 33 | G71: 34 | H71: 32 | I71: 35 | J71: 32 | K71: 37 | L71: 21 | M71: 26 | N71: 27 | O71: 31 | P71: 30 | Q71: 28 | R71: 37 | S71: 37 | T71: 37 | U71: 37 | V71: 37 | W71: 37 | X71: 37 | Y71: 37 | Z71: 37 | AA71: 37 | AB71: 37 | AC71: 37 | AD71: 0 | AE71: 0 | AF71: =SUM(AF67:AF69) -> 0 | AG71: 0 | AH71: =SUM(AH67:AH69) -> 1
A72: INDIA | C72: =SUM(C70:C71) -> 77 | D72: =SUM(D70:D71) -> 80 | E72: 73 | F72: 73 | G72: 72 | H72: 68 | I72: 69 | J72: 66 | K72: 76 | L72: 41 | M72: 56 | N72: 62 | O72: 64 | P72: 62 | Q72: 59 | R72: 80 | S72: 80 | T72: 80 | U72: 80 | V72: 80 | W72: 80 | X72: 80 | Y72: 80 | Z72: 80 | AA72: 80 | AB72: 80 | AC72: 80 | AD72: 0 | AE72: 0 | AF72: =SUM(AF70:AF71) -> 0 | AG72: 0 | AH72: =SUM(AH70:AH71) -> 2

Sheet Statewise SO Details
C2: 2025-11-01 | D2: =C2+1 -> 2025-11-02 | E2: =D2+1 -> 2025-11-03 | F2: 2025-11-04 | G2: 2025-11-05 | H2: 2025-11-06 | I2: 2025-11-07 | J2: 2025-11-08 | K2: 2025-11-09 | L2: 2025-11-10 | M2: 2025-11-11 | N2: 2025-11-12 | O2: 2025-11-13 | P2: 2025-11-14 | Q2: 2025-11-15 | R2: 2025-11-16 | S2: 2025-11-17 | T2: 2025-11-18 | U2: 2025-11-19 | V2: 2025-11-20 | W2: 2025-11-21 | X2: 2025-11-22 | Y2: 2025-11-23 | Z2: 2025-11-24 | AA2: 2025-11-25 | AB2: 2025-11-26 | AC2: 2025-11-27 | AD2: 2025-11-28 | AE2: 2025-11-29 | AF2: 2025-11-30 | AG2: 2025-12-01 | AL2: Oct'25 | AN2: Nov'25 | AP2: =AL2 -> Oct'25
A3: Overall CA Details | C3: =SUBTOTAL(9,C5:C30) -> 23 | D3: 0 | E3: 44 | F3: 38 | G3: 78 | H3: 100 | I3: 103 | J3: 139 | K3: 16 | L3: 471 | M3: 441 | N3: 200 | O3: 135 | P3: 138 | Q3: 422 | R3: 137 | S3: 501 | T3: 425 | U3: 273 | V3: 444 | W3: 232 | X3: 176 | Y3: 219 | Z3: 807 | AA3: 489 | AB3: 342 | AC3: 855 | AD3: 1106 | AE3: 4479 | AF3: 3970 | AG3: =SUBTOTAL(9,AG5:AG30) -> 0 | AH3: =SUBTOTAL(9,AH5:AH30) -> 16803 | AJ3: =SUBTOTAL(9,AJ5:AJ30) -> 16803 | AK3: =IFERROR(AJ3/AL3-1,0) -> -30% | AL3: 23903 | AN3: 3366 | AO3: =IFERROR(AN3/AP3-1,0) -> -24% | AP3: 4419
A4: Region | B4: State | C4: =C2 -> 2025-11-01 | D4: =C4+1 -> 2025-11-02 | E4: =D4+1 -> 2025-11-03 | F4: 2025-11-04 | G4: 2025-11-05 | H4: 2025-11-06 | I4: 2025-11-07 | J4: 2025-11-08 | K4: 2025-11-09 | L4: 2025-11-10 | M4: 2025-11-11 | N4: 2025-11-12 | O4: 2025-11-13 | P4: 2025-11-14 | Q4: 2025-11-15 | R4: 2025-11-16 | S4: 2025-11-17 | T4: 2025-11-18 | U4: 2025-11-19 | V4: 2025-11-20 | W4: 2025-11-21 | X4: 2025-11-22 | Y4: 2025-11-23 | Z4: 2025-11-24 | AA4: 2025-11-25 | AB4: 2025-11-26 | AC4: 2025-11-27 | AD4: 2025-11-28 | AE4: 2025-11-29 | AF4: 2025-11-30 | AG4: 2025-12-01 | AH4: Total | AJ4: CA Ach | AK4: MoM % | AL4: Oct MTD | AN4: Nov Cov | AO4: MoM % | AP4: =AL4 -> Oct MTD
A5: East1 | B5: Assam | C5: =SUMIFS('Aug''24 & Sep''25'!$BL:$BL,'Aug''24 & Sep''25'!$I:$I,'Statewise SO Details'!$B5,'Aug''24 & Sep''25'!$AS:$AS,'Statewise SO Details'!C$2,'Aug''24 & Sep''25'!$BU:$BU,"consumer") -> 0 | D5: =SUMIFS('Aug''24 & Sep''25'!$BL:$BL,'Aug''24 & Sep''25'!$I:$I,'Statewise SO Details'!$B5,'Aug''24 & Sep''25'!$AS:$AS,'Statewise SO Details'!D$2,'Aug''24 & Sep''25'!$BU:$BU,"consumer") -> 0 | E5: =SUMIFS('Aug''24 & Sep''25'!$BL:$BL,'Aug''24 & Sep''25'!$I:$I,'Statewise SO Details'!$B5,'Aug''24 & Sep''25'!$AS:$AS,'Statewise SO Details'!E$2,'Aug''24 & Sep''25'!$BU:$BU,"consumer") -> 0 | F5: =SUMIFS('Aug''24 & Sep''25'!$BL:$BL,'Aug''24 & Sep''25'!$I:$I,'Statewise SO Details'!$B5,'Aug''24 & Sep''25'!$AS:$AS,'Statewise SO Details'!F$2,'Aug''24 & Sep''25'!$BU:$BU,"consumer") -> 0 | G5: =SUMIFS('Aug''24 & Sep''25'!$BL:$BL,'Aug''24 & Sep''25'!$I:$I,'Statewise SO Details'!$B5,'Aug''24 & Sep''25'!$AS:$AS,'Statewise SO Details'!G$2,'Aug''24 & Sep''25'!$BU:$BU,"consumer") -> 0 | H5: =SUMIFS('Aug''24 & Sep''25'!$BL:$BL,'Aug''24 & Sep''25'!$I:$I,'Statewise SO Details'!$B5,'Aug''24 & Sep''25'!$AS:$AS,'Statewise SO Details'!H$2,'Aug''24 & Sep''25'!$BU:$BU,"consumer") -> 0 | I5: =SUMIFS('Aug''24 & Sep''25'!$BL:$BL,'Aug''24 & Sep''25'!$I:$I,'Statewise SO Details'!$B5,'Aug''24 & Sep''25'!$AS:$AS,'Statewise SO Details'!I$2,'Aug''24 & Sep''25'!$BU:$BU,"consumer") -> 0 | J5: =SUMIFS('Aug''24 & Sep''25'!$BL:$BL,'Aug''24 & Sep''25'!$I:$I,'Statewise SO Details'!$B5,'Aug''24 & Sep''25'!$AS:$AS,'Statewise SO Details'!J$2,'Aug''24 & Sep''25'!$BU:$BU,"consumer") -> 0 | K5: =SUMIFS('Aug''24 & Sep''25'!$BL:$BL,'Aug''24 & Sep''25'!$I:$I,'Statewise SO Details'!$B5,'Aug''24 & Sep''25'!$AS:$AS,'Statewise SO Details'!K$2,'Aug''24 & Sep''25'!$BU:$BU,"consumer") -> 7 | L5: =SUMIFS('Aug''24 & Sep''25'!$BL:$BL,'Aug''24 & Sep''25'!$I:$I,'Statewise SO Details'!$B5,'Aug''24 & Sep''25'!$AS:$AS,'Statewise SO Details'!L$2,'Aug''24 & Sep''25'!$BU:$BU,"consumer") -> 0 | M5: =SUMIFS('Aug''24 & Sep''25'!$BL:$BL,'Aug''24 & Sep''25'!$I:$I,'Statewise SO Details'!$B5,'Aug''24 & Sep''25'!$AS:$AS,'Statewise SO Details'!M$2,'Aug''24 & Sep''25'!$BU:$BU,"consumer") -> 1 | N5: =SUMIFS('Aug''24 & Sep''25'!$BL:$BL,'Aug''24 & Sep''25'!$I:$I,'Statewise SO Details'!$B5,'Aug''24 & Sep''25'!$AS:$AS,'Statewise SO Details'!N$2,'Aug''24 & Sep''25'!$BU:$BU,"consumer") -> 0 | O5: =SUMIFS('Aug''24 & Sep''25'!$BL:$BL,'Aug''24 & Sep''25'!$I:$I,'Statewise SO Details'!$B5,'Aug''24 & Sep''25'!$AS:$AS,'Statewise SO Details'!O$2,'Aug''24 & Sep''25'!$BU:$BU,"consumer") -> 0 | P5: =SUMIFS('Aug''24 & Sep''25'!$BL:$BL,'Aug''24 & Sep''25'!$I:$I,'Statewise SO Details'!$B5,'Aug''24 & Sep''25'!$AS:$AS,'Statewise SO Details'!P$2,'Aug''24 & Sep''25'!$BU:$BU,"consumer") -> 0 | Q5: =SUMIFS('Aug''24 & Sep''25'!$BL:$BL,'Aug''24 & Sep''25'!$I:$I,'Statewise SO Details'!$B5,'Aug''24 & Sep''25'!$AS:$AS,'Statewise SO Details'!Q$2,'Aug''24 & Sep''25'!$BU:$BU,"consumer") -> 0 | R5: =SUMIFS('Aug''24 & Sep''25'!$BL:$BL,'Aug''24 & Sep''25'!$I:$I,'Statewise SO Details'!$B5,'Aug''24 & Sep''25'!$AS:$AS,'Statewise SO Details'!R$2,'Aug''24 & Sep''25'!$BU:$BU,"consumer") -> 11 | S5: =SUMIFS('Aug''24 & Sep''25'!$BL:$BL,'Aug''24 & Sep''25'!$I:$I,'Statewise SO Details'!$B5,'Aug''24 & Sep''25'!$AS:$AS,'Statewise SO Details'!S$2,'Aug''24 & Sep''25'!$BU:$BU,"consumer") -> 0 | T5: =SUMIFS('Aug''24 & Sep''25'!$BL:$BL,'Aug''24 & Sep''25'!$I:$I,'Statewise SO Details'!$B5,'Aug''24 & Sep''25'!$AS:$AS,'Statewise SO Details'!T$2,'Aug''24 & Sep''25'!$BU:$BU,"consumer") -> 0 | U5: =SUMIFS('Aug''24 & Sep''25'!$BL:$BL,'Aug''24 & Sep''25'!$I:$I,'Statewise SO Details'!$B5,'Aug''24 & Sep''25'!$AS:$AS,'Statewise SO Details'!U$2,'Aug''24 & Sep''25'!$BU:$BU,"consumer") -> 0 | V5: =SUMIFS('Aug''24 & Sep''25'!$BL:$BL,'Aug''24 & Sep''25'!$I:$I,'Statewise SO Details'!$B5,'Aug''24 & Sep''25'!$AS:$AS,'Statewise SO Details'!V$2,'Aug''24 & Sep''25'!$BU:$BU,"consumer") -> 0 | W5: =SUMIFS('Aug''24 & Sep''25'!$BL:$BL,'Aug''24 & Sep''25'!$I:$I,'Statewise SO Details'!$B5,'Aug''24 & Sep''25'!$AS:$AS,'Statewise SO Details'!W$2,'Aug''24 & Sep''25'!$BU:$BU,"consumer") -> 0 | X5: =SUMIFS('Aug''24 & Sep''25'!$BL:$BL,'Aug''24 & Sep''25'!$I:$I,'Statewise SO Details'!$B5,'Aug''24 & Sep''25'!$AS:$AS,'Statewise SO Details'!X$2,'Aug''24 & Sep''25'!$BU:$BU,"consumer") -> 0 | Y5: =SUMIFS('Aug''24 & Sep''25'!$BL:$BL,'Aug''24 & Sep''25'!$I:$I,'Statewise SO Details'!$B5,'Aug''24 & Sep''25'!$AS:$AS,'Statewise SO Details'!Y$2,'Aug''24 & Sep''25'!$BU:$BU,"consumer") -> 13 | Z5: =SUMIFS('Aug''24 & Sep''25'!$BL:$BL,'Aug''24 & Sep''25'!$I:$I,'Statewise SO Details'!$B5,'Aug''24 & Sep''25'!$AS:$AS,'Statewise SO Details'!Z$2,'Aug''24 & Sep''25'!$BU:$BU,"consumer") -> 4 | AA5: =SUMIFS('Aug''24 & Sep''25'!$BL:$BL,'Aug''24 & Sep''25'!$I:$I,'Statewise SO Details'!$B5,'Aug''24 & Sep''25'!$AS:$AS,'Statewise SO Details'!AA$2,'Aug''24 & Sep''25'!$BU:$BU,"consumer") -> 7 | AB5: =SUMIFS('Aug''24 & Sep''25'!$BL:$BL,'Aug''24 & Sep''25'!$I:$I,'Statewise SO Details'!$B5,'Aug''24 & Sep''25'!$AS:$AS,'Statewise SO Details'!AB$2,'Aug''24 & Sep''25'!$BU:$BU,"consumer") -> 0 | AC5: =SUMIFS('Aug''24 & Sep''25'!$BL:$BL,'Aug''24 & Sep''25'!$I:$I,'Statewise SO Details'!$B5,'Aug''24 & Sep''25'!$AS:$AS,'Statewise SO Details'!AC$2,'Aug''24 & Sep''25'!$BU:$BU,"consumer") -> 7 | AD5: =SUMIFS('Aug''24 & Sep''25'!$BL:$BL,'Aug''24 & Sep''25'!$I:$I,'Statewise SO Details'!$B5,'Aug''24 & Sep''25'!$AS:$AS,'Statewise SO Details'!AD$2,'Aug''24 & Sep''25'!$BU:$BU,"consumer") -> 20 | AE5: =SUMIFS('Aug''24 & Sep''25'!$BL:$BL,'Aug''24 & Sep''25'!$I:$I,'Statewise SO Details'!$B5,'Aug''24 & Sep''25'!$AS:$AS,'Statewise SO Details'!AE$2,'Aug''24 & Sep''25'!$BU:$BU,"consumer") -> 13 | AF5: =SUMIFS('Aug''24 & Sep''25'!$BL:$BL,'Aug''24 & Sep''25'!$I:$I,'Statewise SO Details'!$B5,'Aug''24 & Sep''25'!$AS:$AS,'Statewise SO Details'!AF$2,'Aug''24 & Sep''25'!$BU:$BU,"consumer") -> 6 | AG5: =SUMIFS('Aug''24 & Sep''25'!$BL:$BL,'Aug''24 & Sep''25'!$I:$I,'Statewise SO Details'!$B5,'Aug''24 & Sep''25'!$AS:$AS,'Statewise SO Details'!AG$2,'Aug''24 & Sep''25'!$BU:$BU,"consumer") -> 0 | AH5: =SUM(C5:AG5) -> 89 | AJ5: =AH5 -> 89 | AK5: =IFERROR(AJ5/AL5-1,0) -> -94% | AL5: =SUMIFS('Aug''24 & Sep''25'!$BL:$BL,'Aug''24 & Sep''25'!$I:$I,'Statewise SO Details'!$B5,'Aug''24 & Sep''25'!$CF:$CF,'Statewise SO Details'!AL$2,'Aug''24 & Sep''25'!$BU:$BU,"consumer",'Aug''24 & Sep''25'!$CG:$CG,"MTD") -> 1428 | AN5: =IFERROR(VLOOKUP($B5,Pivot!$P$5:$S$28,MATCH('Statewise SO Details'!AN$2,Pivot!$P$5:$S$5,0),0),0) -> 37 | AO5: =IFERROR(AN5/AP5-1,0) -> -88% | AP5: =IFERROR(VLOOKUP($B5,Pivot!$P$5:$S$28,MATCH('Statewise SO Details'!AP$2,Pivot!$P$5:$S$5,0),0),0) -> 316
A6: East1 | B6: Tripura | C6: =SUMIFS('Aug''24 & Sep''25'!$BL:$BL,'Aug''24 & Sep''25'!$I:$I,'Statewise SO Details'!$B6,'Aug''24 & Sep''25'!$AS:$AS,'Statewise SO Details'!C$2,'Aug''24 & Sep''25'!$BU:$BU,"consumer") -> 0 | D6: =SUMIFS('Aug''24 & Sep''25'!$BL:$BL,'Aug''24 & Sep''25'!$I:$I,'Statewise SO Details'!$B6,'Aug''24 & Sep''25'!$AS:$AS,'Statewise SO Details'!D$2,'Aug''24 & Sep''25'!$BU:$BU,"consumer") -> 0 | E6: =SUMIFS('Aug''24 & Sep''25'!$BL:$BL,'Aug''24 & Sep''25'!$I:$I,'Statewise SO Details'!$B6,'Aug''24 & Sep''25'!$AS:$AS,'Statewise SO Details'!E$2,'Aug''24 & Sep''25'!$BU:$BU,"consumer") -> 0 | F6: =SUMIFS('Aug''24 & Sep''25'!$BL:$BL,'Aug''24 & Sep''25'!$I:$I,'Statewise SO Details'!$B6,'Aug''24 & Sep''25'!$AS:$AS,'Statewise SO Details'!F$2,'Aug''24 & Sep''25'!$BU:$BU,"consumer") -> 0 | G6: =SUMIFS('Aug''24 & Sep''25'!$BL:$BL,'Aug''24 & Sep''25'!$I:$I,'Statewise SO Details'!$B6,'Aug''24 & Sep''25'!$AS:$AS,'Statewise SO Details'!G$2,'Aug''24 & Sep''25'!$BU:$BU,"consumer") -> 0 | H6: =SUMIFS('Aug''24 & Sep''25'!$BL:$BL,'Aug''24 & Sep''25'!$I:$I,'Statewise SO Details'!$B6,'Aug''24 & Sep''25'!$AS:$AS,'Statewise SO Details'!H$2,'Aug''24 & Sep''25'!$BU:$BU,"consumer") -> 0 | I6: =SUMIFS('Aug''24 & Sep''25'!$BL:$BL,'Aug''24 & Sep''25'!$I:$I,'Statewise SO Details'!$B6,'Aug''24 & Sep''25'!$AS:$AS,'Statewise SO Details'!I$2,'Aug''24 & Sep''25'!$BU:$BU,"consumer") -> 0 | J6: =SUMIFS('Aug''24 & Sep''25'!$BL:$BL,'Aug''24 & Sep''25'!$I:$I,'Statewise SO Details'!$B6,'Aug''24 & Sep''25'!$AS:$AS,'Statewise SO Details'!J$2,'Aug''24 & Sep''25'!$BU:$BU,"consumer") -> 0 | K6: =SUMIFS('Aug''24 & Sep''25'!$BL:$BL,'Aug''24 & Sep''25'!$I:$I,'Statewise SO Details'!$B6,'Aug''24 & Sep''25'!$AS:$AS,'Statewise SO Details'!K$2,'Aug''24 & Sep''25'!$BU:$BU,"consumer") -> 0 | L6: =SUMIFS('Aug''24 & Sep''25'!$BL:$BL,'Aug''24 & Sep''25'!$I:$I,'Statewise SO Details'!$B6,'Aug''24 & Sep''25'!$AS:$AS,'Statewise SO Details'!L$2,'Aug''24 & Sep''25'!$BU:$BU,"consumer") -> 0 | M6: =SUMIFS('Aug''24 & Sep''25'!$BL:$BL,'Aug''24 & Sep''25'!$I:$I,'Statewise SO Details'!$B6,'Aug''24 & Sep''25'!$AS:$AS,'Statewise SO Details'!M$2,'Aug''24 & Sep''25'!$BU:$BU,"consumer") -> 0 | N6: =SUMIFS('Aug''24 & Sep''25'!$BL:$BL,'Aug''24 & Sep''25'!$I:$I,'Statewise SO Details'!$B6,'Aug''24 & Sep''25'!$AS:$AS,'Statewise SO Details'!N$2,'Aug''24 & Sep''25'!$BU:$BU,"consumer") -> 0 | O6: =SUMIFS('Aug''24 & Sep''25'!$BL:$BL,'Aug''24 & Sep''25'!$I:$I,'Statewise SO Details'!$B6,'Aug''24 & Sep''25'!$AS:$AS,'Statewise SO Details'!O$2,'Aug''24 & Sep''25'!$BU:$BU,"consumer") -> 0 | P6: =SUMIFS('Aug''24 & Sep''25'!$BL:$BL,'Aug''24 & Sep''25'!$I:$I,'Statewise SO Details'!$B6,'Aug''24 & Sep''25'!$AS:$AS,'Statewise SO Details'!P$2,'Aug''24 & Sep''25'!$BU:$BU,"consumer") -> 0 | Q6: =SUMIFS('Aug''24 & Sep''25'!$BL:$BL,'Aug''24 & Sep''25'!$I:$I,'Statewise SO Details'!$B6,'Aug''24 & Sep''25'!$AS:$AS,'Statewise SO Details'!Q$2,'Aug''24 & Sep''25'!$BU:$BU,"consumer") -> 0 | R6: =SUMIFS('Aug''24 & Sep''25'!$BL:$BL,'Aug''24 & Sep''25'!$I:$I,'Statewise SO Details'!$B6,'Aug''24 & Sep''25'!$AS:$AS,'Statewise SO Details'!R$2,'Aug''24 & Sep''25'!$BU:$BU,"consumer") -> 0 | S6: =SUMIFS('Aug''24 & Sep''25'!$BL:$BL,'Aug''24 & Sep''25'!$I:$I,'Statewise SO Details'!$B6,'Aug''24 & Sep''25'!$AS:$AS,'Statewise SO Details'!S$2,'Aug''24 & Sep''25'!$BU:$BU,"consumer") -> 0 | T6: =SUMIFS('Aug''24 & Sep''25'!$BL:$BL,'Aug''24 & Sep''25'!$I:$I,'Statewise SO Details'!$B6,'Aug''24 & Sep''25'!$AS:$AS,'Statewise SO Details'!T$2,'Aug''24 & Sep''25'!$BU:$BU,"consumer") -> 0 | U6: =SUMIFS('Aug''24 & Sep''25'!$BL:$BL,'Aug''24 & Sep''25'!$I:$I,'Statewise SO Details'!$B6,'Aug''24 & Sep''25'!$AS:$AS,'Statewise SO Details'!U$2,'Aug''24 & Sep''25'!$BU:$BU,"consumer") -> 0 | V6: =SUMIFS('Aug''24 & Sep''25'!$BL:$BL,'Aug''24 & Sep''25'!$I:$I,'Statewise SO Details'!$B6,'Aug''24 & Sep''25'!$AS:$AS,'Statewise SO Details'!V$2,'Aug''24 & Sep''25'!$BU:$BU,"consumer") -> 0 | W6: =SUMIFS('Aug''24 & Sep''25'!$BL:$BL,'Aug''24 & Sep''25'!$I:$I,'Statewise SO Details'!$B6,'Aug''24 & Sep''25'!$AS:$AS,'Statewise SO Details'!W$2,'Aug''24 & Sep''25'!$BU:$BU,"consumer") -> 0 | X6: =SUMIFS('Aug''24 & Sep''25'!$BL:$BL,'Aug''24 & Sep''25'!$I:$I,'Statewise SO Details'!$B6,'Aug''24 & Sep''25'!$AS:$AS,'Statewise SO Details'!X$2,'Aug''24 & Sep''25'!$BU:$BU,"consumer") -> 0 | Y6: =SUMIFS('Aug''24 & Sep''25'!$BL:$BL,'Aug''24 & Sep''25'!$I:$I,'Statewise SO Details'!$B6,'Aug''24 & Sep''25'!$AS:$AS,'Statewise SO Details'!Y$2,'Aug''24 & Sep''25'!$BU:$BU,"consumer") -> 0 | Z6: =SUMIFS('Aug''24 & Sep''25'!$BL:$BL,'Aug''24 & Sep''25'!$I:$I,'Statewise SO Details'!$B6,'Aug''24 & Sep''25'!$AS:$AS,'Statewise SO Details'!Z$2,'Aug''24 & Sep''25'!$BU:$BU,"consumer") -> 0 | AA6: =SUMIFS('Aug''24 & Sep''25'!$BL:$BL,'Aug''24 & Sep''25'!$I:$I,'Statewise SO Details'!$B6,'Aug''24 & Sep''25'!$AS:$AS,'Statewise SO Details'!AA$2,'Aug''24 & Sep''25'!$BU:$BU,"consumer") -> 0 | AB6: =SUMIFS('Aug''24 & Sep''25'!$BL:$BL,'Aug''24 & Sep''25'!$I:$I,'Statewise SO Details'!$B6,'Aug''24 & Sep''25'!$AS:$AS,'Statewise SO Details'!AB$2,'Aug''24 & Sep''25'!$BU:$BU,"consumer") -> 0 | AC6: =SUMIFS('Aug''24 & Sep''25'!$BL:$BL,'Aug''24 & Sep''25'!$I:$I,'Statewise SO Details'!$B6,'Aug''24 & Sep''25'!$AS:$AS,'Statewise SO Details'!AC$2,'Aug''24 & Sep''25'!$BU:$BU,"consumer") -> 0 | AD6: =SUMIFS('Aug''24 & Sep''25'!$BL:$BL,'Aug''24 & Sep''25'!$I:$I,'Statewise SO Details'!$B6,'Aug''24 & Sep''25'!$AS:$AS,'Statewise SO Details'!AD$2,'Aug''24 & Sep''25'!$BU:$BU,"consumer") -> 0 | AE6: =SUMIFS('Aug''24 & Sep''25'!$BL:$BL,'Aug''24 & Sep''25'!$I:$I,'Statewise SO Details'!$B6,'Aug''24 & Sep''25'!$AS:$AS,'Statewise SO Details'!AE$2,'Aug''24 & Sep''25'!$BU:$BU,"consumer") -> 0 | AF6: =SUMIFS('Aug''24 & Sep''25'!$BL:$BL,'Aug''24 & Sep''25'!$I:$I,'Statewise SO Details'!$B6,'Aug''24 & Sep''25'!$AS:$AS,'Statewise SO Details'!AF$2,'Aug''24 & Sep''25'!$BU:$BU,"consumer") -> 0 | AG6: =SUMIFS('Aug''24 & Sep''25'!$BL:$BL,'Aug''24 & Sep''25'!$I:$I,'Statewise SO Details'!$B6,'Aug''24 & Sep''25'!$AS:$AS,'Statewise SO Details'!AG$2,'Aug''24 & Sep''25'!$BU:$BU,"consumer") -> 0 | AH6: 0 | AJ6: 0 | AK6: 0% | AL6: =SUMIFS('Aug''24 & Sep''25'!$BL:$BL,'Aug''24 & Sep''25'!$I:$I,'Statewise SO Details'!$B6,'Aug''24 & Sep''25'!$CF:$CF,'Statewise SO Details'!AL$2,'Aug''24 & Sep''25'!$BU:$BU,"consumer",'Aug''24 & Sep''25'!$CG:$CG,"MTD") -> 0 | AN6: =IFERROR(VLOOKUP($B6,Pivot!$P$5:$S$28,MATCH('Statewise SO Details'!AN$2,Pivot!$P$5:$S$5,0),0),0) -> 0 | AO6: 0% | AP6: =IFERROR(VLOOKUP($B6,Pivot!$P$5:$S$28,MATCH('Statewise SO Details'!AP$2,Pivot!$P$5:$S$5,0),0),0) -> 0
A7: East1 | B7: West Bengal | C7: =SUMIFS('Aug''24 & Sep''25'!$BL:$BL,'Aug''24 & Sep''25'!$I:$I,'Statewise SO Details'!$B7,'Aug''24 & Sep''25'!$AS:$AS,'Statewise SO Details'!C$2,'Aug''24 & Sep''25'!$BU:$BU,"consumer") -> 0 | D7: =SUMIFS('Aug''24 & Sep''25'!$BL:$BL,'Aug''24 & Sep''25'!$I:$I,'Statewise SO Details'!$B7,'Aug''24 & Sep''25'!$AS:$AS,'Statewise SO Details'!D$2,'Aug''24 & Sep''25'!$BU:$BU,"consumer") -> 0 | E7: =SUMIFS('Aug''24 & Sep''25'!$BL:$BL,'Aug''24 & Sep''25'!$I:$I,'Statewise SO Details'!$B7,'Aug''24 & Sep''25'!$AS:$AS,'Statewise SO Details'!E$2,'Aug''24 & Sep''25'!$BU:$BU,"consumer") -> 0 | F7: =SUMIFS('Aug''24 & Sep''25'!$BL:$BL,'Aug''24 & Sep''25'!$I:$I,'Statewise SO Details'!$B7,'Aug''24 & Sep''25'!$AS:$AS,'Statewise SO Details'!F$2,'Aug''24 & Sep''25'!$BU:$BU,"consumer") -> 0 | G7: =SUMIFS('Aug''24 & Sep''25'!$BL:$BL,'Aug''24 & Sep''25'!$I:$I,'Statewise SO Details'!$B7,'Aug''24 & Sep''25'!$AS:$AS,'Statewise SO Details'!G$2,'Aug''24 & Sep''25'!$BU:$BU,"consumer") -> 0 | H7: =SUMIFS('Aug''24 & Sep''25'!$BL:$BL,'Aug''24 & Sep''25'!$I:$I,'Statewise SO Details'!$B7,'Aug''24 & Sep''25'!$AS:$AS,'Statewise SO Details'!H$2,'Aug''24 & Sep''25'!$BU:$BU,"consumer") -> 26 | I7: =SUMIFS('Aug''24 & Sep''25'!$BL:$BL,'Aug''24 & Sep''25'!$I:$I,'Statewise SO Details'!$B7,'Aug''24 & Sep''25'!$AS:$AS,'Statewise SO Details'!I$2,'Aug''24 & Sep''25'!$BU:$BU,"consumer") -> 3 | J7: =SUMIFS('Aug''24 & Sep''25'!$BL:$BL,'Aug''24 & Sep''25'!$I:$I,'Statewise SO Details'!$B7,'Aug''24 & Sep''25'!$AS:$AS,'Statewise SO Details'!J$2,'Aug''24 & Sep''25'!$BU:$BU,"consumer") -> 0 | K7: =SUMIFS('Aug''24 & Sep''25'!$BL:$BL,'Aug''24 & Sep''25'!$I:$I,'Statewise SO Details'!$B7,'Aug''24 & Sep''25'!$AS:$AS,'Statewise SO Details'!K$2,'Aug''24 & Sep''25'!$BU:$BU,"consumer") -> 4 | L7: =SUMIFS('Aug''24 & Sep''25'!$BL:$BL,'Aug''24 & Sep''25'!$I:$I,'Statewise SO Details'!$B7,'Aug''24 & Sep''25'!$AS:$AS,'Statewise SO Details'!L$2,'Aug''24 & Sep''25'!$BU:$BU,"consumer") -> 16 | M7: =SUMIFS('Aug''24 & Sep''25'!$BL:$BL,'Aug''24 & Sep''25'!$I:$I,'Statewise SO Details'!$B7,'Aug''24 & Sep''25'!$AS:$AS,'Statewise SO Details'!M$2,'Aug''24 & Sep''25'!$BU:$BU,"consumer") -> 3 | N7: =SUMIFS('Aug''24 & Sep''25'!$BL:$BL,'Aug''24 & Sep''25'!$I:$I,'Statewise SO Details'!$B7,'Aug''24 & Sep''25'!$AS:$AS,'Statewise SO Details'!N$2,'Aug''24 & Sep''25'!$BU:$BU,"consumer") -> 4 | O7: =SUMIFS('Aug''24 & Sep''25'!$BL:$BL,'Aug''24 & Sep''25'!$I:$I,'Statewise SO Details'!$B7,'Aug''24 & Sep''25'!$AS:$AS,'Statewise SO Details'!O$2,'Aug''24 & Sep''25'!$BU:$BU,"consumer") -> 5 | P7: =SUMIFS('Aug''24 & Sep''25'!$BL:$BL,'Aug''24 & Sep''25'!$I:$I,'Statewise SO Details'!$B7,'Aug''24 & Sep''25'!$AS:$AS,'Statewise SO Details'!P$2,'Aug''24 & Sep''25'!$BU:$BU,"consumer") -> 7 | Q7: =SUMIFS('Aug''24 & Sep''25'!$BL:$BL,'Aug''24 & Sep''25'!$I:$I,'Statewise SO Details'!$B7,'Aug''24 & Sep''25'!$AS:$AS,'Statewise SO Details'!Q$2,'Aug''24 & Sep''25'!$BU:$BU,"consumer") -> 25 | R7: =SUMIFS('Aug''24 & Sep''25'!$BL:$BL,'Aug''24 & Sep''25'!$I:$I,'Statewise SO Details'!$B7,'Aug''24 & Sep''25'!$AS:$AS,'Statewise SO Details'!R$2,'Aug''24 & Sep''25'!$BU:$BU,"consumer") -> 18 | S7: =SUMIFS('Aug''24 & Sep''25'!$BL:$BL,'Aug''24 & Sep''25'!$I:$I,'Statewise SO Details'!$B7,'Aug''24 & Sep''25'!$AS:$AS,'Statewise SO Details'!S$2,'Aug''24 & Sep''25'!$BU:$BU,"consumer") -> 23 | T7: =SUMIFS('Aug''24 & Sep''25'!$BL:$BL,'Aug''24 & Sep''25'!$I:$I,'Statewise SO Details'!$B7,'Aug''24 & Sep''25'!$AS:$AS,'Statewise SO Details'!T$2,'Aug''24 & Sep''25'!$BU:$BU,"consumer") -> 4 | U7: =SUMIFS('Aug''24 & Sep''25'!$BL:$BL,'Aug''24 & Sep''25'!$I:$I,'Statewise SO Details'!$B7,'Aug''24 & Sep''25'!$AS:$AS,'Statewise SO Details'!U$2,'Aug''24 & Sep''25'!$BU:$BU,"consumer") -> 6 | V7: =SUMIFS('Aug''24 & Sep''25'!$BL:$BL,'Aug''24 & Sep''25'!$I:$I,'Statewise SO Details'!$B7,'Aug''24 & Sep''25'!$AS:$AS,'Statewise SO Details'!V$2,'Aug''24 & Sep''25'!$BU:$BU,"consumer") -> 28 | W7: =SUMIFS('Aug''24 & Sep''25'!$BL:$BL,'Aug''24 & Sep''25'!$I:$I,'Statewise SO Details'!$B7,'Aug''24 & Sep''25'!$AS:$AS,'Statewise SO Details'!W$2,'Aug''24 & Sep''25'!$BU:$BU,"consumer") -> 73 | X7: =SUMIFS('Aug''24 & Sep''25'!$BL:$BL,'Aug''24 & Sep''25'!$I:$I,'Statewise SO Details'!$B7,'Aug''24 & Sep''25'!$AS:$AS,'Statewise SO Details'!X$2,'Aug''24 & Sep''25'!$BU:$BU,"consumer") -> 3 | Y7: =SUMIFS('Aug''24 & Sep''25'!$BL:$BL,'Aug''24 & Sep''25'!$I:$I,'Statewise SO Details'!$B7,'Aug''24 & Sep''25'!$AS:$AS,'Statewise SO Details'!Y$2,'Aug''24 & Sep''25'!$BU:$BU,"consumer") -> 22 | Z7: =SUMIFS('Aug''24 & Sep''25'!$BL:$BL,'Aug''24 & Sep''25'!$I:$I,'Statewise SO Details'!$B7,'Aug''24 & Sep''25'!$AS:$AS,'Statewise SO Details'!Z$2,'Aug''24 & Sep''25'!$BU:$BU,"consumer") -> 9 | AA7: =SUMIFS('Aug''24 & Sep''25'!$BL:$BL,'Aug''24 & Sep''25'!$I:$I,'Statewise SO Details'!$B7,'Aug''24 & Sep''25'!$AS:$AS,'Statewise SO Details'!AA$2,'Aug''24 & Sep''25'!$BU:$BU,"consumer") -> 12 | AB7: =SUMIFS('Aug''24 & Sep''25'!$BL:$BL,'Aug''24 & Sep''25'!$I:$I,'Statewise SO Details'!$B7,'Aug''24 & Sep''25'!$AS:$AS,'Statewise SO Details'!AB$2,'Aug''24 & Sep''25'!$BU:$BU,"consumer") -> 7 | AC7: =SUMIFS('Aug''24 & Sep''25'!$BL:$BL,'Aug''24 & Sep''25'!$I:$I,'Statewise SO Details'!$B7,'Aug''24 & Sep''25'!$AS:$AS,'Statewise SO Details'!AC$2,'Aug''24 & Sep''25'!$BU:$BU,"consumer") -> 25 | AD7: =SUMIFS('Aug''24 & Sep''25'!$BL:$BL,'Aug''24 & Sep''25'!$I:$I,'Statewise SO Details'!$B7,'Aug''24 & Sep''25'!$AS:$AS,'Statewise SO Details'!AD$2,'Aug''24 & Sep''25'!$BU:$BU,"consumer") -> 26 | AE7: =SUMIFS('Aug''24 & Sep''25'!$BL:$BL,'Aug''24 & Sep''25'!$I:$I,'Statewise SO Details'!$B7,'Aug''24 & Sep''25'!$AS:$AS,'Statewise SO Details'!AE$2,'Aug''24 & Sep''25'!$BU:$BU,"consumer") -> 373 | AF7: =SUMIFS('Aug''24 & Sep''25'!$BL:$BL,'Aug''24 & Sep''25'!$I:$I,'Statewise SO Details'!$B7,'Aug''24 & Sep''25'!$AS:$AS,'Statewise SO Details'!AF$2,'Aug''24 & Sep''25'!$BU:$BU,"consumer") -> 162 | AG7: =SUMIFS('Aug''24 & Sep''25'!$BL:$BL,'Aug''24 & Sep''25'!$I:$I,'Statewise SO Details'!$B7,'Aug''24 & Sep''25'!$AS:$AS,'Statewise SO Details'!AG$2,'Aug''24 & Sep''25'!$BU:$BU,"consumer") -> 0 | AH7: 884 | AJ7: 884 | AK7: -6% | AL7: =SUMIFS('Aug''24 & Sep''25'!$BL:$BL,'Aug''24 & Sep''25'!$I:$I,'Statewise SO Details'!$B7,'Aug''24 & Sep''25'!$CF:$CF,'Statewise SO Details'!AL$2,'Aug''24 & Sep''25'!$BU:$BU,"consumer",'Aug''24 & Sep''25'!$CG:$CG,"MTD") -> 940 | AN7: =IFERROR(VLOOKUP($B7,Pivot!$P$5:$S$28,MATCH('Statewise SO Details'!AN$2,Pivot!$P$5:$S$5,0),0),0) -> 392 | AO7: 12% | AP7: =IFERROR(VLOOKUP($B7,Pivot!$P$5:$S$28,MATCH('Statewise SO Details'!AP$2,Pivot!$P$5:$S$5,0),0),0) -> 350
A8: East2 | B8: Bihar | C8: =SUMIFS('Aug''24 & Sep''25'!$BL:$BL,'Aug''24 & Sep''25'!$I:$I,'Statewise SO Details'!$B8,'Aug''24 & Sep''25'!$AS:$AS,'Statewise SO Details'!C$2,'Aug''24 & Sep''25'!$BU:$BU,"consumer") -> 0 | D8: =SUMIFS('Aug''24 & Sep''25'!$BL:$BL,'Aug''24 & Sep''25'!$I:$I,'Statewise SO Details'!$B8,'Aug''24 & Sep''25'!$AS:$AS,'Statewise SO Details'!D$2,'Aug''24 & Sep''25'!$BU:$BU,"consumer") -> 0 | E8: =SUMIFS('Aug''24 & Sep''25'!$BL:$BL,'Aug''24 & Sep''25'!$I:$I,'Statewise SO Details'!$B8,'Aug''24 & Sep''25'!$AS:$AS,'Statewise SO Details'!E$2,'Aug''24 & Sep''25'!$BU:$BU,"consumer") -> 6 | F8: =SUMIFS('Aug''24 & Sep''25'!$BL:$BL,'Aug''24 & Sep''25'!$I:$I,'Statewise SO Details'!$B8,'Aug''24 & Sep''25'!$AS:$AS,'Statewise SO Details'!F$2,'Aug''24 & Sep''25'!$BU:$BU,"consumer") -> 2 | G8: =SUMIFS('Aug''24 & Sep''25'!$BL:$BL,'Aug''24 & Sep''25'!$I:$I,'Statewise SO Details'!$B8,'Aug''24 & Sep''25'!$AS:$AS,'Statewise SO Details'!G$2,'Aug''24 & Sep''25'!$BU:$BU,"consumer") -> 13 | H8: =SUMIFS('Aug''24 & Sep''25'!$BL:$BL,'Aug''24 & Sep''25'!$I:$I,'Statewise SO Details'!$B8,'Aug''24 & Sep''25'!$AS:$AS,'Statewise SO Details'!H$2,'Aug''24 & Sep''25'!$BU:$BU,"consumer") -> 0 | I8: =SUMIFS('Aug''24 & Sep''25'!$BL:$BL,'Aug''24 & Sep''25'!$I:$I,'Statewise SO Details'!$B8,'Aug''24 & Sep''25'!$AS:$AS,'Statewise SO Details'!I$2,'Aug''24 & Sep''25'!$BU:$BU,"consumer") -> 9 | J8: =SUMIFS('Aug''24 & Sep''25'!$BL:$BL,'Aug''24 & Sep''25'!$I:$I,'Statewise SO Details'!$B8,'Aug''24 & Sep''25'!$AS:$AS,'Statewise SO Details'!J$2,'Aug''24 & Sep''25'!$BU:$BU,"consumer") -> 4 | K8: =SUMIFS('Aug''24 & Sep''25'!$BL:$BL,'Aug''24 & Sep''25'!$I:$I,'Statewise SO Details'!$B8,'Aug''24 & Sep''25'!$AS:$AS,'Statewise SO Details'!K$2,'Aug''24 & Sep''25'!$BU:$BU,"consumer") -> 5 | L8: =SUMIFS('Aug''24 & Sep''25'!$BL:$BL,'Aug''24 & Sep''25'!$I:$I,'Statewise SO Details'!$B8,'Aug''24 & Sep''25'!$AS:$AS,'Statewise SO Details'!L$2,'Aug''24 & Sep''25'!$BU:$BU,"consumer") -> 6 | M8: =SUMIFS('Aug''24 & Sep''25'!$BL:$BL,'Aug''24 & Sep''25'!$I:$I,'Statewise SO Details'!$B8,'Aug''24 & Sep''25'!$AS:$AS,'Statewise SO Details'!M$2,'Aug''24 & Sep''25'!$BU:$BU,"consumer") -> 0 | N8: =SUMIFS('Aug''24 & Sep''25'!$BL:$BL,'Aug''24 & Sep''25'!$I:$I,'Statewise SO Details'!$B8,'Aug''24 & Sep''25'!$AS:$AS,'Statewise SO Details'!N$2,'Aug''24 & Sep''25'!$BU:$BU,"consumer") -> 2 | O8: =SUMIFS('Aug''24 & Sep''25'!$BL:$BL,'Aug''24 & Sep''25'!$I:$I,'Statewise SO Details'!$B8,'Aug''24 & Sep''25'!$AS:$AS,'Statewise SO Details'!O$2,'Aug''24 & Sep''25'!$BU:$BU,"consumer") -> 1 | P8: =SUMIFS('Aug''24 & Sep''25'!$BL:$BL,'Aug''24 & Sep''25'!$I:$I,'Statewise SO Details'!$B8,'Aug''24 & Sep''25'!$AS:$AS,'Statewise SO Details'!P$2,'Aug''24 & Sep''25'!$BU:$BU,"consumer") -> 5 | Q8: =SUMIFS('Aug''24 & Sep''25'!$BL:$BL,'Aug''24 & Sep''25'!$I:$I,'Statewise SO Details'!$B8,'Aug''24 & Sep''25'!$AS:$AS,'Statewise SO Details'!Q$2,'Aug''24 & Sep''25'!$BU:$BU,"consumer") -> 1 | R8: =SUMIFS('Aug''24 & Sep''25'!$BL:$BL,'Aug''24 & Sep''25'!$I:$I,'Statewise SO Details'!$B8,'Aug''24 & Sep''25'!$AS:$AS,'Statewise SO Details'!R$2,'Aug''24 & Sep''25'!$BU:$BU,"consumer") -> 2 | S8: =SUMIFS('Aug''24 & Sep''25'!$BL:$BL,'Aug''24 & Sep''25'!$I:$I,'Statewise SO Details'!$B8,'Aug''24 & Sep''25'!$AS:$AS,'Statewise SO Details'!S$2,'Aug''24 & Sep''25'!$BU:$BU,"consumer") -> 8 | T8: =SUMIFS('Aug''24 & Sep''25'!$BL:$BL,'Aug''24 & Sep''25'!$I:$I,'Statewise SO Details'!$B8,'Aug''24 & Sep''25'!$AS:$AS,'Statewise SO Details'!T$2,'Aug''24 & Sep''25'!$BU:$BU,"consumer") -> 12 | U8: =SUMIFS('Aug''24 & Sep''25'!$BL:$BL,'Aug''24 & Sep''25'!$I:$I,'Statewise SO Details'!$B8,'Aug''24 & Sep''25'!$AS:$AS,'Statewise SO Details'!U$2,'Aug''24 & Sep''25'!$BU:$BU,"consumer") -> 8 | V8: =SUMIFS('Aug''24 & Sep''25'!$BL:$BL,'Aug''24 & Sep''25'!$I:$I,'Statewise SO Details'!$B8,'Aug''24 & Sep''25'!$AS:$AS,'Statewise SO Details'!V$2,'Aug''24 & Sep''25'!$BU:$BU,"consumer") -> 8 | W8: =SUMIFS('Aug''24 & Sep''25'!$BL:$BL,'Aug''24 & Sep''25'!$I:$I,'Statewise SO Details'!$B8,'Aug''24 & Sep''25'!$AS:$AS,'Statewise SO Details'!W$2,'Aug''24 & Sep''25'!$BU:$BU,"consumer") -> 2 | X8: =SUMIFS('Aug''24 & Sep''25'!$BL:$BL,'Aug''24 & Sep''25'!$I:$I,'Statewise SO Details'!$B8,'Aug''24 & Sep''25'!$AS:$AS,'Statewise SO Details'!X$2,'Aug''24 & Sep''25'!$BU:$BU,"consumer") -> 1 | Y8: =SUMIFS('Aug''24 & Sep''25'!$BL:$BL,'Aug''24 & Sep''25'!$I:$I,'Statewise SO Details'!$B8,'Aug''24 & Sep''25'!$AS:$AS,'Statewise SO Details'!Y$2,'Aug''24 & Sep''25'!$BU:$BU,"consumer") -> 2 | Z8: =SUMIFS('Aug''24 & Sep''25'!$BL:$BL,'Aug''24 & Sep''25'!$I:$I,'Statewise SO Details'!$B8,'Aug''24 & Sep''25'!$AS:$AS,'Statewise SO Details'!Z$2,'Aug''24 & Sep''25'!$BU:$BU,"consumer") -> 10 | AA8: =SUMIFS('Aug''24 & Sep''25'!$BL:$BL,'Aug''24 & Sep''25'!$I:$I,'Statewise SO Details'!$B8,'Aug''24 & Sep''25'!$AS:$AS,'Statewise SO Details'!AA$2,'Aug''24 & Sep''25'!$BU:$BU,"consumer") -> 13 | AB8: =SUMIFS('Aug''24 & Sep''25'!$BL:$BL,'Aug''24 & Sep''25'!$I:$I,'Statewise SO Details'!$B8,'Aug''24 & Sep''25'!$AS:$AS,'Statewise SO Details'!AB$2,'Aug''24 & Sep''25'!$BU:$BU,"consumer") -> 19 | AC8: =SUMIFS('Aug''24 & Sep''25'!$BL:$BL,'Aug''24 & Sep''25'!$I:$I,'Statewise SO Details'!$B8,'Aug''24 & Sep''25'!$AS:$AS,'Statewise SO Details'!AC$2,'Aug''24 & Sep''25'!$BU:$BU,"consumer") -> 6 | AD8: =SUMIFS('Aug''24 & Sep''25'!$BL:$BL,'Aug''24 & Sep''25'!$I:$I,'Statewise SO Details'!$B8,'Aug''24 & Sep''25'!$AS:$AS,'Statewise SO Details'!AD$2,'Aug''24 & Sep''25'!$BU:$BU,"consumer") -> 34 | AE8: =SUMIFS('Aug''24 & Sep''25'!$BL:$BL,'Aug''24 & Sep''25'!$I:$I,'Statewise SO Details'!$B8,'Aug''24 & Sep''25'!$AS:$AS,'Statewise SO Details'!AE$2,'Aug''24 & Sep''25'!$BU:$BU,"consumer") -> 65 | AF8: =SUMIFS('Aug''24 & Sep''25'!$BL:$BL,'Aug''24 & Sep''25'!$I:$I,'Statewise SO Details'!$B8,'Aug''24 & Sep''25'!$AS:$AS,'Statewise SO Details'!AF$2,'Aug''24 & Sep''25'!$BU:$BU,"consumer") -> 234 | AG8: =SUMIFS('Aug''24 & Sep''25'!$BL:$BL,'Aug''24 & Sep''25'!$I:$I,'Statewise SO Details'!$B8,'Aug''24 & Sep''25'!$AS:$AS,'Statewise SO Details'!AG$2,'Aug''24 & Sep''25'!$BU:$BU,"consumer") -> 0 | AH8: 478 | AJ8: 478 | AK8: -55% | AL8: =SUMIFS('Aug''24 & Sep''25'!$BL:$BL,'Aug''24 & Sep''25'!$I:$I,'Statewise SO Details'!$B8,'Aug''24 & Sep''25'!$CF:$CF,'Statewise SO Details'!AL$2,'Aug''24 & Sep''25'!$BU:$BU,"consumer",'Aug''24 & Sep''25'!$CG:$CG,"MTD") -> 1055 | AN8: =IFERROR(VLOOKUP($B8,Pivot!$P$5:$S$28,MATCH('Statewise SO Details'!AN$2,Pivot!$P$5:$S$5,0),0),0) -> 154 | AO8: -36% | AP8: =IFERROR(VLOOKUP($B8,Pivot!$P$5:$S$28,MATCH('Statewise SO Details'!AP$2,Pivot!$P$5:$S$5,0),0),0) -> 242
A9: East2 | B9: Jharkhand | C9: =SUMIFS('Aug''24 & Sep''25'!$BL:$BL,'Aug''24 & Sep''25'!$I:$I,'Statewise SO Details'!$B9,'Aug''24 & Sep''25'!$AS:$AS,'Statewise SO Details'!C$2,'Aug''24 & Sep''25'!$BU:$BU,"consumer") -> 0 | D9: =SUMIFS('Aug''24 & Sep''25'!$BL:$BL,'Aug''24 & Sep''25'!$I:$I,'Statewise SO Details'!$B9,'Aug''24 & Sep''25'!$AS:$AS,'Statewise SO Details'!D$2,'Aug''24 & Sep''25'!$BU:$BU,"consumer") -> 0 | E9: =SUMIFS('Aug''24 & Sep''25'!$BL:$BL,'Aug''24 & Sep''25'!$I:$I,'Statewise SO Details'!$B9,'Aug''24 & Sep''25'!$AS:$AS,'Statewise SO Details'!E$2,'Aug''24 & Sep''25'!$BU:$BU,"consumer") -> 1 | F9: =SUMIFS('Aug''24 & Sep''25'!$BL:$BL,'Aug''24 & Sep''25'!$I:$I,'Statewise SO Details'!$B9,'Aug''24 & Sep''25'!$AS:$AS,'Statewise SO Details'!F$2,'Aug''24 & Sep''25'!$BU:$BU,"consumer") -> 0 | G9: =SUMIFS('Aug''24 & Sep''25'!$BL:$BL,'Aug''24 & Sep''25'!$I:$I,'Statewise SO Details'!$B9,'Aug''24 & Sep''25'!$AS:$AS,'Statewise SO Details'!G$2,'Aug''24 & Sep''25'!$BU:$BU,"consumer") -> 0 | H9: =SUMIFS('Aug''24 & Sep''25'!$BL:$BL,'Aug''24 & Sep''25'!$I:$I,'Statewise SO Details'!$B9,'Aug''24 & Sep''25'!$AS:$AS,'Statewise SO Details'!H$2,'Aug''24 & Sep''25'!$BU:$BU,"consumer") -> 0 | I9: =SUMIFS('Aug''24 & Sep''25'!$BL:$BL,'Aug''24 & Sep''25'!$I:$I,'Statewise SO Details'!$B9,'Aug''24 & Sep''25'!$AS:$AS,'Statewise SO Details'!I$2,'Aug''24 & Sep''25'!$BU:$BU,"consumer") -> 0 | J9: =SUMIFS('Aug''24 & Sep''25'!$BL:$BL,'Aug''24 & Sep''25'!$I:$I,'Statewise SO Details'!$B9,'Aug''24 & Sep''25'!$AS:$AS,'Statewise SO Details'!J$2,'Aug''24 & Sep''25'!$BU:$BU,"consumer") -> 0 | K9: =SUMIFS('Aug''24 & Sep''25'!$BL:$BL,'Aug''24 & Sep''25'!$I:$I,'Statewise SO Details'!$B9,'Aug''24 & Sep''25'!$AS:$AS,'Statewise SO Details'!K$2,'Aug''24 & Sep''25'!$BU:$BU,"consumer") -> 0 | L9: =SUMIFS('Aug''24 & Sep''25'!$BL:$BL,'Aug''24 & Sep''25'!$I:$I,'Statewise SO Details'!$B9,'Aug''24 & Sep''25'!$AS:$AS,'Statewise SO Details'!L$2,'Aug''24 & Sep''25'!$BU:$BU,"consumer") -> 17 | M9: =SUMIFS('Aug''24 & Sep''25'!$BL:$BL,'Aug''24 & Sep''25'!$I:$I,'Statewise SO Details'!$B9,'Aug''24 & Sep''25'!$AS:$AS,'Statewise SO Details'!M$2,'Aug''24 & Sep''25'!$BU:$BU,"consumer") -> 0 | N9: =SUMIFS('Aug''24 & Sep''25'!$BL:$BL,'Aug''24 & Sep''25'!$I:$I,'Statewise SO Details'!$B9,'Aug''24 & Sep''25'!$AS:$AS,'Statewise SO Details'!N$2,'Aug''24 & Sep''25'!$BU:$BU,"consumer") -> 0 | O9: =SUMIFS('Aug''24 & Sep''25'!$BL:$BL,'Aug''24 & Sep''25'!$I:$I,'Statewise SO Details'!$B9,'Aug''24 & Sep''25'!$AS:$AS,'Statewise SO Details'!O$2,'Aug''24 & Sep''25'!$BU:$BU,"consumer") -> 0 | P9: =SUMIFS('Aug''24 & Sep''25'!$BL:$BL,'Aug''24 & Sep''25'!$I:$I,'Statewise SO Details'!$B9,'Aug''24 & Sep''25'!$AS:$AS,'Statewise SO Details'!P$2,'Aug''24 & Sep''25'!$BU:$BU,"consumer") -> 4 | Q9: =SUMIFS('Aug''24 & Sep''25'!$BL:$BL,'Aug''24 & Sep''25'!$I:$I,'Statewise SO Details'!$B9,'Aug''24 & Sep''25'!$AS:$AS,'Statewise SO Details'!Q$2,'Aug''24 & Sep''25'!$BU:$BU,"consumer") -> 21 | R9: =SUMIFS('Aug''24 & Sep''25'!$BL:$BL,'Aug''24 & Sep''25'!$I:$I,'Statewise SO Details'!$B9,'Aug''24 & Sep''25'!$AS:$AS,'Statewise SO Details'!R$2,'Aug''24 & Sep''25'!$BU:$BU,"consumer") -> 0 | S9: =SUMIFS('Aug''24 & Sep''25'!$BL:$BL,'Aug''24 & Sep''25'!$I:$I,'Statewise SO Details'!$B9,'Aug''24 & Sep''25'!$AS:$AS,'Statewise SO Details'!S$2,'Aug''24 & Sep''25'!$BU:$BU,"consumer") -> 0 | T9: =SUMIFS('Aug''24 & Sep''25'!$BL:$BL,'Aug''24 & Sep''25'!$I:$I,'Statewise SO Details'!$B9,'Aug''24 & Sep''25'!$AS:$AS,'Statewise SO Details'!T$2,'Aug''24 & Sep''25'!$BU:$BU,"consumer") -> 56 | U9: =SUMIFS('Aug''24 & Sep''25'!$BL:$BL,'Aug''24 & Sep''25'!$I:$I,'Statewise SO Details'!$B9,'Aug''24 & Sep''25'!$AS:$AS,'Statewise SO Details'!U$2,'Aug''24 & Sep''25'!$BU:$BU,"consumer") -> 8 | V9: =SUMIFS('Aug''24 & Sep''25'!$BL:$BL,'Aug''24 & Sep''25'!$I:$I,'Statewise SO Details'!$B9,'Aug''24 & Sep''25'!$AS:$AS,'Statewise SO Details'!V$2,'Aug''24 & Sep''25'!$BU:$BU,"consumer") -> 18 | W9: =SUMIFS('Aug''24 & Sep''25'!$BL:$BL,'Aug''24 & Sep''25'!$I:$I,'Statewise SO Details'!$B9,'Aug''24 & Sep''25'!$AS:$AS,'Statewise SO Details'!W$2,'Aug''24 & Sep''25'!$BU:$BU,"consumer") -> 4 | X9: =SUMIFS('Aug''24 & Sep''25'!$BL:$BL,'Aug''24 & Sep''25'!$I:$I,'Statewise SO Details'!$B9,'Aug''24 & Sep''25'!$AS:$AS,'Statewise SO Details'!X$2,'Aug''24 & Sep''25'!$BU:$BU,"consumer") -> 0 | Y9: =SUMIFS('Aug''24 & Sep''25'!$BL:$BL,'Aug''24 & Sep''25'!$I:$I,'Statewise SO Details'!$B9,'Aug''24 & Sep''25'!$AS:$AS,'Statewise SO Details'!Y$2,'Aug''24 & Sep''25'!$BU:$BU,"consumer") -> 5 | Z9: =SUMIFS('Aug''24 & Sep''25'!$BL:$BL,'Aug''24 & Sep''25'!$I:$I,'Statewise SO Details'!$B9,'Aug''24 & Sep''25'!$AS:$AS,'Statewise SO Details'!Z$2,'Aug''24 & Sep''25'!$BU:$BU,"consumer") -> 0 | AA9: =SUMIFS('Aug''24 & Sep''25'!$BL:$BL,'Aug''24 & Sep''25'!$I:$I,'Statewise SO Details'!$B9,'Aug''24 & Sep''25'!$AS:$AS,'Statewise SO Details'!AA$2,'Aug''24 & Sep''25'!$BU:$BU,"consumer") -> 10 | AB9: =SUMIFS('Aug''24 & Sep''25'!$BL:$BL,'Aug''24 & Sep''25'!$I:$I,'Statewise SO Details'!$B9,'Aug''24 & Sep''25'!$AS:$AS,'Statewise SO Details'!AB$2,'Aug''24 & Sep''25'!$BU:$BU,"consumer") -> 4 | AC9: =SUMIFS('Aug''24 & Sep''25'!$BL:$BL,'Aug''24 & Sep''25'!$I:$I,'Statewise SO Details'!$B9,'Aug''24 & Sep''25'!$AS:$AS,'Statewise SO Details'!AC$2,'Aug''24 & Sep''25'!$BU:$BU,"consumer") -> 29 | AD9: =SUMIFS('Aug''24 & Sep''25'!$BL:$BL,'Aug''24 & Sep''25'!$I:$I,'Statewise SO Details'!$B9,'Aug''24 & Sep''25'!$AS:$AS,'Statewise SO Details'!AD$2,'Aug''24 & Sep''25'!$BU:$BU,"consumer") -> 10 | AE9: =SUMIFS('Aug''24 & Sep''25'!$BL:$BL,'Aug''24 & Sep''25'!$I:$I,'Statewise SO Details'!$B9,'Aug''24 & Sep''25'!$AS:$AS,'Statewise SO Details'!AE$2,'Aug''24 & Sep''25'!$BU:$BU,"consumer") -> 89 | AF9: =SUMIFS('Aug''24 & Sep''25'!$BL:$BL,'Aug''24 & Sep''25'!$I:$I,'Statewise SO Details'!$B9,'Aug''24 & Sep''25'!$AS:$AS,'Statewise SO Details'!AF$2,'Aug''24 & Sep''25'!$BU:$BU,"consumer") -> 20 | AG9: =SUMIFS('Aug''24 & Sep''25'!$BL:$BL,'Aug''24 & Sep''25'!$I:$I,'Statewise SO Details'!$B9,'Aug''24 & Sep''25'!$AS:$AS,'Statewise SO Details'!AG$2,'Aug''24 & Sep''25'!$BU:$BU,"consumer") -> 0 | AH9: 296 | AJ9: 296 | AK9: -26% | AL9: =SUMIFS('Aug''24 & Sep''25'!$BL:$BL,'Aug''24 & Sep''25'!$I:$I,'Statewise SO Details'!$B9,'Aug''24 & Sep''25'!$CF:$CF,'Statewise SO Details'!AL$2,'Aug''24 & Sep''25'!$BU:$BU,"consumer",'Aug''24 & Sep''25'!$CG:$CG,"MTD") -> 399 | AN9: =IFERROR(VLOOKUP($B9,Pivot!$P$5:$S$28,MATCH('Statewise SO Details'!AN$2,Pivot!$P$5:$S$5,0),0),0) -> 0 | AO9: 0% | AP9: =IFERROR(VLOOKUP($B9,Pivot!$P$5:$S$28,MATCH('Statewise SO Details'!AP$2,Pivot!$P$5:$S$5,0),0),0) -> 0
A10: East2 | B10: Orissa | C10: =SUMIFS('Aug''24 & Sep''25'!$BL:$BL,'Aug''24 & Sep''25'!$I:$I,'Statewise SO Details'!$B10,'Aug''24 & Sep''25'!$AS:$AS,'Statewise SO Details'!C$2,'Aug''24 & Sep''25'!$BU:$BU,"consumer") -> 0 | D10: =SUMIFS('Aug''24 & Sep''25'!$BL:$BL,'Aug''24 & Sep''25'!$I:$I,'Statewise SO Details'!$B10,'Aug''24 & Sep''25'!$AS:$AS,'Statewise SO Details'!D$2,'Aug''24 & Sep''25'!$BU:$BU,"consumer") -> 0 | E10: =SUMIFS('Aug''24 & Sep''25'!$BL:$BL,'Aug''24 & Sep''25'!$I:$I,'Statewise SO Details'!$B10,'Aug''24 & Sep''25'!$AS:$AS,'Statewise SO Details'!E$2,'Aug''24 & Sep''25'!$BU:$BU,"consumer") -> 0 | F10: =SUMIFS('Aug''24 & Sep''25'!$BL:$BL,'Aug''24 & Sep''25'!$I:$I,'Statewise SO Details'!$B10,'Aug''24 & Sep''25'!$AS:$AS,'Statewise SO Details'!F$2,'Aug''24 & Sep''25'!$BU:$BU,"consumer") -> 2 | G10: =SUMIFS('Aug''24 & Sep''25'!$BL:$BL,'Aug''24 & Sep''25'!$I:$I,'Statewise SO Details'!$B10,'Aug''24 & Sep''25'!$AS:$AS,'Statewise SO Details'!G$2,'Aug''24 & Sep''25'!$BU:$BU,"consumer") -> 2 | H10: =SUMIFS('Aug''24 & Sep''25'!$BL:$BL,'Aug''24 & Sep''25'!$I:$I,'Statewise SO Details'!$B10,'Aug''24 & Sep''25'!$AS:$AS,'Statewise SO Details'!H$2,'Aug''24 & Sep''25'!$BU:$BU,"consumer") -> 2 | I10: =SUMIFS('Aug''24 & Sep''25'!$BL:$BL,'Aug''24 & Sep''25'!$I:$I,'Statewise SO Details'!$B10,'Aug''24 & Sep''25'!$AS:$AS,'Statewise SO Details'!I$2,'Aug''24 & Sep''25'!$BU:$BU,"consumer") -> 2 | J10: =SUMIFS('Aug''24 & Sep''25'!$BL:$BL,'Aug''24 & Sep''25'!$I:$I,'Statewise SO Details'!$B10,'Aug''24 & Sep''25'!$AS:$AS,'Statewise SO Details'!J$2,'Aug''24 & Sep''25'!$BU:$BU,"consumer") -> 2 | K10: =SUMIFS('Aug''24 & Sep''25'!$BL:$BL,'Aug''24 & Sep''25'!$I:$I,'Statewise SO Details'!$B10,'Aug''24 & Sep''25'!$AS:$AS,'Statewise SO Details'!K$2,'Aug''24 & Sep''25'!$BU:$BU,"consumer") -> 0 | L10: =SUMIFS('Aug''24 & Sep''25'!$BL:$BL,'Aug''24 & Sep''25'!$I:$I,'Statewise SO Details'!$B10,'Aug''24 & Sep''25'!$AS:$AS,'Statewise SO Details'!L$2,'Aug''24 & Sep''25'!$BU:$BU,"consumer") -> 19 | M10: =SUMIFS('Aug''24 & Sep''25'!$BL:$BL,'Aug''24 & Sep''25'!$I:$I,'Statewise SO Details'!$B10,'Aug''24 & Sep''25'!$AS:$AS,'Statewise SO Details'!M$2,'Aug''24 & Sep''25'!$BU:$BU,"consumer") -> 4 | N10: =SUMIFS('Aug''24 & Sep''25'!$BL:$BL,'Aug''24 & Sep''25'!$I:$I,'Statewise SO Details'!$B10,'Aug''24 & Sep''25'!$AS:$AS,'Statewise SO Details'!N$2,'Aug''24 & Sep''25'!$BU:$BU,"consumer") -> 3 | O10: =SUMIFS('Aug''24 & Sep''25'!$BL:$BL,'Aug''24 & Sep''25'!$I:$I,'Statewise SO Details'!$B10,'Aug''24 & Sep''25'!$AS:$AS,'Statewise SO Details'!O$2,'Aug''24 & Sep''25'!$BU:$BU,"consumer") -> 1 | P10: =SUMIFS('Aug''24 & Sep''25'!$BL:$BL,'Aug''24 & Sep''25'!$I:$I,'Statewise SO Details'!$B10,'Aug''24 & Sep''25'!$AS:$AS,'Statewise SO Details'!P$2,'Aug''24 & Sep''25'!$BU:$BU,"consumer") -> 43 | Q10: =SUMIFS('Aug''24 & Sep''25'!$BL:$BL,'Aug''24 & Sep''25'!$I:$I,'Statewise SO Details'!$B10,'Aug''24 & Sep''25'!$AS:$AS,'Statewise SO Details'!Q$2,'Aug''24 & Sep''25'!$BU:$BU,"consumer") -> 0 | R10: =SUMIFS('Aug''24 & Sep''25'!$BL:$BL,'Aug''24 & Sep''25'!$I:$I,'Statewise SO Details'!$B10,'Aug''24 & Sep''25'!$AS:$AS,'Statewise SO Details'!R$2,'Aug''24 & Sep''25'!$BU:$BU,"consumer") -> 6 | S10: =SUMIFS('Aug''24 & Sep''25'!$BL:$BL,'Aug''24 & Sep''25'!$I:$I,'Statewise SO Details'!$B10,'Aug''24 & Sep''25'!$AS:$AS,'Statewise SO Details'!S$2,'Aug''24 & Sep''25'!$BU:$BU,"consumer") -> 13 | T10: =SUMIFS('Aug''24 & Sep''25'!$BL:$BL,'Aug''24 & Sep''25'!$I:$I,'Statewise SO Details'!$B10,'Aug''24 & Sep''25'!$AS:$AS,'Statewise SO Details'!T$2,'Aug''24 & Sep''25'!$BU:$BU,"consumer") -> 17 | U10: =SUMIFS('Aug''24 & Sep''25'!$BL:$BL,'Aug''24 & Sep''25'!$I:$I,'Statewise SO Details'!$B10,'Aug''24 & Sep''25'!$AS:$AS,'Statewise SO Details'!U$2,'Aug''24 & Sep''25'!$BU:$BU,"consumer") -> 6 | V10: =SUMIFS('Aug''24 & Sep''25'!$BL:$BL,'Aug''24 & Sep''25'!$I:$I,'Statewise SO Details'!$B10,'Aug''24 & Sep''25'!$AS:$AS,'Statewise SO Details'!V$2,'Aug''24 & Sep''25'!$BU:$BU,"consumer") -> 4 | W10: =SUMIFS('Aug''24 & Sep''25'!$BL:$BL,'Aug''24 & Sep''25'!$I:$I,'Statewise SO Details'!$B10,'Aug''24 & Sep''25'!$AS:$AS,'Statewise SO Details'!W$2,'Aug''24 & Sep''25'!$BU:$BU,"consumer") -> 3 | X10: =SUMIFS('Aug''24 & Sep''25'!$BL:$BL,'Aug''24 & Sep''25'!$I:$I,'Statewise SO Details'!$B10,'Aug''24 & Sep''25'!$AS:$AS,'Statewise SO Details'!X$2,'Aug''24 & Sep''25'!$BU:$BU,"consumer") -> 31 | Y10: =SUMIFS('Aug''24 & Sep''25'!$BL:$BL,'Aug''24 & Sep''25'!$I:$I,'Statewise SO Details'!$B10,'Aug''24 & Sep''25'!$AS:$AS,'Statewise SO Details'!Y$2,'Aug''24 & Sep''25'!$BU:$BU,"consumer") -> 0 | Z10: =SUMIFS('Aug''24 & Sep''25'!$BL:$BL,'Aug''24 & Sep''25'!$I:$I,'Statewise SO Details'!$B10,'Aug''24 & Sep''25'!$AS:$AS,'Statewise SO Details'!Z$2,'Aug''24 & Sep''25'!$BU:$BU,"consumer") -> 1 | AA10: =SUMIFS('Aug''24 & Sep''25'!$BL:$BL,'Aug''24 & Sep''25'!$I:$I,'Statewise SO Details'!$B10,'Aug''24 & Sep''25'!$AS:$AS,'Statewise SO Details'!AA$2,'Aug''24 & Sep''25'!$BU:$BU,"consumer") -> 2 | AB10: =SUMIFS('Aug''24 & Sep''25'!$BL:$BL,'Aug''24 & Sep''25'!$I:$I,'Statewise SO Details'!$B10,'Aug''24 & Sep''25'!$AS:$AS,'Statewise SO Details'!AB$2,'Aug''24 & Sep''25'!$BU:$BU,"consumer") -> 2 | AC10: =SUMIFS('Aug''24 & Sep''25'!$BL:$BL,'Aug''24 & Sep''25'!$I:$I,'Statewise SO Details'!$B10,'Aug''24 & Sep''25'!$AS:$AS,'Statewise SO Details'!AC$2,'Aug''24 & Sep''25'!$BU:$BU,"consumer") -> 32 | AD10: =SUMIFS('Aug''24 & Sep''25'!$BL:$BL,'Aug''24 & Sep''25'!$I:$I,'Statewise SO Details'!$B10,'Aug''24 & Sep''25'!$AS:$AS,'Statewise SO Details'!AD$2,'Aug''24 & Sep''25'!$BU:$BU,"consumer") -> 11 | AE10: =SUMIFS('Aug''24 & Sep''25'!$BL:$BL,'Aug''24 & Sep''25'!$I:$I,'Statewise SO Details'!$B10,'Aug''24 & Sep''25'!$AS:$AS,'Statewise SO Details'!AE$2,'Aug''24 & Sep''25'!$BU:$BU,"consumer") -> 0 | AF10: =SUMIFS('Aug''24 & Sep''25'!$BL:$BL,'Aug''24 & Sep''25'!$I:$I,'Statewise SO Details'!$B10,'Aug''24 & Sep''25'!$AS:$AS,'Statewise SO Details'!AF$2,'Aug''24 & Sep''25'!$BU:$BU,"consumer") -> 285 | AG10: =SUMIFS('Aug''24 & Sep''25'!$BL:$BL,'Aug''24 & Sep''25'!$I:$I,'Statewise SO Details'!$B10,'Aug''24 & Sep''25'!$AS:$AS,'Statewise SO Details'!AG$2,'Aug''24 & Sep''25'!$BU:$BU,"consumer") -> 0 | AH10: 493 | AJ10: 493 | AK10: -26% | AL10: =SUMIFS('Aug''24 & Sep''25'!$BL:$BL,'Aug''24 & Sep''25'!$I:$I,'Statewise SO Details'!$B10,'Aug''24 & Sep''25'!$CF:$CF,'Statewise SO Details'!AL$2,'Aug''24 & Sep''25'!$BU:$BU,"consumer",'Aug''24 & Sep''25'!$CG:$CG,"MTD") -> 665 | AN10: =IFERROR(VLOOKUP($B10,Pivot!$P$5:$S$28,MATCH('Statewise SO Details'!AN$2,Pivot!$P$5:$S$5,0),0),0) -> 181 | AO10: -21% | AP10: =IFERROR(VLOOKUP($B10,Pivot!$P$5:$S$28,MATCH('Statewise SO Details'!AP$2,Pivot!$P$5:$S$5,0),0),0) -> 229
A11: North1 | B11: Delhi | C11: =SUMIFS('Aug''24 & Sep''25'!$BL:$BL,'Aug''24 & Sep''25'!$I:$I,'Statewise SO Details'!$B11,'Aug''24 & Sep''25'!$AS:$AS,'Statewise SO Details'!C$2,'Aug''24 & Sep''25'!$BU:$BU,"consumer") -> 0 | D11: =SUMIFS('Aug''24 & Sep''25'!$BL:$BL,'Aug''24 & Sep''25'!$I:$I,'Statewise SO Details'!$B11,'Aug''24 & Sep''25'!$AS:$AS,'Statewise SO Details'!D$2,'Aug''24 & Sep''25'!$BU:$BU,"consumer") -> 0 | E11: =SUMIFS('Aug''24 & Sep''25'!$BL:$BL,'Aug''24 & Sep''25'!$I:$I,'Statewise SO Details'!$B11,'Aug''24 & Sep''25'!$AS:$AS,'Statewise SO Details'!E$2,'Aug''24 & Sep''25'!$BU:$BU,"consumer") -> 9 | F11: =SUMIFS('Aug''24 & Sep''25'!$BL:$BL,'Aug''24 & Sep''25'!$I:$I,'Statewise SO Details'!$B11,'Aug''24 & Sep''25'!$AS:$AS,'Statewise SO Details'!F$2,'Aug''24 & Sep''25'!$BU:$BU,"consumer") -> 8 | G11: =SUMIFS('Aug''24 & Sep''25'!$BL:$BL,'Aug''24 & Sep''25'!$I:$I,'Statewise SO Details'!$B11,'Aug''24 & Sep''25'!$AS:$AS,'Statewise SO Details'!G$2,'Aug''24 & Sep''25'!$BU:$BU,"consumer") -> 6 | H11: =SUMIFS('Aug''24 & Sep''25'!$BL:$BL,'Aug''24 & Sep''25'!$I:$I,'Statewise SO Details'!$B11,'Aug''24 & Sep''25'!$AS:$AS,'Statewise SO Details'!H$2,'Aug''24 & Sep''25'!$BU:$BU,"consumer") -> 0 | I11: =SUMIFS('Aug''24 & Sep''25'!$BL:$BL,'Aug''24 & Sep''25'!$I:$I,'Statewise SO Details'!$B11,'Aug''24 & Sep''25'!$AS:$AS,'Statewise SO Details'!I$2,'Aug''24 & Sep''25'!$BU:$BU,"consumer") -> 6 | J11: =SUMIFS('Aug''24 & Sep''25'!$BL:$BL,'Aug''24 & Sep''25'!$I:$I,'Statewise SO Details'!$B11,'Aug''24 & Sep''25'!$AS:$AS,'Statewise SO Details'!J$2,'Aug''24 & Sep''25'!$BU:$BU,"consumer") -> 24 | K11: =SUMIFS('Aug''24 & Sep''25'!$BL:$BL,'Aug''24 & Sep''25'!$I:$I,'Statewise SO Details'!$B11,'Aug''24 & Sep''25'!$AS:$AS,'Statewise SO Details'!K$2,'Aug''24 & Sep''25'!$BU:$BU,"consumer") -> 0 | L11: =SUMIFS('Aug''24 & Sep''25'!$BL:$BL,'Aug''24 & Sep''25'!$I:$I,'Statewise SO Details'!$B11,'Aug''24 & Sep''25'!$AS:$AS,'Statewise SO Details'!L$2,'Aug''24 & Sep''25'!$BU:$BU,"consumer") -> 0 | M11: =SUMIFS('Aug''24 & Sep''25'!$BL:$BL,'Aug''24 & Sep''25'!$I:$I,'Statewise SO Details'!$B11,'Aug''24 & Sep''25'!$AS:$AS,'Statewise SO Details'!M$2,'Aug''24 & Sep''25'!$BU:$BU,"consumer") -> 3 | N11: =SUMIFS('Aug''24 & Sep''25'!$BL:$BL,'Aug''24 & Sep''25'!$I:$I,'Statewise SO Details'!$B11,'Aug''24 & Sep''25'!$AS:$AS,'Statewise SO Details'!N$2,'Aug''24 & Sep''25'!$BU:$BU,"consumer") -> 11 | O11: =SUMIFS('Aug''24 & Sep''25'!$BL:$BL,'Aug''24 & Sep''25'!$I:$I,'Statewise SO Details'!$B11,'Aug''24 & Sep''25'!$AS:$AS,'Statewise SO Details'!O$2,'Aug''24 & Sep''25'!$BU:$BU,"consumer") -> 1 | P11: =SUMIFS('Aug''24 & Sep''25'!$BL:$BL,'Aug''24 & Sep''25'!$I:$I,'Statewise SO Details'!$B11,'Aug''24 & Sep''25'!$AS:$AS,'Statewise SO Details'!P$2,'Aug''24 & Sep''25'!$BU:$BU,"consumer") -> 4 | Q11: =SUMIFS('Aug''24 & Sep''25'!$BL:$BL,'Aug''24 & Sep''25'!$I:$I,'Statewise SO Details'!$B11,'Aug''24 & Sep''25'!$AS:$AS,'Statewise SO Details'!Q$2,'Aug''24 & Sep''25'!$BU:$BU,"consumer") -> 7 | R11: =SUMIFS('Aug''24 & Sep''25'!$BL:$BL,'Aug''24 & Sep''25'!$I:$I,'Statewise SO Details'!$B11,'Aug''24 & Sep''25'!$AS:$AS,'Statewise SO Details'!R$2,'Aug''24 & Sep''25'!$BU:$BU,"consumer") -> 0 | S11: =SUMIFS('Aug''24 & Sep''25'!$BL:$BL,'Aug''24 & Sep''25'!$I:$I,'Statewise SO Details'!$B11,'Aug''24 & Sep''25'!$AS:$AS,'Statewise SO Details'!S$2,'Aug''24 & Sep''25'!$BU:$BU,"consumer") -> 3 | T11: =SUMIFS('Aug''24 & Sep''25'!$BL:$BL,'Aug''24 & Sep''25'!$I:$I,'Statewise SO Details'!$B11,'Aug''24 & Sep''25'!$AS:$AS,'Statewise SO Details'!T$2,'Aug''24 & Sep''25'!$BU:$BU,"consumer") -> 6 | U11: =SUMIFS('Aug''24 & Sep''25'!$BL:$BL,'Aug''24 & Sep''25'!$I:$I,'Statewise SO Details'!$B11,'Aug''24 & Sep''25'!$AS:$AS,'Statewise SO Details'!U$2,'Aug''24 & Sep''25'!$BU:$BU,"consumer") -> 6 | V11: =SUMIFS('Aug''24 & Sep''25'!$BL:$BL,'Aug''24 & Sep''25'!$I:$I,'Statewise SO Details'!$B11,'Aug''24 & Sep''25'!$AS:$AS,'Statewise SO Details'!V$2,'Aug''24 & Sep''25'!$BU:$BU,"consumer") -> 26 | W11: =SUMIFS('Aug''24 & Sep''25'!$BL:$BL,'Aug''24 & Sep''25'!$I:$I,'Statewise SO Details'!$B11,'Aug''24 & Sep''25'!$AS:$AS,'Statewise SO Details'!W$2,'Aug''24 & Sep''25'!$BU:$BU,"consumer") -> 7 | X11: =SUMIFS('Aug''24 & Sep''25'!$BL:$BL,'Aug''24 & Sep''25'!$I:$I,'Statewise SO Details'!$B11,'Aug''24 & Sep''25'!$AS:$AS,'Statewise SO Details'!X$2,'Aug''24 & Sep''25'!$BU:$BU,"consumer") -> 11 | Y11: =SUMIFS('Aug''24 & Sep''25'!$BL:$BL,'Aug''24 & Sep''25'!$I:$I,'Statewise SO Details'!$B11,'Aug''24 & Sep''25'!$AS:$AS,'Statewise SO Details'!Y$2,'Aug''24 & Sep''25'!$BU:$BU,"consumer") -> 0 | Z11: =SUMIFS('Aug''24 & Sep''25'!$BL:$BL,'Aug''24 & Sep''25'!$I:$I,'Statewise SO Details'!$B11,'Aug''24 & Sep''25'!$AS:$AS,'Statewise SO Details'!Z$2,'Aug''24 & Sep''25'!$BU:$BU,"consumer") -> 4 | AA11: =SUMIFS('Aug''24 & Sep''25'!$BL:$BL,'Aug''24 & Sep''25'!$I:$I,'Statewise SO Details'!$B11,'Aug''24 & Sep''25'!$AS:$AS,'Statewise SO Details'!AA$2,'Aug''24 & Sep''25'!$BU:$BU,"consumer") -> 12 | AB11: =SUMIFS('Aug''24 & Sep''25'!$BL:$BL,'Aug''24 & Sep''25'!$I:$I,'Statewise SO Details'!$B11,'Aug''24 & Sep''25'!$AS:$AS,'Statewise SO Details'!AB$2,'Aug''24 & Sep''25'!$BU:$BU,"consumer") -> 20 | AC11: =SUMIFS('Aug''24 & Sep''25'!$BL:$BL,'Aug''24 & Sep''25'!$I:$I,'Statewise SO Details'!$B11,'Aug''24 & Sep''25'!$AS:$AS,'Statewise SO Details'!AC$2,'Aug''24 & Sep''25'!$BU:$BU,"consumer") -> 26 | AD11: =SUMIFS('Aug''24 & Sep''25'!$BL:$BL,'Aug''24 & Sep''25'!$I:$I,'Statewise SO Details'!$B11,'Aug''24 & Sep''25'!$AS:$AS,'Statewise SO Details'!AD$2,'Aug''24 & Sep''25'!$BU:$BU,"consumer") -> 51 | AE11: =SUMIFS('Aug''24 & Sep''25'!$BL:$BL,'Aug''24 & Sep''25'!$I:$I,'Statewise SO Details'!$B11,'Aug''24 & Sep''25'!$AS:$AS,'Statewise SO Details'!AE$2,'Aug''24 & Sep''25'!$BU:$BU,"consumer") -> 745 | AF11: =SUMIFS('Aug''24 & Sep''25'!$BL:$BL,'Aug''24 & Sep''25'!$I:$I,'Statewise SO Details'!$B11,'Aug''24 & Sep''25'!$AS:$AS,'Statewise SO Details'!AF$2,'Aug''24 & Sep''25'!$BU:$BU,"consumer") -> 44 | AG11: =SUMIFS('Aug''24 & Sep''25'!$BL:$BL,'Aug''24 & Sep''25'!$I:$I,'Statewise SO Details'!$B11,'Aug''24 & Sep''25'!$AS:$AS,'Statewise SO Details'!AG$2,'Aug''24 & Sep''25'!$BU:$BU,"consumer") -> 0 | AH11: 1040 | AJ11: 1040 | AK11: -10% | AL11: =SUMIFS('Aug''24 & Sep''25'!$BL:$BL,'Aug''24 & Sep''25'!$I:$I,'Statewise SO Details'!$B11,'Aug''24 & Sep''25'!$CF:$CF,'Statewise SO Details'!AL$2,'Aug''24 & Sep''25'!$BU:$BU,"consumer",'Aug''24 & Sep''25'!$CG:$CG,"MTD") -> 1157 | AN11: =IFERROR(VLOOKUP($B11,Pivot!$P$5:$S$28,MATCH('Statewise SO Details'!AN$2,Pivot!$P$5:$S$5,0),0),0) -> 196 | AO11: -3% | AP11: =IFERROR(VLOOKUP($B11,Pivot!$P$5:$S$28,MATCH('Statewise SO Details'!AP$2,Pivot!$P$5:$S$5,0),0),0) -> 203
A12: North1 | B12: Haryana | C12: =SUMIFS('Aug''24 & Sep''25'!$BL:$BL,'Aug''24 & Sep''25'!$I:$I,'Statewise SO Details'!$B12,'Aug''24 & Sep''25'!$AS:$AS,'Statewise SO Details'!C$2,'Aug''24 & Sep''25'!$BU:$BU,"consumer") -> 0 | D12: =SUMIFS('Aug''24 & Sep''25'!$BL:$BL,'Aug''24 & Sep''25'!$I:$I,'Statewise SO Details'!$B12,'Aug''24 & Sep''25'!$AS:$AS,'Statewise SO Details'!D$2,'Aug''24 & Sep''25'!$BU:$BU,"consumer") -> 0 | E12: =SUMIFS('Aug''24 & Sep''25'!$BL:$BL,'Aug''24 & Sep''25'!$I:$I,'Statewise SO Details'!$B12,'Aug''24 & Sep''25'!$AS:$AS,'Statewise SO Details'!E$2,'Aug''24 & Sep''25'!$BU:$BU,"consumer") -> 0 | F12: =SUMIFS('Aug''24 & Sep''25'!$BL:$BL,'Aug''24 & Sep''25'!$I:$I,'Statewise SO Details'!$B12,'Aug''24 & Sep''25'!$AS:$AS,'Statewise SO Details'!F$2,'Aug''24 & Sep''25'!$BU:$BU,"consumer") -> 0 | G12: =SUMIFS('Aug''24 & Sep''25'!$BL:$BL,'Aug''24 & Sep''25'!$I:$I,'Statewise SO Details'!$B12,'Aug''24 & Sep''25'!$AS:$AS,'Statewise SO Details'!G$2,'Aug''24 & Sep''25'!$BU:$BU,"consumer") -> 0 | H12: =SUMIFS('Aug''24 & Sep''25'!$BL:$BL,'Aug''24 & Sep''25'!$I:$I,'Statewise SO Details'!$B12,'Aug''24 & Sep''25'!$AS:$AS,'Statewise SO Details'!H$2,'Aug''24 & Sep''25'!$BU:$BU,"consumer") -> 2 | I12: =SUMIFS('Aug''24 & Sep''25'!$BL:$BL,'Aug''24 & Sep''25'!$I:$I,'Statewise SO Details'!$B12,'Aug''24 & Sep''25'!$AS:$AS,'Statewise SO Details'!I$2,'Aug''24 & Sep''25'!$BU:$BU,"consumer") -> 0 | J12: =SUMIFS('Aug''24 & Sep''25'!$BL:$BL,'Aug''24 & Sep''25'!$I:$I,'Statewise SO Details'!$B12,'Aug''24 & Sep''25'!$AS:$AS,'Statewise SO Details'!J$2,'Aug''24 & Sep''25'!$BU:$BU,"consumer") -> 1 | K12: =SUMIFS('Aug''24 & Sep''25'!$BL:$BL,'Aug''24 & Sep''25'!$I:$I,'Statewise SO Details'!$B12,'Aug''24 & Sep''25'!$AS:$AS,'Statewise SO Details'!K$2,'Aug''24 & Sep''25'!$BU:$BU,"consumer") -> 0 | L12: =SUMIFS('Aug''24 & Sep''25'!$BL:$BL,'Aug''24 & Sep''25'!$I:$I,'Statewise SO Details'!$B12,'Aug''24 & Sep''25'!$AS:$AS,'Statewise SO Details'!L$2,'Aug''24 & Sep''25'!$BU:$BU,"consumer") -> 0 | M12: =SUMIFS('Aug''24 & Sep''25'!$BL:$BL,'Aug''24 & Sep''25'!$I:$I,'Statewise SO Details'!$B12,'Aug''24 & Sep''25'!$AS:$AS,'Statewise SO Details'!M$2,'Aug''24 & Sep''25'!$BU:$BU,"consumer") -> 0 | N12: =SUMIFS('Aug''24 & Sep''25'!$BL:$BL,'Aug''24 & Sep''25'!$I:$I,'Statewise SO Details'!$B12,'Aug''24 & Sep''25'!$AS:$AS,'Statewise SO Details'!N$2,'Aug''24 & Sep''25'!$BU:$BU,"consumer") -> 0 | O12: =SUMIFS('Aug''24 & Sep''25'!$BL:$BL,'Aug''24 & Sep''25'!$I:$I,'Statewise SO Details'!$B12,'Aug''24 & Sep''25'!$AS:$AS,'Statewise SO Details'!O$2,'Aug''24 & Sep''25'!$BU:$BU,"consumer") -> 6 | P12: =SUMIFS('Aug''24 & Sep''25'!$BL:$BL,'Aug''24 & Sep''25'!$I:$I,'Statewise SO Details'!$B12,'Aug''24 & Sep''25'!$AS:$AS,'Statewise SO Details'!P$2,'Aug''24 & Sep''25'!$BU:$BU,"consumer") -> 0 | Q12: =SUMIFS('Aug''24 & Sep''25'!$BL:$BL,'Aug''24 & Sep''25'!$I:$I,'Statewise SO Details'!$B12,'Aug''24 & Sep''25'!$AS:$AS,'Statewise SO Details'!Q$2,'Aug''24 & Sep''25'!$BU:$BU,"consumer") -> 1 | R12: =SUMIFS('Aug''24 & Sep''25'!$BL:$BL,'Aug''24 & Sep''25'!$I:$I,'Statewise SO Details'!$B12,'Aug''24 & Sep''25'!$AS:$AS,'Statewise SO Details'!R$2,'Aug''24 & Sep''25'!$BU:$BU,"consumer") -> 0 | S12: =SUMIFS('Aug''24 & Sep''25'!$BL:$BL,'Aug''24 & Sep''25'!$I:$I,'Statewise SO Details'!$B12,'Aug''24 & Sep''25'!$AS:$AS,'Statewise SO Details'!S$2,'Aug''24 & Sep''25'!$BU:$BU,"consumer") -> 4 | T12: =SUMIFS('Aug''24 & Sep''25'!$BL:$BL,'Aug''24 & Sep''25'!$I:$I,'Statewise SO Details'!$B12,'Aug''24 & Sep''25'!$AS:$AS,'Statewise SO Details'!T$2,'Aug''24 & Sep''25'!$BU:$BU,"consumer") -> 4 | U12: =SUMIFS('Aug''24 & Sep''25'!$BL:$BL,'Aug''24 & Sep''25'!$I:$I,'Statewise SO Details'!$B12,'Aug''24 & Sep''25'!$AS:$AS,'Statewise SO Details'!U$2,'Aug''24 & Sep''25'!$BU:$BU,"consumer") -> 0 | V12: =SUMIFS('Aug''24 & Sep''25'!$BL:$BL,'Aug''24 & Sep''25'!$I:$I,'Statewise SO Details'!$B12,'Aug''24 & Sep''25'!$AS:$AS,'Statewise SO Details'!V$2,'Aug''24 & Sep''25'!$BU:$BU,"consumer") -> 0 | W12: =SUMIFS('Aug''24 & Sep''25'!$BL:$BL,'Aug''24 & Sep''25'!$I:$I,'Statewise SO Details'!$B12,'Aug''24 & Sep''25'!$AS:$AS,'Statewise SO Details'!W$2,'Aug''24 & Sep''25'!$BU:$BU,"consumer") -> 10 | X12: =SUMIFS('Aug''24 & Sep''25'!$BL:$BL,'Aug''24 & Sep''25'!$I:$I,'Statewise SO Details'!$B12,'Aug''24 & Sep''25'!$AS:$AS,'Statewise SO Details'!X$2,'Aug''24 & Sep''25'!$BU:$BU,"consumer") -> 1 | Y12: =SUMIFS('Aug''24 & Sep''25'!$BL:$BL,'Aug''24 & Sep''25'!$I:$I,'Statewise SO Details'!$B12,'Aug''24 & Sep''25'!$AS:$AS,'Statewise SO Details'!Y$2,'Aug''24 & Sep''25'!$BU:$BU,"consumer") -> 0 | Z12: =SUMIFS('Aug''24 & Sep''25'!$BL:$BL,'Aug''24 & Sep''25'!$I:$I,'Statewise SO Details'!$B12,'Aug''24 & Sep''25'!$AS:$AS,'Statewise SO Details'!Z$2,'Aug''24 & Sep''25'!$BU:$BU,"consumer") -> 0 | AA12: =SUMIFS('Aug''24 & Sep''25'!$BL:$BL,'Aug''24 & Sep''25'!$I:$I,'Statewise SO Details'!$B12,'Aug''24 & Sep''25'!$AS:$AS,'Statewise SO Details'!AA$2,'Aug''24 & Sep''25'!$BU:$BU,"consumer") -> 1 | AB12: =SUMIFS('Aug''24 & Sep''25'!$BL:$BL,'Aug''24 & Sep''25'!$I:$I,'Statewise SO Details'!$B12,'Aug''24 & Sep''25'!$AS:$AS,'Statewise SO Details'!AB$2,'Aug''24 & Sep''25'!$BU:$BU,"consumer") -> 1 | AC12: =SUMIFS('Aug''24 & Sep''25'!$BL:$BL,'Aug''24 & Sep''25'!$I:$I,'Statewise SO Details'!$B12,'Aug''24 & Sep''25'!$AS:$AS,'Statewise SO Details'!AC$2,'Aug''24 & Sep''25'!$BU:$BU,"consumer") -> 0 | AD12: =SUMIFS('Aug''24 & Sep''25'!$BL:$BL,'Aug''24 & Sep''25'!$I:$I,'Statewise SO Details'!$B12,'Aug''24 & Sep''25'!$AS:$AS,'Statewise SO Details'!AD$2,'Aug''24 & Sep''25'!$BU:$BU,"consumer") -> 1 | AE12: =SUMIFS('Aug''24 & Sep''25'!$BL:$BL,'Aug''24 & Sep''25'!$I:$I,'Statewise SO Details'!$B12,'Aug''24 & Sep''25'!$AS:$AS,'Statewise SO Details'!AE$2,'Aug''24 & Sep''25'!$BU:$BU,"consumer") -> 0 | AF12: =SUMIFS('Aug''24 & Sep''25'!$BL:$BL,'Aug''24 & Sep''25'!$I:$I,'Statewise SO Details'!$B12,'Aug''24 & Sep''25'!$AS:$AS,'Statewise SO Details'!AF$2,'Aug''24 & Sep''25'!$BU:$BU,"consumer") -> 0 | AG12: =SUMIFS('Aug''24 & Sep''25'!$BL:$BL,'Aug''24 & Sep''25'!$I:$I,'Statewise SO Details'!$B12,'Aug''24 & Sep''25'!$AS:$AS,'Statewise SO Details'!AG$2,'Aug''24 & Sep''25'!$BU:$BU,"consumer") -> 0 | AH12: 32 | AJ12: 32 | AK12: -30% | AL12: =SUMIFS('Aug''24 & Sep''25'!$BL:$BL,'Aug''24 & Sep''25'!$I:$I,'Statewise SO Details'!$B12,'Aug''24 & Sep''25'!$CF:$CF,'Statewise SO Details'!AL$2,'Aug''24 & Sep''25'!$BU:$BU,"consumer",'Aug''24 & Sep''25'!$CG:$CG,"MTD") -> 46 | AN12: =IFERROR(VLOOKUP($B12,Pivot!$P$5:$S$28,MATCH('Statewise SO Details'!AN$2,Pivot!$P$5:$S$5,0),0),0) -> 16 | AO12: -43% | AP12: =IFERROR(VLOOKUP($B12,Pivot!$P$5:$S$28,MATCH('Statewise SO Details'!AP$2,Pivot!$P$5:$S$5,0),0),0) -> 28
A13: North1 | B13: Himachal Pradesh | C13: =SUMIFS('Aug''24 & Sep''25'!$BL:$BL,'Aug''24 & Sep''25'!$I:$I,'Statewise SO Details'!$B13,'Aug''24 & Sep''25'!$AS:$AS,'Statewise SO Details'!C$2,'Aug''24 & Sep''25'!$BU:$BU,"consumer") -> 0 | D13: =SUMIFS('Aug''24 & Sep''25'!$BL:$BL,'Aug''24 & Sep''25'!$I:$I,'Statewise SO Details'!$B13,'Aug''24 & Sep''25'!$AS:$AS,'Statewise SO Details'!D$2,'Aug''24 & Sep''25'!$BU:$BU,"consumer") -> 0 | E13: =SUMIFS('Aug''24 & Sep''25'!$BL:$BL,'Aug''24 & Sep''25'!$I:$I,'Statewise SO Details'!$B13,'Aug''24 & Sep''25'!$AS:$AS,'Statewise SO Details'!E$2,'Aug''24 & Sep''25'!$BU:$BU,"consumer") -> 0 | F13: =SUMIFS('Aug''24 & Sep''25'!$BL:$BL,'Aug''24 & Sep''25'!$I:$I,'Statewise SO Details'!$B13,'Aug''24 & Sep''25'!$AS:$AS,'Statewise SO Details'!F$2,'Aug''24 & Sep''25'!$BU:$BU,"consumer") -> 0 | G13: =SUMIFS('Aug''24 & Sep''25'!$BL:$BL,'Aug''24 & Sep''25'!$I:$I,'Statewise SO Details'!$B13,'Aug''24 & Sep''25'!$AS:$AS,'Statewise SO Details'!G$2,'Aug''24 & Sep''25'!$BU:$BU,"consumer") -> 0 | H13: =SUMIFS('Aug''24 & Sep''25'!$BL:$BL,'Aug''24 & Sep''25'!$I:$I,'Statewise SO Details'!$B13,'Aug''24 & Sep''25'!$AS:$AS,'Statewise SO Details'!H$2,'Aug''24 & Sep''25'!$BU:$BU,"consumer") -> 0 | I13: =SUMIFS('Aug''24 & Sep''25'!$BL:$BL,'Aug''24 & Sep''25'!$I:$I,'Statewise SO Details'!$B13,'Aug''24 & Sep''25'!$AS:$AS,'Statewise SO Details'!I$2,'Aug''24 & Sep''25'!$BU:$BU,"consumer") -> 0 | J13: =SUMIFS('Aug''24 & Sep''25'!$BL:$BL,'Aug''24 & Sep''25'!$I:$I,'Statewise SO Details'!$B13,'Aug''24 & Sep''25'!$AS:$AS,'Statewise SO Details'!J$2,'Aug''24 & Sep''25'!$BU:$BU,"consumer") -> 0 | K13: =SUMIFS('Aug''24 & Sep''25'!$BL:$BL,'Aug''24 & Sep''25'!$I:$I,'Statewise SO Details'!$B13,'Aug''24 & Sep''25'!$AS:$AS,'Statewise SO Details'!K$2,'Aug''24 & Sep''25'!$BU:$BU,"consumer") -> 0 | L13: =SUMIFS('Aug''24 & Sep''25'!$BL:$BL,'Aug''24 & Sep''25'!$I:$I,'Statewise SO Details'!$B13,'Aug''24 & Sep''25'!$AS:$AS,'Statewise SO Details'!L$2,'Aug''24 & Sep''25'!$BU:$BU,"consumer") -> 0 | M13: =SUMIFS('Aug''24 & Sep''25'!$BL:$BL,'Aug''24 & Sep''25'!$I:$I,'Statewise SO Details'!$B13,'Aug''24 & Sep''25'!$AS:$AS,'Statewise SO Details'!M$2,'Aug''24 & Sep''25'!$BU:$BU,"consumer") -> 0 | N13: =SUMIFS('Aug''24 & Sep''25'!$BL:$BL,'Aug''24 & Sep''25'!$I:$I,'Statewise SO Details'!$B13,'Aug''24 & Sep''25'!$AS:$AS,'Statewise SO Details'!N$2,'Aug''24 & Sep''25'!$BU:$BU,"consumer") -> 0 | O13: =SUMIFS('Aug''24 & Sep''25'!$BL:$BL,'Aug''24 & Sep''25'!$I:$I,'Statewise SO Details'!$B13,'Aug''24 & Sep''25'!$AS:$AS,'Statewise SO Details'!O$2,'Aug''24 & Sep''25'!$BU:$BU,"consumer") -> 0 | P13: =SUMIFS('Aug''24 & Sep''25'!$BL:$BL,'Aug''24 & Sep''25'!$I:$I,'Statewise SO Details'!$B13,'Aug''24 & Sep''25'!$AS:$AS,'Statewise SO Details'!P$2,'Aug''24 & Sep''25'!$BU:$BU,"consumer") -> 0 | Q13: =SUMIFS('Aug''24 & Sep''25'!$BL:$BL,'Aug''24 & Sep''25'!$I:$I,'Statewise SO Details'!$B13,'Aug''24 & Sep''25'!$AS:$AS,'Statewise SO Details'!Q$2,'Aug''24 & Sep''25'!$BU:$BU,"consumer") -> 0 | R13: =SUMIFS('Aug''24 & Sep''25'!$BL:$BL,'Aug''24 & Sep''25'!$I:$I,'Statewise SO Details'!$B13,'Aug''24 & Sep''25'!$AS:$AS,'Statewise SO Details'!R$2,'Aug''24 & Sep''25'!$BU:$BU,"consumer") -> 0 | S13: =SUMIFS('Aug''24 & Sep''25'!$BL:$BL,'Aug''24 & Sep''25'!$I:$I,'Statewise SO Details'!$B13,'Aug''24 & Sep''25'!$AS:$AS,'Statewise SO Details'!S$2,'Aug''24 & Sep''25'!$BU:$BU,"consumer") -> 0 | T13: =SUMIFS('Aug''24 & Sep''25'!$BL:$BL,'Aug''24 & Sep''25'!$I:$I,'Statewise SO Details'!$B13,'Aug''24 & Sep''25'!$AS:$AS,'Statewise SO Details'!T$2,'Aug''24 & Sep''25'!$BU:$BU,"consumer") -> 0 | U13: =SUMIFS('Aug''24 & Sep''25'!$BL:$BL,'Aug''24 & Sep''25'!$I:$I,'Statewise SO Details'!$B13,'Aug''24 & Sep''25'!$AS:$AS,'Statewise SO Details'!U$2,'Aug''24 & Sep''25'!$BU:$BU,"consumer") -> 0 | V13: =SUMIFS('Aug''24 & Sep''25'!$BL:$BL,'Aug''24 & Sep''25'!$I:$I,'Statewise SO Details'!$B13,'Aug''24 & Sep''25'!$AS:$AS,'Statewise SO Details'!V$2,'Aug''24 & Sep''25'!$BU:$BU,"consumer") -> 0 | W13: =SUMIFS('Aug''24 & Sep''25'!$BL:$BL,'Aug''24 & Sep''25'!$I:$I,'Statewise SO Details'!$B13,'Aug''24 & Sep''25'!$AS:$AS,'Statewise SO Details'!W$2,'Aug''24 & Sep''25'!$BU:$BU,"consumer") -> 0 | X13: =SUMIFS('Aug''24 & Sep''25'!$BL:$BL,'Aug''24 & Sep''25'!$I:$I,'Statewise SO Details'!$B13,'Aug''24 & Sep''25'!$AS:$AS,'Statewise SO Details'!X$2,'Aug''24 & Sep''25'!$BU:$BU,"consumer") -> 0 | Y13: =SUMIFS('Aug''24 & Sep''25'!$BL:$BL,'Aug''24 & Sep''25'!$I:$I,'Statewise SO Details'!$B13,'Aug''24 & Sep''25'!$AS:$AS,'Statewise SO Details'!Y$2,'Aug''24 & Sep''25'!$BU:$BU,"consumer") -> 0 | Z13: =SUMIFS('Aug''24 & Sep''25'!$BL:$BL,'Aug''24 & Sep''25'!$I:$I,'Statewise SO Details'!$B13,'Aug''24 & Sep''25'!$AS:$AS,'Statewise SO Details'!Z$2,'Aug''24 & Sep''25'!$BU:$BU,"consumer") -> 0 | AA13: =SUMIFS('Aug''24 & Sep''25'!$BL:$BL,'Aug''24 & Sep''25'!$I:$I,'Statewise SO Details'!$B13,'Aug''24 & Sep''25'!$AS:$AS,'Statewise SO Details'!AA$2,'Aug''24 & Sep''25'!$BU:$BU,"consumer") -> 0 | AB13: =SUMIFS('Aug''24 & Sep''25'!$BL:$BL,'Aug''24 & Sep''25'!$I:$I,'Statewise SO Details'!$B13,'Aug''24 & Sep''25'!$AS:$AS,'Statewise SO Details'!AB$2,'Aug''24 & Sep''25'!$BU:$BU,"consumer") -> 0 | AC13: =SUMIFS('Aug''24 & Sep''25'!$BL:$BL,'Aug''24 & Sep''25'!$I:$I,'Statewise SO Details'!$B13,'Aug''24 & Sep''25'!$AS:$AS,'Statewise SO Details'!AC$2,'Aug''24 & Sep''25'!$BU:$BU,"consumer") -> 0 | AD13: =SUMIFS('Aug''24 & Sep''25'!$BL:$BL,'Aug''24 & Sep''25'!$I:$I,'Statewise SO Details'!$B13,'Aug''24 & Sep''25'!$AS:$AS,'Statewise SO Details'!AD$2,'Aug''24 & Sep''25'!$BU:$BU,"consumer") -> 0 | AE13: =SUMIFS('Aug''24 & Sep''25'!$BL:$BL,'Aug''24 & Sep''25'!$I:$I,'Statewise SO Details'!$B13,'Aug''24 & Sep''25'!$AS:$AS,'Statewise SO Details'!AE$2,'Aug''24 & Sep''25'!$BU:$BU,"consumer") -> 0 | AF13: =SUMIFS('Aug''24 & Sep''25'!$BL:$BL,'Aug''24 & Sep''25'!$I:$I,'Statewise SO Details'!$B13,'Aug''24 & Sep''25'!$AS:$AS,'Statewise SO Details'!AF$2,'Aug''24 & Sep''25'!$BU:$BU,"consumer") -> 0 | AG13: =SUMIFS('Aug''24 & Sep''25'!$BL:$BL,'Aug''24 & Sep''25'!$I:$I,'Statewise SO Details'!$B13,'Aug''24 & Sep''25'!$AS:$AS,'Statewise SO Details'!AG$2,'Aug''24 & Sep''25'!$BU:$BU,"consumer") -> 0 | AH13: 0 | AJ13: 0 | AK13: 0% | AL13: =SUMIFS('Aug''24 & Sep''25'!$BL:$BL,'Aug''24 & Sep''25'!$I:$I,'Statewise SO Details'!$B13,'Aug''24 & Sep''25'!$CF:$CF,'Statewise SO Details'!AL$2,'Aug''24 & Sep''25'!$BU:$BU,"consumer",'Aug''24 & Sep''25'!$CG:$CG,"MTD") -> 0 | AN13: =IFERROR(VLOOKUP($B13,Pivot!$P$5:$S$28,MATCH('Statewise SO Details'!AN$2,Pivot!$P$5:$S$5,0),0),0) -> 0 | AO13: 0% | AP13: =IFERROR(VLOOKUP($B13,Pivot!$P$5:$S$28,MATCH('Statewise SO Details'!AP$2,Pivot!$P$5:$S$5,0),0),0) -> 0
A14: North1 | B14: Jammu and Kashmir | C14: =SUMIFS('Aug''24 & Sep''25'!$BL:$BL,'Aug''24 & Sep''25'!$I:$I,'Statewise SO Details'!$B14,'Aug''24 & Sep''25'!$AS:$AS,'Statewise SO Details'!C$2,'Aug''24 & Sep''25'!$BU:$BU,"consumer") -> 0 | D14: =SUMIFS('Aug''24 & Sep''25'!$BL:$BL,'Aug''24 & Sep''25'!$I:$I,'Statewise SO Details'!$B14,'Aug''24 & Sep''25'!$AS:$AS,'Statewise SO Details'!D$2,'Aug''24 & Sep''25'!$BU:$BU,"consumer") -> 0 | E14: =SUMIFS('Aug''24 & Sep''25'!$BL:$BL,'Aug''24 & Sep''25'!$I:$I,'Statewise SO Details'!$B14,'Aug''24 & Sep''25'!$AS:$AS,'Statewise SO Details'!E$2,'Aug''24 & Sep''25'!$BU:$BU,"consumer") -> 0 | F14: =SUMIFS('Aug''24 & Sep''25'!$BL:$BL,'Aug''24 & Sep''25'!$I:$I,'Statewise SO Details'!$B14,'Aug''24 & Sep''25'!$AS:$AS,'Statewise SO Details'!F$2,'Aug''24 & Sep''25'!$BU:$BU,"consumer") -> 0 | G14: =SUMIFS('Aug''24 & Sep''25'!$BL:$BL,'Aug''24 & Sep''25'!$I:$I,'Statewise SO Details'!$B14,'Aug''24 & Sep''25'!$AS:$AS,'Statewise SO Details'!G$2,'Aug''24 & Sep''25'!$BU:$BU,"consumer") -> 1 | H14: =SUMIFS('Aug''24 & Sep''25'!$BL:$BL,'Aug''24 & Sep''25'!$I:$I,'Statewise SO Details'!$B14,'Aug''24 & Sep''25'!$AS:$AS,'Statewise SO Details'!H$2,'Aug''24 & Sep''25'!$BU:$BU,"consumer") -> 1 | I14: =SUMIFS('Aug''24 & Sep''25'!$BL:$BL,'Aug''24 & Sep''25'!$I:$I,'Statewise SO Details'!$B14,'Aug''24 & Sep''25'!$AS:$AS,'Statewise SO Details'!I$2,'Aug''24 & Sep''25'!$BU:$BU,"consumer") -> 3 | J14: =SUMIFS('Aug''24 & Sep''25'!$BL:$BL,'Aug''24 & Sep''25'!$I:$I,'Statewise SO Details'!$B14,'Aug''24 & Sep''25'!$AS:$AS,'Statewise SO Details'!J$2,'Aug''24 & Sep''25'!$BU:$BU,"consumer") -> 4 | K14: =SUMIFS('Aug''24 & Sep''25'!$BL:$BL,'Aug''24 & Sep''25'!$I:$I,'Statewise SO Details'!$B14,'Aug''24 & Sep''25'!$AS:$AS,'Statewise SO Details'!K$2,'Aug''24 & Sep''25'!$BU:$BU,"consumer") -> 0 | L14: =SUMIFS('Aug''24 & Sep''25'!$BL:$BL,'Aug''24 & Sep''25'!$I:$I,'Statewise SO Details'!$B14,'Aug''24 & Sep''25'!$AS:$AS,'Statewise SO Details'!L$2,'Aug''24 & Sep''25'!$BU:$BU,"consumer") -> 6 | M14: =SUMIFS('Aug''24 & Sep''25'!$BL:$BL,'Aug''24 & Sep''25'!$I:$I,'Statewise SO Details'!$B14,'Aug''24 & Sep''25'!$AS:$AS,'Statewise SO Details'!M$2,'Aug''24 & Sep''25'!$BU:$BU,"consumer") -> 2 | N14: =SUMIFS('Aug''24 & Sep''25'!$BL:$BL,'Aug''24 & Sep''25'!$I:$I,'Statewise SO Details'!$B14,'Aug''24 & Sep''25'!$AS:$AS,'Statewise SO Details'!N$2,'Aug''24 & Sep''25'!$BU:$BU,"consumer") -> 3 | O14: =SUMIFS('Aug''24 & Sep''25'!$BL:$BL,'Aug''24 & Sep''25'!$I:$I,'Statewise SO Details'!$B14,'Aug''24 & Sep''25'!$AS:$AS,'Statewise SO Details'!O$2,'Aug''24 & Sep''25'!$BU:$BU,"consumer") -> 3 | P14: =SUMIFS('Aug''24 & Sep''25'!$BL:$BL,'Aug''24 & Sep''25'!$I:$I,'Statewise SO Details'!$B14,'Aug''24 & Sep''25'!$AS:$AS,'Statewise SO Details'!P$2,'Aug''24 & Sep''25'!$BU:$BU,"consumer") -> 2 | Q14: =SUMIFS('Aug''24 & Sep''25'!$BL:$BL,'Aug''24 & Sep''25'!$I:$I,'Statewise SO Details'!$B14,'Aug''24 & Sep''25'!$AS:$AS,'Statewise SO Details'!Q$2,'Aug''24 & Sep''25'!$BU:$BU,"consumer") -> 2 | R14: =SUMIFS('Aug''24 & Sep''25'!$BL:$BL,'Aug''24 & Sep''25'!$I:$I,'Statewise SO Details'!$B14,'Aug''24 & Sep''25'!$AS:$AS,'Statewise SO Details'!R$2,'Aug''24 & Sep''25'!$BU:$BU,"consumer") -> 0 | S14: =SUMIFS('Aug''24 & Sep''25'!$BL:$BL,'Aug''24 & Sep''25'!$I:$I,'Statewise SO Details'!$B14,'Aug''24 & Sep''25'!$AS:$AS,'Statewise SO Details'!S$2,'Aug''24 & Sep''25'!$BU:$BU,"consumer") -> 5 | T14: =SUMIFS('Aug''24 & Sep''25'!$BL:$BL,'Aug''24 & Sep''25'!$I:$I,'Statewise SO Details'!$B14,'Aug''24 & Sep''25'!$AS:$AS,'Statewise SO Details'!T$2,'Aug''24 & Sep''25'!$BU:$BU,"consumer") -> 3 | U14: =SUMIFS('Aug''24 & Sep''25'!$BL:$BL,'Aug''24 & Sep''25'!$I:$I,'Statewise SO Details'!$B14,'Aug''24 & Sep''25'!$AS:$AS,'Statewise SO Details'!U$2,'Aug''24 & Sep''25'!$BU:$BU,"consumer") -> 3 | V14: =SUMIFS('Aug''24 & Sep''25'!$BL:$BL,'Aug''24 & Sep''25'!$I:$I,'Statewise SO Details'!$B14,'Aug''24 & Sep''25'!$AS:$AS,'Statewise SO Details'!V$2,'Aug''24 & Sep''25'!$BU:$BU,"consumer") -> 3 | W14: =SUMIFS('Aug''24 & Sep''25'!$BL:$BL,'Aug''24 & Sep''25'!$I:$I,'Statewise SO Details'!$B14,'Aug''24 & Sep''25'!$AS:$AS,'Statewise SO Details'!W$2,'Aug''24 & Sep''25'!$BU:$BU,"consumer") -> 4 | X14: =SUMIFS('Aug''24 & Sep''25'!$BL:$BL,'Aug''24 & Sep''25'!$I:$I,'Statewise SO Details'!$B14,'Aug''24 & Sep''25'!$AS:$AS,'Statewise SO Details'!X$2,'Aug''24 & Sep''25'!$BU:$BU,"consumer") -> 8 | Y14: =SUMIFS('Aug''24 & Sep''25'!$BL:$BL,'Aug''24 & Sep''25'!$I:$I,'Statewise SO Details'!$B14,'Aug''24 & Sep''25'!$AS:$AS,'Statewise SO Details'!Y$2,'Aug''24 & Sep''25'!$BU:$BU,"consumer") -> 0 | Z14: =SUMIFS('Aug''24 & Sep''25'!$BL:$BL,'Aug''24 & Sep''25'!$I:$I,'Statewise SO Details'!$B14,'Aug''24 & Sep''25'!$AS:$AS,'Statewise SO Details'!Z$2,'Aug''24 & Sep''25'!$BU:$BU,"consumer") -> 7 | AA14: =SUMIFS('Aug''24 & Sep''25'!$BL:$BL,'Aug''24 & Sep''25'!$I:$I,'Statewise SO Details'!$B14,'Aug''24 & Sep''25'!$AS:$AS,'Statewise SO Details'!AA$2,'Aug''24 & Sep''25'!$BU:$BU,"consumer") -> 2 | AB14: =SUMIFS('Aug''24 & Sep''25'!$BL:$BL,'Aug''24 & Sep''25'!$I:$I,'Statewise SO Details'!$B14,'Aug''24 & Sep''25'!$AS:$AS,'Statewise SO Details'!AB$2,'Aug''24 & Sep''25'!$BU:$BU,"consumer") -> 4 | AC14: =SUMIFS('Aug''24 & Sep''25'!$BL:$BL,'Aug''24 & Sep''25'!$I:$I,'Statewise SO Details'!$B14,'Aug''24 & Sep''25'!$AS:$AS,'Statewise SO Details'!AC$2,'Aug''24 & Sep''25'!$BU:$BU,"consumer") -> 5 | AD14: =SUMIFS('Aug''24 & Sep''25'!$BL:$BL,'Aug''24 & Sep''25'!$I:$I,'Statewise SO Details'!$B14,'Aug''24 & Sep''25'!$AS:$AS,'Statewise SO Details'!AD$2,'Aug''24 & Sep''25'!$BU:$BU,"consumer") -> 5 | AE14: =SUMIFS('Aug''24 & Sep''25'!$BL:$BL,'Aug''24 & Sep''25'!$I:$I,'Statewise SO Details'!$B14,'Aug''24 & Sep''25'!$AS:$AS,'Statewise SO Details'!AE$2,'Aug''24 & Sep''25'!$BU:$BU,"consumer") -> 16 | AF14: =SUMIFS('Aug''24 & Sep''25'!$BL:$BL,'Aug''24 & Sep''25'!$I:$I,'Statewise SO Details'!$B14,'Aug''24 & Sep''25'!$AS:$AS,'Statewise SO Details'!AF$2,'Aug''24 & Sep''25'!$BU:$BU,"consumer") -> 25 | AG14: =SUMIFS('Aug''24 & Sep''25'!$BL:$BL,'Aug''24 & Sep''25'!$I:$I,'Statewise SO Details'!$B14,'Aug''24 & Sep''25'!$AS:$AS,'Statewise SO Details'!AG$2,'Aug''24 & Sep''25'!$BU:$BU,"consumer") -> 0 | AH14: 117 | AJ14: 117 | AK14: -1% | AL14: =SUMIFS('Aug''24 & Sep''25'!$BL:$BL,'Aug''24 & Sep''25'!$I:$I,'Statewise SO Details'!$B14,'Aug''24 & Sep''25'!$CF:$CF,'Statewise SO Details'!AL$2,'Aug''24 & Sep''25'!$BU:$BU,"consumer",'Aug''24 & Sep''25'!$CG:$CG,"MTD") -> 118 | AN14: =IFERROR(VLOOKUP($B14,Pivot!$P$5:$S$28,MATCH('Statewise SO Details'!AN$2,Pivot!$P$5:$S$5,0),0),0) -> 60 | AO14: 5% | AP14: =IFERROR(VLOOKUP($B14,Pivot!$P$5:$S$28,MATCH('Statewise SO Details'!AP$2,Pivot!$P$5:$S$5,0),0),0) -> 57
A15: North1 | B15: Punjab | C15: =SUMIFS('Aug''24 & Sep''25'!$BL:$BL,'Aug''24 & Sep''25'!$I:$I,'Statewise SO Details'!$B15,'Aug''24 & Sep''25'!$AS:$AS,'Statewise SO Details'!C$2,'Aug''24 & Sep''25'!$BU:$BU,"consumer") -> 15 | D15: =SUMIFS('Aug''24 & Sep''25'!$BL:$BL,'Aug''24 & Sep''25'!$I:$I,'Statewise SO Details'!$B15,'Aug''24 & Sep''25'!$AS:$AS,'Statewise SO Details'!D$2,'Aug''24 & Sep''25'!$BU:$BU,"consumer") -> 0 | E15: =SUMIFS('Aug''24 & Sep''25'!$BL:$BL,'Aug''24 & Sep''25'!$I:$I,'Statewise SO Details'!$B15,'Aug''24 & Sep''25'!$AS:$AS,'Statewise SO Details'!E$2,'Aug''24 & Sep''25'!$BU:$BU,"consumer") -> 0 | F15: =SUMIFS('Aug''24 & Sep''25'!$BL:$BL,'Aug''24 & Sep''25'!$I:$I,'Statewise SO Details'!$B15,'Aug''24 & Sep''25'!$AS:$AS,'Statewise SO Details'!F$2,'Aug''24 & Sep''25'!$BU:$BU,"consumer") -> 0 | G15: =SUMIFS('Aug''24 & Sep''25'!$BL:$BL,'Aug''24 & Sep''25'!$I:$I,'Statewise SO Details'!$B15,'Aug''24 & Sep''25'!$AS:$AS,'Statewise SO Details'!G$2,'Aug''24 & Sep''25'!$BU:$BU,"consumer") -> 0 | H15: =SUMIFS('Aug''24 & Sep''25'!$BL:$BL,'Aug''24 & Sep''25'!$I:$I,'Statewise SO Details'!$B15,'Aug''24 & Sep''25'!$AS:$AS,'Statewise SO Details'!H$2,'Aug''24 & Sep''25'!$BU:$BU,"consumer") -> 0 | I15: =SUMIFS('Aug''24 & Sep''25'!$BL:$BL,'Aug''24 & Sep''25'!$I:$I,'Statewise SO Details'!$B15,'Aug''24 & Sep''25'!$AS:$AS,'Statewise SO Details'!I$2,'Aug''24 & Sep''25'!$BU:$BU,"consumer") -> 18 | J15: =SUMIFS('Aug''24 & Sep''25'!$BL:$BL,'Aug''24 & Sep''25'!$I:$I,'Statewise SO Details'!$B15,'Aug''24 & Sep''25'!$AS:$AS,'Statewise SO Details'!J$2,'Aug''24 & Sep''25'!$BU:$BU,"consumer") -> 0 | K15: =SUMIFS('Aug''24 & Sep''25'!$BL:$BL,'Aug''24 & Sep''25'!$I:$I,'Statewise SO Details'!$B15,'Aug''24 & Sep''25'!$AS:$AS,'Statewise SO Details'!K$2,'Aug''24 & Sep''25'!$BU:$BU,"consumer") -> 0 | L15: =SUMIFS('Aug''24 & Sep''25'!$BL:$BL,'Aug''24 & Sep''25'!$I:$I,'Statewise SO Details'!$B15,'Aug''24 & Sep''25'!$AS:$AS,'Statewise SO Details'!L$2,'Aug''24 & Sep''25'!$BU:$BU,"consumer") -> 19 | M15: =SUMIFS('Aug''24 & Sep''25'!$BL:$BL,'Aug''24 & Sep''25'!$I:$I,'Statewise SO Details'!$B15,'Aug''24 & Sep''25'!$AS:$AS,'Statewise SO Details'!M$2,'Aug''24 & Sep''25'!$BU:$BU,"consumer") -> 30 | N15: =SUMIFS('Aug''24 & Sep''25'!$BL:$BL,'Aug''24 & Sep''25'!$I:$I,'Statewise SO Details'!$B15,'Aug''24 & Sep''25'!$AS:$AS,'Statewise SO Details'!N$2,'Aug''24 & Sep''25'!$BU:$BU,"consumer") -> 0 | O15: =SUMIFS('Aug''24 & Sep''25'!$BL:$BL,'Aug''24 & Sep''25'!$I:$I,'Statewise SO Details'!$B15,'Aug''24 & Sep''25'!$AS:$AS,'Statewise SO Details'!O$2,'Aug''24 & Sep''25'!$BU:$BU,"consumer") -> 21 | P15: =SUMIFS('Aug''24 & Sep''25'!$BL:$BL,'Aug''24 & Sep''25'!$I:$I,'Statewise SO Details'!$B15,'Aug''24 & Sep''25'!$AS:$AS,'Statewise SO Details'!P$2,'Aug''24 & Sep''25'!$BU:$BU,"consumer") -> 6 | Q15: =SUMIFS('Aug''24 & Sep''25'!$BL:$BL,'Aug''24 & Sep''25'!$I:$I,'Statewise SO Details'!$B15,'Aug''24 & Sep''25'!$AS:$AS,'Statewise SO Details'!Q$2,'Aug''24 & Sep''25'!$BU:$BU,"consumer") -> 1 | R15: =SUMIFS('Aug''24 & Sep''25'!$BL:$BL,'Aug''24 & Sep''25'!$I:$I,'Statewise SO Details'!$B15,'Aug''24 & Sep''25'!$AS:$AS,'Statewise SO Details'!R$2,'Aug''24 & Sep''25'!$BU:$BU,"consumer") -> 39 | S15: =SUMIFS('Aug''24 & Sep''25'!$BL:$BL,'Aug''24 & Sep''25'!$I:$I,'Statewise SO Details'!$B15,'Aug''24 & Sep''25'!$AS:$AS,'Statewise SO Details'!S$2,'Aug''24 & Sep''25'!$BU:$BU,"consumer") -> 6 | T15: =SUMIFS('Aug''24 & Sep''25'!$BL:$BL,'Aug''24 & Sep''25'!$I:$I,'Statewise SO Details'!$B15,'Aug''24 & Sep''25'!$AS:$AS,'Statewise SO Details'!T$2,'Aug''24 & Sep''25'!$BU:$BU,"consumer") -> 19 | U15: =SUMIFS('Aug''24 & Sep''25'!$BL:$BL,'Aug''24 & Sep''25'!$I:$I,'Statewise SO Details'!$B15,'Aug''24 & Sep''25'!$AS:$AS,'Statewise SO Details'!U$2,'Aug''24 & Sep''25'!$BU:$BU,"consumer") -> 0 | V15: =SUMIFS('Aug''24 & Sep''25'!$BL:$BL,'Aug''24 & Sep''25'!$I:$I,'Statewise SO Details'!$B15,'Aug''24 & Sep''25'!$AS:$AS,'Statewise SO Details'!V$2,'Aug''24 & Sep''25'!$BU:$BU,"consumer") -> 19 | W15: =SUMIFS('Aug''24 & Sep''25'!$BL:$BL,'Aug''24 & Sep''25'!$I:$I,'Statewise SO Details'!$B15,'Aug''24 & Sep''25'!$AS:$AS,'Statewise SO Details'!W$2,'Aug''24 & Sep''25'!$BU:$BU,"consumer") -> 0 | X15: =SUMIFS('Aug''24 & Sep''25'!$BL:$BL,'Aug''24 & Sep''25'!$I:$I,'Statewise SO Details'!$B15,'Aug''24 & Sep''25'!$AS:$AS,'Statewise SO Details'!X$2,'Aug''24 & Sep''25'!$BU:$BU,"consumer") -> 0 | Y15: =SUMIFS('Aug''24 & Sep''25'!$BL:$BL,'Aug''24 & Sep''25'!$I:$I,'Statewise SO Details'!$B15,'Aug''24 & Sep''25'!$AS:$AS,'Statewise SO Details'!Y$2,'Aug''24 & Sep''25'!$BU:$BU,"consumer") -> 8 | Z15: =SUMIFS('Aug''24 & Sep''25'!$BL:$BL,'Aug''24 & Sep''25'!$I:$I,'Statewise SO Details'!$B15,'Aug''24 & Sep''25'!$AS:$AS,'Statewise SO Details'!Z$2,'Aug''24 & Sep''25'!$BU:$BU,"consumer") -> 11 | AA15: =SUMIFS('Aug''24 & Sep''25'!$BL:$BL,'Aug''24 & Sep''25'!$I:$I,'Statewise SO Details'!$B15,'Aug''24 & Sep''25'!$AS:$AS,'Statewise SO Details'!AA$2,'Aug''24 & Sep''25'!$BU:$BU,"consumer") -> 5 | AB15: =SUMIFS('Aug''24 & Sep''25'!$BL:$BL,'Aug''24 & Sep''25'!$I:$I,'Statewise SO Details'!$B15,'Aug''24 & Sep''25'!$AS:$AS,'Statewise SO Details'!AB$2,'Aug''24 & Sep''25'!$BU:$BU,"consumer") -> 0 | AC15: =SUMIFS('Aug''24 & Sep''25'!$BL:$BL,'Aug''24 & Sep''25'!$I:$I,'Statewise SO Details'!$B15,'Aug''24 & Sep''25'!$AS:$AS,'Statewise SO Details'!AC$2,'Aug''24 & Sep''25'!$BU:$BU,"consumer") -> 4 | AD15: =SUMIFS('Aug''24 & Sep''25'!$BL:$BL,'Aug''24 & Sep''25'!$I:$I,'Statewise SO Details'!$B15,'Aug''24 & Sep''25'!$AS:$AS,'Statewise SO Details'!AD$2,'Aug''24 & Sep''25'!$BU:$BU,"consumer") -> 50 | AE15: =SUMIFS('Aug''24 & Sep''25'!$BL:$BL,'Aug''24 & Sep''25'!$I:$I,'Statewise SO Details'!$B15,'Aug''24 & Sep''25'!$AS:$AS,'Statewise SO Details'!AE$2,'Aug''24 & Sep''25'!$BU:$BU,"consumer") -> 55 | AF15: =SUMIFS('Aug''24 & Sep''25'!$BL:$BL,'Aug''24 & Sep''25'!$I:$I,'Statewise SO Details'!$B15,'Aug''24 & Sep''25'!$AS:$AS,'Statewise SO Details'!AF$2,'Aug''24 & Sep''25'!$BU:$BU,"consumer") -> 33 | AG15: =SUMIFS('Aug''24 & Sep''25'!$BL:$BL,'Aug''24 & Sep''25'!$I:$I,'Statewise SO Details'!$B15,'Aug''24 & Sep''25'!$AS:$AS,'Statewise SO Details'!AG$2,'Aug''24 & Sep''25'!$BU:$BU,"consumer") -> 0 | AH15: 359 | AJ15: 359 | AK15: -59% | AL15: =SUMIFS('Aug''24 & Sep''25'!$BL:$BL,'Aug''24 & Sep''25'!$I:$I,'Statewise SO Details'!$B15,'Aug''24 & Sep''25'!$CF:$CF,'Statewise SO Details'!AL$2,'Aug''24 & Sep''25'!$BU:$BU,"consumer",'Aug''24 & Sep''25'!$CG:$CG,"MTD") -> 884 | AN15: =IFERROR(VLOOKUP($B15,Pivot!$P$5:$S$28,MATCH('Statewise SO Details'!AN$2,Pivot!$P$5:$S$5,0),0),0) -> 0 | AO15: 0% | AP15: =IFERROR(VLOOKUP($B15,Pivot!$P$5:$S$28,MATCH('Statewise SO Details'!AP$2,Pivot!$P$5:$S$5,0),0),0) -> 0
A16: North2 | B16: Uttar Pradesh | C16: =SUMIFS('Aug''24 & Sep''25'!$BL:$BL,'Aug''24 & Sep''25'!$I:$I,'Statewise SO Details'!$B16,'Aug''24 & Sep''25'!$AS:$AS,'Statewise SO Details'!C$2,'Aug''24 & Sep''25'!$BU:$BU,"consumer") -> 0 | D16: =SUMIFS('Aug''24 & Sep''25'!$BL:$BL,'Aug''24 & Sep''25'!$I:$I,'Statewise SO Details'!$B16,'Aug''24 & Sep''25'!$AS:$AS,'Statewise SO Details'!D$2,'Aug''24 & Sep''25'!$BU:$BU,"consumer") -> 0 | E16: =SUMIFS('Aug''24 & Sep''25'!$BL:$BL,'Aug''24 & Sep''25'!$I:$I,'Statewise SO Details'!$B16,'Aug''24 & Sep''25'!$AS:$AS,'Statewise SO Details'!E$2,'Aug''24 & Sep''25'!$BU:$BU,"consumer") -> 0 | F16: =SUMIFS('Aug''24 & Sep''25'!$BL:$BL,'Aug''24 & Sep''25'!$I:$I,'Statewise SO Details'!$B16,'Aug''24 & Sep''25'!$AS:$AS,'Statewise SO Details'!F$2,'Aug''24 & Sep''25'!$BU:$BU,"consumer") -> 0 | G16: =SUMIFS('Aug''24 & Sep''25'!$BL:$BL,'Aug''24 & Sep''25'!$I:$I,'Statewise SO Details'!$B16,'Aug''24 & Sep''25'!$AS:$AS,'Statewise SO Details'!G$2,'Aug''24 & Sep''25'!$BU:$BU,"consumer") -> 0 | H16: =SUMIFS('Aug''24 & Sep''25'!$BL:$BL,'Aug''24 & Sep''25'!$I:$I,'Statewise SO Details'!$B16,'Aug''24 & Sep''25'!$AS:$AS,'Statewise SO Details'!H$2,'Aug''24 & Sep''25'!$BU:$BU,"consumer") -> 0 | I16: =SUMIFS('Aug''24 & Sep''25'!$BL:$BL,'Aug''24 & Sep''25'!$I:$I,'Statewise SO Details'!$B16,'Aug''24 & Sep''25'!$AS:$AS,'Statewise SO Details'!I$2,'Aug''24 & Sep''25'!$BU:$BU,"consumer") -> 26 | J16: =SUMIFS('Aug''24 & Sep''25'!$BL:$BL,'Aug''24 & Sep''25'!$I:$I,'Statewise SO Details'!$B16,'Aug''24 & Sep''25'!$AS:$AS,'Statewise SO Details'!J$2,'Aug''24 & Sep''25'!$BU:$BU,"consumer") -> 5 | K16: =SUMIFS('Aug''24 & Sep''25'!$BL:$BL,'Aug''24 & Sep''25'!$I:$I,'Statewise SO Details'!$B16,'Aug''24 & Sep''25'!$AS:$AS,'Statewise SO Details'!K$2,'Aug''24 & Sep''25'!$BU:$BU,"consumer") -> 0 | L16: =SUMIFS('Aug''24 & Sep''25'!$BL:$BL,'Aug''24 & Sep''25'!$I:$I,'Statewise SO Details'!$B16,'Aug''24 & Sep''25'!$AS:$AS,'Statewise SO Details'!L$2,'Aug''24 & Sep''25'!$BU:$BU,"consumer") -> 38 | M16: =SUMIFS('Aug''24 & Sep''25'!$BL:$BL,'Aug''24 & Sep''25'!$I:$I,'Statewise SO Details'!$B16,'Aug''24 & Sep''25'!$AS:$AS,'Statewise SO Details'!M$2,'Aug''24 & Sep''25'!$BU:$BU,"consumer") -> 0 | N16: =SUMIFS('Aug''24 & Sep''25'!$BL:$BL,'Aug''24 & Sep''25'!$I:$I,'Statewise SO Details'!$B16,'Aug''24 & Sep''25'!$AS:$AS,'Statewise SO Details'!N$2,'Aug''24 & Sep''25'!$BU:$BU,"consumer") -> 3 | O16: =SUMIFS('Aug''24 & Sep''25'!$BL:$BL,'Aug''24 & Sep''25'!$I:$I,'Statewise SO Details'!$B16,'Aug''24 & Sep''25'!$AS:$AS,'Statewise SO Details'!O$2,'Aug''24 & Sep''25'!$BU:$BU,"consumer") -> 7 | P16: =SUMIFS('Aug''24 & Sep''25'!$BL:$BL,'Aug''24 & Sep''25'!$I:$I,'Statewise SO Details'!$B16,'Aug''24 & Sep''25'!$AS:$AS,'Statewise SO Details'!P$2,'Aug''24 & Sep''25'!$BU:$BU,"consumer") -> 13 | Q16: =SUMIFS('Aug''24 & Sep''25'!$BL:$BL,'Aug''24 & Sep''25'!$I:$I,'Statewise SO Details'!$B16,'Aug''24 & Sep''25'!$AS:$AS,'Statewise SO Details'!Q$2,'Aug''24 & Sep''25'!$BU:$BU,"consumer") -> 49 | R16: =SUMIFS('Aug''24 & Sep''25'!$BL:$BL,'Aug''24 & Sep''25'!$I:$I,'Statewise SO Details'!$B16,'Aug''24 & Sep''25'!$AS:$AS,'Statewise SO Details'!R$2,'Aug''24 & Sep''25'!$BU:$BU,"consumer") -> 25 | S16: =SUMIFS('Aug''24 & Sep''25'!$BL:$BL,'Aug''24 & Sep''25'!$I:$I,'Statewise SO Details'!$B16,'Aug''24 & Sep''25'!$AS:$AS,'Statewise SO Details'!S$2,'Aug''24 & Sep''25'!$BU:$BU,"consumer") -> 0 | T16: =SUMIFS('Aug''24 & Sep''25'!$BL:$BL,'Aug''24 & Sep''25'!$I:$I,'Statewise SO Details'!$B16,'Aug''24 & Sep''25'!$AS:$AS,'Statewise SO Details'!T$2,'Aug''24 & Sep''25'!$BU:$BU,"consumer") -> 11 | U16: =SUMIFS('Aug''24 & Sep''25'!$BL:$BL,'Aug''24 & Sep''25'!$I:$I,'Statewise SO Details'!$B16,'Aug''24 & Sep''25'!$AS:$AS,'Statewise SO Details'!U$2,'Aug''24 & Sep''25'!$BU:$BU,"consumer") -> 7 | V16: =SUMIFS('Aug''24 & Sep''25'!$BL:$BL,'Aug''24 & Sep''25'!$I:$I,'Statewise SO Details'!$B16,'Aug''24 & Sep''25'!$AS:$AS,'Statewise SO Details'!V$2,'Aug''24 & Sep''25'!$BU:$BU,"consumer") -> 32 | W16: =SUMIFS('Aug''24 & Sep''25'!$BL:$BL,'Aug''24 & Sep''25'!$I:$I,'Statewise SO Details'!$B16,'Aug''24 & Sep''25'!$AS:$AS,'Statewise SO Details'!W$2,'Aug''24 & Sep''25'!$BU:$BU,"consumer") -> 27 | X16: =SUMIFS('Aug''24 & Sep''25'!$BL:$BL,'Aug''24 & Sep''25'!$I:$I,'Statewise SO Details'!$B16,'Aug''24 & Sep''25'!$AS:$AS,'Statewise SO Details'!X$2,'Aug''24 & Sep''25'!$BU:$BU,"consumer") -> 17 | Y16: =SUMIFS('Aug''24 & Sep''25'!$BL:$BL,'Aug''24 & Sep''25'!$I:$I,'Statewise SO Details'!$B16,'Aug''24 & Sep''25'!$AS:$AS,'Statewise SO Details'!Y$2,'Aug''24 & Sep''25'!$BU:$BU,"consumer") -> 4 | Z16: =SUMIFS('Aug''24 & Sep''25'!$BL:$BL,'Aug''24 & Sep''25'!$I:$I,'Statewise SO Details'!$B16,'Aug''24 & Sep''25'!$AS:$AS,'Statewise SO Details'!Z$2,'Aug''24 & Sep''25'!$BU:$BU,"consumer") -> 20 | AA16: =SUMIFS('Aug''24 & Sep''25'!$BL:$BL,'Aug''24 & Sep''25'!$I:$I,'Statewise SO Details'!$B16,'Aug''24 & Sep''25'!$AS:$AS,'Statewise SO Details'!AA$2,'Aug''24 & Sep''25'!$BU:$BU,"consumer") -> 68 | AB16: =SUMIFS('Aug''24 & Sep''25'!$BL:$BL,'Aug''24 & Sep''25'!$I:$I,'Statewise SO Details'!$B16,'Aug''24 & Sep''25'!$AS:$AS,'Statewise SO Details'!AB$2,'Aug''24 & Sep''25'!$BU:$BU,"consumer") -> 3 | AC16: =SUMIFS('Aug''24 & Sep''25'!$BL:$BL,'Aug''24 & Sep''25'!$I:$I,'Statewise SO Details'!$B16,'Aug''24 & Sep''25'!$AS:$AS,'Statewise SO Details'!AC$2,'Aug''24 & Sep''25'!$BU:$BU,"consumer") -> 14 | AD16: =SUMIFS('Aug''24 & Sep''25'!$BL:$BL,'Aug''24 & Sep''25'!$I:$I,'Statewise SO Details'!$B16,'Aug''24 & Sep''25'!$AS:$AS,'Statewise SO Details'!AD$2,'Aug''24 & Sep''25'!$BU:$BU,"consumer") -> 34 | AE16: =SUMIFS('Aug''24 & Sep''25'!$BL:$BL,'Aug''24 & Sep''25'!$I:$I,'Statewise SO Details'!$B16,'Aug''24 & Sep''25'!$AS:$AS,'Statewise SO Details'!AE$2,'Aug''24 & Sep''25'!$BU:$BU,"consumer") -> 389 | AF16: =SUMIFS('Aug''24 & Sep''25'!$BL:$BL,'Aug''24 & Sep''25'!$I:$I,'Statewise SO Details'!$B16,'Aug''24 & Sep''25'!$AS:$AS,'Statewise SO Details'!AF$2,'Aug''24 & Sep''25'!$BU:$BU,"consumer") -> 450 | AG16: =SUMIFS('Aug''24 & Sep''25'!$BL:$BL,'Aug''24 & Sep''25'!$I:$I,'Statewise SO Details'!$B16,'Aug''24 & Sep''25'!$AS:$AS,'Statewise SO Details'!AG$2,'Aug''24 & Sep''25'!$BU:$BU,"consumer") -> 0 | AH16: 1242 | AJ16: 1242 | AK16: 8% | AL16: =SUMIFS('Aug''24 & Sep''25'!$BL:$BL,'Aug''24 & Sep''25'!$I:$I,'Statewise SO Details'!$B16,'Aug''24 & Sep''25'!$CF:$CF,'Statewise SO Details'!AL$2,'Aug''24 & Sep''25'!$BU:$BU,"consumer",'Aug''24 & Sep''25'!$CG:$CG,"MTD") -> 1155 | AN16: =IFERROR(VLOOKUP($B16,Pivot!$P$5:$S$28,MATCH('Statewise SO Details'!AN$2,Pivot!$P$5:$S$5,0),0),0) -> 429 | AO16: -12% | AP16: =IFERROR(VLOOKUP($B16,Pivot!$P$5:$S$28,MATCH('Statewise SO Details'!AP$2,Pivot!$P$5:$S$5,0),0),0) -> 485
A17: North2 | B17: Uttrakhand | C17: =SUMIFS('Aug''24 & Sep''25'!$BL:$BL,'Aug''24 & Sep''25'!$I:$I,'Statewise SO Details'!$B17,'Aug''24 & Sep''25'!$AS:$AS,'Statewise SO Details'!C$2,'Aug''24 & Sep''25'!$BU:$BU,"consumer") -> 0 | D17: =SUMIFS('Aug''24 & Sep''25'!$BL:$BL,'Aug''24 & Sep''25'!$I:$I,'Statewise SO Details'!$B17,'Aug''24 & Sep''25'!$AS:$AS,'Statewise SO Details'!D$2,'Aug''24 & Sep''25'!$BU:$BU,"consumer") -> 0 | E17: =SUMIFS('Aug''24 & Sep''25'!$BL:$BL,'Aug''24 & Sep''25'!$I:$I,'Statewise SO Details'!$B17,'Aug''24 & Sep''25'!$AS:$AS,'Statewise SO Details'!E$2,'Aug''24 & Sep''25'!$BU:$BU,"consumer") -> 0 | F17: =SUMIFS('Aug''24 & Sep''25'!$BL:$BL,'Aug''24 & Sep''25'!$I:$I,'Statewise SO Details'!$B17,'Aug''24 & Sep''25'!$AS:$AS,'Statewise SO Details'!F$2,'Aug''24 & Sep''25'!$BU:$BU,"consumer") -> 0 | G17: =SUMIFS('Aug''24 & Sep''25'!$BL:$BL,'Aug''24 & Sep''25'!$I:$I,'Statewise SO Details'!$B17,'Aug''24 & Sep''25'!$AS:$AS,'Statewise SO Details'!G$2,'Aug''24 & Sep''25'!$BU:$BU,"consumer") -> 0 | H17: =SUMIFS('Aug''24 & Sep''25'!$BL:$BL,'Aug''24 & Sep''25'!$I:$I,'Statewise SO Details'!$B17,'Aug''24 & Sep''25'!$AS:$AS,'Statewise SO Details'!H$2,'Aug''24 & Sep''25'!$BU:$BU,"consumer") -> 0 | I17: =SUMIFS('Aug''24 & Sep''25'!$BL:$BL,'Aug''24 & Sep''25'!$I:$I,'Statewise SO Details'!$B17,'Aug''24 & Sep''25'!$AS:$AS,'Statewise SO Details'!I$2,'Aug''24 & Sep''25'!$BU:$BU,"consumer") -> 0 | J17: =SUMIFS('Aug''24 & Sep''25'!$BL:$BL,'Aug''24 & Sep''25'!$I:$I,'Statewise SO Details'!$B17,'Aug''24 & Sep''25'!$AS:$AS,'Statewise SO Details'!J$2,'Aug''24 & Sep''25'!$BU:$BU,"consumer") -> 0 | K17: =SUMIFS('Aug''24 & Sep''25'!$BL:$BL,'Aug''24 & Sep''25'!$I:$I,'Statewise SO Details'!$B17,'Aug''24 & Sep''25'!$AS:$AS,'Statewise SO Details'!K$2,'Aug''24 & Sep''25'!$BU:$BU,"consumer") -> 0 | L17: =SUMIFS('Aug''24 & Sep''25'!$BL:$BL,'Aug''24 & Sep''25'!$I:$I,'Statewise SO Details'!$B17,'Aug''24 & Sep''25'!$AS:$AS,'Statewise SO Details'!L$2,'Aug''24 & Sep''25'!$BU:$BU,"consumer") -> 10 | M17: =SUMIFS('Aug''24 & Sep''25'!$BL:$BL,'Aug''24 & Sep''25'!$I:$I,'Statewise SO Details'!$B17,'Aug''24 & Sep''25'!$AS:$AS,'Statewise SO Details'!M$2,'Aug''24 & Sep''25'!$BU:$BU,"consumer") -> 0 | N17: =SUMIFS('Aug''24 & Sep''25'!$BL:$BL,'Aug''24 & Sep''25'!$I:$I,'Statewise SO Details'!$B17,'Aug''24 & Sep''25'!$AS:$AS,'Statewise SO Details'!N$2,'Aug''24 & Sep''25'!$BU:$BU,"consumer") -> 0 | O17: =SUMIFS('Aug''24 & Sep''25'!$BL:$BL,'Aug''24 & Sep''25'!$I:$I,'Statewise SO Details'!$B17,'Aug''24 & Sep''25'!$AS:$AS,'Statewise SO Details'!O$2,'Aug''24 & Sep''25'!$BU:$BU,"consumer") -> 0 | P17: =SUMIFS('Aug''24 & Sep''25'!$BL:$BL,'Aug''24 & Sep''25'!$I:$I,'Statewise SO Details'!$B17,'Aug''24 & Sep''25'!$AS:$AS,'Statewise SO Details'!P$2,'Aug''24 & Sep''25'!$BU:$BU,"consumer") -> 0 | Q17: =SUMIFS('Aug''24 & Sep''25'!$BL:$BL,'Aug''24 & Sep''25'!$I:$I,'Statewise SO Details'!$B17,'Aug''24 & Sep''25'!$AS:$AS,'Statewise SO Details'!Q$2,'Aug''24 & Sep''25'!$BU:$BU,"consumer") -> 0 | R17: =SUMIFS('Aug''24 & Sep''25'!$BL:$BL,'Aug''24 & Sep''25'!$I:$I,'Statewise SO Details'!$B17,'Aug''24 & Sep''25'!$AS:$AS,'Statewise SO Details'!R$2,'Aug''24 & Sep''25'!$BU:$BU,"consumer") -> 0 | S17: =SUMIFS('Aug''24 & Sep''25'!$BL:$BL,'Aug''24 & Sep''25'!$I:$I,'Statewise SO Details'!$B17,'Aug''24 & Sep''25'!$AS:$AS,'Statewise SO Details'!S$2,'Aug''24 & Sep''25'!$BU:$BU,"consumer") -> 13 | T17: =SUMIFS('Aug''24 & Sep''25'!$BL:$BL,'Aug''24 & Sep''25'!$I:$I,'Statewise SO Details'!$B17,'Aug''24 & Sep''25'!$AS:$AS,'Statewise SO Details'!T$2,'Aug''24 & Sep''25'!$BU:$BU,"consumer") -> 0 | U17: =SUMIFS('Aug''24 & Sep''25'!$BL:$BL,'Aug''24 & Sep''25'!$I:$I,'Statewise SO Details'!$B17,'Aug''24 & Sep''25'!$AS:$AS,'Statewise SO Details'!U$2,'Aug''24 & Sep''25'!$BU:$BU,"consumer") -> 2 | V17: =SUMIFS('Aug''24 & Sep''25'!$BL:$BL,'Aug''24 & Sep''25'!$I:$I,'Statewise SO Details'!$B17,'Aug''24 & Sep''25'!$AS:$AS,'Statewise SO Details'!V$2,'Aug''24 & Sep''25'!$BU:$BU,"consumer") -> 12 | W17: =SUMIFS('Aug''24 & Sep''25'!$BL:$BL,'Aug''24 & Sep''25'!$I:$I,'Statewise SO Details'!$B17,'Aug''24 & Sep''25'!$AS:$AS,'Statewise SO Details'!W$2,'Aug''24 & Sep''25'!$BU:$BU,"consumer") -> 0 | X17: =SUMIFS('Aug''24 & Sep''25'!$BL:$BL,'Aug''24 & Sep''25'!$I:$I,'Statewise SO Details'!$B17,'Aug''24 & Sep''25'!$AS:$AS,'Statewise SO Details'!X$2,'Aug''24 & Sep''25'!$BU:$BU,"consumer") -> 0 | Y17: =SUMIFS('Aug''24 & Sep''25'!$BL:$BL,'Aug''24 & Sep''25'!$I:$I,'Statewise SO Details'!$B17,'Aug''24 & Sep''25'!$AS:$AS,'Statewise SO Details'!Y$2,'Aug''24 & Sep''25'!$BU:$BU,"consumer") -> 0 | Z17: =SUMIFS('Aug''24 & Sep''25'!$BL:$BL,'Aug''24 & Sep''25'!$I:$I,'Statewise SO Details'!$B17,'Aug''24 & Sep''25'!$AS:$AS,'Statewise SO Details'!Z$2,'Aug''24 & Sep''25'!$BU:$BU,"consumer") -> 0 | AA17: =SUMIFS('Aug''24 & Sep''25'!$BL:$BL,'Aug''24 & Sep''25'!$I:$I,'Statewise SO Details'!$B17,'Aug''24 & Sep''25'!$AS:$AS,'Statewise SO Details'!AA$2,'Aug''24 & Sep''25'!$BU:$BU,"consumer") -> 4 | AB17: =SUMIFS('Aug''24 & Sep''25'!$BL:$BL,'Aug''24 & Sep''25'!$I:$I,'Statewise SO Details'!$B17,'Aug''24 & Sep''25'!$AS:$AS,'Statewise SO Details'!AB$2,'Aug''24 & Sep''25'!$BU:$BU,"consumer") -> 6 | AC17: =SUMIFS('Aug''24 & Sep''25'!$BL:$BL,'Aug''24 & Sep''25'!$I:$I,'Statewise SO Details'!$B17,'Aug''24 & Sep''25'!$AS:$AS,'Statewise SO Details'!AC$2,'Aug''24 & Sep''25'!$BU:$BU,"consumer") -> 2 | AD17: =SUMIFS('Aug''24 & Sep''25'!$BL:$BL,'Aug''24 & Sep''25'!$I:$I,'Statewise SO Details'!$B17,'Aug''24 & Sep''25'!$AS:$AS,'Statewise SO Details'!AD$2,'Aug''24 & Sep''25'!$BU:$BU,"consumer") -> 0 | AE17: =SUMIFS('Aug''24 & Sep''25'!$BL:$BL,'Aug''24 & Sep''25'!$I:$I,'Statewise SO Details'!$B17,'Aug''24 & Sep''25'!$AS:$AS,'Statewise SO Details'!AE$2,'Aug''24 & Sep''25'!$BU:$BU,"consumer") -> 0 | AF17: =SUMIFS('Aug''24 & Sep''25'!$BL:$BL,'Aug''24 & Sep''25'!$I:$I,'Statewise SO Details'!$B17,'Aug''24 & Sep''25'!$AS:$AS,'Statewise SO Details'!AF$2,'Aug''24 & Sep''25'!$BU:$BU,"consumer") -> 45 | AG17: =SUMIFS('Aug''24 & Sep''25'!$BL:$BL,'Aug''24 & Sep''25'!$I:$I,'Statewise SO Details'!$B17,'Aug''24 & Sep''25'!$AS:$AS,'Statewise SO Details'!AG$2,'Aug''24 & Sep''25'!$BU:$BU,"consumer") -> 0 | AH17: 94 | AJ17: 94 | AK17: -42% | AL17: =SUMIFS('Aug''24 & Sep''25'!$BL:$BL,'Aug''24 & Sep''25'!$I:$I,'Statewise SO Details'!$B17,'Aug''24 & Sep''25'!$CF:$CF,'Statewise SO Details'!AL$2,'Aug''24 & Sep''25'!$BU:$BU,"consumer",'Aug''24 & Sep''25'!$CG:$CG,"MTD") -> 161 | AN17: =IFERROR(VLOOKUP($B17,Pivot!$P$5:$S$28,MATCH('Statewise SO Details'!AN$2,Pivot!$P$5:$S$5,0),0),0) -> 43 | AO17: -57% | AP17: =IFERROR(VLOOKUP($B17,Pivot!$P$5:$S$28,MATCH('Statewise SO Details'!AP$2,Pivot!$P$5:$S$5,0),0),0) -> 101
A18: West1 | B18: Goa | C18: =SUMIFS('Aug''24 & Sep''25'!$BL:$BL,'Aug''24 & Sep''25'!$I:$I,'Statewise SO Details'!$B18,'Aug''24 & Sep''25'!$AS:$AS,'Statewise SO Details'!C$2,'Aug''24 & Sep''25'!$BU:$BU,"consumer") -> 0 | D18: =SUMIFS('Aug''24 & Sep''25'!$BL:$BL,'Aug''24 & Sep''25'!$I:$I,'Statewise SO Details'!$B18,'Aug''24 & Sep''25'!$AS:$AS,'Statewise SO Details'!D$2,'Aug''24 & Sep''25'!$BU:$BU,"consumer") -> 0 | E18: =SUMIFS('Aug''24 & Sep''25'!$BL:$BL,'Aug''24 & Sep''25'!$I:$I,'Statewise SO Details'!$B18,'Aug''24 & Sep''25'!$AS:$AS,'Statewise SO Details'!E$2,'Aug''24 & Sep''25'!$BU:$BU,"consumer") -> 0 | F18: =SUMIFS('Aug''24 & Sep''25'!$BL:$BL,'Aug''24 & Sep''25'!$I:$I,'Statewise SO Details'!$B18,'Aug''24 & Sep''25'!$AS:$AS,'Statewise SO Details'!F$2,'Aug''24 & Sep''25'!$BU:$BU,"consumer") -> 0 | G18: =SUMIFS('Aug''24 & Sep''25'!$BL:$BL,'Aug''24 & Sep''25'!$I:$I,'Statewise SO Details'!$B18,'Aug''24 & Sep''25'!$AS:$AS,'Statewise SO Details'!G$2,'Aug''24 & Sep''25'!$BU:$BU,"consumer") -> 0 | H18: =SUMIFS('Aug''24 & Sep''25'!$BL:$BL,'Aug''24 & Sep''25'!$I:$I,'Statewise SO Details'!$B18,'Aug''24 & Sep''25'!$AS:$AS,'Statewise SO Details'!H$2,'Aug''24 & Sep''25'!$BU:$BU,"consumer") -> 0 | I18: =SUMIFS('Aug''24 & Sep''25'!$BL:$BL,'Aug''24 & Sep''25'!$I:$I,'Statewise SO Details'!$B18,'Aug''24 & Sep''25'!$AS:$AS,'Statewise SO Details'!I$2,'Aug''24 & Sep''25'!$BU:$BU,"consumer") -> 0 | J18: =SUMIFS('Aug''24 & Sep''25'!$BL:$BL,'Aug''24 & Sep''25'!$I:$I,'Statewise SO Details'!$B18,'Aug''24 & Sep''25'!$AS:$AS,'Statewise SO Details'!J$2,'Aug''24 & Sep''25'!$BU:$BU,"consumer") -> 0 | K18: =SUMIFS('Aug''24 & Sep''25'!$BL:$BL,'Aug''24 & Sep''25'!$I:$I,'Statewise SO Details'!$B18,'Aug''24 & Sep''25'!$AS:$AS,'Statewise SO Details'!K$2,'Aug''24 & Sep''25'!$BU:$BU,"consumer") -> 0 | L18: =SUMIFS('Aug''24 & Sep''25'!$BL:$BL,'Aug''24 & Sep''25'!$I:$I,'Statewise SO Details'!$B18,'Aug''24 & Sep''25'!$AS:$AS,'Statewise SO Details'!L$2,'Aug''24 & Sep''25'!$BU:$BU,"consumer") -> 0 | M18: =SUMIFS('Aug''24 & Sep''25'!$BL:$BL,'Aug''24 & Sep''25'!$I:$I,'Statewise SO Details'!$B18,'Aug''24 & Sep''25'!$AS:$AS,'Statewise SO Details'!M$2,'Aug''24 & Sep''25'!$BU:$BU,"consumer") -> 0 | N18: =SUMIFS('Aug''24 & Sep''25'!$BL:$BL,'Aug''24 & Sep''25'!$I:$I,'Statewise SO Details'!$B18,'Aug''24 & Sep''25'!$AS:$AS,'Statewise SO Details'!N$2,'Aug''24 & Sep''25'!$BU:$BU,"consumer") -> 0 | O18: =SUMIFS('Aug''24 & Sep''25'!$BL:$BL,'Aug''24 & Sep''25'!$I:$I,'Statewise SO Details'!$B18,'Aug''24 & Sep''25'!$AS:$AS,'Statewise SO Details'!O$2,'Aug''24 & Sep''25'!$BU:$BU,"consumer") -> 0 | P18: =SUMIFS('Aug''24 & Sep''25'!$BL:$BL,'Aug''24 & Sep''25'!$I:$I,'Statewise SO Details'!$B18,'Aug''24 & Sep''25'!$AS:$AS,'Statewise SO Details'!P$2,'Aug''24 & Sep''25'!$BU:$BU,"consumer") -> 0 | Q18: =SUMIFS('Aug''24 & Sep''25'!$BL:$BL,'Aug''24 & Sep''25'!$I:$I,'Statewise SO Details'!$B18,'Aug''24 & Sep''25'!$AS:$AS,'Statewise SO Details'!Q$2,'Aug''24 & Sep''25'!$BU:$BU,"consumer") -> 0 | R18: =SUMIFS('Aug''24 & Sep''25'!$BL:$BL,'Aug''24 & Sep''25'!$I:$I,'Statewise SO Details'!$B18,'Aug''24 & Sep''25'!$AS:$AS,'Statewise SO Details'!R$2,'Aug''24 & Sep''25'!$BU:$BU,"consumer") -> 0 | S18: =SUMIFS('Aug''24 & Sep''25'!$BL:$BL,'Aug''24 & Sep''25'!$I:$I,'Statewise SO Details'!$B18,'Aug''24 & Sep''25'!$AS:$AS,'Statewise SO Details'!S$2,'Aug''24 & Sep''25'!$BU:$BU,"consumer") -> 0 | T18: =SUMIFS('Aug''24 & Sep''25'!$BL:$BL,'Aug''24 & Sep''25'!$I:$I,'Statewise SO Details'!$B18,'Aug''24 & Sep''25'!$AS:$AS,'Statewise SO Details'!T$2,'Aug''24 & Sep''25'!$BU:$BU,"consumer") -> 0 | U18: =SUMIFS('Aug''24 & Sep''25'!$BL:$BL,'Aug''24 & Sep''25'!$I:$I,'Statewise SO Details'!$B18,'Aug''24 & Sep''25'!$AS:$AS,'Statewise SO Details'!U$2,'Aug''24 & Sep''25'!$BU:$BU,"consumer") -> 0 | V18: =SUMIFS('Aug''24 & Sep''25'!$BL:$BL,'Aug''24 & Sep''25'!$I:$I,'Statewise SO Details'!$B18,'Aug''24 & Sep''25'!$AS:$AS,'Statewise SO Details'!V$2,'Aug''24 & Sep''25'!$BU:$BU,"consumer") -> 0 | W18: =SUMIFS('Aug''24 & Sep''25'!$BL:$BL,'Aug''24 & Sep''25'!$I:$I,'Statewise SO Details'!$B18,'Aug''24 & Sep''25'!$AS:$AS,'Statewise SO Details'!W$2,'Aug''24 & Sep''25'!$BU:$BU,"consumer") -> 0 | X18: =SUMIFS('Aug''24 & Sep''25'!$BL:$BL,'Aug''24 & Sep''25'!$I:$I,'Statewise SO Details'!$B18,'Aug''24 & Sep''25'!$AS:$AS,'Statewise SO Details'!X$2,'Aug''24 & Sep''25'!$BU:$BU,"consumer") -> 0 | Y18: =SUMIFS('Aug''24 & Sep''25'!$BL:$BL,'Aug''24 & Sep''25'!$I:$I,'Statewise SO Details'!$B18,'Aug''24 & Sep''25'!$AS:$AS,'Statewise SO Details'!Y$2,'Aug''24 & Sep''25'!$BU:$BU,"consumer") -> 0 | Z18: =SUMIFS('Aug''24 & Sep''25'!$BL:$BL,'Aug''24 & Sep''25'!$I:$I,'Statewise SO Details'!$B18,'Aug''24 & Sep''25'!$AS:$AS,'Statewise SO Details'!Z$2,'Aug''24 & Sep''25'!$BU:$BU,"consumer") -> 0 | AA18: =SUMIFS('Aug''24 & Sep''25'!$BL:$BL,'Aug''24 & Sep''25'!$I:$I,'Statewise SO Details'!$B18,'Aug''24 & Sep''25'!$AS:$AS,'Statewise SO Details'!AA$2,'Aug''24 & Sep''25'!$BU:$BU,"consumer") -> 0 | AB18: =SUMIFS('Aug''24 & Sep''25'!$BL:$BL,'Aug''24 & Sep''25'!$I:$I,'Statewise SO Details'!$B18,'Aug''24 & Sep''25'!$AS:$AS,'Statewise SO Details'!AB$2,'Aug''24 & Sep''25'!$BU:$BU,"consumer") -> 0 | AC18: =SUMIFS('Aug''24 & Sep''25'!$BL:$BL,'Aug''24 & Sep''25'!$I:$I,'Statewise SO Details'!$B18,'Aug''24 & Sep''25'!$AS:$AS,'Statewise SO Details'!AC$2,'Aug''24 & Sep''25'!$BU:$BU,"consumer") -> 0 | AD18: =SUMIFS('Aug''24 & Sep''25'!$BL:$BL,'Aug''24 & Sep''25'!$I:$I,'Statewise SO Details'!$B18,'Aug''24 & Sep''25'!$AS:$AS,'Statewise SO Details'!AD$2,'Aug''24 & Sep''25'!$BU:$BU,"consumer") -> 0 | AE18: =SUMIFS('Aug''24 & Sep''25'!$BL:$BL,'Aug''24 & Sep''25'!$I:$I,'Statewise SO Details'!$B18,'Aug''24 & Sep''25'!$AS:$AS,'Statewise SO Details'!AE$2,'Aug''24 & Sep''25'!$BU:$BU,"consumer") -> 0 | AF18: =SUMIFS('Aug''24 & Sep''25'!$BL:$BL,'Aug''24 & Sep''25'!$I:$I,'Statewise SO Details'!$B18,'Aug''24 & Sep''25'!$AS:$AS,'Statewise SO Details'!AF$2,'Aug''24 & Sep''25'!$BU:$BU,"consumer") -> 0 | AG18: =SUMIFS('Aug''24 & Sep''25'!$BL:$BL,'Aug''24 & Sep''25'!$I:$I,'Statewise SO Details'!$B18,'Aug''24 & Sep''25'!$AS:$AS,'Statewise SO Details'!AG$2,'Aug''24 & Sep''25'!$BU:$BU,"consumer") -> 0 | AH18: 0 | AJ18: 0 | AK18: 0% | AL18: =SUMIFS('Aug''24 & Sep''25'!$BL:$BL,'Aug''24 & Sep''25'!$I:$I,'Statewise SO Details'!$B18,'Aug''24 & Sep''25'!$CF:$CF,'Statewise SO Details'!AL$2,'Aug''24 & Sep''25'!$BU:$BU,"consumer",'Aug''24 & Sep''25'!$CG:$CG,"MTD") -> 0 | AN18: =IFERROR(VLOOKUP($B18,Pivot!$P$5:$S$28,MATCH('Statewise SO Details'!AN$2,Pivot!$P$5:$S$5,0),0),0) -> 0 | AO18: 0% | AP18: =IFERROR(VLOOKUP($B18,Pivot!$P$5:$S$28,MATCH('Statewise SO Details'!AP$2,Pivot!$P$5:$S$5,0),0),0) -> 0
A19: South1 | B19: Karnataka | C19: =SUMIFS('Aug''24 & Sep''25'!$BL:$BL,'Aug''24 & Sep''25'!$I:$I,'Statewise SO Details'!$B19,'Aug''24 & Sep''25'!$AS:$AS,'Statewise SO Details'!C$2,'Aug''24 & Sep''25'!$BU:$BU,"consumer") -> 0 | D19: =SUMIFS('Aug''24 & Sep''25'!$BL:$BL,'Aug''24 & Sep''25'!$I:$I,'Statewise SO Details'!$B19,'Aug''24 & Sep''25'!$AS:$AS,'Statewise SO Details'!D$2,'Aug''24 & Sep''25'!$BU:$BU,"consumer") -> 0 | E19: =SUMIFS('Aug''24 & Sep''25'!$BL:$BL,'Aug''24 & Sep''25'!$I:$I,'Statewise SO Details'!$B19,'Aug''24 & Sep''25'!$AS:$AS,'Statewise SO Details'!E$2,'Aug''24 & Sep''25'!$BU:$BU,"consumer") -> 0 | F19: =SUMIFS('Aug''24 & Sep''25'!$BL:$BL,'Aug''24 & Sep''25'!$I:$I,'Statewise SO Details'!$B19,'Aug''24 & Sep''25'!$AS:$AS,'Statewise SO Details'!F$2,'Aug''24 & Sep''25'!$BU:$BU,"consumer") -> 5 | G19: =SUMIFS('Aug''24 & Sep''25'!$BL:$BL,'Aug''24 & Sep''25'!$I:$I,'Statewise SO Details'!$B19,'Aug''24 & Sep''25'!$AS:$AS,'Statewise SO Details'!G$2,'Aug''24 & Sep''25'!$BU:$BU,"consumer") -> 0 | H19: =SUMIFS('Aug''24 & Sep''25'!$BL:$BL,'Aug''24 & Sep''25'!$I:$I,'Statewise SO Details'!$B19,'Aug''24 & Sep''25'!$AS:$AS,'Statewise SO Details'!H$2,'Aug''24 & Sep''25'!$BU:$BU,"consumer") -> 0 | I19: =SUMIFS('Aug''24 & Sep''25'!$BL:$BL,'Aug''24 & Sep''25'!$I:$I,'Statewise SO Details'!$B19,'Aug''24 & Sep''25'!$AS:$AS,'Statewise SO Details'!I$2,'Aug''24 & Sep''25'!$BU:$BU,"consumer") -> 0 | J19: =SUMIFS('Aug''24 & Sep''25'!$BL:$BL,'Aug''24 & Sep''25'!$I:$I,'Statewise SO Details'!$B19,'Aug''24 & Sep''25'!$AS:$AS,'Statewise SO Details'!J$2,'Aug''24 & Sep''25'!$BU:$BU,"consumer") -> 0 | K19: =SUMIFS('Aug''24 & Sep''25'!$BL:$BL,'Aug''24 & Sep''25'!$I:$I,'Statewise SO Details'!$B19,'Aug''24 & Sep''25'!$AS:$AS,'Statewise SO Details'!K$2,'Aug''24 & Sep''25'!$BU:$BU,"consumer") -> 0 | L19: =SUMIFS('Aug''24 & Sep''25'!$BL:$BL,'Aug''24 & Sep''25'!$I:$I,'Statewise SO Details'!$B19,'Aug''24 & Sep''25'!$AS:$AS,'Statewise SO Details'!L$2,'Aug''24 & Sep''25'!$BU:$BU,"consumer") -> 46 | M19: =SUMIFS('Aug''24 & Sep''25'!$BL:$BL,'Aug''24 & Sep''25'!$I:$I,'Statewise SO Details'!$B19,'Aug''24 & Sep''25'!$AS:$AS,'Statewise SO Details'!M$2,'Aug''24 & Sep''25'!$BU:$BU,"consumer") -> 3 | N19: =SUMIFS('Aug''24 & Sep''25'!$BL:$BL,'Aug''24 & Sep''25'!$I:$I,'Statewise SO Details'!$B19,'Aug''24 & Sep''25'!$AS:$AS,'Statewise SO Details'!N$2,'Aug''24 & Sep''25'!$BU:$BU,"consumer") -> 63 | O19: =SUMIFS('Aug''24 & Sep''25'!$BL:$BL,'Aug''24 & Sep''25'!$I:$I,'Statewise SO Details'!$B19,'Aug''24 & Sep''25'!$AS:$AS,'Statewise SO Details'!O$2,'Aug''24 & Sep''25'!$BU:$BU,"consumer") -> 0 | P19: =SUMIFS('Aug''24 & Sep''25'!$BL:$BL,'Aug''24 & Sep''25'!$I:$I,'Statewise SO Details'!$B19,'Aug''24 & Sep''25'!$AS:$AS,'Statewise SO Details'!P$2,'Aug''24 & Sep''25'!$BU:$BU,"consumer") -> 2 | Q19: =SUMIFS('Aug''24 & Sep''25'!$BL:$BL,'Aug''24 & Sep''25'!$I:$I,'Statewise SO Details'!$B19,'Aug''24 & Sep''25'!$AS:$AS,'Statewise SO Details'!Q$2,'Aug''24 & Sep''25'!$BU:$BU,"consumer") -> 35 | R19: =SUMIFS('Aug''24 & Sep''25'!$BL:$BL,'Aug''24 & Sep''25'!$I:$I,'Statewise SO Details'!$B19,'Aug''24 & Sep''25'!$AS:$AS,'Statewise SO Details'!R$2,'Aug''24 & Sep''25'!$BU:$BU,"consumer") -> 0 | S19: =SUMIFS('Aug''24 & Sep''25'!$BL:$BL,'Aug''24 & Sep''25'!$I:$I,'Statewise SO Details'!$B19,'Aug''24 & Sep''25'!$AS:$AS,'Statewise SO Details'!S$2,'Aug''24 & Sep''25'!$BU:$BU,"consumer") -> 48 | T19: =SUMIFS('Aug''24 & Sep''25'!$BL:$BL,'Aug''24 & Sep''25'!$I:$I,'Statewise SO Details'!$B19,'Aug''24 & Sep''25'!$AS:$AS,'Statewise SO Details'!T$2,'Aug''24 & Sep''25'!$BU:$BU,"consumer") -> 2 | U19: =SUMIFS('Aug''24 & Sep''25'!$BL:$BL,'Aug''24 & Sep''25'!$I:$I,'Statewise SO Details'!$B19,'Aug''24 & Sep''25'!$AS:$AS,'Statewise SO Details'!U$2,'Aug''24 & Sep''25'!$BU:$BU,"consumer") -> 0 | V19: =SUMIFS('Aug''24 & Sep''25'!$BL:$BL,'Aug''24 & Sep''25'!$I:$I,'Statewise SO Details'!$B19,'Aug''24 & Sep''25'!$AS:$AS,'Statewise SO Details'!V$2,'Aug''24 & Sep''25'!$BU:$BU,"consumer") -> 32 | W19: =SUMIFS('Aug''24 & Sep''25'!$BL:$BL,'Aug''24 & Sep''25'!$I:$I,'Statewise SO Details'!$B19,'Aug''24 & Sep''25'!$AS:$AS,'Statewise SO Details'!W$2,'Aug''24 & Sep''25'!$BU:$BU,"consumer") -> 0 | X19: =SUMIFS('Aug''24 & Sep''25'!$BL:$BL,'Aug''24 & Sep''25'!$I:$I,'Statewise SO Details'!$B19,'Aug''24 & Sep''25'!$AS:$AS,'Statewise SO Details'!X$2,'Aug''24 & Sep''25'!$BU:$BU,"consumer") -> 0 | Y19: =SUMIFS('Aug''24 & Sep''25'!$BL:$BL,'Aug''24 & Sep''25'!$I:$I,'Statewise SO Details'!$B19,'Aug''24 & Sep''25'!$AS:$AS,'Statewise SO Details'!Y$2,'Aug''24 & Sep''25'!$BU:$BU,"consumer") -> 54 | Z19: =SUMIFS('Aug''24 & Sep''25'!$BL:$BL,'Aug''24 & Sep''25'!$I:$I,'Statewise SO Details'!$B19,'Aug''24 & Sep''25'!$AS:$AS,'Statewise SO Details'!Z$2,'Aug''24 & Sep''25'!$BU:$BU,"consumer") -> 31 | AA19: =SUMIFS('Aug''24 & Sep''25'!$BL:$BL,'Aug''24 & Sep''25'!$I:$I,'Statewise SO Details'!$B19,'Aug''24 & Sep''25'!$AS:$AS,'Statewise SO Details'!AA$2,'Aug''24 & Sep''25'!$BU:$BU,"consumer") -> 0 | AB19: =SUMIFS('Aug''24 & Sep''25'!$BL:$BL,'Aug''24 & Sep''25'!$I:$I,'Statewise SO Details'!$B19,'Aug''24 & Sep''25'!$AS:$AS,'Statewise SO Details'!AB$2,'Aug''24 & Sep''25'!$BU:$BU,"consumer") -> 19 | AC19: =SUMIFS('Aug''24 & Sep''25'!$BL:$BL,'Aug''24 & Sep''25'!$I:$I,'Statewise SO Details'!$B19,'Aug''24 & Sep''25'!$AS:$AS,'Statewise SO Details'!AC$2,'Aug''24 & Sep''25'!$BU:$BU,"consumer") -> 62 | AD19: =SUMIFS('Aug''24 & Sep''25'!$BL:$BL,'Aug''24 & Sep''25'!$I:$I,'Statewise SO Details'!$B19,'Aug''24 & Sep''25'!$AS:$AS,'Statewise SO Details'!AD$2,'Aug''24 & Sep''25'!$BU:$BU,"consumer") -> 53 | AE19: =SUMIFS('Aug''24 & Sep''25'!$BL:$BL,'Aug''24 & Sep''25'!$I:$I,'Statewise SO Details'!$B19,'Aug''24 & Sep''25'!$AS:$AS,'Statewise SO Details'!AE$2,'Aug''24 & Sep''25'!$BU:$BU,"consumer") -> 0 | AF19: =SUMIFS('Aug''24 & Sep''25'!$BL:$BL,'Aug''24 & Sep''25'!$I:$I,'Statewise SO Details'!$B19,'Aug''24 & Sep''25'!$AS:$AS,'Statewise SO Details'!AF$2,'Aug''24 & Sep''25'!$BU:$BU,"consumer") -> 1832 | AG19: =SUMIFS('Aug''24 & Sep''25'!$BL:$BL,'Aug''24 & Sep''25'!$I:$I,'Statewise SO Details'!$B19,'Aug''24 & Sep''25'!$AS:$AS,'Statewise SO Details'!AG$2,'Aug''24 & Sep''25'!$BU:$BU,"consumer") -> 0 | AH19: 2287 | AJ19: 2287 | AK19: 13% | AL19: =SUMIFS('Aug''24 & Sep''25'!$BL:$BL,'Aug''24 & Sep''25'!$I:$I,'Statewise SO Details'!$B19,'Aug''24 & Sep''25'!$CF:$CF,'Statewise SO Details'!AL$2,'Aug''24 & Sep''25'!$BU:$BU,"consumer",'Aug''24 & Sep''25'!$CG:$CG,"MTD") -> 2022 | AN19: =IFERROR(VLOOKUP($B19,Pivot!$P$5:$S$28,MATCH('Statewise SO Details'!AN$2,Pivot!$P$5:$S$5,0),0),0) -> 0 | AO19: 0% | AP19: =IFERROR(VLOOKUP($B19,Pivot!$P$5:$S$28,MATCH('Statewise SO Details'!AP$2,Pivot!$P$5:$S$5,0),0),0) -> 0
A20: South1 | B20: Kerala | C20: =SUMIFS('Aug''24 & Sep''25'!$BL:$BL,'Aug''24 & Sep''25'!$I:$I,'Statewise SO Details'!$B20,'Aug''24 & Sep''25'!$AS:$AS,'Statewise SO Details'!C$2,'Aug''24 & Sep''25'!$BU:$BU,"consumer") -> 0 | D20: =SUMIFS('Aug''24 & Sep''25'!$BL:$BL,'Aug''24 & Sep''25'!$I:$I,'Statewise SO Details'!$B20,'Aug''24 & Sep''25'!$AS:$AS,'Statewise SO Details'!D$2,'Aug''24 & Sep''25'!$BU:$BU,"consumer") -> 0 | E20: =SUMIFS('Aug''24 & Sep''25'!$BL:$BL,'Aug''24 & Sep''25'!$I:$I,'Statewise SO Details'!$B20,'Aug''24 & Sep''25'!$AS:$AS,'Statewise SO Details'!E$2,'Aug''24 & Sep''25'!$BU:$BU,"consumer") -> 0 | F20: =SUMIFS('Aug''24 & Sep''25'!$BL:$BL,'Aug''24 & Sep''25'!$I:$I,'Statewise SO Details'!$B20,'Aug''24 & Sep''25'!$AS:$AS,'Statewise SO Details'!F$2,'Aug''24 & Sep''25'!$BU:$BU,"consumer") -> 0 | G20: =SUMIFS('Aug''24 & Sep''25'!$BL:$BL,'Aug''24 & Sep''25'!$I:$I,'Statewise SO Details'!$B20,'Aug''24 & Sep''25'!$AS:$AS,'Statewise SO Details'!G$2,'Aug''24 & Sep''25'!$BU:$BU,"consumer") -> 0 | H20: =SUMIFS('Aug''24 & Sep''25'!$BL:$BL,'Aug''24 & Sep''25'!$I:$I,'Statewise SO Details'!$B20,'Aug''24 & Sep''25'!$AS:$AS,'Statewise SO Details'!H$2,'Aug''24 & Sep''25'!$BU:$BU,"consumer") -> 0 | I20: =SUMIFS('Aug''24 & Sep''25'!$BL:$BL,'Aug''24 & Sep''25'!$I:$I,'Statewise SO Details'!$B20,'Aug''24 & Sep''25'!$AS:$AS,'Statewise SO Details'!I$2,'Aug''24 & Sep''25'!$BU:$BU,"consumer") -> 0 | J20: =SUMIFS('Aug''24 & Sep''25'!$BL:$BL,'Aug''24 & Sep''25'!$I:$I,'Statewise SO Details'!$B20,'Aug''24 & Sep''25'!$AS:$AS,'Statewise SO Details'!J$2,'Aug''24 & Sep''25'!$BU:$BU,"consumer") -> 10 | K20: =SUMIFS('Aug''24 & Sep''25'!$BL:$BL,'Aug''24 & Sep''25'!$I:$I,'Statewise SO Details'!$B20,'Aug''24 & Sep''25'!$AS:$AS,'Statewise SO Details'!K$2,'Aug''24 & Sep''25'!$BU:$BU,"consumer") -> 0 | L20: =SUMIFS('Aug''24 & Sep''25'!$BL:$BL,'Aug''24 & Sep''25'!$I:$I,'Statewise SO Details'!$B20,'Aug''24 & Sep''25'!$AS:$AS,'Statewise SO Details'!L$2,'Aug''24 & Sep''25'!$BU:$BU,"consumer") -> 34 | M20: =SUMIFS('Aug''24 & Sep''25'!$BL:$BL,'Aug''24 & Sep''25'!$I:$I,'Statewise SO Details'!$B20,'Aug''24 & Sep''25'!$AS:$AS,'Statewise SO Details'!M$2,'Aug''24 & Sep''25'!$BU:$BU,"consumer") -> 7 | N20: =SUMIFS('Aug''24 & Sep''25'!$BL:$BL,'Aug''24 & Sep''25'!$I:$I,'Statewise SO Details'!$B20,'Aug''24 & Sep''25'!$AS:$AS,'Statewise SO Details'!N$2,'Aug''24 & Sep''25'!$BU:$BU,"consumer") -> 1 | O20: =SUMIFS('Aug''24 & Sep''25'!$BL:$BL,'Aug''24 & Sep''25'!$I:$I,'Statewise SO Details'!$B20,'Aug''24 & Sep''25'!$AS:$AS,'Statewise SO Details'!O$2,'Aug''24 & Sep''25'!$BU:$BU,"consumer") -> 6 | P20: =SUMIFS('Aug''24 & Sep''25'!$BL:$BL,'Aug''24 & Sep''25'!$I:$I,'Statewise SO Details'!$B20,'Aug''24 & Sep''25'!$AS:$AS,'Statewise SO Details'!P$2,'Aug''24 & Sep''25'!$BU:$BU,"consumer") -> 3 | Q20: =SUMIFS('Aug''24 & Sep''25'!$BL:$BL,'Aug''24 & Sep''25'!$I:$I,'Statewise SO Details'!$B20,'Aug''24 & Sep''25'!$AS:$AS,'Statewise SO Details'!Q$2,'Aug''24 & Sep''25'!$BU:$BU,"consumer") -> 70 | R20: =SUMIFS('Aug''24 & Sep''25'!$BL:$BL,'Aug''24 & Sep''25'!$I:$I,'Statewise SO Details'!$B20,'Aug''24 & Sep''25'!$AS:$AS,'Statewise SO Details'!R$2,'Aug''24 & Sep''25'!$BU:$BU,"consumer") -> 0 | S20: =SUMIFS('Aug''24 & Sep''25'!$BL:$BL,'Aug''24 & Sep''25'!$I:$I,'Statewise SO Details'!$B20,'Aug''24 & Sep''25'!$AS:$AS,'Statewise SO Details'!S$2,'Aug''24 & Sep''25'!$BU:$BU,"consumer") -> 11 | T20: =SUMIFS('Aug''24 & Sep''25'!$BL:$BL,'Aug''24 & Sep''25'!$I:$I,'Statewise SO Details'!$B20,'Aug''24 & Sep''25'!$AS:$AS,'Statewise SO Details'!T$2,'Aug''24 & Sep''25'!$BU:$BU,"consumer") -> 25 | U20: =SUMIFS('Aug''24 & Sep''25'!$BL:$BL,'Aug''24 & Sep''25'!$I:$I,'Statewise SO Details'!$B20,'Aug''24 & Sep''25'!$AS:$AS,'Statewise SO Details'!U$2,'Aug''24 & Sep''25'!$BU:$BU,"consumer") -> 13 | V20: =SUMIFS('Aug''24 & Sep''25'!$BL:$BL,'Aug''24 & Sep''25'!$I:$I,'Statewise SO Details'!$B20,'Aug''24 & Sep''25'!$AS:$AS,'Statewise SO Details'!V$2,'Aug''24 & Sep''25'!$BU:$BU,"consumer") -> 8 | W20: =SUMIFS('Aug''24 & Sep''25'!$BL:$BL,'Aug''24 & Sep''25'!$I:$I,'Statewise SO Details'!$B20,'Aug''24 & Sep''25'!$AS:$AS,'Statewise SO Details'!W$2,'Aug''24 & Sep''25'!$BU:$BU,"consumer") -> 7 | X20: =SUMIFS('Aug''24 & Sep''25'!$BL:$BL,'Aug''24 & Sep''25'!$I:$I,'Statewise SO Details'!$B20,'Aug''24 & Sep''25'!$AS:$AS,'Statewise SO Details'!X$2,'Aug''24 & Sep''25'!$BU:$BU,"consumer") -> 0 | Y20: =SUMIFS('Aug''24 & Sep''25'!$BL:$BL,'Aug''24 & Sep''25'!$I:$I,'Statewise SO Details'!$B20,'Aug''24 & Sep''25'!$AS:$AS,'Statewise SO Details'!Y$2,'Aug''24 & Sep''25'!$BU:$BU,"consumer") -> 18 | Z20: =SUMIFS('Aug''24 & Sep''25'!$BL:$BL,'Aug''24 & Sep''25'!$I:$I,'Statewise SO Details'!$B20,'Aug''24 & Sep''25'!$AS:$AS,'Statewise SO Details'!Z$2,'Aug''24 & Sep''25'!$BU:$BU,"consumer") -> 18 | AA20: =SUMIFS('Aug''24 & Sep''25'!$BL:$BL,'Aug''24 & Sep''25'!$I:$I,'Statewise SO Details'!$B20,'Aug''24 & Sep''25'!$AS:$AS,'Statewise SO Details'!AA$2,'Aug''24 & Sep''25'!$BU:$BU,"consumer") -> 18 | AB20: =SUMIFS('Aug''24 & Sep''25'!$BL:$BL,'Aug''24 & Sep''25'!$I:$I,'Statewise SO Details'!$B20,'Aug''24 & Sep''25'!$AS:$AS,'Statewise SO Details'!AB$2,'Aug''24 & Sep''25'!$BU:$BU,"consumer") -> 24 | AC20: =SUMIFS('Aug''24 & Sep''25'!$BL:$BL,'Aug''24 & Sep''25'!$I:$I,'Statewise SO Details'!$B20,'Aug''24 & Sep''25'!$AS:$AS,'Statewise SO Details'!AC$2,'Aug''24 & Sep''25'!$BU:$BU,"consumer") -> 15 | AD20: =SUMIFS('Aug''24 & Sep''25'!$BL:$BL,'Aug''24 & Sep''25'!$I:$I,'Statewise SO Details'!$B20,'Aug''24 & Sep''25'!$AS:$AS,'Statewise SO Details'!AD$2,'Aug''24 & Sep''25'!$BU:$BU,"consumer") -> 22 | AE20: =SUMIFS('Aug''24 & Sep''25'!$BL:$BL,'Aug''24 & Sep''25'!$I:$I,'Statewise SO Details'!$B20,'Aug''24 & Sep''25'!$AS:$AS,'Statewise SO Details'!AE$2,'Aug''24 & Sep''25'!$BU:$BU,"consumer") -> 132 | AF20: =SUMIFS('Aug''24 & Sep''25'!$BL:$BL,'Aug''24 & Sep''25'!$I:$I,'Statewise SO Details'!$B20,'Aug''24 & Sep''25'!$AS:$AS,'Statewise SO Details'!AF$2,'Aug''24 & Sep''25'!$BU:$BU,"consumer") -> 61 | AG20: =SUMIFS('Aug''24 & Sep''25'!$BL:$BL,'Aug''24 & Sep''25'!$I:$I,'Statewise SO Details'!$B20,'Aug''24 & Sep''25'!$AS:$AS,'Statewise SO Details'!AG$2,'Aug''24 & Sep''25'!$BU:$BU,"consumer") -> 0 | AH20: 503 | AJ20: 503 | AK20: -7% | AL20: =SUMIFS('Aug''24 & Sep''25'!$BL:$BL,'Aug''24 & Sep''25'!$I:$I,'Statewise SO Details'!$B20,'Aug''24 & Sep''25'!$CF:$CF,'Statewise SO Details'!AL$2,'Aug''24 & Sep''25'!$BU:$BU,"consumer",'Aug''24 & Sep''25'!$CG:$CG,"MTD") -> 543 | AN20: =IFERROR(VLOOKUP($B20,Pivot!$P$5:$S$28,MATCH('Statewise SO Details'!AN$2,Pivot!$P$5:$S$5,0),0),0) -> 0 | AO20: 0% | AP20: =IFERROR(VLOOKUP($B20,Pivot!$P$5:$S$28,MATCH('Statewise SO Details'!AP$2,Pivot!$P$5:$S$5,0),0),0) -> 0
A21: South2 | B21: Tamil Nadu | C21: =SUMIFS('Aug''24 & Sep''25'!$BL:$BL,'Aug''24 & Sep''25'!$I:$I,'Statewise SO Details'!$B21,'Aug''24 & Sep''25'!$AS:$AS,'Statewise SO Details'!C$2,'Aug''24 & Sep''25'!$BU:$BU,"consumer") -> 0 | D21: =SUMIFS('Aug''24 & Sep''25'!$BL:$BL,'Aug''24 & Sep''25'!$I:$I,'Statewise SO Details'!$B21,'Aug''24 & Sep''25'!$AS:$AS,'Statewise SO Details'!D$2,'Aug''24 & Sep''25'!$BU:$BU,"consumer") -> 0 | E21: =SUMIFS('Aug''24 & Sep''25'!$BL:$BL,'Aug''24 & Sep''25'!$I:$I,'Statewise SO Details'!$B21,'Aug''24 & Sep''25'!$AS:$AS,'Statewise SO Details'!E$2,'Aug''24 & Sep''25'!$BU:$BU,"consumer") -> 18 | F21: =SUMIFS('Aug''24 & Sep''25'!$BL:$BL,'Aug''24 & Sep''25'!$I:$I,'Statewise SO Details'!$B21,'Aug''24 & Sep''25'!$AS:$AS,'Statewise SO Details'!F$2,'Aug''24 & Sep''25'!$BU:$BU,"consumer") -> 0 | G21: =SUMIFS('Aug''24 & Sep''25'!$BL:$BL,'Aug''24 & Sep''25'!$I:$I,'Statewise SO Details'!$B21,'Aug''24 & Sep''25'!$AS:$AS,'Statewise SO Details'!G$2,'Aug''24 & Sep''25'!$BU:$BU,"consumer") -> 35 | H21: =SUMIFS('Aug''24 & Sep''25'!$BL:$BL,'Aug''24 & Sep''25'!$I:$I,'Statewise SO Details'!$B21,'Aug''24 & Sep''25'!$AS:$AS,'Statewise SO Details'!H$2,'Aug''24 & Sep''25'!$BU:$BU,"consumer") -> 0 | I21: =SUMIFS('Aug''24 & Sep''25'!$BL:$BL,'Aug''24 & Sep''25'!$I:$I,'Statewise SO Details'!$B21,'Aug''24 & Sep''25'!$AS:$AS,'Statewise SO Details'!I$2,'Aug''24 & Sep''25'!$BU:$BU,"consumer") -> 0 | J21: =SUMIFS('Aug''24 & Sep''25'!$BL:$BL,'Aug''24 & Sep''25'!$I:$I,'Statewise SO Details'!$B21,'Aug''24 & Sep''25'!$AS:$AS,'Statewise SO Details'!J$2,'Aug''24 & Sep''25'!$BU:$BU,"consumer") -> 0 | K21: =SUMIFS('Aug''24 & Sep''25'!$BL:$BL,'Aug''24 & Sep''25'!$I:$I,'Statewise SO Details'!$B21,'Aug''24 & Sep''25'!$AS:$AS,'Statewise SO Details'!K$2,'Aug''24 & Sep''25'!$BU:$BU,"consumer") -> 0 | L21: =SUMIFS('Aug''24 & Sep''25'!$BL:$BL,'Aug''24 & Sep''25'!$I:$I,'Statewise SO Details'!$B21,'Aug''24 & Sep''25'!$AS:$AS,'Statewise SO Details'!L$2,'Aug''24 & Sep''25'!$BU:$BU,"consumer") -> 0 | M21: =SUMIFS('Aug''24 & Sep''25'!$BL:$BL,'Aug''24 & Sep''25'!$I:$I,'Statewise SO Details'!$B21,'Aug''24 & Sep''25'!$AS:$AS,'Statewise SO Details'!M$2,'Aug''24 & Sep''25'!$BU:$BU,"consumer") -> 89 | N21: =SUMIFS('Aug''24 & Sep''25'!$BL:$BL,'Aug''24 & Sep''25'!$I:$I,'Statewise SO Details'!$B21,'Aug''24 & Sep''25'!$AS:$AS,'Statewise SO Details'!N$2,'Aug''24 & Sep''25'!$BU:$BU,"consumer") -> 44 | O21: =SUMIFS('Aug''24 & Sep''25'!$BL:$BL,'Aug''24 & Sep''25'!$I:$I,'Statewise SO Details'!$B21,'Aug''24 & Sep''25'!$AS:$AS,'Statewise SO Details'!O$2,'Aug''24 & Sep''25'!$BU:$BU,"consumer") -> 7 | P21: =SUMIFS('Aug''24 & Sep''25'!$BL:$BL,'Aug''24 & Sep''25'!$I:$I,'Statewise SO Details'!$B21,'Aug''24 & Sep''25'!$AS:$AS,'Statewise SO Details'!P$2,'Aug''24 & Sep''25'!$BU:$BU,"consumer") -> 0 | Q21: =SUMIFS('Aug''24 & Sep''25'!$BL:$BL,'Aug''24 & Sep''25'!$I:$I,'Statewise SO Details'!$B21,'Aug''24 & Sep''25'!$AS:$AS,'Statewise SO Details'!Q$2,'Aug''24 & Sep''25'!$BU:$BU,"consumer") -> 102 | R21: =SUMIFS('Aug''24 & Sep''25'!$BL:$BL,'Aug''24 & Sep''25'!$I:$I,'Statewise SO Details'!$B21,'Aug''24 & Sep''25'!$AS:$AS,'Statewise SO Details'!R$2,'Aug''24 & Sep''25'!$BU:$BU,"consumer") -> 0 | S21: =SUMIFS('Aug''24 & Sep''25'!$BL:$BL,'Aug''24 & Sep''25'!$I:$I,'Statewise SO Details'!$B21,'Aug''24 & Sep''25'!$AS:$AS,'Statewise SO Details'!S$2,'Aug''24 & Sep''25'!$BU:$BU,"consumer") -> 80 | T21: =SUMIFS('Aug''24 & Sep''25'!$BL:$BL,'Aug''24 & Sep''25'!$I:$I,'Statewise SO Details'!$B21,'Aug''24 & Sep''25'!$AS:$AS,'Statewise SO Details'!T$2,'Aug''24 & Sep''25'!$BU:$BU,"consumer") -> 45 | U21: =SUMIFS('Aug''24 & Sep''25'!$BL:$BL,'Aug''24 & Sep''25'!$I:$I,'Statewise SO Details'!$B21,'Aug''24 & Sep''25'!$AS:$AS,'Statewise SO Details'!U$2,'Aug''24 & Sep''25'!$BU:$BU,"consumer") -> 3 | V21: =SUMIFS('Aug''24 & Sep''25'!$BL:$BL,'Aug''24 & Sep''25'!$I:$I,'Statewise SO Details'!$B21,'Aug''24 & Sep''25'!$AS:$AS,'Statewise SO Details'!V$2,'Aug''24 & Sep''25'!$BU:$BU,"consumer") -> 6 | W21: =SUMIFS('Aug''24 & Sep''25'!$BL:$BL,'Aug''24 & Sep''25'!$I:$I,'Statewise SO Details'!$B21,'Aug''24 & Sep''25'!$AS:$AS,'Statewise SO Details'!W$2,'Aug''24 & Sep''25'!$BU:$BU,"consumer") -> 1 | X21: =SUMIFS('Aug''24 & Sep''25'!$BL:$BL,'Aug''24 & Sep''25'!$I:$I,'Statewise SO Details'!$B21,'Aug''24 & Sep''25'!$AS:$AS,'Statewise SO Details'!X$2,'Aug''24 & Sep''25'!$BU:$BU,"consumer") -> 0 | Y21: =SUMIFS('Aug''24 & Sep''25'!$BL:$BL,'Aug''24 & Sep''25'!$I:$I,'Statewise SO Details'!$B21,'Aug''24 & Sep''25'!$AS:$AS,'Statewise SO Details'!Y$2,'Aug''24 & Sep''25'!$BU:$BU,"consumer") -> 0 | Z21: =SUMIFS('Aug''24 & Sep''25'!$BL:$BL,'Aug''24 & Sep''25'!$I:$I,'Statewise SO Details'!$B21,'Aug''24 & Sep''25'!$AS:$AS,'Statewise SO Details'!Z$2,'Aug''24 & Sep''25'!$BU:$BU,"consumer") -> 136 | AA21: =SUMIFS('Aug''24 & Sep''25'!$BL:$BL,'Aug''24 & Sep''25'!$I:$I,'Statewise SO Details'!$B21,'Aug''24 & Sep''25'!$AS:$AS,'Statewise SO Details'!AA$2,'Aug''24 & Sep''25'!$BU:$BU,"consumer") -> 99 | AB21: =SUMIFS('Aug''24 & Sep''25'!$BL:$BL,'Aug''24 & Sep''25'!$I:$I,'Statewise SO Details'!$B21,'Aug''24 & Sep''25'!$AS:$AS,'Statewise SO Details'!AB$2,'Aug''24 & Sep''25'!$BU:$BU,"consumer") -> 14 | AC21: =SUMIFS('Aug''24 & Sep''25'!$BL:$BL,'Aug''24 & Sep''25'!$I:$I,'Statewise SO Details'!$B21,'Aug''24 & Sep''25'!$AS:$AS,'Statewise SO Details'!AC$2,'Aug''24 & Sep''25'!$BU:$BU,"consumer") -> 154 | AD21: =SUMIFS('Aug''24 & Sep''25'!$BL:$BL,'Aug''24 & Sep''25'!$I:$I,'Statewise SO Details'!$B21,'Aug''24 & Sep''25'!$AS:$AS,'Statewise SO Details'!AD$2,'Aug''24 & Sep''25'!$BU:$BU,"consumer") -> 331 | AE21: =SUMIFS('Aug''24 & Sep''25'!$BL:$BL,'Aug''24 & Sep''25'!$I:$I,'Statewise SO Details'!$B21,'Aug''24 & Sep''25'!$AS:$AS,'Statewise SO Details'!AE$2,'Aug''24 & Sep''25'!$BU:$BU,"consumer") -> 201 | AF21: =SUMIFS('Aug''24 & Sep''25'!$BL:$BL,'Aug''24 & Sep''25'!$I:$I,'Statewise SO Details'!$B21,'Aug''24 & Sep''25'!$AS:$AS,'Statewise SO Details'!AF$2,'Aug''24 & Sep''25'!$BU:$BU,"consumer") -> 193 | AG21: =SUMIFS('Aug''24 & Sep''25'!$BL:$BL,'Aug''24 & Sep''25'!$I:$I,'Statewise SO Details'!$B21,'Aug''24 & Sep''25'!$AS:$AS,'Statewise SO Details'!AG$2,'Aug''24 & Sep''25'!$BU:$BU,"consumer") -> 0 | AH21: 1558 | AJ21: 1558 | AK21: -5% | AL21: =SUMIFS('Aug''24 & Sep''25'!$BL:$BL,'Aug''24 & Sep''25'!$I:$I,'Statewise SO Details'!$B21,'Aug''24 & Sep''25'!$CF:$CF,'Statewise SO Details'!AL$2,'Aug''24 & Sep''25'!$BU:$BU,"consumer",'Aug''24 & Sep''25'!$CG:$CG,"MTD") -> 1640 | AN21: =IFERROR(VLOOKUP($B21,Pivot!$P$5:$S$28,MATCH('Statewise SO Details'!AN$2,Pivot!$P$5:$S$5,0),0),0) -> 0 | AO21: 0% | AP21: =IFERROR(VLOOKUP($B21,Pivot!$P$5:$S$28,MATCH('Statewise SO Details'!AP$2,Pivot!$P$5:$S$5,0),0),0) -> 0
A22: South2 | B22: Pondicherry | C22: =SUMIFS('Aug''24 & Sep''25'!$BL:$BL,'Aug''24 & Sep''25'!$I:$I,'Statewise SO Details'!$B22,'Aug''24 & Sep''25'!$AS:$AS,'Statewise SO Details'!C$2,'Aug''24 & Sep''25'!$BU:$BU,"consumer") -> 0 | D22: =SUMIFS('Aug''24 & Sep''25'!$BL:$BL,'Aug''24 & Sep''25'!$I:$I,'Statewise SO Details'!$B22,'Aug''24 & Sep''25'!$AS:$AS,'Statewise SO Details'!D$2,'Aug''24 & Sep''25'!$BU:$BU,"consumer") -> 0 | E22: =SUMIFS('Aug''24 & Sep''25'!$BL:$BL,'Aug''24 & Sep''25'!$I:$I,'Statewise SO Details'!$B22,'Aug''24 & Sep''25'!$AS:$AS,'Statewise SO Details'!E$2,'Aug''24 & Sep''25'!$BU:$BU,"consumer") -> 0 | F22: =SUMIFS('Aug''24 & Sep''25'!$BL:$BL,'Aug''24 & Sep''25'!$I:$I,'Statewise SO Details'!$B22,'Aug''24 & Sep''25'!$AS:$AS,'Statewise SO Details'!F$2,'Aug''24 & Sep''25'!$BU:$BU,"consumer") -> 0 | G22: =SUMIFS('Aug''24 & Sep''25'!$BL:$BL,'Aug''24 & Sep''25'!$I:$I,'Statewise SO Details'!$B22,'Aug''24 & Sep''25'!$AS:$AS,'Statewise SO Details'!G$2,'Aug''24 & Sep''25'!$BU:$BU,"consumer") -> 0 | H22: =SUMIFS('Aug''24 & Sep''25'!$BL:$BL,'Aug''24 & Sep''25'!$I:$I,'Statewise SO Details'!$B22,'Aug''24 & Sep''25'!$AS:$AS,'Statewise SO Details'!H$2,'Aug''24 & Sep''25'!$BU:$BU,"consumer") -> 0 | I22: =SUMIFS('Aug''24 & Sep''25'!$BL:$BL,'Aug''24 & Sep''25'!$I:$I,'Statewise SO Details'!$B22,'Aug''24 & Sep''25'!$AS:$AS,'Statewise SO Details'!I$2,'Aug''24 & Sep''25'!$BU:$BU,"consumer") -> 0 | J22: =SUMIFS('Aug''24 & Sep''25'!$BL:$BL,'Aug''24 & Sep''25'!$I:$I,'Statewise SO Details'!$B22,'Aug''24 & Sep''25'!$AS:$AS,'Statewise SO Details'!J$2,'Aug''24 & Sep''25'!$BU:$BU,"consumer") -> 0 | K22: =SUMIFS('Aug''24 & Sep''25'!$BL:$BL,'Aug''24 & Sep''25'!$I:$I,'Statewise SO Details'!$B22,'Aug''24 & Sep''25'!$AS:$AS,'Statewise SO Details'!K$2,'Aug''24 & Sep''25'!$BU:$BU,"consumer") -> 0 | L22: =SUMIFS('Aug''24 & Sep''25'!$BL:$BL,'Aug''24 & Sep''25'!$I:$I,'Statewise SO Details'!$B22,'Aug''24 & Sep''25'!$AS:$AS,'Statewise SO Details'!L$2,'Aug''24 & Sep''25'!$BU:$BU,"consumer") -> 0 | M22: =SUMIFS('Aug''24 & Sep''25'!$BL:$BL,'Aug''24 & Sep''25'!$I:$I,'Statewise SO Details'!$B22,'Aug''24 & Sep''25'!$AS:$AS,'Statewise SO Details'!M$2,'Aug''24 & Sep''25'!$BU:$BU,"consumer") -> 0 | N22: =SUMIFS('Aug''24 & Sep''25'!$BL:$BL,'Aug''24 & Sep''25'!$I:$I,'Statewise SO Details'!$B22,'Aug''24 & Sep''25'!$AS:$AS,'Statewise SO Details'!N$2,'Aug''24 & Sep''25'!$BU:$BU,"consumer") -> 0 | O22: =SUMIFS('Aug''24 & Sep''25'!$BL:$BL,'Aug''24 & Sep''25'!$I:$I,'Statewise SO Details'!$B22,'Aug''24 & Sep''25'!$AS:$AS,'Statewise SO Details'!O$2,'Aug''24 & Sep''25'!$BU:$BU,"consumer") -> 0 | P22: =SUMIFS('Aug''24 & Sep''25'!$BL:$BL,'Aug''24 & Sep''25'!$I:$I,'Statewise SO Details'!$B22,'Aug''24 & Sep''25'!$AS:$AS,'Statewise SO Details'!P$2,'Aug''24 & Sep''25'!$BU:$BU,"consumer") -> 0 | Q22: =SUMIFS('Aug''24 & Sep''25'!$BL:$BL,'Aug''24 & Sep''25'!$I:$I,'Statewise SO Details'!$B22,'Aug''24 & Sep''25'!$AS:$AS,'Statewise SO Details'!Q$2,'Aug''24 & Sep''25'!$BU:$BU,"consumer") -> 0 | R22: =SUMIFS('Aug''24 & Sep''25'!$BL:$BL,'Aug''24 & Sep''25'!$I:$I,'Statewise SO Details'!$B22,'Aug''24 & Sep''25'!$AS:$AS,'Statewise SO Details'!R$2,'Aug''24 & Sep''25'!$BU:$BU,"consumer") -> 0 | S22: =SUMIFS('Aug''24 & Sep''25'!$BL:$BL,'Aug''24 & Sep''25'!$I:$I,'Statewise SO Details'!$B22,'Aug''24 & Sep''25'!$AS:$AS,'Statewise SO Details'!S$2,'Aug''24 & Sep''25'!$BU:$BU,"consumer") -> 0 | T22: =SUMIFS('Aug''24 & Sep''25'!$BL:$BL,'Aug''24 & Sep''25'!$I:$I,'Statewise SO Details'!$B22,'Aug''24 & Sep''25'!$AS:$AS,'Statewise SO Details'!T$2,'Aug''24 & Sep''25'!$BU:$BU,"consumer") -> 0 | U22: =SUMIFS('Aug''24 & Sep''25'!$BL:$BL,'Aug''24 & Sep''25'!$I:$I,'Statewise SO Details'!$B22,'Aug''24 & Sep''25'!$AS:$AS,'Statewise SO Details'!U$2,'Aug''24 & Sep''25'!$BU:$BU,"consumer") -> 0 | V22: =SUMIFS('Aug''24 & Sep''25'!$BL:$BL,'Aug''24 & Sep''25'!$I:$I,'Statewise SO Details'!$B22,'Aug''24 & Sep''25'!$AS:$AS,'Statewise SO Details'!V$2,'Aug''24 & Sep''25'!$BU:$BU,"consumer") -> 0 | W22: =SUMIFS('Aug''24 & Sep''25'!$BL:$BL,'Aug''24 & Sep''25'!$I:$I,'Statewise SO Details'!$B22,'Aug''24 & Sep''25'!$AS:$AS,'Statewise SO Details'!W$2,'Aug''24 & Sep''25'!$BU:$BU,"consumer") -> 0 | X22: =SUMIFS('Aug''24 & Sep''25'!$BL:$BL,'Aug''24 & Sep''25'!$I:$I,'Statewise SO Details'!$B22,'Aug''24 & Sep''25'!$AS:$AS,'Statewise SO Details'!X$2,'Aug''24 & Sep''25'!$BU:$BU,"consumer") -> 0 | Y22: =SUMIFS('Aug''24 & Sep''25'!$BL:$BL,'Aug''24 & Sep''25'!$I:$I,'Statewise SO Details'!$B22,'Aug''24 & Sep''25'!$AS:$AS,'Statewise SO Details'!Y$2,'Aug''24 & Sep''25'!$BU:$BU,"consumer") -> 0 | Z22: =SUMIFS('Aug''24 & Sep''25'!$BL:$BL,'Aug''24 & Sep''25'!$I:$I,'Statewise SO Details'!$B22,'Aug''24 & Sep''25'!$AS:$AS,'Statewise SO Details'!Z$2,'Aug''24 & Sep''25'!$BU:$BU,"consumer") -> 0 | AA22: =SUMIFS('Aug''24 & Sep''25'!$BL:$BL,'Aug''24 & Sep''25'!$I:$I,'Statewise SO Details'!$B22,'Aug''24 & Sep''25'!$AS:$AS,'Statewise SO Details'!AA$2,'Aug''24 & Sep''25'!$BU:$BU,"consumer") -> 0 | AB22: =SUMIFS('Aug''24 & Sep''25'!$BL:$BL,'Aug''24 & Sep''25'!$I:$I,'Statewise SO Details'!$B22,'Aug''24 & Sep''25'!$AS:$AS,'Statewise SO Details'!AB$2,'Aug''24 & Sep''25'!$BU:$BU,"consumer") -> 0 | AC22: =SUMIFS('Aug''24 & Sep''25'!$BL:$BL,'Aug''24 & Sep''25'!$I:$I,'Statewise SO Details'!$B22,'Aug''24 & Sep''25'!$AS:$AS,'Statewise SO Details'!AC$2,'Aug''24 & Sep''25'!$BU:$BU,"consumer") -> 0 | AD22: =SUMIFS('Aug''24 & Sep''25'!$BL:$BL,'Aug''24 & Sep''25'!$I:$I,'Statewise SO Details'!$B22,'Aug''24 & Sep''25'!$AS:$AS,'Statewise SO Details'!AD$2,'Aug''24 & Sep''25'!$BU:$BU,"consumer") -> 0 | AE22: =SUMIFS('Aug''24 & Sep''25'!$BL:$BL,'Aug''24 & Sep''25'!$I:$I,'Statewise SO Details'!$B22,'Aug''24 & Sep''25'!$AS:$AS,'Statewise SO Details'!AE$2,'Aug''24 & Sep''25'!$BU:$BU,"consumer") -> 0 | AF22: =SUMIFS('Aug''24 & Sep''25'!$BL:$BL,'Aug''24 & Sep''25'!$I:$I,'Statewise SO Details'!$B22,'Aug''24 & Sep''25'!$AS:$AS,'Statewise SO Details'!AF$2,'Aug''24 & Sep''25'!$BU:$BU,"consumer") -> 0 | AG22: =SUMIFS('Aug''24 & Sep''25'!$BL:$BL,'Aug''24 & Sep''25'!$I:$I,'Statewise SO Details'!$B22,'Aug''24 & Sep''25'!$AS:$AS,'Statewise SO Details'!AG$2,'Aug''24 & Sep''25'!$BU:$BU,"consumer") -> 0 | AH22: 0 | AJ22: 0 | AK22: 0% | AL22: =SUMIFS('Aug''24 & Sep''25'!$BL:$BL,'Aug''24 & Sep''25'!$I:$I,'Statewise SO Details'!$B22,'Aug''24 & Sep''25'!$CF:$CF,'Statewise SO Details'!AL$2,'Aug''24 & Sep''25'!$BU:$BU,"consumer",'Aug''24 & Sep''25'!$CG:$CG,"MTD") -> 0 | AN22: =IFERROR(VLOOKUP($B22,Pivot!$P$5:$S$28,MATCH('Statewise SO Details'!AN$2,Pivot!$P$5:$S$5,0),0),0) -> 0 | AO22: 0% | AP22: =IFERROR(VLOOKUP($B22,Pivot!$P$5:$S$28,MATCH('Statewise SO Details'!AP$2,Pivot!$P$5:$S$5,0),0),0) -> 0
A23: South2 | B23: Andhra Pradesh | C23: =SUMIFS('Aug''24 & Sep''25'!$BL:$BL,'Aug''24 & Sep''25'!$I:$I,'Statewise SO Details'!$B23,'Aug''24 & Sep''25'!$AS:$AS,'Statewise SO Details'!C$2,'Aug''24 & Sep''25'!$BU:$BU,"consumer") -> 0 | D23: =SUMIFS('Aug''24 & Sep''25'!$BL:$BL,'Aug''24 & Sep''25'!$I:$I,'Statewise SO Details'!$B23,'Aug''24 & Sep''25'!$AS:$AS,'Statewise SO Details'!D$2,'Aug''24 & Sep''25'!$BU:$BU,"consumer") -> 0 | E23: =SUMIFS('Aug''24 & Sep''25'!$BL:$BL,'Aug''24 & Sep''25'!$I:$I,'Statewise SO Details'!$B23,'Aug''24 & Sep''25'!$AS:$AS,'Statewise SO Details'!E$2,'Aug''24 & Sep''25'!$BU:$BU,"consumer") -> 0 | F23: =SUMIFS('Aug''24 & Sep''25'!$BL:$BL,'Aug''24 & Sep''25'!$I:$I,'Statewise SO Details'!$B23,'Aug''24 & Sep''25'!$AS:$AS,'Statewise SO Details'!F$2,'Aug''24 & Sep''25'!$BU:$BU,"consumer") -> 6 | G23: =SUMIFS('Aug''24 & Sep''25'!$BL:$BL,'Aug''24 & Sep''25'!$I:$I,'Statewise SO Details'!$B23,'Aug''24 & Sep''25'!$AS:$AS,'Statewise SO Details'!G$2,'Aug''24 & Sep''25'!$BU:$BU,"consumer") -> 0 | H23: =SUMIFS('Aug''24 & Sep''25'!$BL:$BL,'Aug''24 & Sep''25'!$I:$I,'Statewise SO Details'!$B23,'Aug''24 & Sep''25'!$AS:$AS,'Statewise SO Details'!H$2,'Aug''24 & Sep''25'!$BU:$BU,"consumer") -> 1 | I23: =SUMIFS('Aug''24 & Sep''25'!$BL:$BL,'Aug''24 & Sep''25'!$I:$I,'Statewise SO Details'!$B23,'Aug''24 & Sep''25'!$AS:$AS,'Statewise SO Details'!I$2,'Aug''24 & Sep''25'!$BU:$BU,"consumer") -> 0 | J23: =SUMIFS('Aug''24 & Sep''25'!$BL:$BL,'Aug''24 & Sep''25'!$I:$I,'Statewise SO Details'!$B23,'Aug''24 & Sep''25'!$AS:$AS,'Statewise SO Details'!J$2,'Aug''24 & Sep''25'!$BU:$BU,"consumer") -> 0 | K23: =SUMIFS('Aug''24 & Sep''25'!$BL:$BL,'Aug''24 & Sep''25'!$I:$I,'Statewise SO Details'!$B23,'Aug''24 & Sep''25'!$AS:$AS,'Statewise SO Details'!K$2,'Aug''24 & Sep''25'!$BU:$BU,"consumer") -> 0 | L23: =SUMIFS('Aug''24 & Sep''25'!$BL:$BL,'Aug''24 & Sep''25'!$I:$I,'Statewise SO Details'!$B23,'Aug''24 & Sep''25'!$AS:$AS,'Statewise SO Details'!L$2,'Aug''24 & Sep''25'!$BU:$BU,"consumer") -> 1 | M23: =SUMIFS('Aug''24 & Sep''25'!$BL:$BL,'Aug''24 & Sep''25'!$I:$I,'Statewise SO Details'!$B23,'Aug''24 & Sep''25'!$AS:$AS,'Statewise SO Details'!M$2,'Aug''24 & Sep''25'!$BU:$BU,"consumer") -> 22 | N23: =SUMIFS('Aug''24 & Sep''25'!$BL:$BL,'Aug''24 & Sep''25'!$I:$I,'Statewise SO Details'!$B23,'Aug''24 & Sep''25'!$AS:$AS,'Statewise SO Details'!N$2,'Aug''24 & Sep''25'!$BU:$BU,"consumer") -> 8 | O23: =SUMIFS('Aug''24 & Sep''25'!$BL:$BL,'Aug''24 & Sep''25'!$I:$I,'Statewise SO Details'!$B23,'Aug''24 & Sep''25'!$AS:$AS,'Statewise SO Details'!O$2,'Aug''24 & Sep''25'!$BU:$BU,"consumer") -> 9 | P23: =SUMIFS('Aug''24 & Sep''25'!$BL:$BL,'Aug''24 & Sep''25'!$I:$I,'Statewise SO Details'!$B23,'Aug''24 & Sep''25'!$AS:$AS,'Statewise SO Details'!P$2,'Aug''24 & Sep''25'!$BU:$BU,"consumer") -> 2 | Q23: =SUMIFS('Aug''24 & Sep''25'!$BL:$BL,'Aug''24 & Sep''25'!$I:$I,'Statewise SO Details'!$B23,'Aug''24 & Sep''25'!$AS:$AS,'Statewise SO Details'!Q$2,'Aug''24 & Sep''25'!$BU:$BU,"consumer") -> 11 | R23: =SUMIFS('Aug''24 & Sep''25'!$BL:$BL,'Aug''24 & Sep''25'!$I:$I,'Statewise SO Details'!$B23,'Aug''24 & Sep''25'!$AS:$AS,'Statewise SO Details'!R$2,'Aug''24 & Sep''25'!$BU:$BU,"consumer") -> 0 | S23: =SUMIFS('Aug''24 & Sep''25'!$BL:$BL,'Aug''24 & Sep''25'!$I:$I,'Statewise SO Details'!$B23,'Aug''24 & Sep''25'!$AS:$AS,'Statewise SO Details'!S$2,'Aug''24 & Sep''25'!$BU:$BU,"consumer") -> 34 | T23: =SUMIFS('Aug''24 & Sep''25'!$BL:$BL,'Aug''24 & Sep''25'!$I:$I,'Statewise SO Details'!$B23,'Aug''24 & Sep''25'!$AS:$AS,'Statewise SO Details'!T$2,'Aug''24 & Sep''25'!$BU:$BU,"consumer") -> 15 | U23: =SUMIFS('Aug''24 & Sep''25'!$BL:$BL,'Aug''24 & Sep''25'!$I:$I,'Statewise SO Details'!$B23,'Aug''24 & Sep''25'!$AS:$AS,'Statewise SO Details'!U$2,'Aug''24 & Sep''25'!$BU:$BU,"consumer") -> 15 | V23: =SUMIFS('Aug''24 & Sep''25'!$BL:$BL,'Aug''24 & Sep''25'!$I:$I,'Statewise SO Details'!$B23,'Aug''24 & Sep''25'!$AS:$AS,'Statewise SO Details'!V$2,'Aug''24 & Sep''25'!$BU:$BU,"consumer") -> 18 | W23: =SUMIFS('Aug''24 & Sep''25'!$BL:$BL,'Aug''24 & Sep''25'!$I:$I,'Statewise SO Details'!$B23,'Aug''24 & Sep''25'!$AS:$AS,'Statewise SO Details'!W$2,'Aug''24 & Sep''25'!$BU:$BU,"consumer") -> 7 | X23: =SUMIFS('Aug''24 & Sep''25'!$BL:$BL,'Aug''24 & Sep''25'!$I:$I,'Statewise SO Details'!$B23,'Aug''24 & Sep''25'!$AS:$AS,'Statewise SO Details'!X$2,'Aug''24 & Sep''25'!$BU:$BU,"consumer") -> 0 | Y23: =SUMIFS('Aug''24 & Sep''25'!$BL:$BL,'Aug''24 & Sep''25'!$I:$I,'Statewise SO Details'!$B23,'Aug''24 & Sep''25'!$AS:$AS,'Statewise SO Details'!Y$2,'Aug''24 & Sep''25'!$BU:$BU,"consumer") -> 0 | Z23: =SUMIFS('Aug''24 & Sep''25'!$BL:$BL,'Aug''24 & Sep''25'!$I:$I,'Statewise SO Details'!$B23,'Aug''24 & Sep''25'!$AS:$AS,'Statewise SO Details'!Z$2,'Aug''24 & Sep''25'!$BU:$BU,"consumer") -> 50 | AA23: =SUMIFS('Aug''24 & Sep''25'!$BL:$BL,'Aug''24 & Sep''25'!$I:$I,'Statewise SO Details'!$B23,'Aug''24 & Sep''25'!$AS:$AS,'Statewise SO Details'!AA$2,'Aug''24 & Sep''25'!$BU:$BU,"consumer") -> 20 | AB23: =SUMIFS('Aug''24 & Sep''25'!$BL:$BL,'Aug''24 & Sep''25'!$I:$I,'Statewise SO Details'!$B23,'Aug''24 & Sep''25'!$AS:$AS,'Statewise SO Details'!AB$2,'Aug''24 & Sep''25'!$BU:$BU,"consumer") -> 43 | AC23: =SUMIFS('Aug''24 & Sep''25'!$BL:$BL,'Aug''24 & Sep''25'!$I:$I,'Statewise SO Details'!$B23,'Aug''24 & Sep''25'!$AS:$AS,'Statewise SO Details'!AC$2,'Aug''24 & Sep''25'!$BU:$BU,"consumer") -> 52 | AD23: =SUMIFS('Aug''24 & Sep''25'!$BL:$BL,'Aug''24 & Sep''25'!$I:$I,'Statewise SO Details'!$B23,'Aug''24 & Sep''25'!$AS:$AS,'Statewise SO Details'!AD$2,'Aug''24 & Sep''25'!$BU:$BU,"consumer") -> 32 | AE23: =SUMIFS('Aug''24 & Sep''25'!$BL:$BL,'Aug''24 & Sep''25'!$I:$I,'Statewise SO Details'!$B23,'Aug''24 & Sep''25'!$AS:$AS,'Statewise SO Details'!AE$2,'Aug''24 & Sep''25'!$BU:$BU,"consumer") -> 0 | AF23: =SUMIFS('Aug''24 & Sep''25'!$BL:$BL,'Aug''24 & Sep''25'!$I:$I,'Statewise SO Details'!$B23,'Aug''24 & Sep''25'!$AS:$AS,'Statewise SO Details'!AF$2,'Aug''24 & Sep''25'!$BU:$BU,"consumer") -> 8 | AG23: =SUMIFS('Aug''24 & Sep''25'!$BL:$BL,'Aug''24 & Sep''25'!$I:$I,'Statewise SO Details'!$B23,'Aug''24 & Sep''25'!$AS:$AS,'Statewise SO Details'!AG$2,'Aug''24 & Sep''25'!$BU:$BU,"consumer") -> 0 | AH23: 354 | AJ23: 354 | AK23: -13% | AL23: =SUMIFS('Aug''24 & Sep''25'!$BL:$BL,'Aug''24 & Sep''25'!$I:$I,'Statewise SO Details'!$B23,'Aug''24 & Sep''25'!$CF:$CF,'Statewise SO Details'!AL$2,'Aug''24 & Sep''25'!$BU:$BU,"consumer",'Aug''24 & Sep''25'!$CG:$CG,"MTD") -> 407 | AN23: =IFERROR(VLOOKUP($B23,Pivot!$P$5:$S$28,MATCH('Statewise SO Details'!AN$2,Pivot!$P$5:$S$5,0),0),0) -> 98 | AO23: -23% | AP23: =IFERROR(VLOOKUP($B23,Pivot!$P$5:$S$28,MATCH('Statewise SO Details'!AP$2,Pivot!$P$5:$S$5,0),0),0) -> 128
A24: South2 | B24: Telangana | C24: =SUMIFS('Aug''24 & Sep''25'!$BL:$BL,'Aug''24 & Sep''25'!$I:$I,'Statewise SO Details'!$B24,'Aug''24 & Sep''25'!$AS:$AS,'Statewise SO Details'!C$2,'Aug''24 & Sep''25'!$BU:$BU,"consumer") -> 0 | D24: =SUMIFS('Aug''24 & Sep''25'!$BL:$BL,'Aug''24 & Sep''25'!$I:$I,'Statewise SO Details'!$B24,'Aug''24 & Sep''25'!$AS:$AS,'Statewise SO Details'!D$2,'Aug''24 & Sep''25'!$BU:$BU,"consumer") -> 0 | E24: =SUMIFS('Aug''24 & Sep''25'!$BL:$BL,'Aug''24 & Sep''25'!$I:$I,'Statewise SO Details'!$B24,'Aug''24 & Sep''25'!$AS:$AS,'Statewise SO Details'!E$2,'Aug''24 & Sep''25'!$BU:$BU,"consumer") -> 0 | F24: =SUMIFS('Aug''24 & Sep''25'!$BL:$BL,'Aug''24 & Sep''25'!$I:$I,'Statewise SO Details'!$B24,'Aug''24 & Sep''25'!$AS:$AS,'Statewise SO Details'!F$2,'Aug''24 & Sep''25'!$BU:$BU,"consumer") -> 8 | G24: =SUMIFS('Aug''24 & Sep''25'!$BL:$BL,'Aug''24 & Sep''25'!$I:$I,'Statewise SO Details'!$B24,'Aug''24 & Sep''25'!$AS:$AS,'Statewise SO Details'!G$2,'Aug''24 & Sep''25'!$BU:$BU,"consumer") -> 7 | H24: =SUMIFS('Aug''24 & Sep''25'!$BL:$BL,'Aug''24 & Sep''25'!$I:$I,'Statewise SO Details'!$B24,'Aug''24 & Sep''25'!$AS:$AS,'Statewise SO Details'!H$2,'Aug''24 & Sep''25'!$BU:$BU,"consumer") -> 0 | I24: =SUMIFS('Aug''24 & Sep''25'!$BL:$BL,'Aug''24 & Sep''25'!$I:$I,'Statewise SO Details'!$B24,'Aug''24 & Sep''25'!$AS:$AS,'Statewise SO Details'!I$2,'Aug''24 & Sep''25'!$BU:$BU,"consumer") -> 0 | J24: =SUMIFS('Aug''24 & Sep''25'!$BL:$BL,'Aug''24 & Sep''25'!$I:$I,'Statewise SO Details'!$B24,'Aug''24 & Sep''25'!$AS:$AS,'Statewise SO Details'!J$2,'Aug''24 & Sep''25'!$BU:$BU,"consumer") -> 7 | K24: =SUMIFS('Aug''24 & Sep''25'!$BL:$BL,'Aug''24 & Sep''25'!$I:$I,'Statewise SO Details'!$B24,'Aug''24 & Sep''25'!$AS:$AS,'Statewise SO Details'!K$2,'Aug''24 & Sep''25'!$BU:$BU,"consumer") -> 0 | L24: =SUMIFS('Aug''24 & Sep''25'!$BL:$BL,'Aug''24 & Sep''25'!$I:$I,'Statewise SO Details'!$B24,'Aug''24 & Sep''25'!$AS:$AS,'Statewise SO Details'!L$2,'Aug''24 & Sep''25'!$BU:$BU,"consumer") -> 13 | M24: =SUMIFS('Aug''24 & Sep''25'!$BL:$BL,'Aug''24 & Sep''25'!$I:$I,'Statewise SO Details'!$B24,'Aug''24 & Sep''25'!$AS:$AS,'Statewise SO Details'!M$2,'Aug''24 & Sep''25'!$BU:$BU,"consumer") -> 62 | N24: =SUMIFS('Aug''24 & Sep''25'!$BL:$BL,'Aug''24 & Sep''25'!$I:$I,'Statewise SO Details'!$B24,'Aug''24 & Sep''25'!$AS:$AS,'Statewise SO Details'!N$2,'Aug''24 & Sep''25'!$BU:$BU,"consumer") -> 0 | O24: =SUMIFS('Aug''24 & Sep''25'!$BL:$BL,'Aug''24 & Sep''25'!$I:$I,'Statewise SO Details'!$B24,'Aug''24 & Sep''25'!$AS:$AS,'Statewise SO Details'!O$2,'Aug''24 & Sep''25'!$BU:$BU,"consumer") -> 15 | P24: =SUMIFS('Aug''24 & Sep''25'!$BL:$BL,'Aug''24 & Sep''25'!$I:$I,'Statewise SO Details'!$B24,'Aug''24 & Sep''25'!$AS:$AS,'Statewise SO Details'!P$2,'Aug''24 & Sep''25'!$BU:$BU,"consumer") -> 8 | Q24: =SUMIFS('Aug''24 & Sep''25'!$BL:$BL,'Aug''24 & Sep''25'!$I:$I,'Statewise SO Details'!$B24,'Aug''24 & Sep''25'!$AS:$AS,'Statewise SO Details'!Q$2,'Aug''24 & Sep''25'!$BU:$BU,"consumer") -> 5 | R24: =SUMIFS('Aug''24 & Sep''25'!$BL:$BL,'Aug''24 & Sep''25'!$I:$I,'Statewise SO Details'!$B24,'Aug''24 & Sep''25'!$AS:$AS,'Statewise SO Details'!R$2,'Aug''24 & Sep''25'!$BU:$BU,"consumer") -> 0 | S24: =SUMIFS('Aug''24 & Sep''25'!$BL:$BL,'Aug''24 & Sep''25'!$I:$I,'Statewise SO Details'!$B24,'Aug''24 & Sep''25'!$AS:$AS,'Statewise SO Details'!S$2,'Aug''24 & Sep''25'!$BU:$BU,"consumer") -> 3 | T24: =SUMIFS('Aug''24 & Sep''25'!$BL:$BL,'Aug''24 & Sep''25'!$I:$I,'Statewise SO Details'!$B24,'Aug''24 & Sep''25'!$AS:$AS,'Statewise SO Details'!T$2,'Aug''24 & Sep''25'!$BU:$BU,"consumer") -> 15 | U24: =SUMIFS('Aug''24 & Sep''25'!$BL:$BL,'Aug''24 & Sep''25'!$I:$I,'Statewise SO Details'!$B24,'Aug''24 & Sep''25'!$AS:$AS,'Statewise SO Details'!U$2,'Aug''24 & Sep''25'!$BU:$BU,"consumer") -> 14 | V24: =SUMIFS('Aug''24 & Sep''25'!$BL:$BL,'Aug''24 & Sep''25'!$I:$I,'Statewise SO Details'!$B24,'Aug''24 & Sep''25'!$AS:$AS,'Statewise SO Details'!V$2,'Aug''24 & Sep''25'!$BU:$BU,"consumer") -> 0 | W24: =SUMIFS('Aug''24 & Sep''25'!$BL:$BL,'Aug''24 & Sep''25'!$I:$I,'Statewise SO Details'!$B24,'Aug''24 & Sep''25'!$AS:$AS,'Statewise SO Details'!W$2,'Aug''24 & Sep''25'!$BU:$BU,"consumer") -> 0 | X24: =SUMIFS('Aug''24 & Sep''25'!$BL:$BL,'Aug''24 & Sep''25'!$I:$I,'Statewise SO Details'!$B24,'Aug''24 & Sep''25'!$AS:$AS,'Statewise SO Details'!X$2,'Aug''24 & Sep''25'!$BU:$BU,"consumer") -> 4 | Y24: =SUMIFS('Aug''24 & Sep''25'!$BL:$BL,'Aug''24 & Sep''25'!$I:$I,'Statewise SO Details'!$B24,'Aug''24 & Sep''25'!$AS:$AS,'Statewise SO Details'!Y$2,'Aug''24 & Sep''25'!$BU:$BU,"consumer") -> 0 | Z24: =SUMIFS('Aug''24 & Sep''25'!$BL:$BL,'Aug''24 & Sep''25'!$I:$I,'Statewise SO Details'!$B24,'Aug''24 & Sep''25'!$AS:$AS,'Statewise SO Details'!Z$2,'Aug''24 & Sep''25'!$BU:$BU,"consumer") -> 26 | AA24: =SUMIFS('Aug''24 & Sep''25'!$BL:$BL,'Aug''24 & Sep''25'!$I:$I,'Statewise SO Details'!$B24,'Aug''24 & Sep''25'!$AS:$AS,'Statewise SO Details'!AA$2,'Aug''24 & Sep''25'!$BU:$BU,"consumer") -> 5 | AB24: =SUMIFS('Aug''24 & Sep''25'!$BL:$BL,'Aug''24 & Sep''25'!$I:$I,'Statewise SO Details'!$B24,'Aug''24 & Sep''25'!$AS:$AS,'Statewise SO Details'!AB$2,'Aug''24 & Sep''25'!$BU:$BU,"consumer") -> 10 | AC24: =SUMIFS('Aug''24 & Sep''25'!$BL:$BL,'Aug''24 & Sep''25'!$I:$I,'Statewise SO Details'!$B24,'Aug''24 & Sep''25'!$AS:$AS,'Statewise SO Details'!AC$2,'Aug''24 & Sep''25'!$BU:$BU,"consumer") -> 3 | AD24: =SUMIFS('Aug''24 & Sep''25'!$BL:$BL,'Aug''24 & Sep''25'!$I:$I,'Statewise SO Details'!$B24,'Aug''24 & Sep''25'!$AS:$AS,'Statewise SO Details'!AD$2,'Aug''24 & Sep''25'!$BU:$BU,"consumer") -> 20 | AE24: =SUMIFS('Aug''24 & Sep''25'!$BL:$BL,'Aug''24 & Sep''25'!$I:$I,'Statewise SO Details'!$B24,'Aug''24 & Sep''25'!$AS:$AS,'Statewise SO Details'!AE$2,'Aug''24 & Sep''25'!$BU:$BU,"consumer") -> 170 | AF24: =SUMIFS('Aug''24 & Sep''25'!$BL:$BL,'Aug''24 & Sep''25'!$I:$I,'Statewise SO Details'!$B24,'Aug''24 & Sep''25'!$AS:$AS,'Statewise SO Details'!AF$2,'Aug''24 & Sep''25'!$BU:$BU,"consumer") -> 57 | AG24: =SUMIFS('Aug''24 & Sep''25'!$BL:$BL,'Aug''24 & Sep''25'!$I:$I,'Statewise SO Details'!$B24,'Aug''24 & Sep''25'!$AS:$AS,'Statewise SO Details'!AG$2,'Aug''24 & Sep''25'!$BU:$BU,"consumer") -> 0 | AH24: 452 | AJ24: 452 | AK24: -32% | AL24: =SUMIFS('Aug''24 & Sep''25'!$BL:$BL,'Aug''24 & Sep''25'!$I:$I,'Statewise SO Details'!$B24,'Aug''24 & Sep''25'!$CF:$CF,'Statewise SO Details'!AL$2,'Aug''24 & Sep''25'!$BU:$BU,"consumer",'Aug''24 & Sep''25'!$CG:$CG,"MTD") -> 669 | AN24: =IFERROR(VLOOKUP($B24,Pivot!$P$5:$S$28,MATCH('Statewise SO Details'!AN$2,Pivot!$P$5:$S$5,0),0),0) -> 82 | AO24: -20% | AP24: =IFERROR(VLOOKUP($B24,Pivot!$P$5:$S$28,MATCH('Statewise SO Details'!AP$2,Pivot!$P$5:$S$5,0),0),0) -> 102
A25: West1 | B25: Maharashtra | C25: =SUMIFS('Aug''24 & Sep''25'!$BL:$BL,'Aug''24 & Sep''25'!$I:$I,'Statewise SO Details'!$B25,'Aug''24 & Sep''25'!$AS:$AS,'Statewise SO Details'!C$2,'Aug''24 & Sep''25'!$BU:$BU,"consumer") -> 7 | D25: =SUMIFS('Aug''24 & Sep''25'!$BL:$BL,'Aug''24 & Sep''25'!$I:$I,'Statewise SO Details'!$B25,'Aug''24 & Sep''25'!$AS:$AS,'Statewise SO Details'!D$2,'Aug''24 & Sep''25'!$BU:$BU,"consumer") -> 0 | E25: =SUMIFS('Aug''24 & Sep''25'!$BL:$BL,'Aug''24 & Sep''25'!$I:$I,'Statewise SO Details'!$B25,'Aug''24 & Sep''25'!$AS:$AS,'Statewise SO Details'!E$2,'Aug''24 & Sep''25'!$BU:$BU,"consumer") -> 10 | F25: =SUMIFS('Aug''24 & Sep''25'!$BL:$BL,'Aug''24 & Sep''25'!$I:$I,'Statewise SO Details'!$B25,'Aug''24 & Sep''25'!$AS:$AS,'Statewise SO Details'!F$2,'Aug''24 & Sep''25'!$BU:$BU,"consumer") -> 7 | G25: =SUMIFS('Aug''24 & Sep''25'!$BL:$BL,'Aug''24 & Sep''25'!$I:$I,'Statewise SO Details'!$B25,'Aug''24 & Sep''25'!$AS:$AS,'Statewise SO Details'!G$2,'Aug''24 & Sep''25'!$BU:$BU,"consumer") -> 10 | H25: =SUMIFS('Aug''24 & Sep''25'!$BL:$BL,'Aug''24 & Sep''25'!$I:$I,'Statewise SO Details'!$B25,'Aug''24 & Sep''25'!$AS:$AS,'Statewise SO Details'!H$2,'Aug''24 & Sep''25'!$BU:$BU,"consumer") -> 6 | I25: =SUMIFS('Aug''24 & Sep''25'!$BL:$BL,'Aug''24 & Sep''25'!$I:$I,'Statewise SO Details'!$B25,'Aug''24 & Sep''25'!$AS:$AS,'Statewise SO Details'!I$2,'Aug''24 & Sep''25'!$BU:$BU,"consumer") -> 17 | J25: =SUMIFS('Aug''24 & Sep''25'!$BL:$BL,'Aug''24 & Sep''25'!$I:$I,'Statewise SO Details'!$B25,'Aug''24 & Sep''25'!$AS:$AS,'Statewise SO Details'!J$2,'Aug''24 & Sep''25'!$BU:$BU,"consumer") -> 53 | K25: =SUMIFS('Aug''24 & Sep''25'!$BL:$BL,'Aug''24 & Sep''25'!$I:$I,'Statewise SO Details'!$B25,'Aug''24 & Sep''25'!$AS:$AS,'Statewise SO Details'!K$2,'Aug''24 & Sep''25'!$BU:$BU,"consumer") -> 0 | L25: =SUMIFS('Aug''24 & Sep''25'!$BL:$BL,'Aug''24 & Sep''25'!$I:$I,'Statewise SO Details'!$B25,'Aug''24 & Sep''25'!$AS:$AS,'Statewise SO Details'!L$2,'Aug''24 & Sep''25'!$BU:$BU,"consumer") -> 184 | M25: =SUMIFS('Aug''24 & Sep''25'!$BL:$BL,'Aug''24 & Sep''25'!$I:$I,'Statewise SO Details'!$B25,'Aug''24 & Sep''25'!$AS:$AS,'Statewise SO Details'!M$2,'Aug''24 & Sep''25'!$BU:$BU,"consumer") -> 96 | N25: =SUMIFS('Aug''24 & Sep''25'!$BL:$BL,'Aug''24 & Sep''25'!$I:$I,'Statewise SO Details'!$B25,'Aug''24 & Sep''25'!$AS:$AS,'Statewise SO Details'!N$2,'Aug''24 & Sep''25'!$BU:$BU,"consumer") -> 43 | O25: =SUMIFS('Aug''24 & Sep''25'!$BL:$BL,'Aug''24 & Sep''25'!$I:$I,'Statewise SO Details'!$B25,'Aug''24 & Sep''25'!$AS:$AS,'Statewise SO Details'!O$2,'Aug''24 & Sep''25'!$BU:$BU,"consumer") -> 46 | P25: =SUMIFS('Aug''24 & Sep''25'!$BL:$BL,'Aug''24 & Sep''25'!$I:$I,'Statewise SO Details'!$B25,'Aug''24 & Sep''25'!$AS:$AS,'Statewise SO Details'!P$2,'Aug''24 & Sep''25'!$BU:$BU,"consumer") -> 13 | Q25: =SUMIFS('Aug''24 & Sep''25'!$BL:$BL,'Aug''24 & Sep''25'!$I:$I,'Statewise SO Details'!$B25,'Aug''24 & Sep''25'!$AS:$AS,'Statewise SO Details'!Q$2,'Aug''24 & Sep''25'!$BU:$BU,"consumer") -> 60 | R25: =SUMIFS('Aug''24 & Sep''25'!$BL:$BL,'Aug''24 & Sep''25'!$I:$I,'Statewise SO Details'!$B25,'Aug''24 & Sep''25'!$AS:$AS,'Statewise SO Details'!R$2,'Aug''24 & Sep''25'!$BU:$BU,"consumer") -> 19 | S25: =SUMIFS('Aug''24 & Sep''25'!$BL:$BL,'Aug''24 & Sep''25'!$I:$I,'Statewise SO Details'!$B25,'Aug''24 & Sep''25'!$AS:$AS,'Statewise SO Details'!S$2,'Aug''24 & Sep''25'!$BU:$BU,"consumer") -> 190 | T25: =SUMIFS('Aug''24 & Sep''25'!$BL:$BL,'Aug''24 & Sep''25'!$I:$I,'Statewise SO Details'!$B25,'Aug''24 & Sep''25'!$AS:$AS,'Statewise SO Details'!T$2,'Aug''24 & Sep''25'!$BU:$BU,"consumer") -> 134 | U25: =SUMIFS('Aug''24 & Sep''25'!$BL:$BL,'Aug''24 & Sep''25'!$I:$I,'Statewise SO Details'!$B25,'Aug''24 & Sep''25'!$AS:$AS,'Statewise SO Details'!U$2,'Aug''24 & Sep''25'!$BU:$BU,"consumer") -> 155 | V25: =SUMIFS('Aug''24 & Sep''25'!$BL:$BL,'Aug''24 & Sep''25'!$I:$I,'Statewise SO Details'!$B25,'Aug''24 & Sep''25'!$AS:$AS,'Statewise SO Details'!V$2,'Aug''24 & Sep''25'!$BU:$BU,"consumer") -> 110 | W25: =SUMIFS('Aug''24 & Sep''25'!$BL:$BL,'Aug''24 & Sep''25'!$I:$I,'Statewise SO Details'!$B25,'Aug''24 & Sep''25'!$AS:$AS,'Statewise SO Details'!W$2,'Aug''24 & Sep''25'!$BU:$BU,"consumer") -> 22 | X25: =SUMIFS('Aug''24 & Sep''25'!$BL:$BL,'Aug''24 & Sep''25'!$I:$I,'Statewise SO Details'!$B25,'Aug''24 & Sep''25'!$AS:$AS,'Statewise SO Details'!X$2,'Aug''24 & Sep''25'!$BU:$BU,"consumer") -> 83 | Y25: =SUMIFS('Aug''24 & Sep''25'!$BL:$BL,'Aug''24 & Sep''25'!$I:$I,'Statewise SO Details'!$B25,'Aug''24 & Sep''25'!$AS:$AS,'Statewise SO Details'!Y$2,'Aug''24 & Sep''25'!$BU:$BU,"consumer") -> 89 | Z25: =SUMIFS('Aug''24 & Sep''25'!$BL:$BL,'Aug''24 & Sep''25'!$I:$I,'Statewise SO Details'!$B25,'Aug''24 & Sep''25'!$AS:$AS,'Statewise SO Details'!Z$2,'Aug''24 & Sep''25'!$BU:$BU,"consumer") -> 341 | AA25: =SUMIFS('Aug''24 & Sep''25'!$BL:$BL,'Aug''24 & Sep''25'!$I:$I,'Statewise SO Details'!$B25,'Aug''24 & Sep''25'!$AS:$AS,'Statewise SO Details'!AA$2,'Aug''24 & Sep''25'!$BU:$BU,"consumer") -> 122 | AB25: =SUMIFS('Aug''24 & Sep''25'!$BL:$BL,'Aug''24 & Sep''25'!$I:$I,'Statewise SO Details'!$B25,'Aug''24 & Sep''25'!$AS:$AS,'Statewise SO Details'!AB$2,'Aug''24 & Sep''25'!$BU:$BU,"consumer") -> 57 | AC25: =SUMIFS('Aug''24 & Sep''25'!$BL:$BL,'Aug''24 & Sep''25'!$I:$I,'Statewise SO Details'!$B25,'Aug''24 & Sep''25'!$AS:$AS,'Statewise SO Details'!AC$2,'Aug''24 & Sep''25'!$BU:$BU,"consumer") -> 344 | AD25: =SUMIFS('Aug''24 & Sep''25'!$BL:$BL,'Aug''24 & Sep''25'!$I:$I,'Statewise SO Details'!$B25,'Aug''24 & Sep''25'!$AS:$AS,'Statewise SO Details'!AD$2,'Aug''24 & Sep''25'!$BU:$BU,"consumer") -> 236 | AE25: =SUMIFS('Aug''24 & Sep''25'!$BL:$BL,'Aug''24 & Sep''25'!$I:$I,'Statewise SO Details'!$B25,'Aug''24 & Sep''25'!$AS:$AS,'Statewise SO Details'!AE$2,'Aug''24 & Sep''25'!$BU:$BU,"consumer") -> 1164 | AF25: =SUMIFS('Aug''24 & Sep''25'!$BL:$BL,'Aug''24 & Sep''25'!$I:$I,'Statewise SO Details'!$B25,'Aug''24 & Sep''25'!$AS:$AS,'Statewise SO Details'!AF$2,'Aug''24 & Sep''25'!$BU:$BU,"consumer") -> 177 | AG25: =SUMIFS('Aug''24 & Sep''25'!$BL:$BL,'Aug''24 & Sep''25'!$I:$I,'Statewise SO Details'!$B25,'Aug''24 & Sep''25'!$AS:$AS,'Statewise SO Details'!AG$2,'Aug''24 & Sep''25'!$BU:$BU,"consumer") -> 0 | AH25: 3795 | AJ25: 3795 | AK25: -46% | AL25: =SUMIFS('Aug''24 & Sep''25'!$BL:$BL,'Aug''24 & Sep''25'!$I:$I,'Statewise SO Details'!$B25,'Aug''24 & Sep''25'!$CF:$CF,'Statewise SO Details'!AL$2,'Aug''24 & Sep''25'!$BU:$BU,"consumer",'Aug''24 & Sep''25'!$CG:$CG,"MTD") -> 7018 | AN25: =IFERROR(VLOOKUP($B25,Pivot!$P$5:$S$28,MATCH('Statewise SO Details'!AN$2,Pivot!$P$5:$S$5,0),0),0) -> 1224 | AO25: -28% | AP25: =IFERROR(VLOOKUP($B25,Pivot!$P$5:$S$28,MATCH('Statewise SO Details'!AP$2,Pivot!$P$5:$S$5,0),0),0) -> 1693
A26: West1 | B26: Gujarat | C26: =SUMIFS('Aug''24 & Sep''25'!$BL:$BL,'Aug''24 & Sep''25'!$I:$I,'Statewise SO Details'!$B26,'Aug''24 & Sep''25'!$AS:$AS,'Statewise SO Details'!C$2,'Aug''24 & Sep''25'!$BU:$BU,"consumer") -> 0 | D26: =SUMIFS('Aug''24 & Sep''25'!$BL:$BL,'Aug''24 & Sep''25'!$I:$I,'Statewise SO Details'!$B26,'Aug''24 & Sep''25'!$AS:$AS,'Statewise SO Details'!D$2,'Aug''24 & Sep''25'!$BU:$BU,"consumer") -> 0 | E26: =SUMIFS('Aug''24 & Sep''25'!$BL:$BL,'Aug''24 & Sep''25'!$I:$I,'Statewise SO Details'!$B26,'Aug''24 & Sep''25'!$AS:$AS,'Statewise SO Details'!E$2,'Aug''24 & Sep''25'!$BU:$BU,"consumer") -> 0 | F26: =SUMIFS('Aug''24 & Sep''25'!$BL:$BL,'Aug''24 & Sep''25'!$I:$I,'Statewise SO Details'!$B26,'Aug''24 & Sep''25'!$AS:$AS,'Statewise SO Details'!F$2,'Aug''24 & Sep''25'!$BU:$BU,"consumer") -> 0 | G26: =SUMIFS('Aug''24 & Sep''25'!$BL:$BL,'Aug''24 & Sep''25'!$I:$I,'Statewise SO Details'!$B26,'Aug''24 & Sep''25'!$AS:$AS,'Statewise SO Details'!G$2,'Aug''24 & Sep''25'!$BU:$BU,"consumer") -> 0 | H26: =SUMIFS('Aug''24 & Sep''25'!$BL:$BL,'Aug''24 & Sep''25'!$I:$I,'Statewise SO Details'!$B26,'Aug''24 & Sep''25'!$AS:$AS,'Statewise SO Details'!H$2,'Aug''24 & Sep''25'!$BU:$BU,"consumer") -> 62 | I26: =SUMIFS('Aug''24 & Sep''25'!$BL:$BL,'Aug''24 & Sep''25'!$I:$I,'Statewise SO Details'!$B26,'Aug''24 & Sep''25'!$AS:$AS,'Statewise SO Details'!I$2,'Aug''24 & Sep''25'!$BU:$BU,"consumer") -> 9 | J26: =SUMIFS('Aug''24 & Sep''25'!$BL:$BL,'Aug''24 & Sep''25'!$I:$I,'Statewise SO Details'!$B26,'Aug''24 & Sep''25'!$AS:$AS,'Statewise SO Details'!J$2,'Aug''24 & Sep''25'!$BU:$BU,"consumer") -> 11 | K26: =SUMIFS('Aug''24 & Sep''25'!$BL:$BL,'Aug''24 & Sep''25'!$I:$I,'Statewise SO Details'!$B26,'Aug''24 & Sep''25'!$AS:$AS,'Statewise SO Details'!K$2,'Aug''24 & Sep''25'!$BU:$BU,"consumer") -> 0 | L26: =SUMIFS('Aug''24 & Sep''25'!$BL:$BL,'Aug''24 & Sep''25'!$I:$I,'Statewise SO Details'!$B26,'Aug''24 & Sep''25'!$AS:$AS,'Statewise SO Details'!L$2,'Aug''24 & Sep''25'!$BU:$BU,"consumer") -> 14 | M26: =SUMIFS('Aug''24 & Sep''25'!$BL:$BL,'Aug''24 & Sep''25'!$I:$I,'Statewise SO Details'!$B26,'Aug''24 & Sep''25'!$AS:$AS,'Statewise SO Details'!M$2,'Aug''24 & Sep''25'!$BU:$BU,"consumer") -> 100 | N26: =SUMIFS('Aug''24 & Sep''25'!$BL:$BL,'Aug''24 & Sep''25'!$I:$I,'Statewise SO Details'!$B26,'Aug''24 & Sep''25'!$AS:$AS,'Statewise SO Details'!N$2,'Aug''24 & Sep''25'!$BU:$BU,"consumer") -> 10 | O26: =SUMIFS('Aug''24 & Sep''25'!$BL:$BL,'Aug''24 & Sep''25'!$I:$I,'Statewise SO Details'!$B26,'Aug''24 & Sep''25'!$AS:$AS,'Statewise SO Details'!O$2,'Aug''24 & Sep''25'!$BU:$BU,"consumer") -> 7 | P26: =SUMIFS('Aug''24 & Sep''25'!$BL:$BL,'Aug''24 & Sep''25'!$I:$I,'Statewise SO Details'!$B26,'Aug''24 & Sep''25'!$AS:$AS,'Statewise SO Details'!P$2,'Aug''24 & Sep''25'!$BU:$BU,"consumer") -> 18 | Q26: =SUMIFS('Aug''24 & Sep''25'!$BL:$BL,'Aug''24 & Sep''25'!$I:$I,'Statewise SO Details'!$B26,'Aug''24 & Sep''25'!$AS:$AS,'Statewise SO Details'!Q$2,'Aug''24 & Sep''25'!$BU:$BU,"consumer") -> 15 | R26: =SUMIFS('Aug''24 & Sep''25'!$BL:$BL,'Aug''24 & Sep''25'!$I:$I,'Statewise SO Details'!$B26,'Aug''24 & Sep''25'!$AS:$AS,'Statewise SO Details'!R$2,'Aug''24 & Sep''25'!$BU:$BU,"consumer") -> 0 | S26: =SUMIFS('Aug''24 & Sep''25'!$BL:$BL,'Aug''24 & Sep''25'!$I:$I,'Statewise SO Details'!$B26,'Aug''24 & Sep''25'!$AS:$AS,'Statewise SO Details'!S$2,'Aug''24 & Sep''25'!$BU:$BU,"consumer") -> 47 | T26: =SUMIFS('Aug''24 & Sep''25'!$BL:$BL,'Aug''24 & Sep''25'!$I:$I,'Statewise SO Details'!$B26,'Aug''24 & Sep''25'!$AS:$AS,'Statewise SO Details'!T$2,'Aug''24 & Sep''25'!$BU:$BU,"consumer") -> 10 | U26: =SUMIFS('Aug''24 & Sep''25'!$BL:$BL,'Aug''24 & Sep''25'!$I:$I,'Statewise SO Details'!$B26,'Aug''24 & Sep''25'!$AS:$AS,'Statewise SO Details'!U$2,'Aug''24 & Sep''25'!$BU:$BU,"consumer") -> 9 | V26: =SUMIFS('Aug''24 & Sep''25'!$BL:$BL,'Aug''24 & Sep''25'!$I:$I,'Statewise SO Details'!$B26,'Aug''24 & Sep''25'!$AS:$AS,'Statewise SO Details'!V$2,'Aug''24 & Sep''25'!$BU:$BU,"consumer") -> 86 | W26: =SUMIFS('Aug''24 & Sep''25'!$BL:$BL,'Aug''24 & Sep''25'!$I:$I,'Statewise SO Details'!$B26,'Aug''24 & Sep''25'!$AS:$AS,'Statewise SO Details'!W$2,'Aug''24 & Sep''25'!$BU:$BU,"consumer") -> 12 | X26: =SUMIFS('Aug''24 & Sep''25'!$BL:$BL,'Aug''24 & Sep''25'!$I:$I,'Statewise SO Details'!$B26,'Aug''24 & Sep''25'!$AS:$AS,'Statewise SO Details'!X$2,'Aug''24 & Sep''25'!$BU:$BU,"consumer") -> 11 | Y26: =SUMIFS('Aug''24 & Sep''25'!$BL:$BL,'Aug''24 & Sep''25'!$I:$I,'Statewise SO Details'!$B26,'Aug''24 & Sep''25'!$AS:$AS,'Statewise SO Details'!Y$2,'Aug''24 & Sep''25'!$BU:$BU,"consumer") -> 0 | Z26: =SUMIFS('Aug''24 & Sep''25'!$BL:$BL,'Aug''24 & Sep''25'!$I:$I,'Statewise SO Details'!$B26,'Aug''24 & Sep''25'!$AS:$AS,'Statewise SO Details'!Z$2,'Aug''24 & Sep''25'!$BU:$BU,"consumer") -> 55 | AA26: =SUMIFS('Aug''24 & Sep''25'!$BL:$BL,'Aug''24 & Sep''25'!$I:$I,'Statewise SO Details'!$B26,'Aug''24 & Sep''25'!$AS:$AS,'Statewise SO Details'!AA$2,'Aug''24 & Sep''25'!$BU:$BU,"consumer") -> 17 | AB26: =SUMIFS('Aug''24 & Sep''25'!$BL:$BL,'Aug''24 & Sep''25'!$I:$I,'Statewise SO Details'!$B26,'Aug''24 & Sep''25'!$AS:$AS,'Statewise SO Details'!AB$2,'Aug''24 & Sep''25'!$BU:$BU,"consumer") -> 11 | AC26: =SUMIFS('Aug''24 & Sep''25'!$BL:$BL,'Aug''24 & Sep''25'!$I:$I,'Statewise SO Details'!$B26,'Aug''24 & Sep''25'!$AS:$AS,'Statewise SO Details'!AC$2,'Aug''24 & Sep''25'!$BU:$BU,"consumer") -> 32 | AD26: =SUMIFS('Aug''24 & Sep''25'!$BL:$BL,'Aug''24 & Sep''25'!$I:$I,'Statewise SO Details'!$B26,'Aug''24 & Sep''25'!$AS:$AS,'Statewise SO Details'!AD$2,'Aug''24 & Sep''25'!$BU:$BU,"consumer") -> 27 | AE26: =SUMIFS('Aug''24 & Sep''25'!$BL:$BL,'Aug''24 & Sep''25'!$I:$I,'Statewise SO Details'!$B26,'Aug''24 & Sep''25'!$AS:$AS,'Statewise SO Details'!AE$2,'Aug''24 & Sep''25'!$BU:$BU,"consumer") -> 478 | AF26: =SUMIFS('Aug''24 & Sep''25'!$BL:$BL,'Aug''24 & Sep''25'!$I:$I,'Statewise SO Details'!$B26,'Aug''24 & Sep''25'!$AS:$AS,'Statewise SO Details'!AF$2,'Aug''24 & Sep''25'!$BU:$BU,"consumer") -> 231 | AG26: =SUMIFS('Aug''24 & Sep''25'!$BL:$BL,'Aug''24 & Sep''25'!$I:$I,'Statewise SO Details'!$B26,'Aug''24 & Sep''25'!$AS:$AS,'Statewise SO Details'!AG$2,'Aug''24 & Sep''25'!$BU:$BU,"consumer") -> 0 | AH26: 1272 | AJ26: 1272 | AK26: -21% | AL26: =SUMIFS('Aug''24 & Sep''25'!$BL:$BL,'Aug''24 & Sep''25'!$I:$I,'Statewise SO Details'!$B26,'Aug''24 & Sep''25'!$CF:$CF,'Statewise SO Details'!AL$2,'Aug''24 & Sep''25'!$BU:$BU,"consumer",'Aug''24 & Sep''25'!$CG:$CG,"MTD") -> 1618 | AN26: =IFERROR(VLOOKUP($B26,Pivot!$P$5:$S$28,MATCH('Statewise SO Details'!AN$2,Pivot!$P$5:$S$5,0),0),0) -> 0 | AO26: 0% | AP26: =IFERROR(VLOOKUP($B26,Pivot!$P$5:$S$28,MATCH('Statewise SO Details'!AP$2,Pivot!$P$5:$S$5,0),0),0) -> 0
A27: North1 | B27: Rajasthan | C27: =SUMIFS('Aug''24 & Sep''25'!$BL:$BL,'Aug''24 & Sep''25'!$I:$I,'Statewise SO Details'!$B27,'Aug''24 & Sep''25'!$AS:$AS,'Statewise SO Details'!C$2,'Aug''24 & Sep''25'!$BU:$BU,"consumer") -> 0 | D27: =SUMIFS('Aug''24 & Sep''25'!$BL:$BL,'Aug''24 & Sep''25'!$I:$I,'Statewise SO Details'!$B27,'Aug''24 & Sep''25'!$AS:$AS,'Statewise SO Details'!D$2,'Aug''24 & Sep''25'!$BU:$BU,"consumer") -> 0 | E27: =SUMIFS('Aug''24 & Sep''25'!$BL:$BL,'Aug''24 & Sep''25'!$I:$I,'Statewise SO Details'!$B27,'Aug''24 & Sep''25'!$AS:$AS,'Statewise SO Details'!E$2,'Aug''24 & Sep''25'!$BU:$BU,"consumer") -> 0 | F27: =SUMIFS('Aug''24 & Sep''25'!$BL:$BL,'Aug''24 & Sep''25'!$I:$I,'Statewise SO Details'!$B27,'Aug''24 & Sep''25'!$AS:$AS,'Statewise SO Details'!F$2,'Aug''24 & Sep''25'!$BU:$BU,"consumer") -> 0 | G27: =SUMIFS('Aug''24 & Sep''25'!$BL:$BL,'Aug''24 & Sep''25'!$I:$I,'Statewise SO Details'!$B27,'Aug''24 & Sep''25'!$AS:$AS,'Statewise SO Details'!G$2,'Aug''24 & Sep''25'!$BU:$BU,"consumer") -> 3 | H27: =SUMIFS('Aug''24 & Sep''25'!$BL:$BL,'Aug''24 & Sep''25'!$I:$I,'Statewise SO Details'!$B27,'Aug''24 & Sep''25'!$AS:$AS,'Statewise SO Details'!H$2,'Aug''24 & Sep''25'!$BU:$BU,"consumer") -> 0 | I27: =SUMIFS('Aug''24 & Sep''25'!$BL:$BL,'Aug''24 & Sep''25'!$I:$I,'Statewise SO Details'!$B27,'Aug''24 & Sep''25'!$AS:$AS,'Statewise SO Details'!I$2,'Aug''24 & Sep''25'!$BU:$BU,"consumer") -> 2 | J27: =SUMIFS('Aug''24 & Sep''25'!$BL:$BL,'Aug''24 & Sep''25'!$I:$I,'Statewise SO Details'!$B27,'Aug''24 & Sep''25'!$AS:$AS,'Statewise SO Details'!J$2,'Aug''24 & Sep''25'!$BU:$BU,"consumer") -> 9 | K27: =SUMIFS('Aug''24 & Sep''25'!$BL:$BL,'Aug''24 & Sep''25'!$I:$I,'Statewise SO Details'!$B27,'Aug''24 & Sep''25'!$AS:$AS,'Statewise SO Details'!K$2,'Aug''24 & Sep''25'!$BU:$BU,"consumer") -> 0 | L27: =SUMIFS('Aug''24 & Sep''25'!$BL:$BL,'Aug''24 & Sep''25'!$I:$I,'Statewise SO Details'!$B27,'Aug''24 & Sep''25'!$AS:$AS,'Statewise SO Details'!L$2,'Aug''24 & Sep''25'!$BU:$BU,"consumer") -> 26 | M27: =SUMIFS('Aug''24 & Sep''25'!$BL:$BL,'Aug''24 & Sep''25'!$I:$I,'Statewise SO Details'!$B27,'Aug''24 & Sep''25'!$AS:$AS,'Statewise SO Details'!M$2,'Aug''24 & Sep''25'!$BU:$BU,"consumer") -> 19 | N27: =SUMIFS('Aug''24 & Sep''25'!$BL:$BL,'Aug''24 & Sep''25'!$I:$I,'Statewise SO Details'!$B27,'Aug''24 & Sep''25'!$AS:$AS,'Statewise SO Details'!N$2,'Aug''24 & Sep''25'!$BU:$BU,"consumer") -> 0 | O27: =SUMIFS('Aug''24 & Sep''25'!$BL:$BL,'Aug''24 & Sep''25'!$I:$I,'Statewise SO Details'!$B27,'Aug''24 & Sep''25'!$AS:$AS,'Statewise SO Details'!O$2,'Aug''24 & Sep''25'!$BU:$BU,"consumer") -> 0 | P27: =SUMIFS('Aug''24 & Sep''25'!$BL:$BL,'Aug''24 & Sep''25'!$I:$I,'Statewise SO Details'!$B27,'Aug''24 & Sep''25'!$AS:$AS,'Statewise SO Details'!P$2,'Aug''24 & Sep''25'!$BU:$BU,"consumer") -> 8 | Q27: =SUMIFS('Aug''24 & Sep''25'!$BL:$BL,'Aug''24 & Sep''25'!$I:$I,'Statewise SO Details'!$B27,'Aug''24 & Sep''25'!$AS:$AS,'Statewise SO Details'!Q$2,'Aug''24 & Sep''25'!$BU:$BU,"consumer") -> 13 | R27: =SUMIFS('Aug''24 & Sep''25'!$BL:$BL,'Aug''24 & Sep''25'!$I:$I,'Statewise SO Details'!$B27,'Aug''24 & Sep''25'!$AS:$AS,'Statewise SO Details'!R$2,'Aug''24 & Sep''25'!$BU:$BU,"consumer") -> 11 | S27: =SUMIFS('Aug''24 & Sep''25'!$BL:$BL,'Aug''24 & Sep''25'!$I:$I,'Statewise SO Details'!$B27,'Aug''24 & Sep''25'!$AS:$AS,'Statewise SO Details'!S$2,'Aug''24 & Sep''25'!$BU:$BU,"consumer") -> 13 | T27: =SUMIFS('Aug''24 & Sep''25'!$BL:$BL,'Aug''24 & Sep''25'!$I:$I,'Statewise SO Details'!$B27,'Aug''24 & Sep''25'!$AS:$AS,'Statewise SO Details'!T$2,'Aug''24 & Sep''25'!$BU:$BU,"consumer") -> 19 | U27: =SUMIFS('Aug''24 & Sep''25'!$BL:$BL,'Aug''24 & Sep''25'!$I:$I,'Statewise SO Details'!$B27,'Aug''24 & Sep''25'!$AS:$AS,'Statewise SO Details'!U$2,'Aug''24 & Sep''25'!$BU:$BU,"consumer") -> 2 | V27: =SUMIFS('Aug''24 & Sep''25'!$BL:$BL,'Aug''24 & Sep''25'!$I:$I,'Statewise SO Details'!$B27,'Aug''24 & Sep''25'!$AS:$AS,'Statewise SO Details'!V$2,'Aug''24 & Sep''25'!$BU:$BU,"consumer") -> 26 | W27: =SUMIFS('Aug''24 & Sep''25'!$BL:$BL,'Aug''24 & Sep''25'!$I:$I,'Statewise SO Details'!$B27,'Aug''24 & Sep''25'!$AS:$AS,'Statewise SO Details'!W$2,'Aug''24 & Sep''25'!$BU:$BU,"consumer") -> 39 | X27: =SUMIFS('Aug''24 & Sep''25'!$BL:$BL,'Aug''24 & Sep''25'!$I:$I,'Statewise SO Details'!$B27,'Aug''24 & Sep''25'!$AS:$AS,'Statewise SO Details'!X$2,'Aug''24 & Sep''25'!$BU:$BU,"consumer") -> 2 | Y27: =SUMIFS('Aug''24 & Sep''25'!$BL:$BL,'Aug''24 & Sep''25'!$I:$I,'Statewise SO Details'!$B27,'Aug''24 & Sep''25'!$AS:$AS,'Statewise SO Details'!Y$2,'Aug''24 & Sep''25'!$BU:$BU,"consumer") -> 0 | Z27: =SUMIFS('Aug''24 & Sep''25'!$BL:$BL,'Aug''24 & Sep''25'!$I:$I,'Statewise SO Details'!$B27,'Aug''24 & Sep''25'!$AS:$AS,'Statewise SO Details'!Z$2,'Aug''24 & Sep''25'!$BU:$BU,"consumer") -> 49 | AA27: =SUMIFS('Aug''24 & Sep''25'!$BL:$BL,'Aug''24 & Sep''25'!$I:$I,'Statewise SO Details'!$B27,'Aug''24 & Sep''25'!$AS:$AS,'Statewise SO Details'!AA$2,'Aug''24 & Sep''25'!$BU:$BU,"consumer") -> 45 | AB27: =SUMIFS('Aug''24 & Sep''25'!$BL:$BL,'Aug''24 & Sep''25'!$I:$I,'Statewise SO Details'!$B27,'Aug''24 & Sep''25'!$AS:$AS,'Statewise SO Details'!AB$2,'Aug''24 & Sep''25'!$BU:$BU,"consumer") -> 49 | AC27: =SUMIFS('Aug''24 & Sep''25'!$BL:$BL,'Aug''24 & Sep''25'!$I:$I,'Statewise SO Details'!$B27,'Aug''24 & Sep''25'!$AS:$AS,'Statewise SO Details'!AC$2,'Aug''24 & Sep''25'!$BU:$BU,"consumer") -> 26 | AD27: =SUMIFS('Aug''24 & Sep''25'!$BL:$BL,'Aug''24 & Sep''25'!$I:$I,'Statewise SO Details'!$B27,'Aug''24 & Sep''25'!$AS:$AS,'Statewise SO Details'!AD$2,'Aug''24 & Sep''25'!$BU:$BU,"consumer") -> 38 | AE27: =SUMIFS('Aug''24 & Sep''25'!$BL:$BL,'Aug''24 & Sep''25'!$I:$I,'Statewise SO Details'!$B27,'Aug''24 & Sep''25'!$AS:$AS,'Statewise SO Details'!AE$2,'Aug''24 & Sep''25'!$BU:$BU,"consumer") -> 206 | AF27: =SUMIFS('Aug''24 & Sep''25'!$BL:$BL,'Aug''24 & Sep''25'!$I:$I,'Statewise SO Details'!$B27,'Aug''24 & Sep''25'!$AS:$AS,'Statewise SO Details'!AF$2,'Aug''24 & Sep''25'!$BU:$BU,"consumer") -> 63 | AG27: =SUMIFS('Aug''24 & Sep''25'!$BL:$BL,'Aug''24 & Sep''25'!$I:$I,'Statewise SO Details'!$B27,'Aug''24 & Sep''25'!$AS:$AS,'Statewise SO Details'!AG$2,'Aug''24 & Sep''25'!$BU:$BU,"consumer") -> 0 | AH27: 668 | AJ27: 668 | AK27: -41% | AL27: =SUMIFS('Aug''24 & Sep''25'!$BL:$BL,'Aug''24 & Sep''25'!$I:$I,'Statewise SO Details'!$B27,'Aug''24 & Sep''25'!$CF:$CF,'Statewise SO Details'!AL$2,'Aug''24 & Sep''25'!$BU:$BU,"consumer",'Aug''24 & Sep''25'!$CG:$CG,"MTD") -> 1132 | AN27: =IFERROR(VLOOKUP($B27,Pivot!$P$5:$S$28,MATCH('Statewise SO Details'!AN$2,Pivot!$P$5:$S$5,0),0),0) -> 303 | AO27: -14% | AP27: =IFERROR(VLOOKUP($B27,Pivot!$P$5:$S$28,MATCH('Statewise SO Details'!AP$2,Pivot!$P$5:$S$5,0),0),0) -> 353
